{"text_format":"1","workbook":"xlsx","n_sheets":1,"sheets":["المبيعات "],"not_rendered":{"charts":0,"images":0,"macros":1,"external_links":1,"defined_names":6,"comments":0,"pivot_tables":0},"unopened":[],"bounds":{"document_bytes":16777216,"sheet_cells":100000,"rows_first":2000,"rows_last":500,"rows_between":2000,"halvings":0,"cell_chars":16384,"cell_head_chars":4096},"cells_cut":0,"cells_raw":0,"read":"whole","date_system":"1900"}

{"sheet":"المبيعات ","index":0,"n_rows":4547,"n_cols":27,"rows_kept":4547,"cut":false,"hidden":false,"merged":[]}
["م","رقم القيد","تاريخ\nالقيد","تاريخ الفاتورة","رقم الفاتورة","كود العميل","اسم العميل","كود المنتج","اسم المنتج","الكمية","السعر","القيمة",null,"مندوب البيع","الإجمالى","or","الشهر",null,null,null,"العملاء",null,"المنتجات",null,"طريقة التحصيل","الحركة","مندوب البيع"]
[null,null,null,null,null,null,{"$f":"IF(F2>0,VLOOKUP(F2,client,2,0),\"\")","v":""},51102,{"$f":"IF(H2>0,VLOOKUP(H2,product,2,0),\"\")","v":0},null,null,{"$f":"J2*K2","v":0},null,null,null,{"$f":"IF(L2=0,\"\",IF(O2=L2,\"ok\",\"error\"))","v":""},{"$f":"IF(C2=\"رصيد\",\"رصيد أول\",IF(C2>0,C2,\"\"))","v":""},{"$f":"IF(C2=\"\",\"\",MONTH(C2))","v":""},null,null,"كود العميل","اسم العميل","كود المنتج","اسم المنتج"]
[null,null,null,null,null,null,"",51107,0,null,null,{"$f":"J3*K3","v":0},null,null,null,"","",{"$f":"IF(C3=\"\",\"\",MONTH(C3))","v":""},null,null,{"$f":"'[1]المبيعات والعملاء'!AA3","v":0},{"$f":"'[1]المبيعات والعملاء'!AB3","v":0},51101,null,"نقدا","مبيعات"]
[null,null,null,null,null,null,"",null,"",null,null,0,null,null,null,"","","",null,null,{"$f":"'[1]المبيعات والعملاء'!AA4","v":0},{"$f":"'[1]المبيعات والعملاء'!AB4","v":0},51102,null,"شيك","تحصيل"]
[null,null,null,null,null,null,"",null,"",null,null,0,null,null,null,"","","",null,null,{"$f":"'[1]المبيعات والعملاء'!AA5","v":0},{"$f":"'[1]المبيعات والعملاء'!AB5","v":0},51103,null,null,"رصيد مرحل"]
[null,null,null,null,null,null,"",null,"",null,null,0,null,null,null,"","","",null,null,{"$f":"'[1]المبيعات والعملاء'!AA6","v":0},{"$f":"'[1]المبيعات والعملاء'!AB6","v":0},51104,null,null,"مردودات"]
[null,null,null,null,null,null,"",null,"",null,null,0,null,null,null,"","","",null,null,{"$f":"'[1]المبيعات والعملاء'!AA7","v":0},{"$f":"'[1]المبيعات والعملاء'!AB7","v":0},51105]
[null,null,null,null,null,null,"",null,"",null,null,0,null,null,null,"","","",null,null,{"$f":"'[1]المبيعات والعملاء'!AA8","v":0},{"$f":"'[1]المبيعات والعملاء'!AB8","v":0},51106]
[null,null,null,null,null,null,"",null,"",null,null,0,null,null,null,"","","",null,null,{"$f":"'[1]المبيعات والعملاء'!AA9","v":0},{"$f":"'[1]المبيعات والعملاء'!AB9","v":0},51107]
[null,null,null,null,null,null,"",null,"",null,null,0,null,null,null,"","","",null,null,{"$f":"'[1]المبيعات والعملاء'!AA10","v":0},{"$f":"'[1]المبيعات والعملاء'!AB10","v":0},51108]
[null,null,null,null,null,null,"",null,"",null,null,0,null,null,null,"","","",null,null,{"$f":"'[1]المبيعات والعملاء'!AA11","v":0},{"$f":"'[1]المبيعات والعملاء'!AB11","v":0},51201]
[null,null,null,null,null,null,"",null,"",null,null,0,null,null,null,"","","",null,null,{"$f":"'[1]المبيعات والعملاء'!AA12","v":0},{"$f":"'[1]المبيعات والعملاء'!AB12","v":0},51202]
[null,null,null,null,null,null,"",null,"",null,null,0,null,null,null,"","","",null,null,{"$f":"'[1]المبيعات والعملاء'!AA13","v":0},{"$f":"'[1]المبيعات والعملاء'!AB13","v":0},51203]
[null,null,null,null,null,null,"",null,"",null,null,0,null,null,null,"","","",null,null,{"$f":"'[1]المبيعات والعملاء'!AA14","v":0},{"$f":"'[1]المبيعات والعملاء'!AB14","v":0},51204]
[null,null,null,null,null,null,"",null,"",null,null,0,null,null,null,"","","",null,null,{"$f":"'[1]المبيعات والعملاء'!AA15","v":0},{"$f":"'[1]المبيعات والعملاء'!AB15","v":0},51205]
[null,null,null,null,null,null,"",null,"",null,null,0,null,null,null,"","","",null,null,{"$f":"'[1]المبيعات والعملاء'!AA16","v":0},{"$f":"'[1]المبيعات والعملاء'!AB16","v":0},51206]
[null,null,null,null,null,null,"",null,"",null,null,0,null,null,null,"","","",null,null,{"$f":"'[1]المبيعات والعملاء'!AA17","v":0},{"$f":"'[1]المبيعات والعملاء'!AB17","v":0},51207]
[null,null,null,null,null,null,"",null,"",null,null,0,null,null,null,"","","",null,null,{"$f":"'[1]المبيعات والعملاء'!AA18","v":0},{"$f":"'[1]المبيعات والعملاء'!AB18","v":0},51208]
[null,null,null,null,null,null,"",null,"",null,null,0,null,null,null,"","","",null,null,{"$f":"'[1]المبيعات والعملاء'!AA19","v":0},{"$f":"'[1]المبيعات والعملاء'!AB19","v":0},51301]
[null,null,null,null,null,null,"",null,"",null,null,0,null,null,null,"","","",null,null,{"$f":"'[1]المبيعات والعملاء'!AA20","v":0},{"$f":"'[1]المبيعات والعملاء'!AB20","v":0},51302]
[null,null,null,null,null,null,"",null,"",null,null,0,null,null,null,"","","",null,null,{"$f":"'[1]المبيعات والعملاء'!AA21","v":0},{"$f":"'[1]المبيعات والعملاء'!AB21","v":0},51303]
[null,null,null,null,null,null,"",null,"",null,null,0,null,null,null,"","","",null,null,{"$f":"'[1]المبيعات والعملاء'!AA22","v":0},{"$f":"'[1]المبيعات والعملاء'!AB22","v":0},51304]
[null,null,null,null,null,null,"",null,"",null,null,0,null,null,null,"","","",null,null,{"$f":"'[1]المبيعات والعملاء'!AA23","v":0},{"$f":"'[1]المبيعات والعملاء'!AB23","v":0},51305]
[null,null,null,null,null,null,"",null,"",null,null,0,null,null,null,"","","",null,null,{"$f":"'[1]المبيعات والعملاء'!AA24","v":0},{"$f":"'[1]المبيعات والعملاء'!AB24","v":0},51306]
[null,null,null,null,null,null,"",null,"",null,null,0,null,null,null,"","","",null,null,{"$f":"'[1]المبيعات والعملاء'!AA25","v":0},{"$f":"'[1]المبيعات والعملاء'!AB25","v":0},51307]
[null,null,null,null,null,null,"",null,"",null,null,0,null,null,null,"","","",null,null,{"$f":"'[1]المبيعات والعملاء'!AA26","v":0},{"$f":"'[1]المبيعات والعملاء'!AB26","v":0},51308]
[null,null,null,null,null,null,"",null,"",null,null,0,null,null,null,"","","",null,null,{"$f":"'[1]المبيعات والعملاء'!AA27","v":0},{"$f":"'[1]المبيعات والعملاء'!AB27","v":0},51401]
[null,null,null,null,null,null,"",null,"",null,null,0,null,null,null,"","","",null,null,{"$f":"'[1]المبيعات والعملاء'!AA28","v":0},{"$f":"'[1]المبيعات والعملاء'!AB28","v":0},51501]
[null,null,null,null,null,null,"",null,"",null,null,0,null,null,null,"","","",null,null,{"$f":"'[1]المبيعات والعملاء'!AA29","v":0},{"$f":"'[1]المبيعات والعملاء'!AB29","v":0},51502]
[null,null,null,null,null,null,"",null,"",null,null,0,null,null,null,"","","",null,null,{"$f":"'[1]المبيعات والعملاء'!AA30","v":0},{"$f":"'[1]المبيعات والعملاء'!AB30","v":0},51503]
[null,null,null,null,null,null,"",null,"",null,null,0,null,null,null,"","","",null,null,{"$f":"'[1]المبيعات والعملاء'!AA31","v":0},{"$f":"'[1]المبيعات والعملاء'!AB31","v":0},51504]
[null,null,null,null,null,null,"",null,"",null,null,0,null,null,null,"","","",null,null,{"$f":"'[1]المبيعات والعملاء'!AA32","v":0},{"$f":"'[1]المبيعات والعملاء'!AB32","v":0},51505]
[null,null,null,null,null,null,"",null,"",null,null,0,null,null,null,"","","",null,null,{"$f":"'[1]المبيعات والعملاء'!AA33","v":0},{"$f":"'[1]المبيعات والعملاء'!AB33","v":0},51506]
[null,null,null,null,null,null,"",null,"",null,null,0,null,null,null,"","","",null,null,{"$f":"'[1]المبيعات والعملاء'!AA34","v":0},{"$f":"'[1]المبيعات والعملاء'!AB34","v":0},51507]
[null,null,null,null,null,null,"",null,"",null,null,0,null,null,null,"","","",null,null,{"$f":"'[1]المبيعات والعملاء'!AA35","v":0},{"$f":"'[1]المبيعات والعملاء'!AB35","v":0},51508]
[null,null,null,null,null,null,"",null,"",null,null,0,null,null,null,"","","",null,null,{"$f":"'[1]المبيعات والعملاء'!AA36","v":0},{"$f":"'[1]المبيعات والعملاء'!AB36","v":0},51601]
[null,null,null,null,null,null,"",null,"",null,null,0,null,null,null,"","","",null,null,{"$f":"'[1]المبيعات والعملاء'!AA37","v":0},{"$f":"'[1]المبيعات والعملاء'!AB37","v":0},51602]
[null,null,null,null,null,null,"",null,"",null,null,0,null,null,null,"","","",null,null,{"$f":"'[1]المبيعات والعملاء'!AA38","v":0},{"$f":"'[1]المبيعات والعملاء'!AB38","v":0},51603]
[null,null,null,null,null,null,"",null,"",null,null,0,null,null,null,"","","",null,null,{"$f":"'[1]المبيعات والعملاء'!AA39","v":0},{"$f":"'[1]المبيعات والعملاء'!AB39","v":0},51604]
[null,null,null,null,null,null,"",null,"",null,null,0,null,null,null,"","","",null,null,{"$f":"'[1]المبيعات والعملاء'!AA40","v":0},{"$f":"'[1]المبيعات والعملاء'!AB40","v":0},51605]
[null,null,null,null,null,null,"",null,"",null,null,0,null,null,null,"","","",null,null,{"$f":"'[1]المبيعات والعملاء'!AA41","v":0},{"$f":"'[1]المبيعات والعملاء'!AB41","v":0},51606]
[null,null,null,null,null,null,"",null,"",null,null,0,null,null,null,"","","",null,null,{"$f":"'[1]المبيعات والعملاء'!AA42","v":0},{"$f":"'[1]المبيعات والعملاء'!AB42","v":0},51607]
[null,null,null,null,null,null,"",null,"",null,null,0,null,null,null,"","","",null,null,{"$f":"'[1]المبيعات والعملاء'!AA43","v":0},{"$f":"'[1]المبيعات والعملاء'!AB43","v":0},51608]
[null,null,null,null,null,null,"",null,"",null,null,0,null,null,null,"","","",null,null,{"$f":"'[1]المبيعات والعملاء'!AA44","v":0},{"$f":"'[1]المبيعات والعملاء'!AB44","v":0},51701]
[null,null,null,null,null,null,"",null,"",null,null,0,null,null,null,"","","",null,null,{"$f":"'[1]المبيعات والعملاء'!AA45","v":0},{"$f":"'[1]المبيعات والعملاء'!AB45","v":0},51702]
[null,null,null,null,null,null,"",null,"",null,null,0,null,null,null,"","","",null,null,{"$f":"'[1]المبيعات والعملاء'!AA46","v":0},{"$f":"'[1]المبيعات والعملاء'!AB46","v":0},51703]
[null,null,null,null,null,null,"",null,"",null,null,0,null,null,null,"","","",null,null,{"$f":"'[1]المبيعات والعملاء'!AA47","v":0},{"$f":"'[1]المبيعات والعملاء'!AB47","v":0},51704]
[null,null,null,null,null,null,"",null,"",null,null,0,null,null,null,"","","",null,null,{"$f":"'[1]المبيعات والعملاء'!AA48","v":0},{"$f":"'[1]المبيعات والعملاء'!AB48","v":0},51705]
[null,null,null,null,null,null,"",null,"",null,null,0,null,null,null,"","","",null,null,{"$f":"'[1]المبيعات والعملاء'!AA49","v":0},{"$f":"'[1]المبيعات والعملاء'!AB49","v":0},51706]
[null,null,null,null,null,null,"",null,"",null,null,0,null,null,null,"","","",null,null,{"$f":"'[1]المبيعات والعملاء'!AA50","v":0},{"$f":"'[1]المبيعات والعملاء'!AB50","v":0},51707]
[null,null,null,null,null,null,"",null,"",null,null,0,null,null,null,"","","",null,null,{"$f":"'[1]المبيعات والعملاء'!AA51","v":0},{"$f":"'[1]المبيعات والعملاء'!AB51","v":0},51708]
[null,null,null,null,null,null,"",null,"",null,null,0,null,null,null,"","","",null,null,{"$f":"'[1]المبيعات والعملاء'!AA52","v":0},{"$f":"'[1]المبيعات والعملاء'!AB52","v":0},51801]
[null,null,null,null,null,null,"",null,"",null,null,0,null,null,null,"","","",null,null,{"$f":"'[1]المبيعات والعملاء'!AA53","v":0},{"$f":"'[1]المبيعات والعملاء'!AB53","v":0},52101]
[null,null,null,null,null,null,"",null,"",null,null,0,null,null,null,"","","",null,null,{"$f":"'[1]المبيعات والعملاء'!AA54","v":0},{"$f":"'[1]المبيعات والعملاء'!AB54","v":0},52102]
[null,null,null,null,null,null,"",null,"",null,null,0,null,null,null,"","","",null,null,{"$f":"'[1]المبيعات والعملاء'!AA55","v":0},{"$f":"'[1]المبيعات والعملاء'!AB55","v":0},52103]
[null,null,null,null,null,null,"",null,"",null,null,0,null,null,null,"","","",null,null,{"$f":"'[1]المبيعات والعملاء'!AA56","v":0},{"$f":"'[1]المبيعات والعملاء'!AB56","v":0},52104]
[null,null,null,null,null,null,"",null,"",null,null,0,null,null,null,"","","",null,null,{"$f":"'[1]المبيعات والعملاء'!AA57","v":0},{"$f":"'[1]المبيعات والعملاء'!AB57","v":0},52105]
[null,null,null,null,null,null,"",null,"",null,null,0,null,null,null,"","","",null,null,{"$f":"'[1]المبيعات والعملاء'!AA58","v":0},{"$f":"'[1]المبيعات والعملاء'!AB58","v":0},52106]
[null,null,null,null,null,null,"",null,"",null,null,0,null,null,null,"","","",null,null,{"$f":"'[1]المبيعات والعملاء'!AA59","v":0},{"$f":"'[1]المبيعات والعملاء'!AB59","v":0},52201]
[null,null,null,null,null,null,"",null,"",null,null,0,null,null,null,"","","",null,null,{"$f":"'[1]المبيعات والعملاء'!AA60","v":0},{"$f":"'[1]المبيعات والعملاء'!AB60","v":0},52202]
[null,null,null,null,null,null,"",null,"",null,null,0,null,null,null,"","","",null,null,{"$f":"'[1]المبيعات والعملاء'!AA61","v":0},{"$f":"'[1]المبيعات والعملاء'!AB61","v":0},52203]
[null,null,null,null,null,null,"",null,"",null,null,0,null,null,null,"","","",null,null,{"$f":"'[1]المبيعات والعملاء'!AA62","v":0},{"$f":"'[1]المبيعات والعملاء'!AB62","v":0},52204]
[null,null,null,null,null,null,"",null,"",null,null,0,null,null,null,"","","",null,null,{"$f":"'[1]المبيعات والعملاء'!AA63","v":0},{"$f":"'[1]المبيعات والعملاء'!AB63","v":0},52205]
[null,null,null,null,null,null,"",null,"",null,null,0,null,null,null,"","","",null,null,{"$f":"'[1]المبيعات والعملاء'!AA64","v":0},{"$f":"'[1]المبيعات والعملاء'!AB64","v":0},52206]
[null,null,null,null,null,null,"",null,"",null,null,0,null,null,null,"","","",null,null,{"$f":"'[1]المبيعات والعملاء'!AA65","v":0},{"$f":"'[1]المبيعات والعملاء'!AB65","v":0},52301]
[null,null,null,null,null,null,{"$f":"IF(F66>0,VLOOKUP(F66,client,2,0),\"\")","v":""},null,{"$f":"IF(H66>0,VLOOKUP(H66,product,2,0),\"\")","v":""},null,null,0,null,null,null,{"$f":"IF(L66=0,\"\",IF(O66=L66,\"ok\",\"error\"))","v":""},{"$f":"IF(C66=\"رصيد\",\"رصيد أول\",IF(C66>0,C66,\"\"))","v":""},"",null,null,{"$f":"'[1]المبيعات والعملاء'!AA66","v":0},{"$f":"'[1]المبيعات والعملاء'!AB66","v":0},53101]
[null,null,null,null,null,null,"",null,"",null,null,{"$f":"J67*K67","v":0},null,null,null,"","",{"$f":"IF(C67=\"\",\"\",MONTH(C67))","v":""},null,null,{"$f":"'[1]المبيعات والعملاء'!AA67","v":0},{"$f":"'[1]المبيعات والعملاء'!AB67","v":0},53102]
[null,null,null,null,null,null,"",null,"",null,null,0,null,null,null,"","","",null,null,{"$f":"'[1]المبيعات والعملاء'!AA68","v":0},{"$f":"'[1]المبيعات والعملاء'!AB68","v":0},53201]
[null,null,null,null,null,null,"",null,"",null,null,0,null,null,null,"","","",null,null,{"$f":"'[1]المبيعات والعملاء'!AA69","v":0},{"$f":"'[1]المبيعات والعملاء'!AB69","v":0},53202]
[null,null,null,null,null,null,"",null,"",null,null,0,null,null,null,"","","",null,null,{"$f":"'[1]المبيعات والعملاء'!AA70","v":0},{"$f":"'[1]المبيعات والعملاء'!AB70","v":0},54101]
[null,null,null,null,null,null,"",null,"",null,null,0,null,null,null,"","","",null,null,{"$f":"'[1]المبيعات والعملاء'!AA71","v":0},{"$f":"'[1]المبيعات والعملاء'!AB71","v":0}]
[null,null,null,null,null,null,"",null,"",null,null,0,null,null,null,"","","",null,null,{"$f":"'[1]المبيعات والعملاء'!AA72","v":0},{"$f":"'[1]المبيعات والعملاء'!AB72","v":0}]
[null,null,null,null,null,null,"",null,"",null,null,0,null,null,null,"","","",null,null,{"$f":"'[1]المبيعات والعملاء'!AA73","v":0},{"$f":"'[1]المبيعات والعملاء'!AB73","v":0}]
[null,null,null,null,null,null,"",null,"",null,null,0,null,null,null,"","","",null,null,{"$f":"'[1]المبيعات والعملاء'!AA74","v":0},{"$f":"'[1]المبيعات والعملاء'!AB74","v":0}]
[null,null,null,null,null,null,"",null,"",null,null,0,null,null,null,"","","",null,null,{"$f":"'[1]المبيعات والعملاء'!AA75","v":0},{"$f":"'[1]المبيعات والعملاء'!AB75","v":0}]
[null,null,null,null,null,null,"",null,"",null,null,0,null,null,null,"","","",null,null,{"$f":"'[1]المبيعات والعملاء'!AA76","v":0},{"$f":"'[1]المبيعات والعملاء'!AB76","v":0}]
[null,null,null,null,null,null,"",null,"",null,null,0,null,null,null,"","","",null,null,{"$f":"'[1]المبيعات والعملاء'!AA77","v":0},{"$f":"'[1]المبيعات والعملاء'!AB77","v":0}]
[null,null,null,null,null,null,"",null,"",null,null,0,null,null,null,"","","",null,null,{"$f":"'[1]المبيعات والعملاء'!AA78","v":0},{"$f":"'[1]المبيعات والعملاء'!AB78","v":0}]
[null,null,null,null,null,null,"",null,"",null,null,0,null,null,null,"","","",null,null,{"$f":"'[1]المبيعات والعملاء'!AA79","v":0},{"$f":"'[1]المبيعات والعملاء'!AB79","v":0}]
[null,null,null,null,null,null,"",null,"",null,null,0,null,null,null,"","","",null,null,{"$f":"'[1]المبيعات والعملاء'!AA80","v":0},{"$f":"'[1]المبيعات والعملاء'!AB80","v":0}]
[null,null,null,null,null,null,"",null,"",null,null,0,null,null,null,"","","",null,null,{"$f":"'[1]المبيعات والعملاء'!AA81","v":0},{"$f":"'[1]المبيعات والعملاء'!AB81","v":0}]
[null,null,null,null,null,null,"",null,"",null,null,0,null,null,null,"","","",null,null,{"$f":"'[1]المبيعات والعملاء'!AA82","v":0},{"$f":"'[1]المبيعات والعملاء'!AB82","v":0}]
[null,null,null,null,null,null,"",null,"",null,null,0,null,null,null,"","","",null,null,{"$f":"'[1]المبيعات والعملاء'!AA83","v":0},{"$f":"'[1]المبيعات والعملاء'!AB83","v":0}]
[null,null,null,null,null,null,"",null,"",null,null,0,null,null,null,"","","",null,null,{"$f":"'[1]المبيعات والعملاء'!AA84","v":0},{"$f":"'[1]المبيعات والعملاء'!AB84","v":0}]
[null,null,null,null,null,null,"",null,"",null,null,0,null,null,null,"","","",null,null,{"$f":"'[1]المبيعات والعملاء'!AA85","v":0},{"$f":"'[1]المبيعات والعملاء'!AB85","v":0}]
[null,null,null,null,null,null,"",null,"",null,null,0,null,null,null,"","","",null,null,{"$f":"'[1]المبيعات والعملاء'!AA86","v":0},{"$f":"'[1]المبيعات والعملاء'!AB86","v":0}]
[null,null,null,null,null,null,"",null,"",null,null,0,null,null,null,"","","",null,null,{"$f":"'[1]المبيعات والعملاء'!AA87","v":0},{"$f":"'[1]المبيعات والعملاء'!AB87","v":0}]
[null,null,null,null,null,null,"",null,"",null,null,0,null,null,null,"","","",null,null,{"$f":"'[1]المبيعات والعملاء'!AA88","v":0},{"$f":"'[1]المبيعات والعملاء'!AB88","v":0}]
[null,null,null,null,null,null,"",null,"",null,null,0,null,null,null,"","","",null,null,{"$f":"'[1]المبيعات والعملاء'!AA89","v":0},{"$f":"'[1]المبيعات والعملاء'!AB89","v":0}]
[null,null,null,null,null,null,"",null,"",null,null,0,null,null,null,"","","",null,null,{"$f":"'[1]المبيعات والعملاء'!AA90","v":0},{"$f":"'[1]المبيعات والعملاء'!AB90","v":0}]
[null,null,null,null,null,null,"",null,"",null,null,0,null,null,null,"","","",null,null,{"$f":"'[1]المبيعات والعملاء'!AA91","v":0},{"$f":"'[1]المبيعات والعملاء'!AB91","v":0}]
[null,null,null,null,null,null,"",null,"",null,null,0,null,null,null,"","","",null,null,{"$f":"'[1]المبيعات والعملاء'!AA92","v":0},{"$f":"'[1]المبيعات والعملاء'!AB92","v":0}]
[null,null,null,null,null,null,"",null,"",null,null,0,null,null,null,"","","",null,null,{"$f":"'[1]المبيعات والعملاء'!AA93","v":0},{"$f":"'[1]المبيعات والعملاء'!AB93","v":0}]
[null,null,null,null,null,null,"",null,"",null,null,0,null,null,null,"","","",null,null,{"$f":"'[1]المبيعات والعملاء'!AA94","v":0},{"$f":"'[1]المبيعات والعملاء'!AB94","v":0}]
[null,null,null,null,null,null,"",null,"",null,null,0,null,null,null,"","","",null,null,{"$f":"'[1]المبيعات والعملاء'!AA95","v":0},{"$f":"'[1]المبيعات والعملاء'!AB95","v":0}]
[null,null,null,null,null,null,"",null,"",null,null,0,null,null,null,"","","",null,null,{"$f":"'[1]المبيعات والعملاء'!AA96","v":0},{"$f":"'[1]المبيعات والعملاء'!AB96","v":0}]
[null,null,null,null,null,null,"",null,"",null,null,0,null,null,null,"","","",null,null,{"$f":"'[1]المبيعات والعملاء'!AA97","v":0},{"$f":"'[1]المبيعات والعملاء'!AB97","v":0}]
[null,null,null,null,null,null,"",null,"",null,null,0,null,null,null,"","","",null,null,{"$f":"'[1]المبيعات والعملاء'!AA98","v":0},{"$f":"'[1]المبيعات والعملاء'!AB98","v":0}]
[null,null,null,null,null,null,"",null,"",null,null,0,null,null,null,"","","",null,null,{"$f":"'[1]المبيعات والعملاء'!AA99","v":0},{"$f":"'[1]المبيعات والعملاء'!AB99","v":0}]
[null,null,null,null,null,null,"",null,"",null,null,0,null,null,null,"","","",null,null,{"$f":"'[1]المبيعات والعملاء'!AA100","v":0},{"$f":"'[1]المبيعات والعملاء'!AB100","v":0}]
[null,null,null,null,null,null,"",null,"",null,null,0,null,null,null,"","","",null,null,{"$f":"'[1]المبيعات والعملاء'!AA101","v":0},{"$f":"'[1]المبيعات والعملاء'!AB101","v":0}]
[null,null,null,null,null,null,"",null,"",null,null,0,null,null,null,"","","",null,null,{"$f":"'[1]المبيعات والعملاء'!AA102","v":0},{"$f":"'[1]المبيعات والعملاء'!AB102","v":0}]
[null,null,null,null,null,null,"",null,"",null,null,0,null,null,null,"","","",null,null,{"$f":"'[1]المبيعات والعملاء'!AA103","v":0},{"$f":"'[1]المبيعات والعملاء'!AB103","v":0}]
[null,null,null,null,null,null,"",null,"",null,null,0,null,null,null,"","","",null,null,{"$f":"'[1]المبيعات والعملاء'!AA104","v":0},{"$f":"'[1]المبيعات والعملاء'!AB104","v":0}]
[null,null,null,null,null,null,"",null,"",null,null,0,null,null,null,"","","",null,null,{"$f":"'[1]المبيعات والعملاء'!AA105","v":0},{"$f":"'[1]المبيعات والعملاء'!AB105","v":0}]
[null,null,null,null,null,null,"",null,"",null,null,0,null,null,null,"","","",null,null,{"$f":"'[1]المبيعات والعملاء'!AA106","v":0},{"$f":"'[1]المبيعات والعملاء'!AB106","v":0}]
[null,null,null,null,null,null,"",null,"",null,null,0,null,null,null,"","","",null,null,{"$f":"'[1]المبيعات والعملاء'!AA107","v":0},{"$f":"'[1]المبيعات والعملاء'!AB107","v":0}]
[null,null,null,null,null,null,"",null,"",null,null,0,null,null,null,"","","",null,null,{"$f":"'[1]المبيعات والعملاء'!AA108","v":0},{"$f":"'[1]المبيعات والعملاء'!AB108","v":0}]
[null,null,null,null,null,null,"",null,"",null,null,0,null,null,null,"","","",null,null,{"$f":"'[1]المبيعات والعملاء'!AA109","v":0},{"$f":"'[1]المبيعات والعملاء'!AB109","v":0}]
[null,null,null,null,null,null,"",null,"",null,null,0,null,null,null,"","","",null,null,{"$f":"'[1]المبيعات والعملاء'!AA110","v":0},{"$f":"'[1]المبيعات والعملاء'!AB110","v":0}]
[null,null,null,null,null,null,"",null,"",null,null,0,null,null,null,"","","",null,null,{"$f":"'[1]المبيعات والعملاء'!AA111","v":0},{"$f":"'[1]المبيعات والعملاء'!AB111","v":0}]
[null,null,null,null,null,null,"",null,"",null,null,0,null,null,null,"","","",null,null,{"$f":"'[1]المبيعات والعملاء'!AA112","v":0},{"$f":"'[1]المبيعات والعملاء'!AB112","v":0}]
[null,null,null,null,null,null,"",null,"",null,null,0,null,null,null,"","","",null,null,{"$f":"'[1]المبيعات والعملاء'!AA113","v":0},{"$f":"'[1]المبيعات والعملاء'!AB113","v":0}]
[null,null,null,null,null,null,"",null,"",null,null,0,null,null,null,"","","",null,null,{"$f":"'[1]المبيعات والعملاء'!AA114","v":0},{"$f":"'[1]المبيعات والعملاء'!AB114","v":0}]
[null,null,null,null,null,null,"",null,"",null,null,0,null,null,null,"","","",null,null,{"$f":"'[1]المبيعات والعملاء'!AA115","v":0},{"$f":"'[1]المبيعات والعملاء'!AB115","v":0}]
[null,null,null,null,null,null,"",null,"",null,null,0,null,null,null,"","","",null,null,{"$f":"'[1]المبيعات والعملاء'!AA116","v":0},{"$f":"'[1]المبيعات والعملاء'!AB116","v":0}]
[null,null,null,null,null,null,"",null,"",null,null,0,null,null,null,"","","",null,null,{"$f":"'[1]المبيعات والعملاء'!AA117","v":0},{"$f":"'[1]المبيعات والعملاء'!AB117","v":0}]
[null,null,null,null,null,null,"",null,"",null,null,0,null,null,null,"","","",null,null,{"$f":"'[1]المبيعات والعملاء'!AA118","v":0},{"$f":"'[1]المبيعات والعملاء'!AB118","v":0}]
[null,null,null,null,null,null,"",null,"",null,null,0,null,null,null,"","","",null,null,{"$f":"'[1]المبيعات والعملاء'!AA119","v":0},{"$f":"'[1]المبيعات والعملاء'!AB119","v":0}]
[null,null,null,null,null,null,"",null,"",null,null,0,null,null,null,"","","",null,null,{"$f":"'[1]المبيعات والعملاء'!AA120","v":0},{"$f":"'[1]المبيعات والعملاء'!AB120","v":0}]
[null,null,null,null,null,null,"",null,"",null,null,0,null,null,null,"","","",null,null,{"$f":"'[1]المبيعات والعملاء'!AA121","v":0},{"$f":"'[1]المبيعات والعملاء'!AB121","v":0}]
[null,null,null,null,null,null,"",null,"",null,null,0,null,null,null,"","","",null,null,{"$f":"'[1]المبيعات والعملاء'!AA122","v":0},{"$f":"'[1]المبيعات والعملاء'!AB122","v":0}]
[null,null,null,null,null,null,"",null,"",null,null,0,null,null,null,"","","",null,null,{"$f":"'[1]المبيعات والعملاء'!AA123","v":0},{"$f":"'[1]المبيعات والعملاء'!AB123","v":0}]
[null,null,null,null,null,null,"",null,"",null,null,0,null,null,null,"","","",null,null,{"$f":"'[1]المبيعات والعملاء'!AA124","v":0},{"$f":"'[1]المبيعات والعملاء'!AB124","v":0}]
[null,null,null,null,null,null,"",null,"",null,null,0,null,null,null,"","","",null,null,{"$f":"'[1]المبيعات والعملاء'!AA125","v":0},{"$f":"'[1]المبيعات والعملاء'!AB125","v":0}]
[null,null,null,null,null,null,"",null,"",null,null,0,null,null,null,"","","",null,null,{"$f":"'[1]المبيعات والعملاء'!AA126","v":0},{"$f":"'[1]المبيعات والعملاء'!AB126","v":0}]
[null,null,null,null,null,null,"",null,"",null,null,0,null,null,null,"","","",null,null,{"$f":"'[1]المبيعات والعملاء'!AA127","v":0},{"$f":"'[1]المبيعات والعملاء'!AB127","v":0}]
[null,null,null,null,null,null,"",null,"",null,null,0,null,null,null,"","","",null,null,{"$f":"'[1]المبيعات والعملاء'!AA128","v":0},{"$f":"'[1]المبيعات والعملاء'!AB128","v":0}]
[null,null,null,null,null,null,"",null,"",null,null,0,null,null,null,"","","",null,null,{"$f":"'[1]المبيعات والعملاء'!AA129","v":0},{"$f":"'[1]المبيعات والعملاء'!AB129","v":0}]
[null,null,null,null,null,null,{"$f":"IF(F130>0,VLOOKUP(F130,client,2,0),\"\")","v":""},null,{"$f":"IF(H130>0,VLOOKUP(H130,product,2,0),\"\")","v":""},null,null,0,null,null,null,{"$f":"IF(L130=0,\"\",IF(O130=L130,\"ok\",\"error\"))","v":""},{"$f":"IF(C130=\"رصيد\",\"رصيد أول\",IF(C130>0,C130,\"\"))","v":""},"",null,null,{"$f":"'[1]المبيعات والعملاء'!AA130","v":0},{"$f":"'[1]المبيعات والعملاء'!AB130","v":0}]
[null,null,null,null,null,null,"",null,"",null,null,{"$f":"J131*K131","v":0},null,null,null,"","",{"$f":"IF(C131=\"\",\"\",MONTH(C131))","v":""},null,null,{"$f":"'[1]المبيعات والعملاء'!AA131","v":0},{"$f":"'[1]المبيعات والعملاء'!AB131","v":0}]
[null,null,null,null,null,null,"",null,"",null,null,0,null,null,null,"","","",null,null,{"$f":"'[1]المبيعات والعملاء'!AA132","v":0},{"$f":"'[1]المبيعات والعملاء'!AB132","v":0}]
[null,null,null,null,null,null,"",null,"",null,null,0,null,null,null,"","","",null,null,{"$f":"'[1]المبيعات والعملاء'!AA133","v":0},{"$f":"'[1]المبيعات والعملاء'!AB133","v":0}]
[null,null,null,null,null,null,"",null,"",null,null,0,null,null,null,"","","",null,null,{"$f":"'[1]المبيعات والعملاء'!AA134","v":0},{"$f":"'[1]المبيعات والعملاء'!AB134","v":0}]
[null,null,null,null,null,null,"",null,"",null,null,0,null,null,null,"","","",null,null,{"$f":"'[1]المبيعات والعملاء'!AA135","v":0},{"$f":"'[1]المبيعات والعملاء'!AB135","v":0}]
[null,null,null,null,null,null,"",null,"",null,null,0,null,null,null,"","","",null,null,{"$f":"'[1]المبيعات والعملاء'!AA136","v":0},{"$f":"'[1]المبيعات والعملاء'!AB136","v":0}]
[null,null,null,null,null,null,"",null,"",null,null,0,null,null,null,"","","",null,null,{"$f":"'[1]المبيعات والعملاء'!AA137","v":0},{"$f":"'[1]المبيعات والعملاء'!AB137","v":0}]
[null,null,null,null,null,null,"",null,"",null,null,0,null,null,null,"","","",null,null,{"$f":"'[1]المبيعات والعملاء'!AA138","v":0},{"$f":"'[1]المبيعات والعملاء'!AB138","v":0}]
[null,null,null,null,null,null,"",null,"",null,null,0,null,null,null,"","","",null,null,{"$f":"'[1]المبيعات والعملاء'!AA139","v":0},{"$f":"'[1]المبيعات والعملاء'!AB139","v":0}]
[null,null,null,null,null,null,"",null,"",null,null,0,null,null,null,"","","",null,null,{"$f":"'[1]المبيعات والعملاء'!AA140","v":0},{"$f":"'[1]المبيعات والعملاء'!AB140","v":0}]
[null,null,null,null,null,null,"",null,"",null,null,0,null,null,null,"","","",null,null,{"$f":"'[1]المبيعات والعملاء'!AA141","v":0},{"$f":"'[1]المبيعات والعملاء'!AB141","v":0}]
[null,null,null,null,null,null,"",null,"",null,null,0,null,null,null,"","","",null,null,{"$f":"'[1]المبيعات والعملاء'!AA142","v":0},{"$f":"'[1]المبيعات والعملاء'!AB142","v":0}]
[null,null,null,null,null,null,"",null,"",null,null,0,null,null,null,"","","",null,null,{"$f":"'[1]المبيعات والعملاء'!AA143","v":0},{"$f":"'[1]المبيعات والعملاء'!AB143","v":0}]
[null,null,null,null,null,null,"",null,"",null,null,0,null,null,null,"","","",null,null,{"$f":"'[1]المبيعات والعملاء'!AA144","v":0},{"$f":"'[1]المبيعات والعملاء'!AB144","v":0}]
[null,null,null,null,null,null,"",null,"",null,null,0,null,null,null,"","","",null,null,{"$f":"'[1]المبيعات والعملاء'!AA145","v":0},{"$f":"'[1]المبيعات والعملاء'!AB145","v":0}]
[null,null,null,null,null,null,"",null,"",null,null,0,null,null,null,"","","",null,null,{"$f":"'[1]المبيعات والعملاء'!AA146","v":0},{"$f":"'[1]المبيعات والعملاء'!AB146","v":0}]
[null,null,null,null,null,null,"",null,"",null,null,0,null,null,null,"","","",null,null,{"$f":"'[1]المبيعات والعملاء'!AA147","v":0},{"$f":"'[1]المبيعات والعملاء'!AB147","v":0}]
[null,null,null,null,null,null,"",null,"",null,null,0,null,null,null,"","","",null,null,{"$f":"'[1]المبيعات والعملاء'!AA148","v":0},{"$f":"'[1]المبيعات والعملاء'!AB148","v":0}]
[null,null,null,null,null,null,"",null,"",null,null,0,null,null,null,"","","",null,null,{"$f":"'[1]المبيعات والعملاء'!AA149","v":0},{"$f":"'[1]المبيعات والعملاء'!AB149","v":0}]
[null,null,null,null,null,null,"",null,"",null,null,0,null,null,null,"","","",null,null,{"$f":"'[1]المبيعات والعملاء'!AA150","v":0},{"$f":"'[1]المبيعات والعملاء'!AB150","v":0}]
[null,null,null,null,null,null,"",null,"",null,null,0,null,null,null,"","","",null,null,{"$f":"'[1]المبيعات والعملاء'!AA151","v":0},{"$f":"'[1]المبيعات والعملاء'!AB151","v":0}]
[null,null,null,null,null,null,"",null,"",null,null,0,null,null,null,"","","",null,null,{"$f":"'[1]المبيعات والعملاء'!AA152","v":0},{"$f":"'[1]المبيعات والعملاء'!AB152","v":0}]
[null,null,null,null,null,null,"",null,"",null,null,0,null,null,null,"","","",null,null,{"$f":"'[1]المبيعات والعملاء'!AA153","v":0},{"$f":"'[1]المبيعات والعملاء'!AB153","v":0}]
[null,null,null,null,null,null,"",null,"",null,null,0,null,null,null,"","","",null,null,{"$f":"'[1]المبيعات والعملاء'!AA154","v":0},{"$f":"'[1]المبيعات والعملاء'!AB154","v":0}]
[null,null,null,null,null,null,"",null,"",null,null,0,null,null,null,"","","",null,null,{"$f":"'[1]المبيعات والعملاء'!AA155","v":0},{"$f":"'[1]المبيعات والعملاء'!AB155","v":0}]
[null,null,null,null,null,null,"",null,"",null,null,0,null,null,null,"","","",null,null,{"$f":"'[1]المبيعات والعملاء'!AA156","v":0},{"$f":"'[1]المبيعات والعملاء'!AB156","v":0}]
[null,null,null,null,null,null,"",null,"",null,null,0,null,null,null,"","","",null,null,{"$f":"'[1]المبيعات والعملاء'!AA157","v":0},{"$f":"'[1]المبيعات والعملاء'!AB157","v":0}]
[null,null,null,null,null,null,"",null,"",null,null,0,null,null,null,"","","",null,null,{"$f":"'[1]المبيعات والعملاء'!AA158","v":0},{"$f":"'[1]المبيعات والعملاء'!AB158","v":0}]
[null,null,null,null,null,null,"",null,"",null,null,0,null,null,null,"","","",null,null,{"$f":"'[1]المبيعات والعملاء'!AA159","v":0},{"$f":"'[1]المبيعات والعملاء'!AB159","v":0}]
[null,null,null,null,null,null,"",null,"",null,null,0,null,null,null,"","","",null,null,{"$f":"'[1]المبيعات والعملاء'!AA160","v":0},{"$f":"'[1]المبيعات والعملاء'!AB160","v":0}]
[null,null,null,null,null,null,"",null,"",null,null,0,null,null,null,"","","",null,null,{"$f":"'[1]المبيعات والعملاء'!AA161","v":0},{"$f":"'[1]المبيعات والعملاء'!AB161","v":0}]
[null,null,null,null,null,null,"",null,"",null,null,0,null,null,null,"","","",null,null,{"$f":"'[1]المبيعات والعملاء'!AA162","v":0},{"$f":"'[1]المبيعات والعملاء'!AB162","v":0}]
[null,null,null,null,null,null,"",null,"",null,null,0,null,null,null,"","","",null,null,{"$f":"'[1]المبيعات والعملاء'!AA163","v":0},{"$f":"'[1]المبيعات والعملاء'!AB163","v":0}]
[null,null,null,null,null,null,"",null,"",null,null,0,null,null,null,"","","",null,null,{"$f":"'[1]المبيعات والعملاء'!AA164","v":0},{"$f":"'[1]المبيعات والعملاء'!AB164","v":0}]
[null,null,null,null,null,null,"",null,"",null,null,0,null,null,null,"","","",null,null,{"$f":"'[1]المبيعات والعملاء'!AA165","v":0},{"$f":"'[1]المبيعات والعملاء'!AB165","v":0}]
[null,null,null,null,null,null,"",null,"",null,null,0,null,null,null,"","","",null,null,{"$f":"'[1]المبيعات والعملاء'!AA166","v":0},{"$f":"'[1]المبيعات والعملاء'!AB166","v":0}]
[null,null,null,null,null,null,"",null,"",null,null,0,null,null,null,"","","",null,null,{"$f":"'[1]المبيعات والعملاء'!AA167","v":0},{"$f":"'[1]المبيعات والعملاء'!AB167","v":0}]
[null,null,null,null,null,null,"",null,"",null,null,0,null,null,null,"","","",null,null,{"$f":"'[1]المبيعات والعملاء'!AA168","v":0},{"$f":"'[1]المبيعات والعملاء'!AB168","v":0}]
[null,null,null,null,null,null,"",null,"",null,null,0,null,null,null,"","","",null,null,{"$f":"'[1]المبيعات والعملاء'!AA169","v":0},{"$f":"'[1]المبيعات والعملاء'!AB169","v":0}]
[null,null,null,null,null,null,"",null,"",null,null,0,null,null,null,"","","",null,null,{"$f":"'[1]المبيعات والعملاء'!AA170","v":0},{"$f":"'[1]المبيعات والعملاء'!AB170","v":0}]
[null,null,null,null,null,null,"",null,"",null,null,0,null,null,null,"","","",null,null,{"$f":"'[1]المبيعات والعملاء'!AA171","v":0},{"$f":"'[1]المبيعات والعملاء'!AB171","v":0}]
[null,null,null,null,null,null,"",null,"",null,null,0,null,null,null,"","","",null,null,{"$f":"'[1]المبيعات والعملاء'!AA172","v":0},{"$f":"'[1]المبيعات والعملاء'!AB172","v":0}]
[null,null,null,null,null,null,"",null,"",null,null,0,null,null,null,"","","",null,null,{"$f":"'[1]المبيعات والعملاء'!AA173","v":0},{"$f":"'[1]المبيعات والعملاء'!AB173","v":0}]
[null,null,null,null,null,null,"",null,"",null,null,0,null,null,null,"","","",null,null,{"$f":"'[1]المبيعات والعملاء'!AA174","v":0},{"$f":"'[1]المبيعات والعملاء'!AB174","v":0}]
[null,null,null,null,null,null,"",null,"",null,null,0,null,null,null,"","","",null,null,{"$f":"'[1]المبيعات والعملاء'!AA175","v":0},{"$f":"'[1]المبيعات والعملاء'!AB175","v":0}]
[null,null,null,null,null,null,"",null,"",null,null,0,null,null,null,"","","",null,null,{"$f":"'[1]المبيعات والعملاء'!AA176","v":0},{"$f":"'[1]المبيعات والعملاء'!AB176","v":0}]
[null,null,null,null,null,null,"",null,"",null,null,0,null,null,null,"","","",null,null,{"$f":"'[1]المبيعات والعملاء'!AA177","v":0},{"$f":"'[1]المبيعات والعملاء'!AB177","v":0}]
[null,null,null,null,null,null,"",null,"",null,null,0,null,null,null,"","","",null,null,{"$f":"'[1]المبيعات والعملاء'!AA178","v":0},{"$f":"'[1]المبيعات والعملاء'!AB178","v":0}]
[null,null,null,null,null,null,"",null,"",null,null,0,null,null,null,"","","",null,null,{"$f":"'[1]المبيعات والعملاء'!AA179","v":0},{"$f":"'[1]المبيعات والعملاء'!AB179","v":0}]
[null,null,null,null,null,null,"",null,"",null,null,0,null,null,null,"","","",null,null,{"$f":"'[1]المبيعات والعملاء'!AA180","v":0},{"$f":"'[1]المبيعات والعملاء'!AB180","v":0}]
[null,null,null,null,null,null,"",null,"",null,null,0,null,null,null,"","","",null,null,{"$f":"'[1]المبيعات والعملاء'!AA181","v":0},{"$f":"'[1]المبيعات والعملاء'!AB181","v":0}]
[null,null,null,null,null,null,"",null,"",null,null,0,null,null,null,"","","",null,null,{"$f":"'[1]المبيعات والعملاء'!AA182","v":0},{"$f":"'[1]المبيعات والعملاء'!AB182","v":0}]
[null,null,null,null,null,null,"",null,"",null,null,0,null,null,null,"","","",null,null,{"$f":"'[1]المبيعات والعملاء'!AA183","v":0},{"$f":"'[1]المبيعات والعملاء'!AB183","v":0}]
[null,null,null,null,null,null,"",null,"",null,null,0,null,null,null,"","","",null,null,{"$f":"'[1]المبيعات والعملاء'!AA184","v":0},{"$f":"'[1]المبيعات والعملاء'!AB184","v":0}]
[null,null,null,null,null,null,"",null,"",null,null,0,null,null,null,"","","",null,null,{"$f":"'[1]المبيعات والعملاء'!AA185","v":0},{"$f":"'[1]المبيعات والعملاء'!AB185","v":0}]
[null,null,null,null,null,null,"",null,"",null,null,0,null,null,null,"","","",null,null,{"$f":"'[1]المبيعات والعملاء'!AA186","v":0},{"$f":"'[1]المبيعات والعملاء'!AB186","v":0}]
[null,null,null,null,null,null,"",null,"",null,null,0,null,null,null,"","","",null,null,{"$f":"'[1]المبيعات والعملاء'!AA187","v":0},{"$f":"'[1]المبيعات والعملاء'!AB187","v":0}]
[null,null,null,null,null,null,"",null,"",null,null,0,null,null,null,"","","",null,null,{"$f":"'[1]المبيعات والعملاء'!AA188","v":0},{"$f":"'[1]المبيعات والعملاء'!AB188","v":0}]
[null,null,null,null,null,null,"",null,"",null,null,0,null,null,null,"","","",null,null,{"$f":"'[1]المبيعات والعملاء'!AA189","v":0},{"$f":"'[1]المبيعات والعملاء'!AB189","v":0}]
[null,null,null,null,null,null,"",null,"",null,null,0,null,null,null,"","","",null,null,{"$f":"'[1]المبيعات والعملاء'!AA190","v":0},{"$f":"'[1]المبيعات والعملاء'!AB190","v":0}]
[null,null,null,null,null,null,"",null,"",null,null,0,null,null,null,"","","",null,null,{"$f":"'[1]المبيعات والعملاء'!AA191","v":0},{"$f":"'[1]المبيعات والعملاء'!AB191","v":0}]
[null,null,null,null,null,null,"",null,"",null,null,0,null,null,null,"","","",null,null,{"$f":"'[1]المبيعات والعملاء'!AA192","v":0},{"$f":"'[1]المبيعات والعملاء'!AB192","v":0}]
[null,null,null,null,null,null,"",null,"",null,null,0,null,null,null,"","","",null,null,{"$f":"'[1]المبيعات والعملاء'!AA193","v":0},{"$f":"'[1]المبيعات والعملاء'!AB193","v":0}]
[null,null,null,null,null,null,{"$f":"IF(F194>0,VLOOKUP(F194,client,2,0),\"\")","v":""},null,{"$f":"IF(H194>0,VLOOKUP(H194,product,2,0),\"\")","v":""},null,null,0,null,null,null,{"$f":"IF(L194=0,\"\",IF(O194=L194,\"ok\",\"error\"))","v":""},{"$f":"IF(C194=\"رصيد\",\"رصيد أول\",IF(C194>0,C194,\"\"))","v":""},"",null,null,{"$f":"'[1]المبيعات والعملاء'!AA194","v":0},{"$f":"'[1]المبيعات والعملاء'!AB194","v":0}]
[null,null,null,null,null,null,"",null,"",null,null,{"$f":"J195*K195","v":0},null,null,null,"","",{"$f":"IF(C195=\"\",\"\",MONTH(C195))","v":""},null,null,{"$f":"'[1]المبيعات والعملاء'!AA195","v":0},{"$f":"'[1]المبيعات والعملاء'!AB195","v":0}]
[null,null,null,null,null,null,"",null,"",null,null,0,null,null,null,"","","",null,null,{"$f":"'[1]المبيعات والعملاء'!AA196","v":0},{"$f":"'[1]المبيعات والعملاء'!AB196","v":0}]
[null,null,null,null,null,null,"",null,"",null,null,0,null,null,null,"","","",null,null,{"$f":"'[1]المبيعات والعملاء'!AA197","v":0},{"$f":"'[1]المبيعات والعملاء'!AB197","v":0}]
[null,null,null,null,null,null,"",null,"",null,null,0,null,null,null,"","","",null,null,{"$f":"'[1]المبيعات والعملاء'!AA198","v":0},{"$f":"'[1]المبيعات والعملاء'!AB198","v":0}]
[null,null,null,null,null,null,"",null,"",null,null,0,null,null,null,"","","",null,null,{"$f":"'[1]المبيعات والعملاء'!AA199","v":0},{"$f":"'[1]المبيعات والعملاء'!AB199","v":0}]
[null,null,null,null,null,null,"",null,"",null,null,0,null,null,null,"","","",null,null,{"$f":"'[1]المبيعات والعملاء'!AA200","v":0},{"$f":"'[1]المبيعات والعملاء'!AB200","v":0}]
[null,null,null,null,null,null,"",null,"",null,null,0,null,null,null,"","","",null,null,{"$f":"'[1]المبيعات والعملاء'!AA201","v":0},{"$f":"'[1]المبيعات والعملاء'!AB201","v":0}]
[null,null,null,null,null,null,"",null,"",null,null,0,null,null,null,"","","",null,null,{"$f":"'[1]المبيعات والعملاء'!AA202","v":0},{"$f":"'[1]المبيعات والعملاء'!AB202","v":0}]
[null,null,null,null,null,null,"",null,"",null,null,0,null,null,null,"","","",null,null,{"$f":"'[1]المبيعات والعملاء'!AA203","v":0},{"$f":"'[1]المبيعات والعملاء'!AB203","v":0}]
[null,null,null,null,null,null,"",null,"",null,null,0,null,null,null,"","","",null,null,{"$f":"'[1]المبيعات والعملاء'!AA204","v":0},{"$f":"'[1]المبيعات والعملاء'!AB204","v":0}]
[null,null,null,null,null,null,"",null,"",null,null,0,null,null,null,"","","",null,null,{"$f":"'[1]المبيعات والعملاء'!AA205","v":0},{"$f":"'[1]المبيعات والعملاء'!AB205","v":0}]
[null,null,null,null,null,null,"",null,"",null,null,0,null,null,null,"","","",null,null,{"$f":"'[1]المبيعات والعملاء'!AA206","v":0},{"$f":"'[1]المبيعات والعملاء'!AB206","v":0}]
[null,null,null,null,null,null,"",null,"",null,null,0,null,null,null,"","","",null,null,{"$f":"'[1]المبيعات والعملاء'!AA207","v":0},{"$f":"'[1]المبيعات والعملاء'!AB207","v":0}]
[null,null,null,null,null,null,"",null,"",null,null,0,null,null,null,"","","",null,null,{"$f":"'[1]المبيعات والعملاء'!AA208","v":0},{"$f":"'[1]المبيعات والعملاء'!AB208","v":0}]
[null,null,null,null,null,null,"",null,"",null,null,0,null,null,null,"","","",null,null,{"$f":"'[1]المبيعات والعملاء'!AA209","v":0},{"$f":"'[1]المبيعات والعملاء'!AB209","v":0}]
[null,null,null,null,null,null,"",null,"",null,null,0,null,null,null,"","","",null,null,{"$f":"'[1]المبيعات والعملاء'!AA210","v":0},{"$f":"'[1]المبيعات والعملاء'!AB210","v":0}]
[null,null,null,null,null,null,"",null,"",null,null,0,null,null,null,"","","",null,null,{"$f":"'[1]المبيعات والعملاء'!AA211","v":0},{"$f":"'[1]المبيعات والعملاء'!AB211","v":0}]
[null,null,null,null,null,null,"",null,"",null,null,0,null,null,null,"","","",null,null,{"$f":"'[1]المبيعات والعملاء'!AA212","v":0},{"$f":"'[1]المبيعات والعملاء'!AB212","v":0}]
[null,null,null,null,null,null,"",null,"",null,null,0,null,null,null,"","","",null,null,{"$f":"'[1]المبيعات والعملاء'!AA213","v":0},{"$f":"'[1]المبيعات والعملاء'!AB213","v":0}]
[null,null,null,null,null,null,"",null,"",null,null,0,null,null,null,"","","",null,null,{"$f":"'[1]المبيعات والعملاء'!AA214","v":0},{"$f":"'[1]المبيعات والعملاء'!AB214","v":0}]
[null,null,null,null,null,null,"",null,"",null,null,0,null,null,null,"","","",null,null,{"$f":"'[1]المبيعات والعملاء'!AA215","v":0},{"$f":"'[1]المبيعات والعملاء'!AB215","v":0}]
[null,null,null,null,null,null,"",null,"",null,null,0,null,null,null,"","","",null,null,{"$f":"'[1]المبيعات والعملاء'!AA216","v":0},{"$f":"'[1]المبيعات والعملاء'!AB216","v":0}]
[null,null,null,null,null,null,"",null,"",null,null,0,null,null,null,"","","",null,null,{"$f":"'[1]المبيعات والعملاء'!AA217","v":0},{"$f":"'[1]المبيعات والعملاء'!AB217","v":0}]
[null,null,null,null,null,null,"",null,"",null,null,0,null,null,null,"","","",null,null,{"$f":"'[1]المبيعات والعملاء'!AA218","v":0},{"$f":"'[1]المبيعات والعملاء'!AB218","v":0}]
[null,null,null,null,null,null,"",null,"",null,null,0,null,null,null,"","","",null,null,{"$f":"'[1]المبيعات والعملاء'!AA219","v":0},{"$f":"'[1]المبيعات والعملاء'!AB219","v":0}]
[null,null,null,null,null,null,"",null,"",null,null,0,null,null,null,"","","",null,null,{"$f":"'[1]المبيعات والعملاء'!AA220","v":0},{"$f":"'[1]المبيعات والعملاء'!AB220","v":0}]
[null,null,null,null,null,null,"",null,"",null,null,0,null,null,null,"","","",null,null,{"$f":"'[1]المبيعات والعملاء'!AA221","v":0},{"$f":"'[1]المبيعات والعملاء'!AB221","v":0}]
[null,null,null,null,null,null,"",null,"",null,null,0,null,null,null,"","","",null,null,{"$f":"'[1]المبيعات والعملاء'!AA222","v":0},{"$f":"'[1]المبيعات والعملاء'!AB222","v":0}]
[null,null,null,null,null,null,"",null,"",null,null,0,null,null,null,"","","",null,null,{"$f":"'[1]المبيعات والعملاء'!AA223","v":0},{"$f":"'[1]المبيعات والعملاء'!AB223","v":0}]
[null,null,null,null,null,null,"",null,"",null,null,0,null,null,null,"","","",null,null,{"$f":"'[1]المبيعات والعملاء'!AA224","v":0},{"$f":"'[1]المبيعات والعملاء'!AB224","v":0}]
[null,null,null,null,null,null,"",null,"",null,null,0,null,null,null,"","","",null,null,{"$f":"'[1]المبيعات والعملاء'!AA225","v":0},{"$f":"'[1]المبيعات والعملاء'!AB225","v":0}]
[null,null,null,null,null,null,"",null,"",null,null,0,null,null,null,"","","",null,null,{"$f":"'[1]المبيعات والعملاء'!AA226","v":0},{"$f":"'[1]المبيعات والعملاء'!AB226","v":0}]
[null,null,null,null,null,null,"",null,"",null,null,0,null,null,null,"","","",null,null,{"$f":"'[1]المبيعات والعملاء'!AA227","v":0},{"$f":"'[1]المبيعات والعملاء'!AB227","v":0}]
[null,null,null,null,null,null,"",null,"",null,null,0,null,null,null,"","","",null,null,{"$f":"'[1]المبيعات والعملاء'!AA228","v":0},{"$f":"'[1]المبيعات والعملاء'!AB228","v":0}]
[null,null,null,null,null,null,"",null,"",null,null,0,null,null,null,"","","",null,null,{"$f":"'[1]المبيعات والعملاء'!AA229","v":0},{"$f":"'[1]المبيعات والعملاء'!AB229","v":0}]
[null,null,null,null,null,null,"",null,"",null,null,0,null,null,null,"","","",null,null,{"$f":"'[1]المبيعات والعملاء'!AA230","v":0},{"$f":"'[1]المبيعات والعملاء'!AB230","v":0}]
[null,null,null,null,null,null,"",null,"",null,null,0,null,null,null,"","","",null,null,{"$f":"'[1]المبيعات والعملاء'!AA231","v":0},{"$f":"'[1]المبيعات والعملاء'!AB231","v":0}]
[null,null,null,null,null,null,"",null,"",null,null,0,null,null,null,"","","",null,null,{"$f":"'[1]المبيعات والعملاء'!AA232","v":0},{"$f":"'[1]المبيعات والعملاء'!AB232","v":0}]
[null,null,null,null,null,null,"",null,"",null,null,0,null,null,null,"","","",null,null,{"$f":"'[1]المبيعات والعملاء'!AA233","v":0},{"$f":"'[1]المبيعات والعملاء'!AB233","v":0}]
[null,null,null,null,null,null,"",null,"",null,null,0,null,null,null,"","","",null,null,{"$f":"'[1]المبيعات والعملاء'!AA234","v":0},{"$f":"'[1]المبيعات والعملاء'!AB234","v":0}]
[null,null,null,null,null,null,"",null,"",null,null,0,null,null,null,"","","",null,null,{"$f":"'[1]المبيعات والعملاء'!AA235","v":0},{"$f":"'[1]المبيعات والعملاء'!AB235","v":0}]
[null,null,null,null,null,null,"",null,"",null,null,0,null,null,null,"","","",null,null,{"$f":"'[1]المبيعات والعملاء'!AA236","v":0},{"$f":"'[1]المبيعات والعملاء'!AB236","v":0}]
[null,null,null,null,null,null,"",null,"",null,null,0,null,null,null,"","","",null,null,{"$f":"'[1]المبيعات والعملاء'!AA237","v":0},{"$f":"'[1]المبيعات والعملاء'!AB237","v":0}]
[null,null,null,null,null,null,"",null,"",null,null,0,null,null,null,"","","",null,null,{"$f":"'[1]المبيعات والعملاء'!AA238","v":0},{"$f":"'[1]المبيعات والعملاء'!AB238","v":0}]
[null,null,null,null,null,null,"",null,"",null,null,0,null,null,null,"","","",null,null,{"$f":"'[1]المبيعات والعملاء'!AA239","v":0},{"$f":"'[1]المبيعات والعملاء'!AB239","v":0}]
[null,null,null,null,null,null,"",null,"",null,null,0,null,null,null,"","","",null,null,{"$f":"'[1]المبيعات والعملاء'!AA240","v":0},{"$f":"'[1]المبيعات والعملاء'!AB240","v":0}]
[null,null,null,null,null,null,"",null,"",null,null,0,null,null,null,"","","",null,null,{"$f":"'[1]المبيعات والعملاء'!AA241","v":0},{"$f":"'[1]المبيعات والعملاء'!AB241","v":0}]
[null,null,null,null,null,null,"",null,"",null,null,0,null,null,null,"","","",null,null,{"$f":"'[1]المبيعات والعملاء'!AA242","v":0},{"$f":"'[1]المبيعات والعملاء'!AB242","v":0}]
[null,null,null,null,null,null,"",null,"",null,null,0,null,null,null,"","","",null,null,{"$f":"'[1]المبيعات والعملاء'!AA243","v":0},{"$f":"'[1]المبيعات والعملاء'!AB243","v":0}]
[null,null,null,null,null,null,"",null,"",null,null,0,null,null,null,"","","",null,null,{"$f":"'[1]المبيعات والعملاء'!AA244","v":0},{"$f":"'[1]المبيعات والعملاء'!AB244","v":0}]
[null,null,null,null,null,null,"",null,"",null,null,0,null,null,null,"","","",null,null,{"$f":"'[1]المبيعات والعملاء'!AA245","v":0},{"$f":"'[1]المبيعات والعملاء'!AB245","v":0}]
[null,null,null,null,null,null,"",null,"",null,null,0,null,null,null,"","","",null,null,{"$f":"'[1]المبيعات والعملاء'!AA246","v":0},{"$f":"'[1]المبيعات والعملاء'!AB246","v":0}]
[null,null,null,null,null,null,"",null,"",null,null,0,null,null,null,"","","",null,null,{"$f":"'[1]المبيعات والعملاء'!AA247","v":0},{"$f":"'[1]المبيعات والعملاء'!AB247","v":0}]
[null,null,null,null,null,null,"",null,"",null,null,0,null,null,null,"","","",null,null,{"$f":"'[1]المبيعات والعملاء'!AA248","v":0},{"$f":"'[1]المبيعات والعملاء'!AB248","v":0}]
[null,null,null,null,null,null,"",null,"",null,null,0,null,null,null,"","","",null,null,{"$f":"'[1]المبيعات والعملاء'!AA249","v":0},{"$f":"'[1]المبيعات والعملاء'!AB249","v":0}]
[null,null,null,null,null,null,"",null,"",null,null,0,null,null,null,"","","",null,null,{"$f":"'[1]المبيعات والعملاء'!AA250","v":0},{"$f":"'[1]المبيعات والعملاء'!AB250","v":0}]
[null,null,null,null,null,null,"",null,"",null,null,0,null,null,null,"","","",null,null,{"$f":"'[1]المبيعات والعملاء'!AA251","v":0},{"$f":"'[1]المبيعات والعملاء'!AB251","v":0}]
[null,null,null,null,null,null,"",null,"",null,null,0,null,null,null,"","","",null,null,{"$f":"'[1]المبيعات والعملاء'!AA252","v":0},{"$f":"'[1]المبيعات والعملاء'!AB252","v":0}]
[null,null,null,null,null,null,"",null,"",null,null,0,null,null,null,"","","",null,null,{"$f":"'[1]المبيعات والعملاء'!AA253","v":0},{"$f":"'[1]المبيعات والعملاء'!AB253","v":0}]
[null,null,null,null,null,null,"",null,"",null,null,0,null,null,null,"","","",null,null,{"$f":"'[1]المبيعات والعملاء'!AA254","v":0},{"$f":"'[1]المبيعات والعملاء'!AB254","v":0}]
[null,null,null,null,null,null,"",null,"",null,null,0,null,null,null,"","","",null,null,{"$f":"'[1]المبيعات والعملاء'!AA255","v":0},{"$f":"'[1]المبيعات والعملاء'!AB255","v":0}]
[null,null,null,null,null,null,"",null,"",null,null,0,null,null,null,"","","",null,null,{"$f":"'[1]المبيعات والعملاء'!AA256","v":0},{"$f":"'[1]المبيعات والعملاء'!AB256","v":0}]
[null,null,null,null,null,null,"",null,"",null,null,0,null,null,null,"","","",null,null,{"$f":"'[1]المبيعات والعملاء'!AA257","v":0},{"$f":"'[1]المبيعات والعملاء'!AB257","v":0}]
[null,null,null,null,null,null,{"$f":"IF(F258>0,VLOOKUP(F258,client,2,0),\"\")","v":""},null,{"$f":"IF(H258>0,VLOOKUP(H258,product,2,0),\"\")","v":""},null,null,0,null,null,null,{"$f":"IF(L258=0,\"\",IF(O258=L258,\"ok\",\"error\"))","v":""},{"$f":"IF(C258=\"رصيد\",\"رصيد أول\",IF(C258>0,C258,\"\"))","v":""},"",null,null,{"$f":"'[1]المبيعات والعملاء'!AA258","v":0},{"$f":"'[1]المبيعات والعملاء'!AB258","v":0}]
[null,null,null,null,null,null,"",null,"",null,null,{"$f":"J259*K259","v":0},null,null,null,"","",{"$f":"IF(C259=\"\",\"\",MONTH(C259))","v":""},null,null,{"$f":"'[1]المبيعات والعملاء'!AA259","v":0},{"$f":"'[1]المبيعات والعملاء'!AB259","v":0}]
[null,null,null,null,null,null,"",null,"",null,null,0,null,null,null,"","","",null,null,{"$f":"'[1]المبيعات والعملاء'!AA260","v":0},{"$f":"'[1]المبيعات والعملاء'!AB260","v":0}]
[null,null,null,null,null,null,"",null,"",null,null,0,null,null,null,"","","",null,null,{"$f":"'[1]المبيعات والعملاء'!AA261","v":0},{"$f":"'[1]المبيعات والعملاء'!AB261","v":0}]
[null,null,null,null,null,null,"",null,"",null,null,0,null,null,null,"","","",null,null,{"$f":"'[1]المبيعات والعملاء'!AA262","v":0},{"$f":"'[1]المبيعات والعملاء'!AB262","v":0}]
[null,null,null,null,null,null,"",null,"",null,null,0,null,null,null,"","","",null,null,{"$f":"'[1]المبيعات والعملاء'!AA263","v":0},{"$f":"'[1]المبيعات والعملاء'!AB263","v":0}]
[null,null,null,null,null,null,"",null,"",null,null,0,null,null,null,"","","",null,null,{"$f":"'[1]المبيعات والعملاء'!AA264","v":0},{"$f":"'[1]المبيعات والعملاء'!AB264","v":0}]
[null,null,null,null,null,null,"",null,"",null,null,0,null,null,null,"","","",null,null,{"$f":"'[1]المبيعات والعملاء'!AA265","v":0},{"$f":"'[1]المبيعات والعملاء'!AB265","v":0}]
[null,null,null,null,null,null,"",null,"",null,null,0,null,null,null,"","","",null,null,{"$f":"'[1]المبيعات والعملاء'!AA266","v":0},{"$f":"'[1]المبيعات والعملاء'!AB266","v":0}]
[null,null,null,null,null,null,"",null,"",null,null,0,null,null,null,"","","",null,null,{"$f":"'[1]المبيعات والعملاء'!AA267","v":0},{"$f":"'[1]المبيعات والعملاء'!AB267","v":0}]
[null,null,null,null,null,null,"",null,"",null,null,0,null,null,null,"","","",null,null,{"$f":"'[1]المبيعات والعملاء'!AA268","v":0},{"$f":"'[1]المبيعات والعملاء'!AB268","v":0}]
[null,null,null,null,null,null,"",null,"",null,null,0,null,null,null,"","","",null,null,{"$f":"'[1]المبيعات والعملاء'!AA269","v":0},{"$f":"'[1]المبيعات والعملاء'!AB269","v":0}]
[null,null,null,null,null,null,"",null,"",null,null,0,null,null,null,"","","",null,null,{"$f":"'[1]المبيعات والعملاء'!AA270","v":0},{"$f":"'[1]المبيعات والعملاء'!AB270","v":0}]
[null,null,null,null,null,null,"",null,"",null,null,0,null,null,null,"","","",null,null,{"$f":"'[1]المبيعات والعملاء'!AA271","v":0},{"$f":"'[1]المبيعات والعملاء'!AB271","v":0}]
[null,null,null,null,null,null,"",null,"",null,null,0,null,null,null,"","","",null,null,{"$f":"'[1]المبيعات والعملاء'!AA272","v":0},{"$f":"'[1]المبيعات والعملاء'!AB272","v":0}]
[null,null,null,null,null,null,"",null,"",null,null,0,null,null,null,"","","",null,null,{"$f":"'[1]المبيعات والعملاء'!AA273","v":0},{"$f":"'[1]المبيعات والعملاء'!AB273","v":0}]
[null,null,null,null,null,null,"",null,"",null,null,0,null,null,null,"","","",null,null,{"$f":"'[1]المبيعات والعملاء'!AA274","v":0},{"$f":"'[1]المبيعات والعملاء'!AB274","v":0}]
[null,null,null,null,null,null,"",null,"",null,null,0,null,null,null,"","","",null,null,{"$f":"'[1]المبيعات والعملاء'!AA275","v":0},{"$f":"'[1]المبيعات والعملاء'!AB275","v":0}]
[null,null,null,null,null,null,"",null,"",null,null,0,null,null,null,"","","",null,null,{"$f":"'[1]المبيعات والعملاء'!AA276","v":0},{"$f":"'[1]المبيعات والعملاء'!AB276","v":0}]
[null,null,null,null,null,null,"",null,"",null,null,0,null,null,null,"","","",null,null,{"$f":"'[1]المبيعات والعملاء'!AA277","v":0},{"$f":"'[1]المبيعات والعملاء'!AB277","v":0}]
[null,null,null,null,null,null,"",null,"",null,null,0,null,null,null,"","","",null,null,{"$f":"'[1]المبيعات والعملاء'!AA278","v":0},{"$f":"'[1]المبيعات والعملاء'!AB278","v":0}]
[null,null,null,null,null,null,"",null,"",null,null,0,null,null,null,"","","",null,null,{"$f":"'[1]المبيعات والعملاء'!AA279","v":0},{"$f":"'[1]المبيعات والعملاء'!AB279","v":0}]
[null,null,null,null,null,null,"",null,"",null,null,0,null,null,null,"","","",null,null,{"$f":"'[1]المبيعات والعملاء'!AA280","v":0},{"$f":"'[1]المبيعات والعملاء'!AB280","v":0}]
[null,null,null,null,null,null,"",null,"",null,null,0,null,null,null,"","",""]
[null,null,null,null,null,null,"",null,"",null,null,0,null,null,null,"","",""]
[null,null,null,null,null,null,"",null,"",null,null,0,null,null,null,"","",""]
[null,null,null,null,null,null,"",null,"",null,null,0,null,null,null,"","",""]
[null,null,null,null,null,null,"",null,"",null,null,0,null,null,null,"","",""]
[null,null,null,null,null,null,"",null,"",null,null,0,null,null,null,"","",""]
[null,null,null,null,null,null,"",null,"",null,null,0,null,null,null,"","",""]
[null,null,null,null,null,null,"",null,"",null,null,0,null,null,null,"","",""]
[null,null,null,null,null,null,"",null,"",null,null,0,null,null,null,"","",""]
[null,null,null,null,null,null,"",null,"",null,null,0,null,null,null,"","",""]
[null,null,null,null,null,null,"",null,"",null,null,0,null,null,null,"","",""]
[null,null,null,null,null,null,"",null,"",null,null,0,null,null,null,"","",""]
[null,null,null,null,null,null,"",null,"",null,null,0,null,null,null,"","",""]
[null,null,null,null,null,null,"",null,"",null,null,0,null,null,null,"","",""]
[null,null,null,null,null,null,"",null,"",null,null,0,null,null,null,"","",""]
[null,null,null,null,null,null,"",null,"",null,null,0,null,null,null,"","",""]
[null,null,null,null,null,null,"",null,"",null,null,0,null,null,null,"","",""]
[null,null,null,null,null,null,"",null,"",null,null,0,null,null,null,"","",""]
[null,null,null,null,null,null,"",null,"",null,null,0,null,null,null,"","",""]
[null,null,null,null,null,null,"",null,"",null,null,0,null,null,null,"","",""]
[null,null,null,null,null,null,"",null,"",null,null,0,null,null,null,"","",""]
[null,null,null,null,null,null,"",null,"",null,null,0,null,null,null,"","",""]
[null,null,null,null,null,null,"",null,"",null,null,0,null,null,null,"","",""]
[null,null,null,null,null,null,"",null,"",null,null,0,null,null,null,"","",""]
[null,null,null,null,null,null,"",null,"",null,null,0,null,null,null,"","",""]
[null,null,null,null,null,null,"",null,"",null,null,0,null,null,null,"","",""]
[null,null,null,null,null,null,"",null,"",null,null,0,null,null,null,"","",""]
[null,null,null,null,null,null,"",null,"",null,null,0,null,null,null,"","",""]
[null,null,null,null,null,null,"",null,"",null,null,0,null,null,null,"","",""]
[null,null,null,null,null,null,"",null,"",null,null,0,null,null,null,"","",""]
[null,null,null,null,null,null,"",null,"",null,null,0,null,null,null,"","",""]
[null,null,null,null,null,null,"",null,"",null,null,0,null,null,null,"","",""]
[null,null,null,null,null,null,"",null,"",null,null,0,null,null,null,"","",""]
[null,null,null,null,null,null,"",null,"",null,null,0,null,null,null,"","",""]
[null,null,null,null,null,null,"",null,"",null,null,0,null,null,null,"","",""]
[null,null,null,null,null,null,"",null,"",null,null,0,null,null,null,"","",""]
[null,null,null,null,null,null,"",null,"",null,null,0,null,null,null,"","",""]
[null,null,null,null,null,null,"",null,"",null,null,0,null,null,null,"","",""]
[null,null,null,null,null,null,"",null,"",null,null,0,null,null,null,"","",""]
[null,null,null,null,null,null,"",null,"",null,null,0,null,null,null,"","",""]
[null,null,null,null,null,null,"",null,"",null,null,0,null,null,null,"","",""]
[null,null,null,null,null,null,{"$f":"IF(F322>0,VLOOKUP(F322,client,2,0),\"\")","v":""},null,{"$f":"IF(H322>0,VLOOKUP(H322,product,2,0),\"\")","v":""},null,null,0,null,null,null,{"$f":"IF(L322=0,\"\",IF(O322=L322,\"ok\",\"error\"))","v":""},{"$f":"IF(C322=\"رصيد\",\"رصيد أول\",IF(C322>0,C322,\"\"))","v":""},""]
[null,null,null,null,null,null,"",null,"",null,null,{"$f":"J323*K323","v":0},null,null,null,"","",{"$f":"IF(C323=\"\",\"\",MONTH(C323))","v":""}]
[null,null,null,null,null,null,"",null,"",null,null,0,null,null,null,"","",""]
[null,null,null,null,null,null,"",null,"",null,null,0,null,null,null,"","",""]
[null,null,null,null,null,null,"",null,"",null,null,0,null,null,null,"","",""]
[null,null,null,null,null,null,"",null,"",null,null,0,null,null,null,"","",""]
[null,null,null,null,null,null,"",null,"",null,null,0,null,null,null,"","",""]
[null,null,null,null,null,null,"",null,"",null,null,0,null,null,null,"","",""]
[null,null,null,null,null,null,"",null,"",null,null,0,null,null,null,"","",""]
[null,null,null,null,null,null,"",null,"",null,null,0,null,null,null,"","",""]
[null,null,null,null,null,null,"",null,"",null,null,0,null,null,null,"","",""]
[null,null,null,null,null,null,"",null,"",null,null,0,null,null,null,"","",""]
[null,null,null,null,null,null,"",null,"",null,null,0,null,null,null,"","",""]
[null,null,null,null,null,null,"",null,"",null,null,0,null,null,null,"","",""]
[null,null,null,null,null,null,"",null,"",null,null,0,null,null,null,"","",""]
[null,null,null,null,null,null,"",null,"",null,null,0,null,null,null,"","",""]
[null,null,null,null,null,null,"",null,"",null,null,0,null,null,null,"","",""]
[null,null,null,null,null,null,"",null,"",null,null,0,null,null,null,"","",""]
[null,null,null,null,null,null,"",null,"",null,null,0,null,null,null,"","",""]
[null,null,null,null,null,null,"",null,"",null,null,0,null,null,null,"","",""]
[null,null,null,null,null,null,"",null,"",null,null,0,null,null,null,"","",""]
[null,null,null,null,null,null,"",null,"",null,null,0,null,null,null,"","",""]
[null,null,null,null,null,null,"",null,"",null,null,0,null,null,null,"","",""]
[null,null,null,null,null,null,"",null,"",null,null,0,null,null,null,"","",""]
[null,null,null,null,null,null,"",null,"",null,null,0,null,null,null,"","",""]
[null,null,null,null,null,null,"",null,"",null,null,0,null,null,null,"","",""]
[null,null,null,null,null,null,"",null,"",null,null,0,null,null,null,"","",""]
[null,null,null,null,null,null,"",null,"",null,null,0,null,null,null,"","",""]
[null,null,null,null,null,null,"",null,"",null,null,0,null,null,null,"","",""]
[null,null,null,null,null,null,"",null,"",null,null,0,null,null,null,"","",""]
[null,null,null,null,null,null,"",null,"",null,null,0,null,null,null,"","",""]
[null,null,null,null,null,null,"",null,"",null,null,0,null,null,null,"","",""]
[null,null,null,null,null,null,"",null,"",null,null,0,null,null,null,"","",""]
[null,null,null,null,null,null,"",null,"",null,null,0,null,null,null,"","",""]
[null,null,null,null,null,null,"",null,"",null,null,0,null,null,null,"","",""]
[null,null,null,null,null,null,"",null,"",null,null,0,null,null,null,"","",""]
[null,null,null,null,null,null,"",null,"",null,null,0,null,null,null,"","",""]
[null,null,null,null,null,null,"",null,"",null,null,0,null,null,null,"","",""]
[null,null,null,null,null,null,"",null,"",null,null,0,null,null,null,"","",""]
[null,null,null,null,null,null,"",null,"",null,null,0,null,null,null,"","",""]
[null,null,null,null,null,null,"",null,"",null,null,0,null,null,null,"","",""]
[null,null,null,null,null,null,"",null,"",null,null,0,null,null,null,"","",""]
[null,null,null,null,null,null,"",null,"",null,null,0,null,null,null,"","",""]
[null,null,null,null,null,null,"",null,"",null,null,0,null,null,null,"","",""]
[null,null,null,null,null,null,"",null,"",null,null,0,null,null,null,"","",""]
[null,null,null,null,null,null,"",null,"",null,null,0,null,null,null,"","",""]
[null,null,null,null,null,null,"",null,"",null,null,0,null,null,null,"","",""]
[null,null,null,null,null,null,"",null,"",null,null,0,null,null,null,"","",""]
[null,null,null,null,null,null,"",null,"",null,null,0,null,null,null,"","",""]
[null,null,null,null,null,null,"",null,"",null,null,0,null,null,null,"","",""]
[null,null,null,null,null,null,"",null,"",null,null,0,null,null,null,"","",""]
[null,null,null,null,null,null,"",null,"",null,null,0,null,null,null,"","",""]
[null,null,null,null,null,null,"",null,"",null,null,0,null,null,null,"","",""]
[null,null,null,null,null,null,"",null,"",null,null,0,null,null,null,"","",""]
[null,null,null,null,null,null,"",null,"",null,null,0,null,null,null,"","",""]
[null,null,null,null,null,null,"",null,"",null,null,0,null,null,null,"","",""]
[null,null,null,null,null,null,"",null,"",null,null,0,null,null,null,"","",""]
[null,null,null,null,null,null,"",null,"",null,null,0,null,null,null,"","",""]
[null,null,null,null,null,null,"",null,"",null,null,0,null,null,null,"","",""]
[null,null,null,null,null,null,"",null,"",null,null,0,null,null,null,"","",""]
[null,null,null,null,null,null,"",null,"",null,null,0,null,null,null,"","",""]
[null,null,null,null,null,null,"",null,"",null,null,0,null,null,null,"","",""]
[null,null,null,null,null,null,"",null,"",null,null,0,null,null,null,"","",""]
[null,null,null,null,null,null,"",null,"",null,null,0,null,null,null,"","",""]
[null,null,null,null,null,null,{"$f":"IF(F386>0,VLOOKUP(F386,client,2,0),\"\")","v":""},null,{"$f":"IF(H386>0,VLOOKUP(H386,product,2,0),\"\")","v":""},null,null,0,null,null,null,{"$f":"IF(L386=0,\"\",IF(O386=L386,\"ok\",\"error\"))","v":""},{"$f":"IF(C386=\"رصيد\",\"رصيد أول\",IF(C386>0,C386,\"\"))","v":""},""]
[null,null,null,null,null,null,"",null,"",null,null,{"$f":"J387*K387","v":0},null,null,null,"","",{"$f":"IF(C387=\"\",\"\",MONTH(C387))","v":""}]
[null,null,null,null,null,null,"",null,"",null,null,0,null,null,null,"","",""]
[null,null,null,null,null,null,"",null,"",null,null,0,null,null,null,"","",""]
[null,null,null,null,null,null,"",null,"",null,null,0,null,null,null,"","",""]
[null,null,null,null,null,null,"",null,"",null,null,0,null,null,null,"","",""]
[null,null,null,null,null,null,"",null,"",null,null,0,null,null,null,"","",""]
[null,null,null,null,null,null,"",null,"",null,null,0,null,null,null,"","",""]
[null,null,null,null,null,null,"",null,"",null,null,0,null,null,null,"","",""]
[null,null,null,null,null,null,"",null,"",null,null,0,null,null,null,"","",""]
[null,null,null,null,null,null,"",null,"",null,null,0,null,null,null,"","",""]
[null,null,null,null,null,null,"",null,"",null,null,0,null,null,null,"","",""]
[null,null,null,null,null,null,"",null,"",null,null,0,null,null,null,"","",""]
[null,null,null,null,null,null,"",null,"",null,null,0,null,null,null,"","",""]
[null,null,null,null,null,null,"",null,"",null,null,0,null,null,null,"","",""]
[null,null,null,null,null,null,"",null,"",null,null,0,null,null,null,"","",""]
[null,null,null,null,null,null,"",null,"",null,null,0,null,null,null,"","",""]
[null,null,null,null,null,null,"",null,"",null,null,0,null,null,null,"","",""]
[null,null,null,null,null,null,"",null,"",null,null,0,null,null,null,"","",""]
[null,null,null,null,null,null,"",null,"",null,null,0,null,null,null,"","",""]
[null,null,null,null,null,null,"",null,"",null,null,0,null,null,null,"","",""]
[null,null,null,null,null,null,"",null,"",null,null,0,null,null,null,"","",""]
[null,null,null,null,null,null,"",null,"",null,null,0,null,null,null,"","",""]
[null,null,null,null,null,null,"",null,"",null,null,0,null,null,null,"","",""]
[null,null,null,null,null,null,"",null,"",null,null,0,null,null,null,"","",""]
[null,null,null,null,null,null,"",null,"",null,null,0,null,null,null,"","",""]
[null,null,null,null,null,null,"",null,"",null,null,0,null,null,null,"","",""]
[null,null,null,null,null,null,"",null,"",null,null,0,null,null,null,"","",""]
[null,null,null,null,null,null,"",null,"",null,null,0,null,null,null,"","",""]
[null,null,null,null,null,null,"",null,"",null,null,0,null,null,null,"","",""]
[null,null,null,null,null,null,"",null,"",null,null,0,null,null,null,"","",""]
[null,null,null,null,null,null,"",null,"",null,null,0,null,null,null,"","",""]
[null,null,null,null,null,null,"",null,"",null,null,0,null,null,null,"","",""]
[null,null,null,null,null,null,"",null,"",null,null,0,null,null,null,"","",""]
[null,null,null,null,null,null,"",null,"",null,null,0,null,null,null,"","",""]
[null,null,null,null,null,null,"",null,"",null,null,0,null,null,null,"","",""]
[null,null,null,null,null,null,"",null,"",null,null,0,null,null,null,"","",""]
[null,null,null,null,null,null,"",null,"",null,null,0,null,null,null,"","",""]
[null,null,null,null,null,null,"",null,"",null,null,0,null,null,null,"","",""]
[null,null,null,null,null,null,"",null,"",null,null,0,null,null,null,"","",""]
[null,null,null,null,null,null,"",null,"",null,null,0,null,null,null,"","",""]
[null,null,null,null,null,null,"",null,"",null,null,0,null,null,null,"","",""]
[null,null,null,null,null,null,"",null,"",null,null,0,null,null,null,"","",""]
[null,null,null,null,null,null,"",null,"",null,null,0,null,null,null,"","",""]
[null,null,null,null,null,null,"",null,"",null,null,0,null,null,null,"","",""]
[null,null,null,null,null,null,"",null,"",null,null,0,null,null,null,"","",""]
[null,null,null,null,null,null,"",null,"",null,null,0,null,null,null,"","",""]
[null,null,null,null,null,null,"",null,"",null,null,0,null,null,null,"","",""]
[null,null,null,null,null,null,"",null,"",null,null,0,null,null,null,"","",""]
[null,null,null,null,null,null,"",null,"",null,null,0,null,null,null,"","",""]
[null,null,null,null,null,null,"",null,"",null,null,0,null,null,null,"","",""]
[null,null,null,null,null,null,"",null,"",null,null,0,null,null,null,"","",""]
[null,null,null,null,null,null,"",null,"",null,null,0,null,null,null,"","",""]
[null,null,null,null,null,null,"",null,"",null,null,0,null,null,null,"","",""]
[null,null,null,null,null,null,"",null,"",null,null,0,null,null,null,"","",""]
[null,null,null,null,null,null,"",null,"",null,null,0,null,null,null,"","",""]
[null,null,null,null,null,null,"",null,"",null,null,0,null,null,null,"","",""]
[null,null,null,null,null,null,"",null,"",null,null,0,null,null,null,"","",""]
[null,null,null,null,null,null,"",null,"",null,null,0,null,null,null,"","",""]
[null,null,null,null,null,null,"",null,"",null,null,0,null,null,null,"","",""]
[null,null,null,null,null,null,"",null,"",null,null,0,null,null,null,"","",""]
[null,null,null,null,null,null,"",null,"",null,null,0,null,null,null,"","",""]
[null,null,null,null,null,null,"",null,"",null,null,0,null,null,null,"","",""]
[null,null,null,null,null,null,"",null,"",null,null,0,null,null,null,"","",""]
[null,null,null,null,null,null,{"$f":"IF(F450>0,VLOOKUP(F450,client,2,0),\"\")","v":""},null,{"$f":"IF(H450>0,VLOOKUP(H450,product,2,0),\"\")","v":""},null,null,0,null,null,null,{"$f":"IF(L450=0,\"\",IF(O450=L450,\"ok\",\"error\"))","v":""},{"$f":"IF(C450=\"رصيد\",\"رصيد أول\",IF(C450>0,C450,\"\"))","v":""},""]
[null,null,null,null,null,null,"",null,"",null,null,{"$f":"J451*K451","v":0},null,null,null,"","",{"$f":"IF(C451=\"\",\"\",MONTH(C451))","v":""}]
[null,null,null,null,null,null,"",null,"",null,null,0,null,null,null,"","",""]
[null,null,null,null,null,null,"",null,"",null,null,0,null,null,null,"","",""]
[null,null,null,null,null,null,"",null,"",null,null,0,null,null,null,"","",""]
[null,null,null,null,null,null,"",null,"",null,null,0,null,null,null,"","",""]
[null,null,null,null,null,null,"",null,"",null,null,0,null,null,null,"","",""]
[null,null,null,null,null,null,"",null,"",null,null,0,null,null,null,"","",""]
[null,null,null,null,null,null,"",null,"",null,null,0,null,null,null,"","",""]
[null,null,null,null,null,null,"",null,"",null,null,0,null,null,null,"","",""]
[null,null,null,null,null,null,"",null,"",null,null,0,null,null,null,"","",""]
[null,null,null,null,null,null,"",null,"",null,null,0,null,null,null,"","",""]
[null,null,null,null,null,null,"",null,"",null,null,0,null,null,null,"","",""]
[null,null,null,null,null,null,"",null,"",null,null,0,null,null,null,"","",""]
[null,null,null,null,null,null,"",null,"",null,null,0,null,null,null,"","",""]
[null,null,null,null,null,null,"",null,"",null,null,0,null,null,null,"","",""]
[null,null,null,null,null,null,"",null,"",null,null,0,null,null,null,"","",""]
[null,null,null,null,null,null,"",null,"",null,null,0,null,null,null,"","",""]
[null,null,null,null,null,null,"",null,"",null,null,0,null,null,null,"","",""]
[null,null,null,null,null,null,"",null,"",null,null,0,null,null,null,"","",""]
[null,null,null,null,null,null,"",null,"",null,null,0,null,null,null,"","",""]
[null,null,null,null,null,null,"",null,"",null,null,0,null,null,null,"","",""]
[null,null,null,null,null,null,"",null,"",null,null,0,null,null,null,"","",""]
[null,null,null,null,null,null,"",null,"",null,null,0,null,null,null,"","",""]
[null,null,null,null,null,null,"",null,"",null,null,0,null,null,null,"","",""]
[null,null,null,null,null,null,"",null,"",null,null,0,null,null,null,"","",""]
[null,null,null,null,null,null,"",null,"",null,null,0,null,null,null,"","",""]
[null,null,null,null,null,null,"",null,"",null,null,0,null,null,null,"","",""]
[null,null,null,null,null,null,"",null,"",null,null,0,null,null,null,"","",""]
[null,null,null,null,null,null,"",null,"",null,null,0,null,null,null,"","",""]
[null,null,null,null,null,null,"",null,"",null,null,0,null,null,null,"","",""]
[null,null,null,null,null,null,"",null,"",null,null,0,null,null,null,"","",""]
[null,null,null,null,null,null,"",null,"",null,null,0,null,null,null,"","",""]
[null,null,null,null,null,null,"",null,"",null,null,0,null,null,null,"","",""]
[null,null,null,null,null,null,"",null,"",null,null,0,null,null,null,"","",""]
[null,null,null,null,null,null,"",null,"",null,null,0,null,null,null,"","",""]
[null,null,null,null,null,null,"",null,"",null,null,0,null,null,null,"","",""]
[null,null,null,null,null,null,"",null,"",null,null,0,null,null,null,"","",""]
[null,null,null,null,null,null,"",null,"",null,null,0,null,null,null,"","",""]
[null,null,null,null,null,null,"",null,"",null,null,0,null,null,null,"","",""]
[null,null,null,null,null,null,"",null,"",null,null,0,null,null,null,"","",""]
[null,null,null,null,null,null,"",null,"",null,null,0,null,null,null,"","",""]
[null,null,null,null,null,null,"",null,"",null,null,0,null,null,null,"","",""]
[null,null,null,null,null,null,"",null,"",null,null,0,null,null,null,"","",""]
[null,null,null,null,null,null,"",null,"",null,null,0,null,null,null,"","",""]
[null,null,null,null,null,null,"",null,"",null,null,0,null,null,null,"","",""]
[null,null,null,null,null,null,"",null,"",null,null,0,null,null,null,"","",""]
[null,null,null,null,null,null,"",null,"",null,null,0,null,null,null,"","",""]
[null,null,null,null,null,null,"",null,"",null,null,0,null,null,null,"","",""]
[null,null,null,null,null,null,"",null,"",null,null,0,null,null,null,"","",""]
[null,null,null,null,null,null,"",null,"",null,null,0,null,null,null,"","",""]
[null,null,null,null,null,null,"",null,"",null,null,0,null,null,null,"","",""]
[null,null,null,null,null,null,"",null,"",null,null,0,null,null,null,"","",""]
[null,null,null,null,null,null,"",null,"",null,null,0,null,null,null,"","",""]
[null,null,null,null,null,null,"",null,"",null,null,0,null,null,null,"","",""]
[null,null,null,null,null,null,"",null,"",null,null,0,null,null,null,"","",""]
[null,null,null,null,null,null,"",null,"",null,null,0,null,null,null,"","",""]
[null,null,null,null,null,null,"",null,"",null,null,0,null,null,null,"","",""]
[null,null,null,null,null,null,"",null,"",null,null,0,null,null,null,"","",""]
[null,null,null,null,null,null,"",null,"",null,null,0,null,null,null,"","",""]
[null,null,null,null,null,null,"",null,"",null,null,0,null,null,null,"","",""]
[null,null,null,null,null,null,"",null,"",null,null,0,null,null,null,"","",""]
[null,null,null,null,null,null,"",null,"",null,null,0,null,null,null,"","",""]
[null,null,null,null,null,null,"",null,"",null,null,0,null,null,null,"","",""]
[null,null,null,null,null,null,{"$f":"IF(F514>0,VLOOKUP(F514,client,2,0),\"\")","v":""},null,{"$f":"IF(H514>0,VLOOKUP(H514,product,2,0),\"\")","v":""},null,null,0,null,null,null,{"$f":"IF(L514=0,\"\",IF(O514=L514,\"ok\",\"error\"))","v":""},{"$f":"IF(C514=\"رصيد\",\"رصيد أول\",IF(C514>0,C514,\"\"))","v":""},""]
[null,null,null,null,null,null,"",null,"",null,null,{"$f":"J515*K515","v":0},null,null,null,"","",{"$f":"IF(C515=\"\",\"\",MONTH(C515))","v":""}]
[null,null,null,null,null,null,"",null,"",null,null,0,null,null,null,"","",""]
[null,null,null,null,null,null,"",null,"",null,null,0,null,null,null,"","",""]
[null,null,null,null,null,null,"",null,"",null,null,0,null,null,null,"","",""]
[null,null,null,null,null,null,"",null,"",null,null,0,null,null,null,"","",""]
[null,null,null,null,null,null,"",null,"",null,null,0,null,null,null,"","",""]
[null,null,null,null,null,null,"",null,"",null,null,0,null,null,null,"","",""]
[null,null,null,null,null,null,"",null,"",null,null,0,null,null,null,"","",""]
[null,null,null,null,null,null,"",null,"",null,null,0,null,null,null,"","",""]
[null,null,null,null,null,null,"",null,"",null,null,0,null,null,null,"","",""]
[null,null,null,null,null,null,"",null,"",null,null,0,null,null,null,"","",""]
[null,null,null,null,null,null,"",null,"",null,null,0,null,null,null,"","",""]
[null,null,null,null,null,null,"",null,"",null,null,0,null,null,null,"","",""]
[null,null,null,null,null,null,"",null,"",null,null,0,null,null,null,"","",""]
[null,null,null,null,null,null,"",null,"",null,null,0,null,null,null,"","",""]
[null,null,null,null,null,null,"",null,"",null,null,0,null,null,null,"","",""]
[null,null,null,null,null,null,"",null,"",null,null,0,null,null,null,"","",""]
[null,null,null,null,null,null,"",null,"",null,null,0,null,null,null,"","",""]
[null,null,null,null,null,null,"",null,"",null,null,0,null,null,null,"","",""]
[null,null,null,null,null,null,"",null,"",null,null,0,null,null,null,"","",""]
[null,null,null,null,null,null,"",null,"",null,null,0,null,null,null,"","",""]
[null,null,null,null,null,null,"",null,"",null,null,0,null,null,null,"","",""]
[null,null,null,null,null,null,"",null,"",null,null,0,null,null,null,"","",""]
[null,null,null,null,null,null,"",null,"",null,null,0,null,null,null,"","",""]
[null,null,null,null,null,null,"",null,"",null,null,0,null,null,null,"","",""]
[null,null,null,null,null,null,"",null,"",null,null,0,null,null,null,"","",""]
[null,null,null,null,null,null,"",null,"",null,null,0,null,null,null,"","",""]
[null,null,null,null,null,null,"",null,"",null,null,0,null,null,null,"","",""]
[null,null,null,null,null,null,"",null,"",null,null,0,null,null,null,"","",""]
[null,null,null,null,null,null,"",null,"",null,null,0,null,null,null,"","",""]
[null,null,null,null,null,null,"",null,"",null,null,0,null,null,null,"","",""]
[null,null,null,null,null,null,"",null,"",null,null,0,null,null,null,"","",""]
[null,null,null,null,null,null,"",null,"",null,null,0,null,null,null,"","",""]
[null,null,null,null,null,null,"",null,"",null,null,0,null,null,null,"","",""]
[null,null,null,null,null,null,"",null,"",null,null,0,null,null,null,"","",""]
[null,null,null,null,null,null,"",null,"",null,null,0,null,null,null,"","",""]
[null,null,null,null,null,null,"",null,"",null,null,0,null,null,null,"","",""]
[null,null,null,null,null,null,"",null,"",null,null,0,null,null,null,"","",""]
[null,null,null,null,null,null,"",null,"",null,null,0,null,null,null,"","",""]
[null,null,null,null,null,null,"",null,"",null,null,0,null,null,null,"","",""]
[null,null,null,null,null,null,"",null,"",null,null,0,null,null,null,"","",""]
[null,null,null,null,null,null,"",null,"",null,null,0,null,null,null,"","",""]
[null,null,null,null,null,null,"",null,"",null,null,0,null,null,null,"","",""]
[null,null,null,null,null,null,"",null,"",null,null,0,null,null,null,"","",""]
[null,null,null,null,null,null,"",null,"",null,null,0,null,null,null,"","",""]
[null,null,null,null,null,null,"",null,"",null,null,0,null,null,null,"","",""]
[null,null,null,null,null,null,"",null,"",null,null,0,null,null,null,"","",""]
[null,null,null,null,null,null,"",null,"",null,null,0,null,null,null,"","",""]
[null,null,null,null,null,null,"",null,"",null,null,0,null,null,null,"","",""]
[null,null,null,null,null,null,"",null,"",null,null,0,null,null,null,"","",""]
[null,null,null,null,null,null,"",null,"",null,null,0,null,null,null,"","",""]
[null,null,null,null,null,null,"",null,"",null,null,0,null,null,null,"","",""]
[null,null,null,null,null,null,"",null,"",null,null,0,null,null,null,"","",""]
[null,null,null,null,null,null,"",null,"",null,null,0,null,null,null,"","",""]
[null,null,null,null,null,null,"",null,"",null,null,0,null,null,null,"","",""]
[null,null,null,null,null,null,"",null,"",null,null,0,null,null,null,"","",""]
[null,null,null,null,null,null,"",null,"",null,null,0,null,null,null,"","",""]
[null,null,null,null,null,null,"",null,"",null,null,0,null,null,null,"","",""]
[null,null,null,null,null,null,"",null,"",null,null,0,null,null,null,"","",""]
[null,null,null,null,null,null,"",null,"",null,null,0,null,null,null,"","",""]
[null,null,null,null,null,null,"",null,"",null,null,0,null,null,null,"","",""]
[null,null,null,null,null,null,"",null,"",null,null,0,null,null,null,"","",""]
[null,null,null,null,null,null,"",null,"",null,null,0,null,null,null,"","",""]
[null,null,null,null,null,null,{"$f":"IF(F578>0,VLOOKUP(F578,client,2,0),\"\")","v":""},null,{"$f":"IF(H578>0,VLOOKUP(H578,product,2,0),\"\")","v":""},null,null,0,null,null,null,{"$f":"IF(L578=0,\"\",IF(O578=L578,\"ok\",\"error\"))","v":""},{"$f":"IF(C578=\"رصيد\",\"رصيد أول\",IF(C578>0,C578,\"\"))","v":""},""]
[null,null,null,null,null,null,"",null,"",null,null,{"$f":"J579*K579","v":0},null,null,null,"","",{"$f":"IF(C579=\"\",\"\",MONTH(C579))","v":""}]
[null,null,null,null,null,null,"",null,"",null,null,0,null,null,null,"","",""]
[null,null,null,null,null,null,"",null,"",null,null,0,null,null,null,"","",""]
[null,null,null,null,null,null,"",null,"",null,null,0,null,null,null,"","",""]
[null,null,null,null,null,null,"",null,"",null,null,0,null,null,null,"","",""]
[null,null,null,null,null,null,"",null,"",null,null,0,null,null,null,"","",""]
[null,null,null,null,null,null,"",null,"",null,null,0,null,null,null,"","",""]
[null,null,null,null,null,null,"",null,"",null,null,0,null,null,null,"","",""]
[null,null,null,null,null,null,"",null,"",null,null,0,null,null,null,"","",""]
[null,null,null,null,null,null,"",null,"",null,null,0,null,null,null,"","",""]
[null,null,null,null,null,null,"",null,"",null,null,0,null,null,null,"","",""]
[null,null,null,null,null,null,"",null,"",null,null,0,null,null,null,"","",""]
[null,null,null,null,null,null,"",null,"",null,null,0,null,null,null,"","",""]
[null,null,null,null,null,null,"",null,"",null,null,0,null,null,null,"","",""]
[null,null,null,null,null,null,"",null,"",null,null,0,null,null,null,"","",""]
[null,null,null,null,null,null,"",null,"",null,null,0,null,null,null,"","",""]
[null,null,null,null,null,null,"",null,"",null,null,0,null,null,null,"","",""]
[null,null,null,null,null,null,"",null,"",null,null,0,null,null,null,"","",""]
[null,null,null,null,null,null,"",null,"",null,null,0,null,null,null,"","",""]
[null,null,null,null,null,null,"",null,"",null,null,0,null,null,null,"","",""]
[null,null,null,null,null,null,"",null,"",null,null,0,null,null,null,"","",""]
[null,null,null,null,null,null,"",null,"",null,null,0,null,null,null,"","",""]
[null,null,null,null,null,null,"",null,"",null,null,0,null,null,null,"","",""]
[null,null,null,null,null,null,"",null,"",null,null,0,null,null,null,"","",""]
[null,null,null,null,null,null,"",null,"",null,null,0,null,null,null,"","",""]
[null,null,null,null,null,null,"",null,"",null,null,0,null,null,null,"","",""]
[null,null,null,null,null,null,"",null,"",null,null,0,null,null,null,"","",""]
[null,null,null,null,null,null,"",null,"",null,null,0,null,null,null,"","",""]
[null,null,null,null,null,null,"",null,"",null,null,0,null,null,null,"","",""]
[null,null,null,null,null,null,"",null,"",null,null,0,null,null,null,"","",""]
[null,null,null,null,null,null,"",null,"",null,null,0,null,null,null,"","",""]
[null,null,null,null,null,null,"",null,"",null,null,0,null,null,null,"","",""]
[null,null,null,null,null,null,"",null,"",null,null,0,null,null,null,"","",""]
[null,null,null,null,null,null,"",null,"",null,null,0,null,null,null,"","",""]
[null,null,null,null,null,null,"",null,"",null,null,0,null,null,null,"","",""]
[null,null,null,null,null,null,"",null,"",null,null,0,null,null,null,"","",""]
[null,null,null,null,null,null,"",null,"",null,null,0,null,null,null,"","",""]
[null,null,null,null,null,null,"",null,"",null,null,0,null,null,null,"","",""]
[null,null,null,null,null,null,"",null,"",null,null,0,null,null,null,"","",""]
[null,null,null,null,null,null,"",null,"",null,null,0,null,null,null,"","",""]
[null,null,null,null,null,null,"",null,"",null,null,0,null,null,null,"","",""]
[null,null,null,null,null,null,"",null,"",null,null,0,null,null,null,"","",""]
[null,null,null,null,null,null,"",null,"",null,null,0,null,null,null,"","",""]
[null,null,null,null,null,null,"",null,"",null,null,0,null,null,null,"","",""]
[null,null,null,null,null,null,"",null,"",null,null,0,null,null,null,"","",""]
[null,null,null,null,null,null,"",null,"",null,null,0,null,null,null,"","",""]
[null,null,null,null,null,null,"",null,"",null,null,0,null,null,null,"","",""]
[null,null,null,null,null,null,"",null,"",null,null,0,null,null,null,"","",""]
[null,null,null,null,null,null,"",null,"",null,null,0,null,null,null,"","",""]
[null,null,null,null,null,null,"",null,"",null,null,0,null,null,null,"","",""]
[null,null,null,null,null,null,"",null,"",null,null,0,null,null,null,"","",""]
[null,null,null,null,null,null,"",null,"",null,null,0,null,null,null,"","",""]
[null,null,null,null,null,null,"",null,"",null,null,0,null,null,null,"","",""]
[null,null,null,null,null,null,"",null,"",null,null,0,null,null,null,"","",""]
[null,null,null,null,null,null,"",null,"",null,null,0,null,null,null,"","",""]
[null,null,null,null,null,null,"",null,"",null,null,0,null,null,null,"","",""]
[null,null,null,null,null,null,"",null,"",null,null,0,null,null,null,"","",""]
[null,null,null,null,null,null,"",null,"",null,null,0,null,null,null,"","",""]
[null,null,null,null,null,null,"",null,"",null,null,0,null,null,null,"","",""]
[null,null,null,null,null,null,"",null,"",null,null,0,null,null,null,"","",""]
[null,null,null,null,null,null,"",null,"",null,null,0,null,null,null,"","",""]
[null,null,null,null,null,null,"",null,"",null,null,0,null,null,null,"","",""]
[null,null,null,null,null,null,"",null,"",null,null,0,null,null,null,"","",""]
[null,null,null,null,null,null,{"$f":"IF(F642>0,VLOOKUP(F642,client,2,0),\"\")","v":""},null,{"$f":"IF(H642>0,VLOOKUP(H642,product,2,0),\"\")","v":""},null,null,0,null,null,null,{"$f":"IF(L642=0,\"\",IF(O642=L642,\"ok\",\"error\"))","v":""},{"$f":"IF(C642=\"رصيد\",\"رصيد أول\",IF(C642>0,C642,\"\"))","v":""},""]
[null,null,null,null,null,null,"",null,"",null,null,{"$f":"J643*K643","v":0},null,null,null,"","",{"$f":"IF(C643=\"\",\"\",MONTH(C643))","v":""}]
[null,null,null,null,null,null,"",null,"",null,null,0,null,null,null,"","",""]
[null,null,null,null,null,null,"",null,"",null,null,0,null,null,null,"","",""]
[null,null,null,null,null,null,"",null,"",null,null,0,null,null,null,"","",""]
[null,null,null,null,null,null,"",null,"",null,null,0,null,null,null,"","",""]
[null,null,null,null,null,null,"",null,"",null,null,0,null,null,null,"","",""]
[null,null,null,null,null,null,"",null,"",null,null,0,null,null,null,"","",""]
[null,null,null,null,null,null,"",null,"",null,null,0,null,null,null,"","",""]
[null,null,null,null,null,null,"",null,"",null,null,0,null,null,null,"","",""]
[null,null,null,null,null,null,"",null,"",null,null,0,null,null,null,"","",""]
[null,null,null,null,null,null,"",null,"",null,null,0,null,null,null,"","",""]
[null,null,null,null,null,null,"",null,"",null,null,0,null,null,null,"","",""]
[null,null,null,null,null,null,"",null,"",null,null,0,null,null,null,"","",""]
[null,null,null,null,null,null,"",null,"",null,null,0,null,null,null,"","",""]
[null,null,null,null,null,null,"",null,"",null,null,0,null,null,null,"","",""]
[null,null,null,null,null,null,"",null,"",null,null,0,null,null,null,"","",""]
[null,null,null,null,null,null,"",null,"",null,null,0,null,null,null,"","",""]
[null,null,null,null,null,null,"",null,"",null,null,0,null,null,null,"","",""]
[null,null,null,null,null,null,"",null,"",null,null,0,null,null,null,"","",""]
[null,null,null,null,null,null,"",null,"",null,null,0,null,null,null,"","",""]
[null,null,null,null,null,null,"",null,"",null,null,0,null,null,null,"","",""]
[null,null,null,null,null,null,"",null,"",null,null,0,null,null,null,"","",""]
[null,null,null,null,null,null,"",null,"",null,null,0,null,null,null,"","",""]
[null,null,null,null,null,null,"",null,"",null,null,0,null,null,null,"","",""]
[null,null,null,null,null,null,"",null,"",null,null,0,null,null,null,"","",""]
[null,null,null,null,null,null,"",null,"",null,null,0,null,null,null,"","",""]
[null,null,null,null,null,null,"",null,"",null,null,0,null,null,null,"","",""]
[null,null,null,null,null,null,"",null,"",null,null,0,null,null,null,"","",""]
[null,null,null,null,null,null,"",null,"",null,null,0,null,null,null,"","",""]
[null,null,null,null,null,null,"",null,"",null,null,0,null,null,null,"","",""]
[null,null,null,null,null,null,"",null,"",null,null,0,null,null,null,"","",""]
[null,null,null,null,null,null,"",null,"",null,null,0,null,null,null,"","",""]
[null,null,null,null,null,null,"",null,"",null,null,0,null,null,null,"","",""]
[null,null,null,null,null,null,"",null,"",null,null,0,null,null,null,"","",""]
[null,null,null,null,null,null,"",null,"",null,null,0,null,null,null,"","",""]
[null,null,null,null,null,null,"",null,"",null,null,0,null,null,null,"","",""]
[null,null,null,null,null,null,"",null,"",null,null,0,null,null,null,"","",""]
[null,null,null,null,null,null,"",null,"",null,null,0,null,null,null,"","",""]
[null,null,null,null,null,null,"",null,"",null,null,0,null,null,null,"","",""]
[null,null,null,null,null,null,"",null,"",null,null,0,null,null,null,"","",""]
[null,null,null,null,null,null,"",null,"",null,null,0,null,null,null,"","",""]
[null,null,null,null,null,null,"",null,"",null,null,0,null,null,null,"","",""]
[null,null,null,null,null,null,"",null,"",null,null,0,null,null,null,"","",""]
[null,null,null,null,null,null,"",null,"",null,null,0,null,null,null,"","",""]
[null,null,null,null,null,null,"",null,"",null,null,0,null,null,null,"","",""]
[null,null,null,null,null,null,"",null,"",null,null,0,null,null,null,"","",""]
[null,null,null,null,null,null,"",null,"",null,null,0,null,null,null,"","",""]
[null,null,null,null,null,null,"",null,"",null,null,0,null,null,null,"","",""]
[null,null,null,null,null,null,"",null,"",null,null,0,null,null,null,"","",""]
[null,null,null,null,null,null,"",null,"",null,null,0,null,null,null,"","",""]
[null,null,null,null,null,null,"",null,"",null,null,0,null,null,null,"","",""]
[null,null,null,null,null,null,"",null,"",null,null,0,null,null,null,"","",""]
[null,null,null,null,null,null,"",null,"",null,null,0,null,null,null,"","",""]
[null,null,null,null,null,null,"",null,"",null,null,0,null,null,null,"","",""]
[null,null,null,null,null,null,"",null,"",null,null,0,null,null,null,"","",""]
[null,null,null,null,null,null,"",null,"",null,null,0,null,null,null,"","",""]
[null,null,null,null,null,null,"",null,"",null,null,0,null,null,null,"","",""]
[null,null,null,null,null,null,"",null,"",null,null,0,null,null,null,"","",""]
[null,null,null,null,null,null,"",null,"",null,null,0,null,null,null,"","",""]
[null,null,null,null,null,null,"",null,"",null,null,0,null,null,null,"","",""]
[null,null,null,null,null,null,"",null,"",null,null,0,null,null,null,"","",""]
[null,null,null,null,null,null,"",null,"",null,null,0,null,null,null,"","",""]
[null,null,null,null,null,null,"",null,"",null,null,0,null,null,null,"","",""]
[null,null,null,null,null,null,{"$f":"IF(F706>0,VLOOKUP(F706,client,2,0),\"\")","v":""},null,{"$f":"IF(H706>0,VLOOKUP(H706,product,2,0),\"\")","v":""},null,null,0,null,null,null,{"$f":"IF(L706=0,\"\",IF(O706=L706,\"ok\",\"error\"))","v":""},{"$f":"IF(C706=\"رصيد\",\"رصيد أول\",IF(C706>0,C706,\"\"))","v":""},""]
[null,null,null,null,null,null,"",null,"",null,null,{"$f":"J707*K707","v":0},null,null,null,"","",{"$f":"IF(C707=\"\",\"\",MONTH(C707))","v":""}]
[null,null,null,null,null,null,"",null,"",null,null,0,null,null,null,"","",""]
[null,null,null,null,null,null,"",null,"",null,null,0,null,null,null,"","",""]
[null,null,null,null,null,null,"",null,"",null,null,0,null,null,null,"","",""]
[null,null,null,null,null,null,"",null,"",null,null,0,null,null,null,"","",""]
[null,null,null,null,null,null,"",null,"",null,null,0,null,null,null,"","",""]
[null,null,null,null,null,null,"",null,"",null,null,0,null,null,null,"","",""]
[null,null,null,null,null,null,"",null,"",null,null,0,null,null,null,"","",""]
[null,null,null,null,null,null,"",null,"",null,null,0,null,null,null,"","",""]
[null,null,null,null,null,null,"",null,"",null,null,0,null,null,null,"","",""]
[null,null,null,null,null,null,"",null,"",null,null,0,null,null,null,"","",""]
[null,null,null,null,null,null,"",null,"",null,null,0,null,null,null,"","",""]
[null,null,null,null,null,null,"",null,"",null,null,0,null,null,null,"","",""]
[null,null,null,null,null,null,"",null,"",null,null,0,null,null,null,"","",""]
[null,null,null,null,null,null,"",null,"",null,null,0,null,null,null,"","",""]
[null,null,null,null,null,null,"",null,"",null,null,0,null,null,null,"","",""]
[null,null,null,null,null,null,"",null,"",null,null,0,null,null,null,"","",""]
[null,null,null,null,null,null,"",null,"",null,null,0,null,null,null,"","",""]
[null,null,null,null,null,null,"",null,"",null,null,0,null,null,null,"","",""]
[null,null,null,null,null,null,"",null,"",null,null,0,null,null,null,"","",""]
[null,null,null,null,null,null,"",null,"",null,null,0,null,null,null,"","",""]
[null,null,null,null,null,null,"",null,"",null,null,0,null,null,null,"","",""]
[null,null,null,null,null,null,"",null,"",null,null,0,null,null,null,"","",""]
[null,null,null,null,null,null,"",null,"",null,null,0,null,null,null,"","",""]
[null,null,null,null,null,null,"",null,"",null,null,0,null,null,null,"","",""]
[null,null,null,null,null,null,"",null,"",null,null,0,null,null,null,"","",""]
[null,null,null,null,null,null,"",null,"",null,null,0,null,null,null,"","",""]
[null,null,null,null,null,null,"",null,"",null,null,0,null,null,null,"","",""]
[null,null,null,null,null,null,"",null,"",null,null,0,null,null,null,"","",""]
[null,null,null,null,null,null,"",null,"",null,null,0,null,null,null,"","",""]
[null,null,null,null,null,null,"",null,"",null,null,0,null,null,null,"","",""]
[null,null,null,null,null,null,"",null,"",null,null,0,null,null,null,"","",""]
[null,null,null,null,null,null,"",null,"",null,null,0,null,null,null,"","",""]
[null,null,null,null,null,null,"",null,"",null,null,0,null,null,null,"","",""]
[null,null,null,null,null,null,"",null,"",null,null,0,null,null,null,"","",""]
[null,null,null,null,null,null,"",null,"",null,null,0,null,null,null,"","",""]
[null,null,null,null,null,null,"",null,"",null,null,0,null,null,null,"","",""]
[null,null,null,null,null,null,"",null,"",null,null,0,null,null,null,"","",""]
[null,null,null,null,null,null,"",null,"",null,null,0,null,null,null,"","",""]
[null,null,null,null,null,null,"",null,"",null,null,0,null,null,null,"","",""]
[null,null,null,null,null,null,"",null,"",null,null,0,null,null,null,"","",""]
[null,null,null,null,null,null,"",null,"",null,null,0,null,null,null,"","",""]
[null,null,null,null,null,null,"",null,"",null,null,0,null,null,null,"","",""]
[null,null,null,null,null,null,"",null,"",null,null,0,null,null,null,"","",""]
[null,null,null,null,null,null,"",null,"",null,null,0,null,null,null,"","",""]
[null,null,null,null,null,null,"",null,"",null,null,0,null,null,null,"","",""]
[null,null,null,null,null,null,"",null,"",null,null,0,null,null,null,"","",""]
[null,null,null,null,null,null,"",null,"",null,null,0,null,null,null,"","",""]
[null,null,null,null,null,null,"",null,"",null,null,0,null,null,null,"","",""]
[null,null,null,null,null,null,"",null,"",null,null,0,null,null,null,"","",""]
[null,null,null,null,null,null,"",null,"",null,null,0,null,null,null,"","",""]
[null,null,null,null,null,null,"",null,"",null,null,0,null,null,null,"","",""]
[null,null,null,null,null,null,"",null,"",null,null,0,null,null,null,"","",""]
[null,null,null,null,null,null,"",null,"",null,null,0,null,null,null,"","",""]
[null,null,null,null,null,null,"",null,"",null,null,0,null,null,null,"","",""]
[null,null,null,null,null,null,"",null,"",null,null,0,null,null,null,"","",""]
[null,null,null,null,null,null,"",null,"",null,null,0,null,null,null,"","",""]
[null,null,null,null,null,null,"",null,"",null,null,0,null,null,null,"","",""]
[null,null,null,null,null,null,"",null,"",null,null,0,null,null,null,"","",""]
[null,null,null,null,null,null,"",null,"",null,null,0,null,null,null,"","",""]
[null,null,null,null,null,null,"",null,"",null,null,0,null,null,null,"","",""]
[null,null,null,null,null,null,"",null,"",null,null,0,null,null,null,"","",""]
[null,null,null,null,null,null,"",null,"",null,null,0,null,null,null,"","",""]
[null,null,null,null,null,null,{"$f":"IF(F770>0,VLOOKUP(F770,client,2,0),\"\")","v":""},null,{"$f":"IF(H770>0,VLOOKUP(H770,product,2,0),\"\")","v":""},null,null,0,null,null,null,{"$f":"IF(L770=0,\"\",IF(O770=L770,\"ok\",\"error\"))","v":""},{"$f":"IF(C770=\"رصيد\",\"رصيد أول\",IF(C770>0,C770,\"\"))","v":""},""]
[null,null,null,null,null,null,"",null,"",null,null,{"$f":"J771*K771","v":0},null,null,null,"","",{"$f":"IF(C771=\"\",\"\",MONTH(C771))","v":""}]
[null,null,null,null,null,null,"",null,"",null,null,0,null,null,null,"","",""]
[null,null,null,null,null,null,"",null,"",null,null,0,null,null,null,"","",""]
[null,null,null,null,null,null,"",null,"",null,null,0,null,null,null,"","",""]
[null,null,null,null,null,null,"",null,"",null,null,0,null,null,null,"","",""]
[null,null,null,null,null,null,"",null,"",null,null,0,null,null,null,"","",""]
[null,null,null,null,null,null,"",null,"",null,null,0,null,null,null,"","",""]
[null,null,null,null,null,null,"",null,"",null,null,0,null,null,null,"","",""]
[null,null,null,null,null,null,"",null,"",null,null,0,null,null,null,"","",""]
[null,null,null,null,null,null,"",null,"",null,null,0,null,null,null,"","",""]
[null,null,null,null,null,null,"",null,"",null,null,0,null,null,null,"","",""]
[null,null,null,null,null,null,"",null,"",null,null,0,null,null,null,"","",""]
[null,null,null,null,null,null,"",null,"",null,null,0,null,null,null,"","",""]
[null,null,null,null,null,null,"",null,"",null,null,0,null,null,null,"","",""]
[null,null,null,null,null,null,"",null,"",null,null,0,null,null,null,"","",""]
[null,null,null,null,null,null,"",null,"",null,null,0,null,null,null,"","",""]
[null,null,null,null,null,null,"",null,"",null,null,0,null,null,null,"","",""]
[null,null,null,null,null,null,"",null,"",null,null,0,null,null,null,"","",""]
[null,null,null,null,null,null,"",null,"",null,null,0,null,null,null,"","",""]
[null,null,null,null,null,null,"",null,"",null,null,0,null,null,null,"","",""]
[null,null,null,null,null,null,"",null,"",null,null,0,null,null,null,"","",""]
[null,null,null,null,null,null,"",null,"",null,null,0,null,null,null,"","",""]
[null,null,null,null,null,null,"",null,"",null,null,0,null,null,null,"","",""]
[null,null,null,null,null,null,"",null,"",null,null,0,null,null,null,"","",""]
[null,null,null,null,null,null,"",null,"",null,null,0,null,null,null,"","",""]
[null,null,null,null,null,null,"",null,"",null,null,0,null,null,null,"","",""]
[null,null,null,null,null,null,"",null,"",null,null,0,null,null,null,"","",""]
[null,null,null,null,null,null,"",null,"",null,null,0,null,null,null,"","",""]
[null,null,null,null,null,null,"",null,"",null,null,0,null,null,null,"","",""]
[null,null,null,null,null,null,"",null,"",null,null,0,null,null,null,"","",""]
[null,null,null,null,null,null,"",null,"",null,null,0,null,null,null,"","",""]
[null,null,null,null,null,null,"",null,"",null,null,0,null,null,null,"","",""]
[null,null,null,null,null,null,"",null,"",null,null,0,null,null,null,"","",""]
[null,null,null,null,null,null,"",null,"",null,null,0,null,null,null,"","",""]
[null,null,null,null,null,null,"",null,"",null,null,0,null,null,null,"","",""]
[null,null,null,null,null,null,"",null,"",null,null,0,null,null,null,"","",""]
[null,null,null,null,null,null,"",null,"",null,null,0,null,null,null,"","",""]
[null,null,null,null,null,null,"",null,"",null,null,0,null,null,null,"","",""]
[null,null,null,null,null,null,"",null,"",null,null,0,null,null,null,"","",""]
[null,null,null,null,null,null,"",null,"",null,null,0,null,null,null,"","",""]
[null,null,null,null,null,null,"",null,"",null,null,0,null,null,null,"","",""]
[null,null,null,null,null,null,"",null,"",null,null,0,null,null,null,"","",""]
[null,null,null,null,null,null,"",null,"",null,null,0,null,null,null,"","",""]
[null,null,null,null,null,null,"",null,"",null,null,0,null,null,null,"","",""]
[null,null,null,null,null,null,"",null,"",null,null,0,null,null,null,"","",""]
[null,null,null,null,null,null,"",null,"",null,null,0,null,null,null,"","",""]
[null,null,null,null,null,null,"",null,"",null,null,0,null,null,null,"","",""]
[null,null,null,null,null,null,"",null,"",null,null,0,null,null,null,"","",""]
[null,null,null,null,null,null,"",null,"",null,null,0,null,null,null,"","",""]
[null,null,null,null,null,null,"",null,"",null,null,0,null,null,null,"","",""]
[null,null,null,null,null,null,"",null,"",null,null,0,null,null,null,"","",""]
[null,null,null,null,null,null,"",null,"",null,null,0,null,null,null,"","",""]
[null,null,null,null,null,null,"",null,"",null,null,0,null,null,null,"","",""]
[null,null,null,null,null,null,"",null,"",null,null,0,null,null,null,"","",""]
[null,null,null,null,null,null,"",null,"",null,null,0,null,null,null,"","",""]
[null,null,null,null,null,null,"",null,"",null,null,0,null,null,null,"","",""]
[null,null,null,null,null,null,"",null,"",null,null,0,null,null,null,"","",""]
[null,null,null,null,null,null,"",null,"",null,null,0,null,null,null,"","",""]
[null,null,null,null,null,null,"",null,"",null,null,0,null,null,null,"","",""]
[null,null,null,null,null,null,"",null,"",null,null,0,null,null,null,"","",""]
[null,null,null,null,null,null,"",null,"",null,null,0,null,null,null,"","",""]
[null,null,null,null,null,null,"",null,"",null,null,0,null,null,null,"","",""]
[null,null,null,null,null,null,"",null,"",null,null,0,null,null,null,"","",""]
[null,null,null,null,null,null,{"$f":"IF(F834>0,VLOOKUP(F834,client,2,0),\"\")","v":""},null,{"$f":"IF(H834>0,VLOOKUP(H834,product,2,0),\"\")","v":""},null,null,0,null,null,null,{"$f":"IF(L834=0,\"\",IF(O834=L834,\"ok\",\"error\"))","v":""},{"$f":"IF(C834=\"رصيد\",\"رصيد أول\",IF(C834>0,C834,\"\"))","v":""},""]
[null,null,null,null,null,null,"",null,"",null,null,{"$f":"J835*K835","v":0},null,null,null,"","",{"$f":"IF(C835=\"\",\"\",MONTH(C835))","v":""}]
[null,null,null,null,null,null,"",null,"",null,null,0,null,null,null,"","",""]
[null,null,null,null,null,null,"",null,"",null,null,0,null,null,null,"","",""]
[null,null,null,null,null,null,"",null,"",null,null,0,null,null,null,"","",""]
[null,null,null,null,null,null,"",null,"",null,null,0,null,null,null,"","",""]
[null,null,null,null,null,null,"",null,"",null,null,0,null,null,null,"","",""]
[null,null,null,null,null,null,"",null,"",null,null,0,null,null,null,"","",""]
[null,null,null,null,null,null,"",null,"",null,null,0,null,null,null,"","",""]
[null,null,null,null,null,null,"",null,"",null,null,0,null,null,null,"","",""]
[null,null,null,null,null,null,"",null,"",null,null,0,null,null,null,"","",""]
[null,null,null,null,null,null,"",null,"",null,null,0,null,null,null,"","",""]
[null,null,null,null,null,null,"",null,"",null,null,0,null,null,null,"","",""]
[null,null,null,null,null,null,"",null,"",null,null,0,null,null,null,"","",""]
[null,null,null,null,null,null,"",null,"",null,null,0,null,null,null,"","",""]
[null,null,null,null,null,null,"",null,"",null,null,0,null,null,null,"","",""]
[null,null,null,null,null,null,"",null,"",null,null,0,null,null,null,"","",""]
[null,null,null,null,null,null,"",null,"",null,null,0,null,null,null,"","",""]
[null,null,null,null,null,null,"",null,"",null,null,0,null,null,null,"","",""]
[null,null,null,null,null,null,"",null,"",null,null,0,null,null,null,"","",""]
[null,null,null,null,null,null,"",null,"",null,null,0,null,null,null,"","",""]
[null,null,null,null,null,null,"",null,"",null,null,0,null,null,null,"","",""]
[null,null,null,null,null,null,"",null,"",null,null,0,null,null,null,"","",""]
[null,null,null,null,null,null,"",null,"",null,null,0,null,null,null,"","",""]
[null,null,null,null,null,null,"",null,"",null,null,0,null,null,null,"","",""]
[null,null,null,null,null,null,"",null,"",null,null,0,null,null,null,"","",""]
[null,null,null,null,null,null,"",null,"",null,null,0,null,null,null,"","",""]
[null,null,null,null,null,null,"",null,"",null,null,0,null,null,null,"","",""]
[null,null,null,null,null,null,"",null,"",null,null,0,null,null,null,"","",""]
[null,null,null,null,null,null,"",null,"",null,null,0,null,null,null,"","",""]
[null,null,null,null,null,null,"",null,"",null,null,0,null,null,null,"","",""]
[null,null,null,null,null,null,"",null,"",null,null,0,null,null,null,"","",""]
[null,null,null,null,null,null,"",null,"",null,null,0,null,null,null,"","",""]
[null,null,null,null,null,null,"",null,"",null,null,0,null,null,null,"","",""]
[null,null,null,null,null,null,"",null,"",null,null,0,null,null,null,"","",""]
[null,null,null,null,null,null,"",null,"",null,null,0,null,null,null,"","",""]
[null,null,null,null,null,null,"",null,"",null,null,0,null,null,null,"","",""]
[null,null,null,null,null,null,"",null,"",null,null,0,null,null,null,"","",""]
[null,null,null,null,null,null,"",null,"",null,null,0,null,null,null,"","",""]
[null,null,null,null,null,null,"",null,"",null,null,0,null,null,null,"","",""]
[null,null,null,null,null,null,"",null,"",null,null,0,null,null,null,"","",""]
[null,null,null,null,null,null,"",null,"",null,null,0,null,null,null,"","",""]
[null,null,null,null,null,null,"",null,"",null,null,0,null,null,null,"","",""]
[null,null,null,null,null,null,"",null,"",null,null,0,null,null,null,"","",""]
[null,null,null,null,null,null,"",null,"",null,null,0,null,null,null,"","",""]
[null,null,null,null,null,null,"",null,"",null,null,0,null,null,null,"","",""]
[null,null,null,null,null,null,"",null,"",null,null,0,null,null,null,"","",""]
[null,null,null,null,null,null,"",null,"",null,null,0,null,null,null,"","",""]
[null,null,null,null,null,null,"",null,"",null,null,0,null,null,null,"","",""]
[null,null,null,null,null,null,"",null,"",null,null,0,null,null,null,"","",""]
[null,null,null,null,null,null,"",null,"",null,null,0,null,null,null,"","",""]
[null,null,null,null,null,null,"",null,"",null,null,0,null,null,null,"","",""]
[null,null,null,null,null,null,"",null,"",null,null,0,null,null,null,"","",""]
[null,null,null,null,null,null,"",null,"",null,null,0,null,null,null,"","",""]
[null,null,null,null,null,null,"",null,"",null,null,0,null,null,null,"","",""]
[null,null,null,null,null,null,"",null,"",null,null,0,null,null,null,"","",""]
[null,null,null,null,null,null,"",null,"",null,null,0,null,null,null,"","",""]
[null,null,null,null,null,null,"",null,"",null,null,0,null,null,null,"","",""]
[null,null,null,null,null,null,"",null,"",null,null,0,null,null,null,"","",""]
[null,null,null,null,null,null,"",null,"",null,null,0,null,null,null,"","",""]
[null,null,null,null,null,null,"",null,"",null,null,0,null,null,null,"","",""]
[null,null,null,null,null,null,"",null,"",null,null,0,null,null,null,"","",""]
[null,null,null,null,null,null,"",null,"",null,null,0,null,null,null,"","",""]
[null,null,null,null,null,null,"",null,"",null,null,0,null,null,null,"","",""]
[null,null,null,null,null,null,{"$f":"IF(F898>0,VLOOKUP(F898,client,2,0),\"\")","v":""},null,{"$f":"IF(H898>0,VLOOKUP(H898,product,2,0),\"\")","v":""},null,null,0,null,null,null,{"$f":"IF(L898=0,\"\",IF(O898=L898,\"ok\",\"error\"))","v":""},{"$f":"IF(C898=\"رصيد\",\"رصيد أول\",IF(C898>0,C898,\"\"))","v":""},""]
[null,null,null,null,null,null,"",null,"",null,null,{"$f":"J899*K899","v":0},null,null,null,"","",{"$f":"IF(C899=\"\",\"\",MONTH(C899))","v":""}]
[null,null,null,null,null,null,"",null,"",null,null,0,null,null,null,"","",""]
[null,null,null,null,null,null,"",null,"",null,null,0,null,null,null,"","",""]
[null,null,null,null,null,null,"",null,"",null,null,0,null,null,null,"","",""]
[null,null,null,null,null,null,"",null,"",null,null,0,null,null,null,"","",""]
[null,null,null,null,null,null,"",null,"",null,null,0,null,null,null,"","",""]
[null,null,null,null,null,null,"",null,"",null,null,0,null,null,null,"","",""]
[null,null,null,null,null,null,"",null,"",null,null,0,null,null,null,"","",""]
[null,null,null,null,null,null,"",null,"",null,null,0,null,null,null,"","",""]
[null,null,null,null,null,null,"",null,"",null,null,0,null,null,null,"","",""]
[null,null,null,null,null,null,"",null,"",null,null,0,null,null,null,"","",""]
[null,null,null,null,null,null,"",null,"",null,null,0,null,null,null,"","",""]
[null,null,null,null,null,null,"",null,"",null,null,0,null,null,null,"","",""]
[null,null,null,null,null,null,"",null,"",null,null,0,null,null,null,"","",""]
[null,null,null,null,null,null,"",null,"",null,null,0,null,null,null,"","",""]
[null,null,null,null,null,null,"",null,"",null,null,0,null,null,null,"","",""]
[null,null,null,null,null,null,"",null,"",null,null,0,null,null,null,"","",""]
[null,null,null,null,null,null,"",null,"",null,null,0,null,null,null,"","",""]
[null,null,null,null,null,null,"",null,"",null,null,0,null,null,null,"","",""]
[null,null,null,null,null,null,"",null,"",null,null,0,null,null,null,"","",""]
[null,null,null,null,null,null,"",null,"",null,null,0,null,null,null,"","",""]
[null,null,null,null,null,null,"",null,"",null,null,0,null,null,null,"","",""]
[null,null,null,null,null,null,"",null,"",null,null,0,null,null,null,"","",""]
[null,null,null,null,null,null,"",null,"",null,null,0,null,null,null,"","",""]
[null,null,null,null,null,null,"",null,"",null,null,0,null,null,null,"","",""]
[null,null,null,null,null,null,"",null,"",null,null,0,null,null,null,"","",""]
[null,null,null,null,null,null,"",null,"",null,null,0,null,null,null,"","",""]
[null,null,null,null,null,null,"",null,"",null,null,0,null,null,null,"","",""]
[null,null,null,null,null,null,"",null,"",null,null,0,null,null,null,"","",""]
[null,null,null,null,null,null,"",null,"",null,null,0,null,null,null,"","",""]
[null,null,null,null,null,null,"",null,"",null,null,0,null,null,null,"","",""]
[null,null,null,null,null,null,"",null,"",null,null,0,null,null,null,"","",""]
[null,null,null,null,null,null,"",null,"",null,null,0,null,null,null,"","",""]
[null,null,null,null,null,null,"",null,"",null,null,0,null,null,null,"","",""]
[null,null,null,null,null,null,"",null,"",null,null,0,null,null,null,"","",""]
[null,null,null,null,null,null,"",null,"",null,null,0,null,null,null,"","",""]
[null,null,null,null,null,null,"",null,"",null,null,0,null,null,null,"","",""]
[null,null,null,null,null,null,"",null,"",null,null,0,null,null,null,"","",""]
[null,null,null,null,null,null,"",null,"",null,null,0,null,null,null,"","",""]
[null,null,null,null,null,null,"",null,"",null,null,0,null,null,null,"","",""]
[null,null,null,null,null,null,"",null,"",null,null,0,null,null,null,"","",""]
[null,null,null,null,null,null,"",null,"",null,null,0,null,null,null,"","",""]
[null,null,null,null,null,null,"",null,"",null,null,0,null,null,null,"","",""]
[null,null,null,null,null,null,"",null,"",null,null,0,null,null,null,"","",""]
[null,null,null,null,null,null,"",null,"",null,null,0,null,null,null,"","",""]
[null,null,null,null,null,null,"",null,"",null,null,0,null,null,null,"","",""]
[null,null,null,null,null,null,"",null,"",null,null,0,null,null,null,"","",""]
[null,null,null,null,null,null,"",null,"",null,null,0,null,null,null,"","",""]
[null,null,null,null,null,null,"",null,"",null,null,0,null,null,null,"","",""]
[null,null,null,null,null,null,"",null,"",null,null,0,null,null,null,"","",""]
[null,null,null,null,null,null,"",null,"",null,null,0,null,null,null,"","",""]
[null,null,null,null,null,null,"",null,"",null,null,0,null,null,null,"","",""]
[null,null,null,null,null,null,"",null,"",null,null,0,null,null,null,"","",""]
[null,null,null,null,null,null,"",null,"",null,null,0,null,null,null,"","",""]
[null,null,null,null,null,null,"",null,"",null,null,0,null,null,null,"","",""]
[null,null,null,null,null,null,"",null,"",null,null,0,null,null,null,"","",""]
[null,null,null,null,null,null,"",null,"",null,null,0,null,null,null,"","",""]
[null,null,null,null,null,null,"",null,"",null,null,0,null,null,null,"","",""]
[null,null,null,null,null,null,"",null,"",null,null,0,null,null,null,"","",""]
[null,null,null,null,null,null,"",null,"",null,null,0,null,null,null,"","",""]
[null,null,null,null,null,null,"",null,"",null,null,0,null,null,null,"","",""]
[null,null,null,null,null,null,"",null,"",null,null,0,null,null,null,"","",""]
[null,null,null,null,null,null,"",null,"",null,null,0,null,null,null,"","",""]
[null,null,null,null,null,null,{"$f":"IF(F962>0,VLOOKUP(F962,client,2,0),\"\")","v":""},null,{"$f":"IF(H962>0,VLOOKUP(H962,product,2,0),\"\")","v":""},null,null,0,null,null,null,{"$f":"IF(L962=0,\"\",IF(O962=L962,\"ok\",\"error\"))","v":""},{"$f":"IF(C962=\"رصيد\",\"رصيد أول\",IF(C962>0,C962,\"\"))","v":""},""]
[null,null,null,null,null,null,"",null,"",null,null,{"$f":"J963*K963","v":0},null,null,null,"","",{"$f":"IF(C963=\"\",\"\",MONTH(C963))","v":""}]
[null,null,null,null,null,null,"",null,"",null,null,0,null,null,null,"","",""]
[null,null,null,null,null,null,"",null,"",null,null,0,null,null,null,"","",""]
[null,null,null,null,null,null,"",null,"",null,null,0,null,null,null,"","",""]
[null,null,null,null,null,null,"",null,"",null,null,0,null,null,null,"","",""]
[null,null,null,null,null,null,"",null,"",null,null,0,null,null,null,"","",""]
[null,null,null,null,null,null,"",null,"",null,null,0,null,null,null,"","",""]
[null,null,null,null,null,null,"",null,"",null,null,0,null,null,null,"","",""]
[null,null,null,null,null,null,"",null,"",null,null,0,null,null,null,"","",""]
[null,null,null,null,null,null,"",null,"",null,null,0,null,null,null,"","",""]
[null,null,null,null,null,null,"",null,"",null,null,0,null,null,null,"","",""]
[null,null,null,null,null,null,"",null,"",null,null,0,null,null,null,"","",""]
[null,null,null,null,null,null,"",null,"",null,null,0,null,null,null,"","",""]
[null,null,null,null,null,null,"",null,"",null,null,0,null,null,null,"","",""]
[null,null,null,null,null,null,"",null,"",null,null,0,null,null,null,"","",""]
[null,null,null,null,null,null,"",null,"",null,null,0,null,null,null,"","",""]
[null,null,null,null,null,null,"",null,"",null,null,0,null,null,null,"","",""]
[null,null,null,null,null,null,"",null,"",null,null,0,null,null,null,"","",""]
[null,null,null,null,null,null,"",null,"",null,null,0,null,null,null,"","",""]
[null,null,null,null,null,null,"",null,"",null,null,0,null,null,null,"","",""]
[null,null,null,null,null,null,"",null,"",null,null,0,null,null,null,"","",""]
[null,null,null,null,null,null,"",null,"",null,null,0,null,null,null,"","",""]
[null,null,null,null,null,null,"",null,"",null,null,0,null,null,null,"","",""]
[null,null,null,null,null,null,"",null,"",null,null,0,null,null,null,"","",""]
[null,null,null,null,null,null,"",null,"",null,null,0,null,null,null,"","",""]
[null,null,null,null,null,null,"",null,"",null,null,0,null,null,null,"","",""]
[null,null,null,null,null,null,"",null,"",null,null,0,null,null,null,"","",""]
[null,null,null,null,null,null,"",null,"",null,null,0,null,null,null,"","",""]
[null,null,null,null,null,null,"",null,"",null,null,0,null,null,null,"","",""]
[null,null,null,null,null,null,"",null,"",null,null,0,null,null,null,"","",""]
[null,null,null,null,null,null,"",null,"",null,null,0,null,null,null,"","",""]
[null,null,null,null,null,null,"",null,"",null,null,0,null,null,null,"","",""]
[null,null,null,null,null,null,"",null,"",null,null,0,null,null,null,"","",""]
[null,null,null,null,null,null,"",null,"",null,null,0,null,null,null,"","",""]
[null,null,null,null,null,null,"",null,"",null,null,0,null,null,null,"","",""]
[null,null,null,null,null,null,"",null,"",null,null,0,null,null,null,"","",""]
[null,null,null,null,null,null,"",null,"",null,null,0,null,null,null,"","",""]
[null,null,null,null,null,null,"",null,"",null,null,0,null,null,null,"","",""]
[null,null,null,null,null,null,"",null,"",null,null,0,null,null,null,"","",""]
[null,null,null,null,null,null,"",null,"",null,null,0,null,null,null,"","",""]
[null,null,null,null,null,null,"",null,"",null,null,0,null,null,null,"","",""]
[null,null,null,null,null,null,"",null,"",null,null,0,null,null,null,"","",""]
[null,null,null,null,null,null,"",null,"",null,null,0,null,null,null,"","",""]
[null,null,null,null,null,null,"",null,"",null,null,0,null,null,null,"","",""]
[null,null,null,null,null,null,"",null,"",null,null,0,null,null,null,"","",""]
[null,null,null,null,null,null,"",null,"",null,null,0,null,null,null,"","",""]
[null,null,null,null,null,null,"",null,"",null,null,0,null,null,null,"","",""]
[null,null,null,null,null,null,"",null,"",null,null,0,null,null,null,"","",""]
[null,null,null,null,null,null,"",null,"",null,null,0,null,null,null,"","",""]
[null,null,null,null,null,null,"",null,"",null,null,0,null,null,null,"","",""]
[null,null,null,null,null,null,"",null,"",null,null,0,null,null,null,"","",""]
[null,null,null,null,null,null,"",null,"",null,null,0,null,null,null,"","",""]
[null,null,null,null,null,null,"",null,"",null,null,0,null,null,null,"","",""]
[null,null,null,null,null,null,"",null,"",null,null,0,null,null,null,"","",""]
[null,null,null,null,null,null,"",null,"",null,null,0,null,null,null,"","",""]
[null,null,null,null,null,null,"",null,"",null,null,0,null,null,null,"","",""]
[null,null,null,null,null,null,"",null,"",null,null,0,null,null,null,"","",""]
[null,null,null,null,null,null,"",null,"",null,null,0,null,null,null,"","",""]
[null,null,null,null,null,null,"",null,"",null,null,0,null,null,null,"","",""]
[null,null,null,null,null,null,"",null,"",null,null,0,null,null,null,"","",""]
[null,null,null,null,null,null,"",null,"",null,null,0,null,null,null,"","",""]
[null,null,null,null,null,null,"",null,"",null,null,0,null,null,null,"","",""]
[null,null,null,null,null,null,"",null,"",null,null,0,null,null,null,"","",""]
[null,null,null,null,null,null,{"$f":"IF(F1026>0,VLOOKUP(F1026,client,2,0),\"\")","v":""},null,{"$f":"IF(H1026>0,VLOOKUP(H1026,product,2,0),\"\")","v":""},null,null,0,null,null,null,{"$f":"IF(L1026=0,\"\",IF(O1026=L1026,\"ok\",\"error\"))","v":""},{"$f":"IF(C1026=\"رصيد\",\"رصيد أول\",IF(C1026>0,C1026,\"\"))","v":""},""]
[null,null,null,null,null,null,"",null,"",null,null,{"$f":"J1027*K1027","v":0},null,null,null,"","",{"$f":"IF(C1027=\"\",\"\",MONTH(C1027))","v":""}]
[null,null,null,null,null,null,"",null,"",null,null,0,null,null,null,"","",""]
[null,null,null,null,null,null,"",null,"",null,null,0,null,null,null,"","",""]
[null,null,null,null,null,null,"",null,"",null,null,0,null,null,null,"","",""]
[null,null,null,null,null,null,"",null,"",null,null,0,null,null,null,"","",""]
[null,null,null,null,null,null,"",null,"",null,null,0,null,null,null,"","",""]
[null,null,null,null,null,null,"",null,"",null,null,0,null,null,null,"","",""]
[null,null,null,null,null,null,"",null,"",null,null,0,null,null,null,"","",""]
[null,null,null,null,null,null,"",null,"",null,null,0,null,null,null,"","",""]
[null,null,null,null,null,null,"",null,"",null,null,0,null,null,null,"","",""]
[null,null,null,null,null,null,"",null,"",null,null,0,null,null,null,"","",""]
[null,null,null,null,null,null,"",null,"",null,null,0,null,null,null,"","",""]
[null,null,null,null,null,null,"",null,"",null,null,0,null,null,null,"","",""]
[null,null,null,null,null,null,"",null,"",null,null,0,null,null,null,"","",""]
[null,null,null,null,null,null,"",null,"",null,null,0,null,null,null,"","",""]
[null,null,null,null,null,null,"",null,"",null,null,0,null,null,null,"","",""]
[null,null,null,null,null,null,"",null,"",null,null,0,null,null,null,"","",""]
[null,null,null,null,null,null,"",null,"",null,null,0,null,null,null,"","",""]
[null,null,null,null,null,null,"",null,"",null,null,0,null,null,null,"","",""]
[null,null,null,null,null,null,"",null,"",null,null,0,null,null,null,"","",""]
[null,null,null,null,null,null,"",null,"",null,null,0,null,null,null,"","",""]
[null,null,null,null,null,null,"",null,"",null,null,0,null,null,null,"","",""]
[null,null,null,null,null,null,"",null,"",null,null,0,null,null,null,"","",""]
[null,null,null,null,null,null,"",null,"",null,null,0,null,null,null,"","",""]
[null,null,null,null,null,null,"",null,"",null,null,0,null,null,null,"","",""]
[null,null,null,null,null,null,"",null,"",null,null,0,null,null,null,"","",""]
[null,null,null,null,null,null,"",null,"",null,null,0,null,null,null,"","",""]
[null,null,null,null,null,null,"",null,"",null,null,0,null,null,null,"","",""]
[null,null,null,null,null,null,"",null,"",null,null,0,null,null,null,"","",""]
[null,null,null,null,null,null,"",null,"",null,null,0,null,null,null,"","",""]
[null,null,null,null,null,null,"",null,"",null,null,0,null,null,null,"","",""]
[null,null,null,null,null,null,"",null,"",null,null,0,null,null,null,"","",""]
[null,null,null,null,null,null,"",null,"",null,null,0,null,null,null,"","",""]
[null,null,null,null,null,null,"",null,"",null,null,0,null,null,null,"","",""]
[null,null,null,null,null,null,"",null,"",null,null,0,null,null,null,"","",""]
[null,null,null,null,null,null,"",null,"",null,null,0,null,null,null,"","",""]
[null,null,null,null,null,null,"",null,"",null,null,0,null,null,null,"","",""]
[null,null,null,null,null,null,"",null,"",null,null,0,null,null,null,"","",""]
[null,null,null,null,null,null,"",null,"",null,null,0,null,null,null,"","",""]
[null,null,null,null,null,null,"",null,"",null,null,0,null,null,null,"","",""]
[null,null,null,null,null,null,"",null,"",null,null,0,null,null,null,"","",""]
[null,null,null,null,null,null,"",null,"",null,null,0,null,null,null,"","",""]
[null,null,null,null,null,null,"",null,"",null,null,0,null,null,null,"","",""]
[null,null,null,null,null,null,"",null,"",null,null,0,null,null,null,"","",""]
[null,null,null,null,null,null,"",null,"",null,null,0,null,null,null,"","",""]
[null,null,null,null,null,null,"",null,"",null,null,0,null,null,null,"","",""]
[null,null,null,null,null,null,"",null,"",null,null,0,null,null,null,"","",""]
[null,null,null,null,null,null,"",null,"",null,null,0,null,null,null,"","",""]
[null,null,null,null,null,null,"",null,"",null,null,0,null,null,null,"","",""]
[null,null,null,null,null,null,"",null,"",null,null,0,null,null,null,"","",""]
[null,null,null,null,null,null,"",null,"",null,null,0,null,null,null,"","",""]
[null,null,null,null,null,null,"",null,"",null,null,0,null,null,null,"","",""]
[null,null,null,null,null,null,"",null,"",null,null,0,null,null,null,"","",""]
[null,null,null,null,null,null,"",null,"",null,null,0,null,null,null,"","",""]
[null,null,null,null,null,null,"",null,"",null,null,0,null,null,null,"","",""]
[null,null,null,null,null,null,"",null,"",null,null,0,null,null,null,"","",""]
[null,null,null,null,null,null,"",null,"",null,null,0,null,null,null,"","",""]
[null,null,null,null,null,null,"",null,"",null,null,0,null,null,null,"","",""]
[null,null,null,null,null,null,"",null,"",null,null,0,null,null,null,"","",""]
[null,null,null,null,null,null,"",null,"",null,null,0,null,null,null,"","",""]
[null,null,null,null,null,null,"",null,"",null,null,0,null,null,null,"","",""]
[null,null,null,null,null,null,"",null,"",null,null,0,null,null,null,"","",""]
[null,null,null,null,null,null,"",null,"",null,null,0,null,null,null,"","",""]
[null,null,null,null,null,null,{"$f":"IF(F1090>0,VLOOKUP(F1090,client,2,0),\"\")","v":""},null,{"$f":"IF(H1090>0,VLOOKUP(H1090,product,2,0),\"\")","v":""},null,null,0,null,null,null,{"$f":"IF(L1090=0,\"\",IF(O1090=L1090,\"ok\",\"error\"))","v":""},{"$f":"IF(C1090=\"رصيد\",\"رصيد أول\",IF(C1090>0,C1090,\"\"))","v":""},""]
[null,null,null,null,null,null,"",null,"",null,null,{"$f":"J1091*K1091","v":0},null,null,null,"","",{"$f":"IF(C1091=\"\",\"\",MONTH(C1091))","v":""}]
[null,null,null,null,null,null,"",null,"",null,null,0,null,null,null,"","",""]
[null,null,null,null,null,null,"",null,"",null,null,0,null,null,null,"","",""]
[null,null,null,null,null,null,"",null,"",null,null,0,null,null,null,"","",""]
[null,null,null,null,null,null,"",null,"",null,null,0,null,null,null,"","",""]
[null,null,null,null,null,null,"",null,"",null,null,0,null,null,null,"","",""]
[null,null,null,null,null,null,"",null,"",null,null,0,null,null,null,"","",""]
[null,null,null,null,null,null,"",null,"",null,null,0,null,null,null,"","",""]
[null,null,null,null,null,null,"",null,"",null,null,0,null,null,null,"","",""]
[null,null,null,null,null,null,"",null,"",null,null,0,null,null,null,"","",""]
[null,null,null,null,null,null,"",null,"",null,null,0,null,null,null,"","",""]
[null,null,null,null,null,null,"",null,"",null,null,0,null,null,null,"","",""]
[null,null,null,null,null,null,"",null,"",null,null,0,null,null,null,"","",""]
[null,null,null,null,null,null,"",null,"",null,null,0,null,null,null,"","",""]
[null,null,null,null,null,null,"",null,"",null,null,0,null,null,null,"","",""]
[null,null,null,null,null,null,"",null,"",null,null,0,null,null,null,"","",""]
[null,null,null,null,null,null,"",null,"",null,null,0,null,null,null,"","",""]
[null,null,null,null,null,null,"",null,"",null,null,0,null,null,null,"","",""]
[null,null,null,null,null,null,"",null,"",null,null,0,null,null,null,"","",""]
[null,null,null,null,null,null,"",null,"",null,null,0,null,null,null,"","",""]
[null,null,null,null,null,null,"",null,"",null,null,0,null,null,null,"","",""]
[null,null,null,null,null,null,"",null,"",null,null,0,null,null,null,"","",""]
[null,null,null,null,null,null,"",null,"",null,null,0,null,null,null,"","",""]
[null,null,null,null,null,null,"",null,"",null,null,0,null,null,null,"","",""]
[null,null,null,null,null,null,"",null,"",null,null,0,null,null,null,"","",""]
[null,null,null,null,null,null,"",null,"",null,null,0,null,null,null,"","",""]
[null,null,null,null,null,null,"",null,"",null,null,0,null,null,null,"","",""]
[null,null,null,null,null,null,"",null,"",null,null,0,null,null,null,"","",""]
[null,null,null,null,null,null,"",null,"",null,null,0,null,null,null,"","",""]
[null,null,null,null,null,null,"",null,"",null,null,0,null,null,null,"","",""]
[null,null,null,null,null,null,"",null,"",null,null,0,null,null,null,"","",""]
[null,null,null,null,null,null,"",null,"",null,null,0,null,null,null,"","",""]
[null,null,null,null,null,null,"",null,"",null,null,0,null,null,null,"","",""]
[null,null,null,null,null,null,"",null,"",null,null,0,null,null,null,"","",""]
[null,null,null,null,null,null,"",null,"",null,null,0,null,null,null,"","",""]
[null,null,null,null,null,null,"",null,"",null,null,0,null,null,null,"","",""]
[null,null,null,null,null,null,"",null,"",null,null,0,null,null,null,"","",""]
[null,null,null,null,null,null,"",null,"",null,null,0,null,null,null,"","",""]
[null,null,null,null,null,null,"",null,"",null,null,0,null,null,null,"","",""]
[null,null,null,null,null,null,"",null,"",null,null,0,null,null,null,"","",""]
[null,null,null,null,null,null,"",null,"",null,null,0,null,null,null,"","",""]
[null,null,null,null,null,null,"",null,"",null,null,0,null,null,null,"","",""]
[null,null,null,null,null,null,"",null,"",null,null,0,null,null,null,"","",""]
[null,null,null,null,null,null,"",null,"",null,null,0,null,null,null,"","",""]
[null,null,null,null,null,null,"",null,"",null,null,0,null,null,null,"","",""]
[null,null,null,null,null,null,"",null,"",null,null,0,null,null,null,"","",""]
[null,null,null,null,null,null,"",null,"",null,null,0,null,null,null,"","",""]
[null,null,null,null,null,null,"",null,"",null,null,0,null,null,null,"","",""]
[null,null,null,null,null,null,"",null,"",null,null,0,null,null,null,"","",""]
[null,null,null,null,null,null,"",null,"",null,null,0,null,null,null,"","",""]
[null,null,null,null,null,null,"",null,"",null,null,0,null,null,null,"","",""]
[null,null,null,null,null,null,"",null,"",null,null,0,null,null,null,"","",""]
[null,null,null,null,null,null,"",null,"",null,null,0,null,null,null,"","",""]
[null,null,null,null,null,null,"",null,"",null,null,0,null,null,null,"","",""]
[null,null,null,null,null,null,"",null,"",null,null,0,null,null,null,"","",""]
[null,null,null,null,null,null,"",null,"",null,null,0,null,null,null,"","",""]
[null,null,null,null,null,null,"",null,"",null,null,0,null,null,null,"","",""]
[null,null,null,null,null,null,"",null,"",null,null,0,null,null,null,"","",""]
[null,null,null,null,null,null,"",null,"",null,null,0,null,null,null,"","",""]
[null,null,null,null,null,null,"",null,"",null,null,0,null,null,null,"","",""]
[null,null,null,null,null,null,"",null,"",null,null,0,null,null,null,"","",""]
[null,null,null,null,null,null,"",null,"",null,null,0,null,null,null,"","",""]
[null,null,null,null,null,null,"",null,"",null,null,0,null,null,null,"","",""]
[null,null,null,null,null,null,{"$f":"IF(F1154>0,VLOOKUP(F1154,client,2,0),\"\")","v":""},null,{"$f":"IF(H1154>0,VLOOKUP(H1154,product,2,0),\"\")","v":""},null,null,0,null,null,null,{"$f":"IF(L1154=0,\"\",IF(O1154=L1154,\"ok\",\"error\"))","v":""},{"$f":"IF(C1154=\"رصيد\",\"رصيد أول\",IF(C1154>0,C1154,\"\"))","v":""},""]
[null,null,null,null,null,null,"",null,"",null,null,{"$f":"J1155*K1155","v":0},null,null,null,"","",{"$f":"IF(C1155=\"\",\"\",MONTH(C1155))","v":""}]
[null,null,null,null,null,null,"",null,"",null,null,0,null,null,null,"","",""]
[null,null,null,null,null,null,"",null,"",null,null,0,null,null,null,"","",""]
[null,null,null,null,null,null,"",null,"",null,null,0,null,null,null,"","",""]
[null,null,null,null,null,null,"",null,"",null,null,0,null,null,null,"","",""]
[null,null,null,null,null,null,"",null,"",null,null,0,null,null,null,"","",""]
[null,null,null,null,null,null,"",null,"",null,null,0,null,null,null,"","",""]
[null,null,null,null,null,null,"",null,"",null,null,0,null,null,null,"","",""]
[null,null,null,null,null,null,"",null,"",null,null,0,null,null,null,"","",""]
[null,null,null,null,null,null,"",null,"",null,null,0,null,null,null,"","",""]
[null,null,null,null,null,null,"",null,"",null,null,0,null,null,null,"","",""]
[null,null,null,null,null,null,"",null,"",null,null,0,null,null,null,"","",""]
[null,null,null,null,null,null,"",null,"",null,null,0,null,null,null,"","",""]
[null,null,null,null,null,null,"",null,"",null,null,0,null,null,null,"","",""]
[null,null,null,null,null,null,"",null,"",null,null,0,null,null,null,"","",""]
[null,null,null,null,null,null,"",null,"",null,null,0,null,null,null,"","",""]
[null,null,null,null,null,null,"",null,"",null,null,0,null,null,null,"","",""]
[null,null,null,null,null,null,"",null,"",null,null,0,null,null,null,"","",""]
[null,null,null,null,null,null,"",null,"",null,null,0,null,null,null,"","",""]
[null,null,null,null,null,null,"",null,"",null,null,0,null,null,null,"","",""]
[null,null,null,null,null,null,"",null,"",null,null,0,null,null,null,"","",""]
[null,null,null,null,null,null,"",null,"",null,null,0,null,null,null,"","",""]
[null,null,null,null,null,null,"",null,"",null,null,0,null,null,null,"","",""]
[null,null,null,null,null,null,"",null,"",null,null,0,null,null,null,"","",""]
[null,null,null,null,null,null,"",null,"",null,null,0,null,null,null,"","",""]
[null,null,null,null,null,null,"",null,"",null,null,0,null,null,null,"","",""]
[null,null,null,null,null,null,"",null,"",null,null,0,null,null,null,"","",""]
[null,null,null,null,null,null,"",null,"",null,null,0,null,null,null,"","",""]
[null,null,null,null,null,null,"",null,"",null,null,0,null,null,null,"","",""]
[null,null,null,null,null,null,"",null,"",null,null,0,null,null,null,"","",""]
[null,null,null,null,null,null,"",null,"",null,null,0,null,null,null,"","",""]
[null,null,null,null,null,null,"",null,"",null,null,0,null,null,null,"","",""]
[null,null,null,null,null,null,"",null,"",null,null,0,null,null,null,"","",""]
[null,null,null,null,null,null,"",null,"",null,null,0,null,null,null,"","",""]
[null,null,null,null,null,null,"",null,"",null,null,0,null,null,null,"","",""]
[null,null,null,null,null,null,"",null,"",null,null,0,null,null,null,"","",""]
[null,null,null,null,null,null,"",null,"",null,null,0,null,null,null,"","",""]
[null,null,null,null,null,null,"",null,"",null,null,0,null,null,null,"","",""]
[null,null,null,null,null,null,"",null,"",null,null,0,null,null,null,"","",""]
[null,null,null,null,null,null,"",null,"",null,null,0,null,null,null,"","",""]
[null,null,null,null,null,null,"",null,"",null,null,0,null,null,null,"","",""]
[null,null,null,null,null,null,"",null,"",null,null,0,null,null,null,"","",""]
[null,null,null,null,null,null,"",null,"",null,null,0,null,null,null,"","",""]
[null,null,null,null,null,null,"",null,"",null,null,0,null,null,null,"","",""]
[null,null,null,null,null,null,"",null,"",null,null,0,null,null,null,"","",""]
[null,null,null,null,null,null,"",null,"",null,null,0,null,null,null,"","",""]
[null,null,null,null,null,null,"",null,"",null,null,0,null,null,null,"","",""]
[null,null,null,null,null,null,"",null,"",null,null,0,null,null,null,"","",""]
[null,null,null,null,null,null,"",null,"",null,null,0,null,null,null,"","",""]
[null,null,null,null,null,null,"",null,"",null,null,0,null,null,null,"","",""]
[null,null,null,null,null,null,"",null,"",null,null,0,null,null,null,"","",""]
[null,null,null,null,null,null,"",null,"",null,null,0,null,null,null,"","",""]
[null,null,null,null,null,null,"",null,"",null,null,0,null,null,null,"","",""]
[null,null,null,null,null,null,"",null,"",null,null,0,null,null,null,"","",""]
[null,null,null,null,null,null,"",null,"",null,null,0,null,null,null,"","",""]
[null,null,null,null,null,null,"",null,"",null,null,0,null,null,null,"","",""]
[null,null,null,null,null,null,"",null,"",null,null,0,null,null,null,"","",""]
[null,null,null,null,null,null,"",null,"",null,null,0,null,null,null,"","",""]
[null,null,null,null,null,null,"",null,"",null,null,0,null,null,null,"","",""]
[null,null,null,null,null,null,"",null,"",null,null,0,null,null,null,"","",""]
[null,null,null,null,null,null,"",null,"",null,null,0,null,null,null,"","",""]
[null,null,null,null,null,null,"",null,"",null,null,0,null,null,null,"","",""]
[null,null,null,null,null,null,"",null,"",null,null,0,null,null,null,"","",""]
[null,null,null,null,null,null,{"$f":"IF(F1218>0,VLOOKUP(F1218,client,2,0),\"\")","v":""},null,{"$f":"IF(H1218>0,VLOOKUP(H1218,product,2,0),\"\")","v":""},null,null,0,null,null,null,{"$f":"IF(L1218=0,\"\",IF(O1218=L1218,\"ok\",\"error\"))","v":""},{"$f":"IF(C1218=\"رصيد\",\"رصيد أول\",IF(C1218>0,C1218,\"\"))","v":""},""]
[null,null,null,null,null,null,"",null,"",null,null,{"$f":"J1219*K1219","v":0},null,null,null,"","",{"$f":"IF(C1219=\"\",\"\",MONTH(C1219))","v":""}]
[null,null,null,null,null,null,"",null,"",null,null,0,null,null,null,"","",""]
[null,null,null,null,null,null,"",null,"",null,null,0,null,null,null,"","",""]
[null,null,null,null,null,null,"",null,"",null,null,0,null,null,null,"","",""]
[null,null,null,null,null,null,"",null,"",null,null,0,null,null,null,"","",""]
[null,null,null,null,null,null,"",null,"",null,null,0,null,null,null,"","",""]
[null,null,null,null,null,null,"",null,"",null,null,0,null,null,null,"","",""]
[null,null,null,null,null,null,"",null,"",null,null,0,null,null,null,"","",""]
[null,null,null,null,null,null,"",null,"",null,null,0,null,null,null,"","",""]
[null,null,null,null,null,null,"",null,"",null,null,0,null,null,null,"","",""]
[null,null,null,null,null,null,"",null,"",null,null,0,null,null,null,"","",""]
[null,null,null,null,null,null,"",null,"",null,null,0,null,null,null,"","",""]
[null,null,null,null,null,null,"",null,"",null,null,0,null,null,null,"","",""]
[null,null,null,null,null,null,"",null,"",null,null,0,null,null,null,"","",""]
[null,null,null,null,null,null,"",null,"",null,null,0,null,null,null,"","",""]
[null,null,null,null,null,null,"",null,"",null,null,0,null,null,null,"","",""]
[null,null,null,null,null,null,"",null,"",null,null,0,null,null,null,"","",""]
[null,null,null,null,null,null,"",null,"",null,null,0,null,null,null,"","",""]
[null,null,null,null,null,null,"",null,"",null,null,0,null,null,null,"","",""]
[null,null,null,null,null,null,"",null,"",null,null,0,null,null,null,"","",""]
[null,null,null,null,null,null,"",null,"",null,null,0,null,null,null,"","",""]
[null,null,null,null,null,null,"",null,"",null,null,0,null,null,null,"","",""]
[null,null,null,null,null,null,"",null,"",null,null,0,null,null,null,"","",""]
[null,null,null,null,null,null,"",null,"",null,null,0,null,null,null,"","",""]
[null,null,null,null,null,null,"",null,"",null,null,0,null,null,null,"","",""]
[null,null,null,null,null,null,"",null,"",null,null,0,null,null,null,"","",""]
[null,null,null,null,null,null,"",null,"",null,null,0,null,null,null,"","",""]
[null,null,null,null,null,null,"",null,"",null,null,0,null,null,null,"","",""]
[null,null,null,null,null,null,"",null,"",null,null,0,null,null,null,"","",""]
[null,null,null,null,null,null,"",null,"",null,null,0,null,null,null,"","",""]
[null,null,null,null,null,null,"",null,"",null,null,0,null,null,null,"","",""]
[null,null,null,null,null,null,"",null,"",null,null,0,null,null,null,"","",""]
[null,null,null,null,null,null,"",null,"",null,null,0,null,null,null,"","",""]
[null,null,null,null,null,null,"",null,"",null,null,0,null,null,null,"","",""]
[null,null,null,null,null,null,"",null,"",null,null,0,null,null,null,"","",""]
[null,null,null,null,null,null,"",null,"",null,null,0,null,null,null,"","",""]
[null,null,null,null,null,null,"",null,"",null,null,0,null,null,null,"","",""]
[null,null,null,null,null,null,"",null,"",null,null,0,null,null,null,"","",""]
[null,null,null,null,null,null,"",null,"",null,null,0,null,null,null,"","",""]
[null,null,null,null,null,null,"",null,"",null,null,0,null,null,null,"","",""]
[null,null,null,null,null,null,"",null,"",null,null,0,null,null,null,"","",""]
[null,null,null,null,null,null,"",null,"",null,null,0,null,null,null,"","",""]
[null,null,null,null,null,null,"",null,"",null,null,0,null,null,null,"","",""]
[null,null,null,null,null,null,"",null,"",null,null,0,null,null,null,"","",""]
[null,null,null,null,null,null,"",null,"",null,null,0,null,null,null,"","",""]
[null,null,null,null,null,null,"",null,"",null,null,0,null,null,null,"","",""]
[null,null,null,null,null,null,"",null,"",null,null,0,null,null,null,"","",""]
[null,null,null,null,null,null,"",null,"",null,null,0,null,null,null,"","",""]
[null,null,null,null,null,null,"",null,"",null,null,0,null,null,null,"","",""]
[null,null,null,null,null,null,"",null,"",null,null,0,null,null,null,"","",""]
[null,null,null,null,null,null,"",null,"",null,null,0,null,null,null,"","",""]
[null,null,null,null,null,null,"",null,"",null,null,0,null,null,null,"","",""]
[null,null,null,null,null,null,"",null,"",null,null,0,null,null,null,"","",""]
[null,null,null,null,null,null,"",null,"",null,null,0,null,null,null,"","",""]
[null,null,null,null,null,null,"",null,"",null,null,0,null,null,null,"","",""]
[null,null,null,null,null,null,"",null,"",null,null,0,null,null,null,"","",""]
[null,null,null,null,null,null,"",null,"",null,null,0,null,null,null,"","",""]
[null,null,null,null,null,null,"",null,"",null,null,0,null,null,null,"","",""]
[null,null,null,null,null,null,"",null,"",null,null,0,null,null,null,"","",""]
[null,null,null,null,null,null,"",null,"",null,null,0,null,null,null,"","",""]
[null,null,null,null,null,null,"",null,"",null,null,0,null,null,null,"","",""]
[null,null,null,null,null,null,"",null,"",null,null,0,null,null,null,"","",""]
[null,null,null,null,null,null,"",null,"",null,null,0,null,null,null,"","",""]
[null,null,null,null,null,null,{"$f":"IF(F1282>0,VLOOKUP(F1282,client,2,0),\"\")","v":""},null,{"$f":"IF(H1282>0,VLOOKUP(H1282,product,2,0),\"\")","v":""},null,null,0,null,null,null,{"$f":"IF(L1282=0,\"\",IF(O1282=L1282,\"ok\",\"error\"))","v":""},{"$f":"IF(C1282=\"رصيد\",\"رصيد أول\",IF(C1282>0,C1282,\"\"))","v":""},""]
[null,null,null,null,null,null,"",null,"",null,null,{"$f":"J1283*K1283","v":0},null,null,null,"","",{"$f":"IF(C1283=\"\",\"\",MONTH(C1283))","v":""}]
[null,null,null,null,null,null,"",null,"",null,null,0,null,null,null,"","",""]
[null,null,null,null,null,null,"",null,"",null,null,0,null,null,null,"","",""]
[null,null,null,null,null,null,"",null,"",null,null,0,null,null,null,"","",""]
[null,null,null,null,null,null,"",null,"",null,null,0,null,null,null,"","",""]
[null,null,null,null,null,null,"",null,"",null,null,0,null,null,null,"","",""]
[null,null,null,null,null,null,"",null,"",null,null,0,null,null,null,"","",""]
[null,null,null,null,null,null,"",null,"",null,null,0,null,null,null,"","",""]
[null,null,null,null,null,null,"",null,"",null,null,0,null,null,null,"","",""]
[null,null,null,null,null,null,"",null,"",null,null,0,null,null,null,"","",""]
[null,null,null,null,null,null,"",null,"",null,null,0,null,null,null,"","",""]
[null,null,null,null,null,null,"",null,"",null,null,0,null,null,null,"","",""]
[null,null,null,null,null,null,"",null,"",null,null,0,null,null,null,"","",""]
[null,null,null,null,null,null,"",null,"",null,null,0,null,null,null,"","",""]
[null,null,null,null,null,null,"",null,"",null,null,0,null,null,null,"","",""]
[null,null,null,null,null,null,"",null,"",null,null,0,null,null,null,"","",""]
[null,null,null,null,null,null,"",null,"",null,null,0,null,null,null,"","",""]
[null,null,null,null,null,null,"",null,"",null,null,0,null,null,null,"","",""]
[null,null,null,null,null,null,"",null,"",null,null,0,null,null,null,"","",""]
[null,null,null,null,null,null,"",null,"",null,null,0,null,null,null,"","",""]
[null,null,null,null,null,null,"",null,"",null,null,0,null,null,null,"","",""]
[null,null,null,null,null,null,"",null,"",null,null,0,null,null,null,"","",""]
[null,null,null,null,null,null,"",null,"",null,null,0,null,null,null,"","",""]
[null,null,null,null,null,null,"",null,"",null,null,0,null,null,null,"","",""]
[null,null,null,null,null,null,"",null,"",null,null,0,null,null,null,"","",""]
[null,null,null,null,null,null,"",null,"",null,null,0,null,null,null,"","",""]
[null,null,null,null,null,null,"",null,"",null,null,0,null,null,null,"","",""]
[null,null,null,null,null,null,"",null,"",null,null,0,null,null,null,"","",""]
[null,null,null,null,null,null,"",null,"",null,null,0,null,null,null,"","",""]
[null,null,null,null,null,null,"",null,"",null,null,0,null,null,null,"","",""]
[null,null,null,null,null,null,"",null,"",null,null,0,null,null,null,"","",""]
[null,null,null,null,null,null,"",null,"",null,null,0,null,null,null,"","",""]
[null,null,null,null,null,null,"",null,"",null,null,0,null,null,null,"","",""]
[null,null,null,null,null,null,"",null,"",null,null,0,null,null,null,"","",""]
[null,null,null,null,null,null,"",null,"",null,null,0,null,null,null,"","",""]
[null,null,null,null,null,null,"",null,"",null,null,0,null,null,null,"","",""]
[null,null,null,null,null,null,"",null,"",null,null,0,null,null,null,"","",""]
[null,null,null,null,null,null,"",null,"",null,null,0,null,null,null,"","",""]
[null,null,null,null,null,null,"",null,"",null,null,0,null,null,null,"","",""]
[null,null,null,null,null,null,"",null,"",null,null,0,null,null,null,"","",""]
[null,null,null,null,null,null,"",null,"",null,null,0,null,null,null,"","",""]
[null,null,null,null,null,null,"",null,"",null,null,0,null,null,null,"","",""]
[null,null,null,null,null,null,"",null,"",null,null,0,null,null,null,"","",""]
[null,null,null,null,null,null,"",null,"",null,null,0,null,null,null,"","",""]
[null,null,null,null,null,null,"",null,"",null,null,0,null,null,null,"","",""]
[null,null,null,null,null,null,"",null,"",null,null,0,null,null,null,"","",""]
[null,null,null,null,null,null,"",null,"",null,null,0,null,null,null,"","",""]
[null,null,null,null,null,null,"",null,"",null,null,0,null,null,null,"","",""]
[null,null,null,null,null,null,"",null,"",null,null,0,null,null,null,"","",""]
[null,null,null,null,null,null,"",null,"",null,null,0,null,null,null,"","",""]
[null,null,null,null,null,null,"",null,"",null,null,0,null,null,null,"","",""]
[null,null,null,null,null,null,"",null,"",null,null,0,null,null,null,"","",""]
[null,null,null,null,null,null,"",null,"",null,null,0,null,null,null,"","",""]
[null,null,null,null,null,null,"",null,"",null,null,0,null,null,null,"","",""]
[null,null,null,null,null,null,"",null,"",null,null,0,null,null,null,"","",""]
[null,null,null,null,null,null,"",null,"",null,null,0,null,null,null,"","",""]
[null,null,null,null,null,null,"",null,"",null,null,0,null,null,null,"","",""]
[null,null,null,null,null,null,"",null,"",null,null,0,null,null,null,"","",""]
[null,null,null,null,null,null,"",null,"",null,null,0,null,null,null,"","",""]
[null,null,null,null,null,null,"",null,"",null,null,0,null,null,null,"","",""]
[null,null,null,null,null,null,"",null,"",null,null,0,null,null,null,"","",""]
[null,null,null,null,null,null,"",null,"",null,null,0,null,null,null,"","",""]
[null,null,null,null,null,null,"",null,"",null,null,0,null,null,null,"","",""]
[null,null,null,null,null,null,{"$f":"IF(F1346>0,VLOOKUP(F1346,client,2,0),\"\")","v":""},null,{"$f":"IF(H1346>0,VLOOKUP(H1346,product,2,0),\"\")","v":""},null,null,0,null,null,null,{"$f":"IF(L1346=0,\"\",IF(O1346=L1346,\"ok\",\"error\"))","v":""},{"$f":"IF(C1346=\"رصيد\",\"رصيد أول\",IF(C1346>0,C1346,\"\"))","v":""},""]
[null,null,null,null,null,null,"",null,"",null,null,{"$f":"J1347*K1347","v":0},null,null,null,"","",{"$f":"IF(C1347=\"\",\"\",MONTH(C1347))","v":""}]
[null,null,null,null,null,null,"",null,"",null,null,0,null,null,null,"","",""]
[null,null,null,null,null,null,"",null,"",null,null,0,null,null,null,"","",""]
[null,null,null,null,null,null,"",null,"",null,null,0,null,null,null,"","",""]
[null,null,null,null,null,null,"",null,"",null,null,0,null,null,null,"","",""]
[null,null,null,null,null,null,"",null,"",null,null,0,null,null,null,"","",""]
[null,null,null,null,null,null,"",null,"",null,null,0,null,null,null,"","",""]
[null,null,null,null,null,null,"",null,"",null,null,0,null,null,null,"","",""]
[null,null,null,null,null,null,"",null,"",null,null,0,null,null,null,"","",""]
[null,null,null,null,null,null,"",null,"",null,null,0,null,null,null,"","",""]
[null,null,null,null,null,null,"",null,"",null,null,0,null,null,null,"","",""]
[null,null,null,null,null,null,"",null,"",null,null,0,null,null,null,"","",""]
[null,null,null,null,null,null,"",null,"",null,null,0,null,null,null,"","",""]
[null,null,null,null,null,null,"",null,"",null,null,0,null,null,null,"","",""]
[null,null,null,null,null,null,"",null,"",null,null,0,null,null,null,"","",""]
[null,null,null,null,null,null,"",null,"",null,null,0,null,null,null,"","",""]
[null,null,null,null,null,null,"",null,"",null,null,0,null,null,null,"","",""]
[null,null,null,null,null,null,"",null,"",null,null,0,null,null,null,"","",""]
[null,null,null,null,null,null,"",null,"",null,null,0,null,null,null,"","",""]
[null,null,null,null,null,null,"",null,"",null,null,0,null,null,null,"","",""]
[null,null,null,null,null,null,"",null,"",null,null,0,null,null,null,"","",""]
[null,null,null,null,null,null,"",null,"",null,null,0,null,null,null,"","",""]
[null,null,null,null,null,null,"",null,"",null,null,0,null,null,null,"","",""]
[null,null,null,null,null,null,"",null,"",null,null,0,null,null,null,"","",""]
[null,null,null,null,null,null,"",null,"",null,null,0,null,null,null,"","",""]
[null,null,null,null,null,null,"",null,"",null,null,0,null,null,null,"","",""]
[null,null,null,null,null,null,"",null,"",null,null,0,null,null,null,"","",""]
[null,null,null,null,null,null,"",null,"",null,null,0,null,null,null,"","",""]
[null,null,null,null,null,null,"",null,"",null,null,0,null,null,null,"","",""]
[null,null,null,null,null,null,"",null,"",null,null,0,null,null,null,"","",""]
[null,null,null,null,null,null,"",null,"",null,null,0,null,null,null,"","",""]
[null,null,null,null,null,null,"",null,"",null,null,0,null,null,null,"","",""]
[null,null,null,null,null,null,"",null,"",null,null,0,null,null,null,"","",""]
[null,null,null,null,null,null,"",null,"",null,null,0,null,null,null,"","",""]
[null,null,null,null,null,null,"",null,"",null,null,0,null,null,null,"","",""]
[null,null,null,null,null,null,"",null,"",null,null,0,null,null,null,"","",""]
[null,null,null,null,null,null,"",null,"",null,null,0,null,null,null,"","",""]
[null,null,null,null,null,null,"",null,"",null,null,0,null,null,null,"","",""]
[null,null,null,null,null,null,"",null,"",null,null,0,null,null,null,"","",""]
[null,null,null,null,null,null,"",null,"",null,null,0,null,null,null,"","",""]
[null,null,null,null,null,null,"",null,"",null,null,0,null,null,null,"","",""]
[null,null,null,null,null,null,"",null,"",null,null,0,null,null,null,"","",""]
[null,null,null,null,null,null,"",null,"",null,null,0,null,null,null,"","",""]
[null,null,null,null,null,null,"",null,"",null,null,0,null,null,null,"","",""]
[null,null,null,null,null,null,"",null,"",null,null,0,null,null,null,"","",""]
[null,null,null,null,null,null,"",null,"",null,null,0,null,null,null,"","",""]
[null,null,null,null,null,null,"",null,"",null,null,0,null,null,null,"","",""]
[null,null,null,null,null,null,"",null,"",null,null,0,null,null,null,"","",""]
[null,null,null,null,null,null,"",null,"",null,null,0,null,null,null,"","",""]
[null,null,null,null,null,null,"",null,"",null,null,0,null,null,null,"","",""]
[null,null,null,null,null,null,"",null,"",null,null,0,null,null,null,"","",""]
[null,null,null,null,null,null,"",null,"",null,null,0,null,null,null,"","",""]
[null,null,null,null,null,null,"",null,"",null,null,0,null,null,null,"","",""]
[null,null,null,null,null,null,"",null,"",null,null,0,null,null,null,"","",""]
[null,null,null,null,null,null,"",null,"",null,null,0,null,null,null,"","",""]
[null,null,null,null,null,null,"",null,"",null,null,0,null,null,null,"","",""]
[null,null,null,null,null,null,"",null,"",null,null,0,null,null,null,"","",""]
[null,null,null,null,null,null,"",null,"",null,null,0,null,null,null,"","",""]
[null,null,null,null,null,null,"",null,"",null,null,0,null,null,null,"","",""]
[null,null,null,null,null,null,"",null,"",null,null,0,null,null,null,"","",""]
[null,null,null,null,null,null,"",null,"",null,null,0,null,null,null,"","",""]
[null,null,null,null,null,null,"",null,"",null,null,0,null,null,null,"","",""]
[null,null,null,null,null,null,"",null,"",null,null,0,null,null,null,"","",""]
[null,null,null,null,null,null,{"$f":"IF(F1410>0,VLOOKUP(F1410,client,2,0),\"\")","v":""},null,{"$f":"IF(H1410>0,VLOOKUP(H1410,product,2,0),\"\")","v":""},null,null,0,null,null,null,{"$f":"IF(L1410=0,\"\",IF(O1410=L1410,\"ok\",\"error\"))","v":""},{"$f":"IF(C1410=\"رصيد\",\"رصيد أول\",IF(C1410>0,C1410,\"\"))","v":""},""]
[null,null,null,null,null,null,"",null,"",null,null,{"$f":"J1411*K1411","v":0},null,null,null,"","",{"$f":"IF(C1411=\"\",\"\",MONTH(C1411))","v":""}]
[null,null,null,null,null,null,"",null,"",null,null,0,null,null,null,"","",""]
[null,null,null,null,null,null,"",null,"",null,null,0,null,null,null,"","",""]
[null,null,null,null,null,null,"",null,"",null,null,0,null,null,null,"","",""]
[null,null,null,null,null,null,"",null,"",null,null,0,null,null,null,"","",""]
[null,null,null,null,null,null,"",null,"",null,null,0,null,null,null,"","",""]
[null,null,null,null,null,null,"",null,"",null,null,0,null,null,null,"","",""]
[null,null,null,null,null,null,"",null,"",null,null,0,null,null,null,"","",""]
[null,null,null,null,null,null,"",null,"",null,null,0,null,null,null,"","",""]
[null,null,null,null,null,null,"",null,"",null,null,0,null,null,null,"","",""]
[null,null,null,null,null,null,"",null,"",null,null,0,null,null,null,"","",""]
[null,null,null,null,null,null,"",null,"",null,null,0,null,null,null,"","",""]
[null,null,null,null,null,null,"",null,"",null,null,0,null,null,null,"","",""]
[null,null,null,null,null,null,"",null,"",null,null,0,null,null,null,"","",""]
[null,null,null,null,null,null,"",null,"",null,null,0,null,null,null,"","",""]
[null,null,null,null,null,null,"",null,"",null,null,0,null,null,null,"","",""]
[null,null,null,null,null,null,"",null,"",null,null,0,null,null,null,"","",""]
[null,null,null,null,null,null,"",null,"",null,null,0,null,null,null,"","",""]
[null,null,null,null,null,null,"",null,"",null,null,0,null,null,null,"","",""]
[null,null,null,null,null,null,"",null,"",null,null,0,null,null,null,"","",""]
[null,null,null,null,null,null,"",null,"",null,null,0,null,null,null,"","",""]
[null,null,null,null,null,null,"",null,"",null,null,0,null,null,null,"","",""]
[null,null,null,null,null,null,"",null,"",null,null,0,null,null,null,"","",""]
[null,null,null,null,null,null,"",null,"",null,null,0,null,null,null,"","",""]
[null,null,null,null,null,null,"",null,"",null,null,0,null,null,null,"","",""]
[null,null,null,null,null,null,"",null,"",null,null,0,null,null,null,"","",""]
[null,null,null,null,null,null,"",null,"",null,null,0,null,null,null,"","",""]
[null,null,null,null,null,null,"",null,"",null,null,0,null,null,null,"","",""]
[null,null,null,null,null,null,"",null,"",null,null,0,null,null,null,"","",""]
[null,null,null,null,null,null,"",null,"",null,null,0,null,null,null,"","",""]
[null,null,null,null,null,null,"",null,"",null,null,0,null,null,null,"","",""]
[null,null,null,null,null,null,"",null,"",null,null,0,null,null,null,"","",""]
[null,null,null,null,null,null,"",null,"",null,null,0,null,null,null,"","",""]
[null,null,null,null,null,null,"",null,"",null,null,0,null,null,null,"","",""]
[null,null,null,null,null,null,"",null,"",null,null,0,null,null,null,"","",""]
[null,null,null,null,null,null,"",null,"",null,null,0,null,null,null,"","",""]
[null,null,null,null,null,null,"",null,"",null,null,0,null,null,null,"","",""]
[null,null,null,null,null,null,"",null,"",null,null,0,null,null,null,"","",""]
[null,null,null,null,null,null,"",null,"",null,null,0,null,null,null,"","",""]
[null,null,null,null,null,null,"",null,"",null,null,0,null,null,null,"","",""]
[null,null,null,null,null,null,"",null,"",null,null,0,null,null,null,"","",""]
[null,null,null,null,null,null,"",null,"",null,null,0,null,null,null,"","",""]
[null,null,null,null,null,null,"",null,"",null,null,0,null,null,null,"","",""]
[null,null,null,null,null,null,"",null,"",null,null,0,null,null,null,"","",""]
[null,null,null,null,null,null,"",null,"",null,null,0,null,null,null,"","",""]
[null,null,null,null,null,null,"",null,"",null,null,0,null,null,null,"","",""]
[null,null,null,null,null,null,"",null,"",null,null,0,null,null,null,"","",""]
[null,null,null,null,null,null,"",null,"",null,null,0,null,null,null,"","",""]
[null,null,null,null,null,null,"",null,"",null,null,0,null,null,null,"","",""]
[null,null,null,null,null,null,"",null,"",null,null,0,null,null,null,"","",""]
[null,null,null,null,null,null,"",null,"",null,null,0,null,null,null,"","",""]
[null,null,null,null,null,null,"",null,"",null,null,0,null,null,null,"","",""]
[null,null,null,null,null,null,"",null,"",null,null,0,null,null,null,"","",""]
[null,null,null,null,null,null,"",null,"",null,null,0,null,null,null,"","",""]
[null,null,null,null,null,null,"",null,"",null,null,0,null,null,null,"","",""]
[null,null,null,null,null,null,"",null,"",null,null,0,null,null,null,"","",""]
[null,null,null,null,null,null,"",null,"",null,null,0,null,null,null,"","",""]
[null,null,null,null,null,null,"",null,"",null,null,0,null,null,null,"","",""]
[null,null,null,null,null,null,"",null,"",null,null,0,null,null,null,"","",""]
[null,null,null,null,null,null,"",null,"",null,null,0,null,null,null,"","",""]
[null,null,null,null,null,null,"",null,"",null,null,0,null,null,null,"","",""]
[null,null,null,null,null,null,"",null,"",null,null,0,null,null,null,"","",""]
[null,null,null,null,null,null,"",null,"",null,null,0,null,null,null,"","",""]
[null,null,null,null,null,null,{"$f":"IF(F1474>0,VLOOKUP(F1474,client,2,0),\"\")","v":""},null,{"$f":"IF(H1474>0,VLOOKUP(H1474,product,2,0),\"\")","v":""},null,null,0,null,null,null,{"$f":"IF(L1474=0,\"\",IF(O1474=L1474,\"ok\",\"error\"))","v":""},{"$f":"IF(C1474=\"رصيد\",\"رصيد أول\",IF(C1474>0,C1474,\"\"))","v":""},""]
[null,null,null,null,null,null,"",null,"",null,null,{"$f":"J1475*K1475","v":0},null,null,null,"","",{"$f":"IF(C1475=\"\",\"\",MONTH(C1475))","v":""}]
[null,null,null,null,null,null,"",null,"",null,null,0,null,null,null,"","",""]
[null,null,null,null,null,null,"",null,"",null,null,0,null,null,null,"","",""]
[null,null,null,null,null,null,"",null,"",null,null,0,null,null,null,"","",""]
[null,null,null,null,null,null,"",null,"",null,null,0,null,null,null,"","",""]
[null,null,null,null,null,null,"",null,"",null,null,0,null,null,null,"","",""]
[null,null,null,null,null,null,"",null,"",null,null,0,null,null,null,"","",""]
[null,null,null,null,null,null,"",null,"",null,null,0,null,null,null,"","",""]
[null,null,null,null,null,null,"",null,"",null,null,0,null,null,null,"","",""]
[null,null,null,null,null,null,"",null,"",null,null,0,null,null,null,"","",""]
[null,null,null,null,null,null,"",null,"",null,null,0,null,null,null,"","",""]
[null,null,null,null,null,null,"",null,"",null,null,0,null,null,null,"","",""]
[null,null,null,null,null,null,"",null,"",null,null,0,null,null,null,"","",""]
[null,null,null,null,null,null,"",null,"",null,null,0,null,null,null,"","",""]
[null,null,null,null,null,null,"",null,"",null,null,0,null,null,null,"","",""]
[null,null,null,null,null,null,"",null,"",null,null,0,null,null,null,"","",""]
[null,null,null,null,null,null,"",null,"",null,null,0,null,null,null,"","",""]
[null,null,null,null,null,null,"",null,"",null,null,0,null,null,null,"","",""]
[null,null,null,null,null,null,"",null,"",null,null,0,null,null,null,"","",""]
[null,null,null,null,null,null,"",null,"",null,null,0,null,null,null,"","",""]
[null,null,null,null,null,null,"",null,"",null,null,0,null,null,null,"","",""]
[null,null,null,null,null,null,"",null,"",null,null,0,null,null,null,"","",""]
[null,null,null,null,null,null,"",null,"",null,null,0,null,null,null,"","",""]
[null,null,null,null,null,null,"",null,"",null,null,0,null,null,null,"","",""]
[null,null,null,null,null,null,"",null,"",null,null,0,null,null,null,"","",""]
[null,null,null,null,null,null,"",null,"",null,null,0,null,null,null,"","",""]
[null,null,null,null,null,null,"",null,"",null,null,0,null,null,null,"","",""]
[null,null,null,null,null,null,"",null,"",null,null,0,null,null,null,"","",""]
[null,null,null,null,null,null,"",null,"",null,null,0,null,null,null,"","",""]
[null,null,null,null,null,null,"",null,"",null,null,0,null,null,null,"","",""]
[null,null,null,null,null,null,"",null,"",null,null,0,null,null,null,"","",""]
[null,null,null,null,null,null,"",null,"",null,null,0,null,null,null,"","",""]
[null,null,null,null,null,null,"",null,"",null,null,0,null,null,null,"","",""]
[null,null,null,null,null,null,"",null,"",null,null,0,null,null,null,"","",""]
[null,null,null,null,null,null,"",null,"",null,null,0,null,null,null,"","",""]
[null,null,null,null,null,null,"",null,"",null,null,0,null,null,null,"","",""]
[null,null,null,null,null,null,"",null,"",null,null,0,null,null,null,"","",""]
[null,null,null,null,null,null,"",null,"",null,null,0,null,null,null,"","",""]
[null,null,null,null,null,null,"",null,"",null,null,0,null,null,null,"","",""]
[null,null,null,null,null,null,"",null,"",null,null,0,null,null,null,"","",""]
[null,null,null,null,null,null,"",null,"",null,null,0,null,null,null,"","",""]
[null,null,null,null,null,null,"",null,"",null,null,0,null,null,null,"","",""]
[null,null,null,null,null,null,"",null,"",null,null,0,null,null,null,"","",""]
[null,null,null,null,null,null,"",null,"",null,null,0,null,null,null,"","",""]
[null,null,null,null,null,null,"",null,"",null,null,0,null,null,null,"","",""]
[null,null,null,null,null,null,"",null,"",null,null,0,null,null,null,"","",""]
[null,null,null,null,null,null,"",null,"",null,null,0,null,null,null,"","",""]
[null,null,null,null,null,null,"",null,"",null,null,0,null,null,null,"","",""]
[null,null,null,null,null,null,"",null,"",null,null,0,null,null,null,"","",""]
[null,null,null,null,null,null,"",null,"",null,null,0,null,null,null,"","",""]
[null,null,null,null,null,null,"",null,"",null,null,0,null,null,null,"","",""]
[null,null,null,null,null,null,"",null,"",null,null,0,null,null,null,"","",""]
[null,null,null,null,null,null,"",null,"",null,null,0,null,null,null,"","",""]
[null,null,null,null,null,null,"",null,"",null,null,0,null,null,null,"","",""]
[null,null,null,null,null,null,"",null,"",null,null,0,null,null,null,"","",""]
[null,null,null,null,null,null,"",null,"",null,null,0,null,null,null,"","",""]
[null,null,null,null,null,null,"",null,"",null,null,0,null,null,null,"","",""]
[null,null,null,null,null,null,"",null,"",null,null,0,null,null,null,"","",""]
[null,null,null,null,null,null,"",null,"",null,null,0,null,null,null,"","",""]
[null,null,null,null,null,null,"",null,"",null,null,0,null,null,null,"","",""]
[null,null,null,null,null,null,"",null,"",null,null,0,null,null,null,"","",""]
[null,null,null,null,null,null,"",null,"",null,null,0,null,null,null,"","",""]
[null,null,null,null,null,null,"",null,"",null,null,0,null,null,null,"","",""]
[null,null,null,null,null,null,{"$f":"IF(F1538>0,VLOOKUP(F1538,client,2,0),\"\")","v":""},null,{"$f":"IF(H1538>0,VLOOKUP(H1538,product,2,0),\"\")","v":""},null,null,0,null,null,null,{"$f":"IF(L1538=0,\"\",IF(O1538=L1538,\"ok\",\"error\"))","v":""},{"$f":"IF(C1538=\"رصيد\",\"رصيد أول\",IF(C1538>0,C1538,\"\"))","v":""},""]
[null,null,null,null,null,null,"",null,"",null,null,{"$f":"J1539*K1539","v":0},null,null,null,"","",{"$f":"IF(C1539=\"\",\"\",MONTH(C1539))","v":""}]
[null,null,null,null,null,null,"",null,"",null,null,0,null,null,null,"","",""]
[null,null,null,null,null,null,"",null,"",null,null,0,null,null,null,"","",""]
[null,null,null,null,null,null,"",null,"",null,null,0,null,null,null,"","",""]
[null,null,null,null,null,null,"",null,"",null,null,0,null,null,null,"","",""]
[null,null,null,null,null,null,"",null,"",null,null,0,null,null,null,"","",""]
[null,null,null,null,null,null,"",null,"",null,null,0,null,null,null,"","",""]
[null,null,null,null,null,null,"",null,"",null,null,0,null,null,null,"","",""]
[null,null,null,null,null,null,"",null,"",null,null,0,null,null,null,"","",""]
[null,null,null,null,null,null,"",null,"",null,null,0,null,null,null,"","",""]
[null,null,null,null,null,null,"",null,"",null,null,0,null,null,null,"","",""]
[null,null,null,null,null,null,"",null,"",null,null,0,null,null,null,"","",""]
[null,null,null,null,null,null,"",null,"",null,null,0,null,null,null,"","",""]
[null,null,null,null,null,null,"",null,"",null,null,0,null,null,null,"","",""]
[null,null,null,null,null,null,"",null,"",null,null,0,null,null,null,"","",""]
[null,null,null,null,null,null,"",null,"",null,null,0,null,null,null,"","",""]
[null,null,null,null,null,null,"",null,"",null,null,0,null,null,null,"","",""]
[null,null,null,null,null,null,"",null,"",null,null,0,null,null,null,"","",""]
[null,null,null,null,null,null,"",null,"",null,null,0,null,null,null,"","",""]
[null,null,null,null,null,null,"",null,"",null,null,0,null,null,null,"","",""]
[null,null,null,null,null,null,"",null,"",null,null,0,null,null,null,"","",""]
[null,null,null,null,null,null,"",null,"",null,null,0,null,null,null,"","",""]
[null,null,null,null,null,null,"",null,"",null,null,0,null,null,null,"","",""]
[null,null,null,null,null,null,"",null,"",null,null,0,null,null,null,"","",""]
[null,null,null,null,null,null,"",null,"",null,null,0,null,null,null,"","",""]
[null,null,null,null,null,null,"",null,"",null,null,0,null,null,null,"","",""]
[null,null,null,null,null,null,"",null,"",null,null,0,null,null,null,"","",""]
[null,null,null,null,null,null,"",null,"",null,null,0,null,null,null,"","",""]
[null,null,null,null,null,null,"",null,"",null,null,0,null,null,null,"","",""]
[null,null,null,null,null,null,"",null,"",null,null,0,null,null,null,"","",""]
[null,null,null,null,null,null,"",null,"",null,null,0,null,null,null,"","",""]
[null,null,null,null,null,null,"",null,"",null,null,0,null,null,null,"","",""]
[null,null,null,null,null,null,"",null,"",null,null,0,null,null,null,"","",""]
[null,null,null,null,null,null,"",null,"",null,null,0,null,null,null,"","",""]
[null,null,null,null,null,null,"",null,"",null,null,0,null,null,null,"","",""]
[null,null,null,null,null,null,"",null,"",null,null,0,null,null,null,"","",""]
[null,null,null,null,null,null,"",null,"",null,null,0,null,null,null,"","",""]
[null,null,null,null,null,null,"",null,"",null,null,0,null,null,null,"","",""]
[null,null,null,null,null,null,"",null,"",null,null,0,null,null,null,"","",""]
[null,null,null,null,null,null,"",null,"",null,null,0,null,null,null,"","",""]
[null,null,null,null,null,null,"",null,"",null,null,0,null,null,null,"","",""]
[null,null,null,null,null,null,"",null,"",null,null,0,null,null,null,"","",""]
[null,null,null,null,null,null,"",null,"",null,null,0,null,null,null,"","",""]
[null,null,null,null,null,null,"",null,"",null,null,0,null,null,null,"","",""]
[null,null,null,null,null,null,"",null,"",null,null,0,null,null,null,"","",""]
[null,null,null,null,null,null,"",null,"",null,null,0,null,null,null,"","",""]
[null,null,null,null,null,null,"",null,"",null,null,0,null,null,null,"","",""]
[null,null,null,null,null,null,"",null,"",null,null,0,null,null,null,"","",""]
[null,null,null,null,null,null,"",null,"",null,null,0,null,null,null,"","",""]
[null,null,null,null,null,null,"",null,"",null,null,0,null,null,null,"","",""]
[null,null,null,null,null,null,"",null,"",null,null,0,null,null,null,"","",""]
[null,null,null,null,null,null,"",null,"",null,null,0,null,null,null,"","",""]
[null,null,null,null,null,null,"",null,"",null,null,0,null,null,null,"","",""]
[null,null,null,null,null,null,"",null,"",null,null,0,null,null,null,"","",""]
[null,null,null,null,null,null,"",null,"",null,null,0,null,null,null,"","",""]
[null,null,null,null,null,null,"",null,"",null,null,0,null,null,null,"","",""]
[null,null,null,null,null,null,"",null,"",null,null,0,null,null,null,"","",""]
[null,null,null,null,null,null,"",null,"",null,null,0,null,null,null,"","",""]
[null,null,null,null,null,null,"",null,"",null,null,0,null,null,null,"","",""]
[null,null,null,null,null,null,"",null,"",null,null,0,null,null,null,"","",""]
[null,null,null,null,null,null,"",null,"",null,null,0,null,null,null,"","",""]
[null,null,null,null,null,null,"",null,"",null,null,0,null,null,null,"","",""]
[null,null,null,null,null,null,"",null,"",null,null,0,null,null,null,"","",""]
[null,null,null,null,null,null,{"$f":"IF(F1602>0,VLOOKUP(F1602,client,2,0),\"\")","v":""},null,{"$f":"IF(H1602>0,VLOOKUP(H1602,product,2,0),\"\")","v":""},null,null,0,null,null,null,{"$f":"IF(L1602=0,\"\",IF(O1602=L1602,\"ok\",\"error\"))","v":""},{"$f":"IF(C1602=\"رصيد\",\"رصيد أول\",IF(C1602>0,C1602,\"\"))","v":""},""]
[null,null,null,null,null,null,"",null,"",null,null,{"$f":"J1603*K1603","v":0},null,null,null,"","",{"$f":"IF(C1603=\"\",\"\",MONTH(C1603))","v":""}]
[null,null,null,null,null,null,"",null,"",null,null,0,null,null,null,"","",""]
[null,null,null,null,null,null,"",null,"",null,null,0,null,null,null,"","",""]
[null,null,null,null,null,null,"",null,"",null,null,0,null,null,null,"","",""]
[null,null,null,null,null,null,"",null,"",null,null,0,null,null,null,"","",""]
[null,null,null,null,null,null,"",null,"",null,null,0,null,null,null,"","",""]
[null,null,null,null,null,null,"",null,"",null,null,0,null,null,null,"","",""]
[null,null,null,null,null,null,"",null,"",null,null,0,null,null,null,"","",""]
[null,null,null,null,null,null,"",null,"",null,null,0,null,null,null,"","",""]
[null,null,null,null,null,null,"",null,"",null,null,0,null,null,null,"","",""]
[null,null,null,null,null,null,"",null,"",null,null,0,null,null,null,"","",""]
[null,null,null,null,null,null,"",null,"",null,null,0,null,null,null,"","",""]
[null,null,null,null,null,null,"",null,"",null,null,0,null,null,null,"","",""]
[null,null,null,null,null,null,"",null,"",null,null,0,null,null,null,"","",""]
[null,null,null,null,null,null,"",null,"",null,null,0,null,null,null,"","",""]
[null,null,null,null,null,null,"",null,"",null,null,0,null,null,null,"","",""]
[null,null,null,null,null,null,"",null,"",null,null,0,null,null,null,"","",""]
[null,null,null,null,null,null,"",null,"",null,null,0,null,null,null,"","",""]
[null,null,null,null,null,null,"",null,"",null,null,0,null,null,null,"","",""]
[null,null,null,null,null,null,"",null,"",null,null,0,null,null,null,"","",""]
[null,null,null,null,null,null,"",null,"",null,null,0,null,null,null,"","",""]
[null,null,null,null,null,null,"",null,"",null,null,0,null,null,null,"","",""]
[null,null,null,null,null,null,"",null,"",null,null,0,null,null,null,"","",""]
[null,null,null,null,null,null,"",null,"",null,null,0,null,null,null,"","",""]
[null,null,null,null,null,null,"",null,"",null,null,0,null,null,null,"","",""]
[null,null,null,null,null,null,"",null,"",null,null,0,null,null,null,"","",""]
[null,null,null,null,null,null,"",null,"",null,null,0,null,null,null,"","",""]
[null,null,null,null,null,null,"",null,"",null,null,0,null,null,null,"","",""]
[null,null,null,null,null,null,"",null,"",null,null,0,null,null,null,"","",""]
[null,null,null,null,null,null,"",null,"",null,null,0,null,null,null,"","",""]
[null,null,null,null,null,null,"",null,"",null,null,0,null,null,null,"","",""]
[null,null,null,null,null,null,"",null,"",null,null,0,null,null,null,"","",""]
[null,null,null,null,null,null,"",null,"",null,null,0,null,null,null,"","",""]
[null,null,null,null,null,null,"",null,"",null,null,0,null,null,null,"","",""]
[null,null,null,null,null,null,"",null,"",null,null,0,null,null,null,"","",""]
[null,null,null,null,null,null,"",null,"",null,null,0,null,null,null,"","",""]
[null,null,null,null,null,null,"",null,"",null,null,0,null,null,null,"","",""]
[null,null,null,null,null,null,"",null,"",null,null,0,null,null,null,"","",""]
[null,null,null,null,null,null,"",null,"",null,null,0,null,null,null,"","",""]
[null,null,null,null,null,null,"",null,"",null,null,0,null,null,null,"","",""]
[null,null,null,null,null,null,"",null,"",null,null,0,null,null,null,"","",""]
[null,null,null,null,null,null,"",null,"",null,null,0,null,null,null,"","",""]
[null,null,null,null,null,null,"",null,"",null,null,0,null,null,null,"","",""]
[null,null,null,null,null,null,"",null,"",null,null,0,null,null,null,"","",""]
[null,null,null,null,null,null,"",null,"",null,null,0,null,null,null,"","",""]
[null,null,null,null,null,null,"",null,"",null,null,0,null,null,null,"","",""]
[null,null,null,null,null,null,"",null,"",null,null,0,null,null,null,"","",""]
[null,null,null,null,null,null,"",null,"",null,null,0,null,null,null,"","",""]
[null,null,null,null,null,null,"",null,"",null,null,0,null,null,null,"","",""]
[null,null,null,null,null,null,"",null,"",null,null,0,null,null,null,"","",""]
[null,null,null,null,null,null,"",null,"",null,null,0,null,null,null,"","",""]
[null,null,null,null,null,null,"",null,"",null,null,0,null,null,null,"","",""]
[null,null,null,null,null,null,"",null,"",null,null,0,null,null,null,"","",""]
[null,null,null,null,null,null,"",null,"",null,null,0,null,null,null,"","",""]
[null,null,null,null,null,null,"",null,"",null,null,0,null,null,null,"","",""]
[null,null,null,null,null,null,"",null,"",null,null,0,null,null,null,"","",""]
[null,null,null,null,null,null,"",null,"",null,null,0,null,null,null,"","",""]
[null,null,null,null,null,null,"",null,"",null,null,0,null,null,null,"","",""]
[null,null,null,null,null,null,"",null,"",null,null,0,null,null,null,"","",""]
[null,null,null,null,null,null,"",null,"",null,null,0,null,null,null,"","",""]
[null,null,null,null,null,null,"",null,"",null,null,0,null,null,null,"","",""]
[null,null,null,null,null,null,"",null,"",null,null,0,null,null,null,"","",""]
[null,null,null,null,null,null,"",null,"",null,null,0,null,null,null,"","",""]
[null,null,null,null,null,null,{"$f":"IF(F1666>0,VLOOKUP(F1666,client,2,0),\"\")","v":""},null,{"$f":"IF(H1666>0,VLOOKUP(H1666,product,2,0),\"\")","v":""},null,null,0,null,null,null,{"$f":"IF(L1666=0,\"\",IF(O1666=L1666,\"ok\",\"error\"))","v":""},{"$f":"IF(C1666=\"رصيد\",\"رصيد أول\",IF(C1666>0,C1666,\"\"))","v":""},""]
[null,null,null,null,null,null,"",null,"",null,null,{"$f":"J1667*K1667","v":0},null,null,null,"","",{"$f":"IF(C1667=\"\",\"\",MONTH(C1667))","v":""}]
[null,null,null,null,null,null,"",null,"",null,null,0,null,null,null,"","",""]
[null,null,null,null,null,null,"",null,"",null,null,0,null,null,null,"","",""]
[null,null,null,null,null,null,"",null,"",null,null,0,null,null,null,"","",""]
[null,null,null,null,null,null,"",null,"",null,null,0,null,null,null,"","",""]
[null,null,null,null,null,null,"",null,"",null,null,0,null,null,null,"","",""]
[null,null,null,null,null,null,"",null,"",null,null,0,null,null,null,"","",""]
[null,null,null,null,null,null,"",null,"",null,null,0,null,null,null,"","",""]
[null,null,null,null,null,null,"",null,"",null,null,0,null,null,null,"","",""]
[null,null,null,null,null,null,"",null,"",null,null,0,null,null,null,"","",""]
[null,null,null,null,null,null,"",null,"",null,null,0,null,null,null,"","",""]
[null,null,null,null,null,null,"",null,"",null,null,0,null,null,null,"","",""]
[null,null,null,null,null,null,"",null,"",null,null,0,null,null,null,"","",""]
[null,null,null,null,null,null,"",null,"",null,null,0,null,null,null,"","",""]
[null,null,null,null,null,null,"",null,"",null,null,0,null,null,null,"","",""]
[null,null,null,null,null,null,"",null,"",null,null,0,null,null,null,"","",""]
[null,null,null,null,null,null,"",null,"",null,null,0,null,null,null,"","",""]
[null,null,null,null,null,null,"",null,"",null,null,0,null,null,null,"","",""]
[null,null,null,null,null,null,"",null,"",null,null,0,null,null,null,"","",""]
[null,null,null,null,null,null,"",null,"",null,null,0,null,null,null,"","",""]
[null,null,null,null,null,null,"",null,"",null,null,0,null,null,null,"","",""]
[null,null,null,null,null,null,"",null,"",null,null,0,null,null,null,"","",""]
[null,null,null,null,null,null,"",null,"",null,null,0,null,null,null,"","",""]
[null,null,null,null,null,null,"",null,"",null,null,0,null,null,null,"","",""]
[null,null,null,null,null,null,"",null,"",null,null,0,null,null,null,"","",""]
[null,null,null,null,null,null,"",null,"",null,null,0,null,null,null,"","",""]
[null,null,null,null,null,null,"",null,"",null,null,0,null,null,null,"","",""]
[null,null,null,null,null,null,"",null,"",null,null,0,null,null,null,"","",""]
[null,null,null,null,null,null,"",null,"",null,null,0,null,null,null,"","",""]
[null,null,null,null,null,null,"",null,"",null,null,0,null,null,null,"","",""]
[null,null,null,null,null,null,"",null,"",null,null,0,null,null,null,"","",""]
[null,null,null,null,null,null,"",null,"",null,null,0,null,null,null,"","",""]
[null,null,null,null,null,null,"",null,"",null,null,0,null,null,null,"","",""]
[null,null,null,null,null,null,"",null,"",null,null,0,null,null,null,"","",""]
[null,null,null,null,null,null,"",null,"",null,null,0,null,null,null,"","",""]
[null,null,null,null,null,null,"",null,"",null,null,0,null,null,null,"","",""]
[null,null,null,null,null,null,"",null,"",null,null,0,null,null,null,"","",""]
[null,null,null,null,null,null,"",null,"",null,null,0,null,null,null,"","",""]
[null,null,null,null,null,null,"",null,"",null,null,0,null,null,null,"","",""]
[null,null,null,null,null,null,"",null,"",null,null,0,null,null,null,"","",""]
[null,null,null,null,null,null,"",null,"",null,null,0,null,null,null,"","",""]
[null,null,null,null,null,null,"",null,"",null,null,0,null,null,null,"","",""]
[null,null,null,null,null,null,"",null,"",null,null,0,null,null,null,"","",""]
[null,null,null,null,null,null,"",null,"",null,null,0,null,null,null,"","",""]
[null,null,null,null,null,null,"",null,"",null,null,0,null,null,null,"","",""]
[null,null,null,null,null,null,"",null,"",null,null,0,null,null,null,"","",""]
[null,null,null,null,null,null,"",null,"",null,null,0,null,null,null,"","",""]
[null,null,null,null,null,null,"",null,"",null,null,0,null,null,null,"","",""]
[null,null,null,null,null,null,"",null,"",null,null,0,null,null,null,"","",""]
[null,null,null,null,null,null,"",null,"",null,null,0,null,null,null,"","",""]
[null,null,null,null,null,null,"",null,"",null,null,0,null,null,null,"","",""]
[null,null,null,null,null,null,"",null,"",null,null,0,null,null,null,"","",""]
[null,null,null,null,null,null,"",null,"",null,null,0,null,null,null,"","",""]
[null,null,null,null,null,null,"",null,"",null,null,0,null,null,null,"","",""]
[null,null,null,null,null,null,"",null,"",null,null,0,null,null,null,"","",""]
[null,null,null,null,null,null,"",null,"",null,null,0,null,null,null,"","",""]
[null,null,null,null,null,null,"",null,"",null,null,0,null,null,null,"","",""]
[null,null,null,null,null,null,"",null,"",null,null,0,null,null,null,"","",""]
[null,null,null,null,null,null,"",null,"",null,null,0,null,null,null,"","",""]
[null,null,null,null,null,null,"",null,"",null,null,0,null,null,null,"","",""]
[null,null,null,null,null,null,"",null,"",null,null,0,null,null,null,"","",""]
[null,null,null,null,null,null,"",null,"",null,null,0,null,null,null,"","",""]
[null,null,null,null,null,null,"",null,"",null,null,0,null,null,null,"","",""]
[null,null,null,null,null,null,{"$f":"IF(F1730>0,VLOOKUP(F1730,client,2,0),\"\")","v":""},null,{"$f":"IF(H1730>0,VLOOKUP(H1730,product,2,0),\"\")","v":""},null,null,0,null,null,null,{"$f":"IF(L1730=0,\"\",IF(O1730=L1730,\"ok\",\"error\"))","v":""},{"$f":"IF(C1730=\"رصيد\",\"رصيد أول\",IF(C1730>0,C1730,\"\"))","v":""},""]
[null,null,null,null,null,null,"",null,"",null,null,{"$f":"J1731*K1731","v":0},null,null,null,"","",{"$f":"IF(C1731=\"\",\"\",MONTH(C1731))","v":""}]
[null,null,null,null,null,null,"",null,"",null,null,0,null,null,null,"","",""]
[null,null,null,null,null,null,"",null,"",null,null,0,null,null,null,"","",""]
[null,null,null,null,null,null,"",null,"",null,null,0,null,null,null,"","",""]
[null,null,null,null,null,null,"",null,"",null,null,0,null,null,null,"","",""]
[null,null,null,null,null,null,"",null,"",null,null,0,null,null,null,"","",""]
[null,null,null,null,null,null,"",null,"",null,null,0,null,null,null,"","",""]
[null,null,null,null,null,null,"",null,"",null,null,0,null,null,null,"","",""]
[null,null,null,null,null,null,"",null,"",null,null,0,null,null,null,"","",""]
[null,null,null,null,null,null,"",null,"",null,null,0,null,null,null,"","",""]
[null,null,null,null,null,null,"",null,"",null,null,0,null,null,null,"","",""]
[null,null,null,null,null,null,"",null,"",null,null,0,null,null,null,"","",""]
[null,null,null,null,null,null,"",null,"",null,null,0,null,null,null,"","",""]
[null,null,null,null,null,null,"",null,"",null,null,0,null,null,null,"","",""]
[null,null,null,null,null,null,"",null,"",null,null,0,null,null,null,"","",""]
[null,null,null,null,null,null,"",null,"",null,null,0,null,null,null,"","",""]
[null,null,null,null,null,null,"",null,"",null,null,0,null,null,null,"","",""]
[null,null,null,null,null,null,"",null,"",null,null,0,null,null,null,"","",""]
[null,null,null,null,null,null,"",null,"",null,null,0,null,null,null,"","",""]
[null,null,null,null,null,null,"",null,"",null,null,0,null,null,null,"","",""]
[null,null,null,null,null,null,"",null,"",null,null,0,null,null,null,"","",""]
[null,null,null,null,null,null,"",null,"",null,null,0,null,null,null,"","",""]
[null,null,null,null,null,null,"",null,"",null,null,0,null,null,null,"","",""]
[null,null,null,null,null,null,"",null,"",null,null,0,null,null,null,"","",""]
[null,null,null,null,null,null,"",null,"",null,null,0,null,null,null,"","",""]
[null,null,null,null,null,null,"",null,"",null,null,0,null,null,null,"","",""]
[null,null,null,null,null,null,"",null,"",null,null,0,null,null,null,"","",""]
[null,null,null,null,null,null,"",null,"",null,null,0,null,null,null,"","",""]
[null,null,null,null,null,null,"",null,"",null,null,0,null,null,null,"","",""]
[null,null,null,null,null,null,"",null,"",null,null,0,null,null,null,"","",""]
[null,null,null,null,null,null,"",null,"",null,null,0,null,null,null,"","",""]
[null,null,null,null,null,null,"",null,"",null,null,0,null,null,null,"","",""]
[null,null,null,null,null,null,"",null,"",null,null,0,null,null,null,"","",""]
[null,null,null,null,null,null,"",null,"",null,null,0,null,null,null,"","",""]
[null,null,null,null,null,null,"",null,"",null,null,0,null,null,null,"","",""]
[null,null,null,null,null,null,"",null,"",null,null,0,null,null,null,"","",""]
[null,null,null,null,null,null,"",null,"",null,null,0,null,null,null,"","",""]
[null,null,null,null,null,null,"",null,"",null,null,0,null,null,null,"","",""]
[null,null,null,null,null,null,"",null,"",null,null,0,null,null,null,"","",""]
[null,null,null,null,null,null,"",null,"",null,null,0,null,null,null,"","",""]
[null,null,null,null,null,null,"",null,"",null,null,0,null,null,null,"","",""]
[null,null,null,null,null,null,"",null,"",null,null,0,null,null,null,"","",""]
[null,null,null,null,null,null,"",null,"",null,null,0,null,null,null,"","",""]
[null,null,null,null,null,null,"",null,"",null,null,0,null,null,null,"","",""]
[null,null,null,null,null,null,"",null,"",null,null,0,null,null,null,"","",""]
[null,null,null,null,null,null,"",null,"",null,null,0,null,null,null,"","",""]
[null,null,null,null,null,null,"",null,"",null,null,0,null,null,null,"","",""]
[null,null,null,null,null,null,"",null,"",null,null,0,null,null,null,"","",""]
[null,null,null,null,null,null,"",null,"",null,null,0,null,null,null,"","",""]
[null,null,null,null,null,null,"",null,"",null,null,0,null,null,null,"","",""]
[null,null,null,null,null,null,"",null,"",null,null,0,null,null,null,"","",""]
[null,null,null,null,null,null,"",null,"",null,null,0,null,null,null,"","",""]
[null,null,null,null,null,null,"",null,"",null,null,0,null,null,null,"","",""]
[null,null,null,null,null,null,"",null,"",null,null,0,null,null,null,"","",""]
[null,null,null,null,null,null,"",null,"",null,null,0,null,null,null,"","",""]
[null,null,null,null,null,null,"",null,"",null,null,0,null,null,null,"","",""]
[null,null,null,null,null,null,"",null,"",null,null,0,null,null,null,"","",""]
[null,null,null,null,null,null,"",null,"",null,null,0,null,null,null,"","",""]
[null,null,null,null,null,null,"",null,"",null,null,0,null,null,null,"","",""]
[null,null,null,null,null,null,"",null,"",null,null,0,null,null,null,"","",""]
[null,null,null,null,null,null,"",null,"",null,null,0,null,null,null,"","",""]
[null,null,null,null,null,null,"",null,"",null,null,0,null,null,null,"","",""]
[null,null,null,null,null,null,"",null,"",null,null,0,null,null,null,"","",""]
[null,null,null,null,null,null,{"$f":"IF(F1794>0,VLOOKUP(F1794,client,2,0),\"\")","v":""},null,{"$f":"IF(H1794>0,VLOOKUP(H1794,product,2,0),\"\")","v":""},null,null,0,null,null,null,{"$f":"IF(L1794=0,\"\",IF(O1794=L1794,\"ok\",\"error\"))","v":""},{"$f":"IF(C1794=\"رصيد\",\"رصيد أول\",IF(C1794>0,C1794,\"\"))","v":""},""]
[null,null,null,null,null,null,"",null,"",null,null,{"$f":"J1795*K1795","v":0},null,null,null,"","",{"$f":"IF(C1795=\"\",\"\",MONTH(C1795))","v":""}]
[null,null,null,null,null,null,"",null,"",null,null,0,null,null,null,"","",""]
[null,null,null,null,null,null,"",null,"",null,null,0,null,null,null,"","",""]
[null,null,null,null,null,null,"",null,"",null,null,0,null,null,null,"","",""]
[null,null,null,null,null,null,"",null,"",null,null,0,null,null,null,"","",""]
[null,null,null,null,null,null,"",null,"",null,null,0,null,null,null,"","",""]
[null,null,null,null,null,null,"",null,"",null,null,0,null,null,null,"","",""]
[null,null,null,null,null,null,"",null,"",null,null,0,null,null,null,"","",""]
[null,null,null,null,null,null,"",null,"",null,null,0,null,null,null,"","",""]
[null,null,null,null,null,null,"",null,"",null,null,0,null,null,null,"","",""]
[null,null,null,null,null,null,"",null,"",null,null,0,null,null,null,"","",""]
[null,null,null,null,null,null,"",null,"",null,null,0,null,null,null,"","",""]
[null,null,null,null,null,null,"",null,"",null,null,0,null,null,null,"","",""]
[null,null,null,null,null,null,"",null,"",null,null,0,null,null,null,"","",""]
[null,null,null,null,null,null,"",null,"",null,null,0,null,null,null,"","",""]
[null,null,null,null,null,null,"",null,"",null,null,0,null,null,null,"","",""]
[null,null,null,null,null,null,"",null,"",null,null,0,null,null,null,"","",""]
[null,null,null,null,null,null,"",null,"",null,null,0,null,null,null,"","",""]
[null,null,null,null,null,null,"",null,"",null,null,0,null,null,null,"","",""]
[null,null,null,null,null,null,"",null,"",null,null,0,null,null,null,"","",""]
[null,null,null,null,null,null,"",null,"",null,null,0,null,null,null,"","",""]
[null,null,null,null,null,null,"",null,"",null,null,0,null,null,null,"","",""]
[null,null,null,null,null,null,"",null,"",null,null,0,null,null,null,"","",""]
[null,null,null,null,null,null,"",null,"",null,null,0,null,null,null,"","",""]
[null,null,null,null,null,null,"",null,"",null,null,0,null,null,null,"","",""]
[null,null,null,null,null,null,"",null,"",null,null,0,null,null,null,"","",""]
[null,null,null,null,null,null,"",null,"",null,null,0,null,null,null,"","",""]
[null,null,null,null,null,null,"",null,"",null,null,0,null,null,null,"","",""]
[null,null,null,null,null,null,"",null,"",null,null,0,null,null,null,"","",""]
[null,null,null,null,null,null,"",null,"",null,null,0,null,null,null,"","",""]
[null,null,null,null,null,null,"",null,"",null,null,0,null,null,null,"","",""]
[null,null,null,null,null,null,"",null,"",null,null,0,null,null,null,"","",""]
[null,null,null,null,null,null,"",null,"",null,null,0,null,null,null,"","",""]
[null,null,null,null,null,null,"",null,"",null,null,0,null,null,null,"","",""]
[null,null,null,null,null,null,"",null,"",null,null,0,null,null,null,"","",""]
[null,null,null,null,null,null,"",null,"",null,null,0,null,null,null,"","",""]
[null,null,null,null,null,null,"",null,"",null,null,0,null,null,null,"","",""]
[null,null,null,null,null,null,"",null,"",null,null,0,null,null,null,"","",""]
[null,null,null,null,null,null,"",null,"",null,null,0,null,null,null,"","",""]
[null,null,null,null,null,null,"",null,"",null,null,0,null,null,null,"","",""]
[null,null,null,null,null,null,"",null,"",null,null,0,null,null,null,"","",""]
[null,null,null,null,null,null,"",null,"",null,null,0,null,null,null,"","",""]
[null,null,null,null,null,null,"",null,"",null,null,0,null,null,null,"","",""]
[null,null,null,null,null,null,"",null,"",null,null,0,null,null,null,"","",""]
[null,null,null,null,null,null,"",null,"",null,null,0,null,null,null,"","",""]
[null,null,null,null,null,null,"",null,"",null,null,0,null,null,null,"","",""]
[null,null,null,null,null,null,"",null,"",null,null,0,null,null,null,"","",""]
[null,null,null,null,null,null,"",null,"",null,null,0,null,null,null,"","",""]
[null,null,null,null,null,null,"",null,"",null,null,0,null,null,null,"","",""]
[null,null,null,null,null,null,"",null,"",null,null,0,null,null,null,"","",""]
[null,null,null,null,null,null,"",null,"",null,null,0,null,null,null,"","",""]
[null,null,null,null,null,null,"",null,"",null,null,0,null,null,null,"","",""]
[null,null,null,null,null,null,"",null,"",null,null,0,null,null,null,"","",""]
[null,null,null,null,null,null,"",null,"",null,null,0,null,null,null,"","",""]
[null,null,null,null,null,null,"",null,"",null,null,0,null,null,null,"","",""]
[null,null,null,null,null,null,"",null,"",null,null,0,null,null,null,"","",""]
[null,null,null,null,null,null,"",null,"",null,null,0,null,null,null,"","",""]
[null,null,null,null,null,null,"",null,"",null,null,0,null,null,null,"","",""]
[null,null,null,null,null,null,"",null,"",null,null,0,null,null,null,"","",""]
[null,null,null,null,null,null,"",null,"",null,null,0,null,null,null,"","",""]
[null,null,null,null,null,null,"",null,"",null,null,0,null,null,null,"","",""]
[null,null,null,null,null,null,"",null,"",null,null,0,null,null,null,"","",""]
[null,null,null,null,null,null,"",null,"",null,null,0,null,null,null,"","",""]
[null,null,null,null,null,null,{"$f":"IF(F1858>0,VLOOKUP(F1858,client,2,0),\"\")","v":""},null,{"$f":"IF(H1858>0,VLOOKUP(H1858,product,2,0),\"\")","v":""},null,null,0,null,null,null,{"$f":"IF(L1858=0,\"\",IF(O1858=L1858,\"ok\",\"error\"))","v":""},{"$f":"IF(C1858=\"رصيد\",\"رصيد أول\",IF(C1858>0,C1858,\"\"))","v":""},""]
[null,null,null,null,null,null,"",null,"",null,null,{"$f":"J1859*K1859","v":0},null,null,null,"","",{"$f":"IF(C1859=\"\",\"\",MONTH(C1859))","v":""}]
[null,null,null,null,null,null,"",null,"",null,null,0,null,null,null,"","",""]
[null,null,null,null,null,null,"",null,"",null,null,0,null,null,null,"","",""]
[null,null,null,null,null,null,"",null,"",null,null,0,null,null,null,"","",""]
[null,null,null,null,null,null,"",null,"",null,null,0,null,null,null,"","",""]
[null,null,null,null,null,null,"",null,"",null,null,0,null,null,null,"","",""]
[null,null,null,null,null,null,"",null,"",null,null,0,null,null,null,"","",""]
[null,null,null,null,null,null,"",null,"",null,null,0,null,null,null,"","",""]
[null,null,null,null,null,null,"",null,"",null,null,0,null,null,null,"","",""]
[null,null,null,null,null,null,"",null,"",null,null,0,null,null,null,"","",""]
[null,null,null,null,null,null,"",null,"",null,null,0,null,null,null,"","",""]
[null,null,null,null,null,null,"",null,"",null,null,0,null,null,null,"","",""]
[null,null,null,null,null,null,"",null,"",null,null,0,null,null,null,"","",""]
[null,null,null,null,null,null,"",null,"",null,null,0,null,null,null,"","",""]
[null,null,null,null,null,null,"",null,"",null,null,0,null,null,null,"","",""]
[null,null,null,null,null,null,"",null,"",null,null,0,null,null,null,"","",""]
[null,null,null,null,null,null,"",null,"",null,null,0,null,null,null,"","",""]
[null,null,null,null,null,null,"",null,"",null,null,0,null,null,null,"","",""]
[null,null,null,null,null,null,"",null,"",null,null,0,null,null,null,"","",""]
[null,null,null,null,null,null,"",null,"",null,null,0,null,null,null,"","",""]
[null,null,null,null,null,null,"",null,"",null,null,0,null,null,null,"","",""]
[null,null,null,null,null,null,"",null,"",null,null,0,null,null,null,"","",""]
[null,null,null,null,null,null,"",null,"",null,null,0,null,null,null,"","",""]
[null,null,null,null,null,null,"",null,"",null,null,0,null,null,null,"","",""]
[null,null,null,null,null,null,"",null,"",null,null,0,null,null,null,"","",""]
[null,null,null,null,null,null,"",null,"",null,null,0,null,null,null,"","",""]
[null,null,null,null,null,null,"",null,"",null,null,0,null,null,null,"","",""]
[null,null,null,null,null,null,"",null,"",null,null,0,null,null,null,"","",""]
[null,null,null,null,null,null,"",null,"",null,null,0,null,null,null,"","",""]
[null,null,null,null,null,null,"",null,"",null,null,0,null,null,null,"","",""]
[null,null,null,null,null,null,"",null,"",null,null,0,null,null,null,"","",""]
[null,null,null,null,null,null,"",null,"",null,null,0,null,null,null,"","",""]
[null,null,null,null,null,null,"",null,"",null,null,0,null,null,null,"","",""]
[null,null,null,null,null,null,"",null,"",null,null,0,null,null,null,"","",""]
[null,null,null,null,null,null,"",null,"",null,null,0,null,null,null,"","",""]
[null,null,null,null,null,null,"",null,"",null,null,0,null,null,null,"","",""]
[null,null,null,null,null,null,"",null,"",null,null,0,null,null,null,"","",""]
[null,null,null,null,null,null,"",null,"",null,null,0,null,null,null,"","",""]
[null,null,null,null,null,null,"",null,"",null,null,0,null,null,null,"","",""]
[null,null,null,null,null,null,"",null,"",null,null,0,null,null,null,"","",""]
[null,null,null,null,null,null,"",null,"",null,null,0,null,null,null,"","",""]
[null,null,null,null,null,null,"",null,"",null,null,0,null,null,null,"","",""]
[null,null,null,null,null,null,"",null,"",null,null,0,null,null,null,"","",""]
[null,null,null,null,null,null,"",null,"",null,null,0,null,null,null,"","",""]
[null,null,null,null,null,null,"",null,"",null,null,0,null,null,null,"","",""]
[null,null,null,null,null,null,"",null,"",null,null,0,null,null,null,"","",""]
[null,null,null,null,null,null,"",null,"",null,null,0,null,null,null,"","",""]
[null,null,null,null,null,null,"",null,"",null,null,0,null,null,null,"","",""]
[null,null,null,null,null,null,"",null,"",null,null,0,null,null,null,"","",""]
[null,null,null,null,null,null,"",null,"",null,null,0,null,null,null,"","",""]
[null,null,null,null,null,null,"",null,"",null,null,0,null,null,null,"","",""]
[null,null,null,null,null,null,"",null,"",null,null,0,null,null,null,"","",""]
[null,null,null,null,null,null,"",null,"",null,null,0,null,null,null,"","",""]
[null,null,null,null,null,null,"",null,"",null,null,0,null,null,null,"","",""]
[null,null,null,null,null,null,"",null,"",null,null,0,null,null,null,"","",""]
[null,null,null,null,null,null,"",null,"",null,null,0,null,null,null,"","",""]
[null,null,null,null,null,null,"",null,"",null,null,0,null,null,null,"","",""]
[null,null,null,null,null,null,"",null,"",null,null,0,null,null,null,"","",""]
[null,null,null,null,null,null,"",null,"",null,null,0,null,null,null,"","",""]
[null,null,null,null,null,null,"",null,"",null,null,0,null,null,null,"","",""]
[null,null,null,null,null,null,"",null,"",null,null,0,null,null,null,"","",""]
[null,null,null,null,null,null,"",null,"",null,null,0,null,null,null,"","",""]
[null,null,null,null,null,null,"",null,"",null,null,0,null,null,null,"","",""]
[null,null,null,null,null,null,{"$f":"IF(F1922>0,VLOOKUP(F1922,client,2,0),\"\")","v":""},null,{"$f":"IF(H1922>0,VLOOKUP(H1922,product,2,0),\"\")","v":""},null,null,0,null,null,null,{"$f":"IF(L1922=0,\"\",IF(O1922=L1922,\"ok\",\"error\"))","v":""},{"$f":"IF(C1922=\"رصيد\",\"رصيد أول\",IF(C1922>0,C1922,\"\"))","v":""},""]
[null,null,null,null,null,null,"",null,"",null,null,{"$f":"J1923*K1923","v":0},null,null,null,"","",{"$f":"IF(C1923=\"\",\"\",MONTH(C1923))","v":""}]
[null,null,null,null,null,null,"",null,"",null,null,0,null,null,null,"","",""]
[null,null,null,null,null,null,"",null,"",null,null,0,null,null,null,"","",""]
[null,null,null,null,null,null,"",null,"",null,null,0,null,null,null,"","",""]
[null,null,null,null,null,null,"",null,"",null,null,0,null,null,null,"","",""]
[null,null,null,null,null,null,"",null,"",null,null,0,null,null,null,"","",""]
[null,null,null,null,null,null,"",null,"",null,null,0,null,null,null,"","",""]
[null,null,null,null,null,null,"",null,"",null,null,0,null,null,null,"","",""]
[null,null,null,null,null,null,"",null,"",null,null,0,null,null,null,"","",""]
[null,null,null,null,null,null,"",null,"",null,null,0,null,null,null,"","",""]
[null,null,null,null,null,null,"",null,"",null,null,0,null,null,null,"","",""]
[null,null,null,null,null,null,"",null,"",null,null,0,null,null,null,"","",""]
[null,null,null,null,null,null,"",null,"",null,null,0,null,null,null,"","",""]
[null,null,null,null,null,null,"",null,"",null,null,0,null,null,null,"","",""]
[null,null,null,null,null,null,"",null,"",null,null,0,null,null,null,"","",""]
[null,null,null,null,null,null,"",null,"",null,null,0,null,null,null,"","",""]
[null,null,null,null,null,null,"",null,"",null,null,0,null,null,null,"","",""]
[null,null,null,null,null,null,"",null,"",null,null,0,null,null,null,"","",""]
[null,null,null,null,null,null,"",null,"",null,null,0,null,null,null,"","",""]
[null,null,null,null,null,null,"",null,"",null,null,0,null,null,null,"","",""]
[null,null,null,null,null,null,"",null,"",null,null,0,null,null,null,"","",""]
[null,null,null,null,null,null,"",null,"",null,null,0,null,null,null,"","",""]
[null,null,null,null,null,null,"",null,"",null,null,0,null,null,null,"","",""]
[null,null,null,null,null,null,"",null,"",null,null,0,null,null,null,"","",""]
[null,null,null,null,null,null,"",null,"",null,null,0,null,null,null,"","",""]
[null,null,null,null,null,null,"",null,"",null,null,0,null,null,null,"","",""]
[null,null,null,null,null,null,"",null,"",null,null,0,null,null,null,"","",""]
[null,null,null,null,null,null,"",null,"",null,null,0,null,null,null,"","",""]
[null,null,null,null,null,null,"",null,"",null,null,0,null,null,null,"","",""]
[null,null,null,null,null,null,"",null,"",null,null,0,null,null,null,"","",""]
[null,null,null,null,null,null,"",null,"",null,null,0,null,null,null,"","",""]
[null,null,null,null,null,null,"",null,"",null,null,0,null,null,null,"","",""]
[null,null,null,null,null,null,"",null,"",null,null,0,null,null,null,"","",""]
[null,null,null,null,null,null,"",null,"",null,null,0,null,null,null,"","",""]
[null,null,null,null,null,null,"",null,"",null,null,0,null,null,null,"","",""]
[null,null,null,null,null,null,"",null,"",null,null,0,null,null,null,"","",""]
[null,null,null,null,null,null,"",null,"",null,null,0,null,null,null,"","",""]
[null,null,null,null,null,null,"",null,"",null,null,0,null,null,null,"","",""]
[null,null,null,null,null,null,"",null,"",null,null,0,null,null,null,"","",""]
[null,null,null,null,null,null,"",null,"",null,null,0,null,null,null,"","",""]
[null,null,null,null,null,null,"",null,"",null,null,0,null,null,null,"","",""]
[null,null,null,null,null,null,"",null,"",null,null,0,null,null,null,"","",""]
[null,null,null,null,null,null,"",null,"",null,null,0,null,null,null,"","",""]
[null,null,null,null,null,null,"",null,"",null,null,0,null,null,null,"","",""]
[null,null,null,null,null,null,"",null,"",null,null,0,null,null,null,"","",""]
[null,null,null,null,null,null,"",null,"",null,null,0,null,null,null,"","",""]
[null,null,null,null,null,null,"",null,"",null,null,0,null,null,null,"","",""]
[null,null,null,null,null,null,"",null,"",null,null,0,null,null,null,"","",""]
[null,null,null,null,null,null,"",null,"",null,null,0,null,null,null,"","",""]
[null,null,null,null,null,null,"",null,"",null,null,0,null,null,null,"","",""]
[null,null,null,null,null,null,"",null,"",null,null,0,null,null,null,"","",""]
[null,null,null,null,null,null,"",null,"",null,null,0,null,null,null,"","",""]
[null,null,null,null,null,null,"",null,"",null,null,0,null,null,null,"","",""]
[null,null,null,null,null,null,"",null,"",null,null,0,null,null,null,"","",""]
[null,null,null,null,null,null,"",null,"",null,null,0,null,null,null,"","",""]
[null,null,null,null,null,null,"",null,"",null,null,0,null,null,null,"","",""]
[null,null,null,null,null,null,"",null,"",null,null,0,null,null,null,"","",""]
[null,null,null,null,null,null,"",null,"",null,null,0,null,null,null,"","",""]
[null,null,null,null,null,null,"",null,"",null,null,0,null,null,null,"","",""]
[null,null,null,null,null,null,"",null,"",null,null,0,null,null,null,"","",""]
[null,null,null,null,null,null,"",null,"",null,null,0,null,null,null,"","",""]
[null,null,null,null,null,null,"",null,"",null,null,0,null,null,null,"","",""]
[null,null,null,null,null,null,"",null,"",null,null,0,null,null,null,"","",""]
[null,null,null,null,null,null,{"$f":"IF(F1986>0,VLOOKUP(F1986,client,2,0),\"\")","v":""},null,{"$f":"IF(H1986>0,VLOOKUP(H1986,product,2,0),\"\")","v":""},null,null,0,null,null,null,{"$f":"IF(L1986=0,\"\",IF(O1986=L1986,\"ok\",\"error\"))","v":""},{"$f":"IF(C1986=\"رصيد\",\"رصيد أول\",IF(C1986>0,C1986,\"\"))","v":""},""]
[null,null,null,null,null,null,"",null,"",null,null,{"$f":"J1987*K1987","v":0},null,null,null,"","",{"$f":"IF(C1987=\"\",\"\",MONTH(C1987))","v":""}]
[null,null,null,null,null,null,"",null,"",null,null,0,null,null,null,"","",""]
[null,null,null,null,null,null,"",null,"",null,null,0,null,null,null,"","",""]
[null,null,null,null,null,null,"",null,"",null,null,0,null,null,null,"","",""]
[null,null,null,null,null,null,"",null,"",null,null,0,null,null,null,"","",""]
[null,null,null,null,null,null,"",null,"",null,null,0,null,null,null,"","",""]
[null,null,null,null,null,null,"",null,"",null,null,0,null,null,null,"","",""]
[null,null,null,null,null,null,"",null,"",null,null,0,null,null,null,"","",""]
[null,null,null,null,null,null,"",null,"",null,null,0,null,null,null,"","",""]
[null,null,null,null,null,null,"",null,"",null,null,0,null,null,null,"","",""]
[null,null,null,null,null,null,"",null,"",null,null,0,null,null,null,"","",""]
[null,null,null,null,null,null,"",null,"",null,null,0,null,null,null,"","",""]
[null,null,null,null,null,null,"",null,"",null,null,0,null,null,null,"","",""]
[null,null,null,null,null,null,"",null,"",null,null,0,null,null,null,"","",""]
[null,null,null,null,null,null,"",null,"",null,null,0,null,null,null,"","",""]
[null,null,null,null,null,null,"",null,"",null,null,0,null,null,null,"","",""]
[null,null,null,null,null,null,"",null,"",null,null,0,null,null,null,"","",""]
[null,null,null,null,null,null,"",null,"",null,null,0,null,null,null,"","",""]
[null,null,null,null,null,null,"",null,"",null,null,0,null,null,null,"","",""]
[null,null,null,null,null,null,"",null,"",null,null,0,null,null,null,"","",""]
[null,null,null,null,null,null,"",null,"",null,null,0,null,null,null,"","",""]
[null,null,null,null,null,null,"",null,"",null,null,0,null,null,null,"","",""]
[null,null,null,null,null,null,"",null,"",null,null,0,null,null,null,"","",""]
[null,null,null,null,null,null,"",null,"",null,null,0,null,null,null,"","",""]
[null,null,null,null,null,null,"",null,"",null,null,0,null,null,null,"","",""]
[null,null,null,null,null,null,"",null,"",null,null,0,null,null,null,"","",""]
[null,null,null,null,null,null,"",null,"",null,null,0,null,null,null,"","",""]
[null,null,null,null,null,null,"",null,"",null,null,0,null,null,null,"","",""]
[null,null,null,null,null,null,"",null,"",null,null,0,null,null,null,"","",""]
[null,null,null,null,null,null,"",null,"",null,null,0,null,null,null,"","",""]
[null,null,null,null,null,null,"",null,"",null,null,0,null,null,null,"","",""]
[null,null,null,null,null,null,"",null,"",null,null,0,null,null,null,"","",""]
[null,null,null,null,null,null,"",null,"",null,null,0,null,null,null,"","",""]
[null,null,null,null,null,null,"",null,"",null,null,0,null,null,null,"","",""]
[null,null,null,null,null,null,"",null,"",null,null,0,null,null,null,"","",""]
[null,null,null,null,null,null,"",null,"",null,null,0,null,null,null,"","",""]
[null,null,null,null,null,null,"",null,"",null,null,0,null,null,null,"","",""]
[null,null,null,null,null,null,"",null,"",null,null,0,null,null,null,"","",""]
[null,null,null,null,null,null,"",null,"",null,null,0,null,null,null,"","",""]
[null,null,null,null,null,null,"",null,"",null,null,0,null,null,null,"","",""]
[null,null,null,null,null,null,"",null,"",null,null,0,null,null,null,"","",""]
[null,null,null,null,null,null,"",null,"",null,null,0,null,null,null,"","",""]
[null,null,null,null,null,null,"",null,"",null,null,0,null,null,null,"","",""]
[null,null,null,null,null,null,"",null,"",null,null,0,null,null,null,"","",""]
[null,null,null,null,null,null,"",null,"",null,null,0,null,null,null,"","",""]
[null,null,null,null,null,null,"",null,"",null,null,0,null,null,null,"","",""]
[null,null,null,null,null,null,"",null,"",null,null,0,null,null,null,"","",""]
[null,null,null,null,null,null,"",null,"",null,null,0,null,null,null,"","",""]
[null,null,null,null,null,null,"",null,"",null,null,0,null,null,null,"","",""]
[null,null,null,null,null,null,"",null,"",null,null,0,null,null,null,"","",""]
[null,null,null,null,null,null,"",null,"",null,null,0,null,null,null,"","",""]
[null,null,null,null,null,null,"",null,"",null,null,0,null,null,null,"","",""]
[null,null,null,null,null,null,"",null,"",null,null,0,null,null,null,"","",""]
[null,null,null,null,null,null,"",null,"",null,null,0,null,null,null,"","",""]
[null,null,null,null,null,null,"",null,"",null,null,0,null,null,null,"","",""]
[null,null,null,null,null,null,"",null,"",null,null,0,null,null,null,"","",""]
[null,null,null,null,null,null,"",null,"",null,null,0,null,null,null,"","",""]
[null,null,null,null,null,null,"",null,"",null,null,0,null,null,null,"","",""]
[null,null,null,null,null,null,"",null,"",null,null,0,null,null,null,"","",""]
[null,null,null,null,null,null,"",null,"",null,null,0,null,null,null,"","",""]
[null,null,null,null,null,null,"",null,"",null,null,0,null,null,null,"","",""]
[null,null,null,null,null,null,"",null,"",null,null,0,null,null,null,"","",""]
[null,null,null,null,null,null,"",null,"",null,null,0,null,null,null,"","",""]
[null,null,null,null,null,null,{"$f":"IF(F2050>0,VLOOKUP(F2050,client,2,0),\"\")","v":""},null,{"$f":"IF(H2050>0,VLOOKUP(H2050,product,2,0),\"\")","v":""},null,null,0,null,null,null,{"$f":"IF(L2050=0,\"\",IF(O2050=L2050,\"ok\",\"error\"))","v":""},{"$f":"IF(C2050=\"رصيد\",\"رصيد أول\",IF(C2050>0,C2050,\"\"))","v":""},""]
[null,null,null,null,null,null,"",null,"",null,null,{"$f":"J2051*K2051","v":0},null,null,null,"","",{"$f":"IF(C2051=\"\",\"\",MONTH(C2051))","v":""}]
[null,null,null,null,null,null,"",null,"",null,null,0,null,null,null,"","",""]
[null,null,null,null,null,null,"",null,"",null,null,0,null,null,null,"","",""]
[null,null,null,null,null,null,"",null,"",null,null,0,null,null,null,"","",""]
[null,null,null,null,null,null,"",null,"",null,null,0,null,null,null,"","",""]
[null,null,null,null,null,null,"",null,"",null,null,0,null,null,null,"","",""]
[null,null,null,null,null,null,"",null,"",null,null,0,null,null,null,"","",""]
[null,null,null,null,null,null,"",null,"",null,null,0,null,null,null,"","",""]
[null,null,null,null,null,null,"",null,"",null,null,0,null,null,null,"","",""]
[null,null,null,null,null,null,"",null,"",null,null,0,null,null,null,"","",""]
[null,null,null,null,null,null,"",null,"",null,null,0,null,null,null,"","",""]
[null,null,null,null,null,null,"",null,"",null,null,0,null,null,null,"","",""]
[null,null,null,null,null,null,"",null,"",null,null,0,null,null,null,"","",""]
[null,null,null,null,null,null,"",null,"",null,null,0,null,null,null,"","",""]
[null,null,null,null,null,null,"",null,"",null,null,0,null,null,null,"","",""]
[null,null,null,null,null,null,"",null,"",null,null,0,null,null,null,"","",""]
[null,null,null,null,null,null,"",null,"",null,null,0,null,null,null,"","",""]
[null,null,null,null,null,null,"",null,"",null,null,0,null,null,null,"","",""]
[null,null,null,null,null,null,"",null,"",null,null,0,null,null,null,"","",""]
[null,null,null,null,null,null,"",null,"",null,null,0,null,null,null,"","",""]
[null,null,null,null,null,null,"",null,"",null,null,0,null,null,null,"","",""]
[null,null,null,null,null,null,"",null,"",null,null,0,null,null,null,"","",""]
[null,null,null,null,null,null,"",null,"",null,null,0,null,null,null,"","",""]
[null,null,null,null,null,null,"",null,"",null,null,0,null,null,null,"","",""]
[null,null,null,null,null,null,"",null,"",null,null,0,null,null,null,"","",""]
[null,null,null,null,null,null,"",null,"",null,null,0,null,null,null,"","",""]
[null,null,null,null,null,null,"",null,"",null,null,0,null,null,null,"","",""]
[null,null,null,null,null,null,"",null,"",null,null,0,null,null,null,"","",""]
[null,null,null,null,null,null,"",null,"",null,null,0,null,null,null,"","",""]
[null,null,null,null,null,null,"",null,"",null,null,0,null,null,null,"","",""]
[null,null,null,null,null,null,"",null,"",null,null,0,null,null,null,"","",""]
[null,null,null,null,null,null,"",null,"",null,null,0,null,null,null,"","",""]
[null,null,null,null,null,null,"",null,"",null,null,0,null,null,null,"","",""]
[null,null,null,null,null,null,"",null,"",null,null,0,null,null,null,"","",""]
[null,null,null,null,null,null,"",null,"",null,null,0,null,null,null,"","",""]
[null,null,null,null,null,null,"",null,"",null,null,0,null,null,null,"","",""]
[null,null,null,null,null,null,"",null,"",null,null,0,null,null,null,"","",""]
[null,null,null,null,null,null,"",null,"",null,null,0,null,null,null,"","",""]
[null,null,null,null,null,null,"",null,"",null,null,0,null,null,null,"","",""]
[null,null,null,null,null,null,"",null,"",null,null,0,null,null,null,"","",""]
[null,null,null,null,null,null,"",null,"",null,null,0,null,null,null,"","",""]
[null,null,null,null,null,null,"",null,"",null,null,0,null,null,null,"","",""]
[null,null,null,null,null,null,"",null,"",null,null,0,null,null,null,"","",""]
[null,null,null,null,null,null,"",null,"",null,null,0,null,null,null,"","",""]
[null,null,null,null,null,null,"",null,"",null,null,0,null,null,null,"","",""]
[null,null,null,null,null,null,"",null,"",null,null,0,null,null,null,"","",""]
[null,null,null,null,null,null,"",null,"",null,null,0,null,null,null,"","",""]
[null,null,null,null,null,null,"",null,"",null,null,0,null,null,null,"","",""]
[null,null,null,null,null,null,"",null,"",null,null,0,null,null,null,"","",""]
[null,null,null,null,null,null,"",null,"",null,null,0,null,null,null,"","",""]
[null,null,null,null,null,null,"",null,"",null,null,0,null,null,null,"","",""]
[null,null,null,null,null,null,"",null,"",null,null,0,null,null,null,"","",""]
[null,null,null,null,null,null,"",null,"",null,null,0,null,null,null,"","",""]
[null,null,null,null,null,null,"",null,"",null,null,0,null,null,null,"","",""]
[null,null,null,null,null,null,"",null,"",null,null,0,null,null,null,"","",""]
[null,null,null,null,null,null,"",null,"",null,null,0,null,null,null,"","",""]
[null,null,null,null,null,null,"",null,"",null,null,0,null,null,null,"","",""]
[null,null,null,null,null,null,"",null,"",null,null,0,null,null,null,"","",""]
[null,null,null,null,null,null,"",null,"",null,null,0,null,null,null,"","",""]
[null,null,null,null,null,null,"",null,"",null,null,0,null,null,null,"","",""]
[null,null,null,null,null,null,"",null,"",null,null,0,null,null,null,"","",""]
[null,null,null,null,null,null,"",null,"",null,null,0,null,null,null,"","",""]
[null,null,null,null,null,null,"",null,"",null,null,0,null,null,null,"","",""]
[null,null,null,null,null,null,{"$f":"IF(F2114>0,VLOOKUP(F2114,client,2,0),\"\")","v":""},null,{"$f":"IF(H2114>0,VLOOKUP(H2114,product,2,0),\"\")","v":""},null,null,0,null,null,null,{"$f":"IF(L2114=0,\"\",IF(O2114=L2114,\"ok\",\"error\"))","v":""},{"$f":"IF(C2114=\"رصيد\",\"رصيد أول\",IF(C2114>0,C2114,\"\"))","v":""},""]
[null,null,null,null,null,null,"",null,"",null,null,{"$f":"J2115*K2115","v":0},null,null,null,"","",{"$f":"IF(C2115=\"\",\"\",MONTH(C2115))","v":""}]
[null,null,null,null,null,null,"",null,"",null,null,0,null,null,null,"","",""]
[null,null,null,null,null,null,"",null,"",null,null,0,null,null,null,"","",""]
[null,null,null,null,null,null,"",null,"",null,null,0,null,null,null,"","",""]
[null,null,null,null,null,null,"",null,"",null,null,0,null,null,null,"","",""]
[null,null,null,null,null,null,"",null,"",null,null,0,null,null,null,"","",""]
[null,null,null,null,null,null,"",null,"",null,null,0,null,null,null,"","",""]
[null,null,null,null,null,null,"",null,"",null,null,0,null,null,null,"","",""]
[null,null,null,null,null,null,"",null,"",null,null,0,null,null,null,"","",""]
[null,null,null,null,null,null,"",null,"",null,null,0,null,null,null,"","",""]
[null,null,null,null,null,null,"",null,"",null,null,0,null,null,null,"","",""]
[null,null,null,null,null,null,"",null,"",null,null,0,null,null,null,"","",""]
[null,null,null,null,null,null,"",null,"",null,null,0,null,null,null,"","",""]
[null,null,null,null,null,null,"",null,"",null,null,0,null,null,null,"","",""]
[null,null,null,null,null,null,"",null,"",null,null,0,null,null,null,"","",""]
[null,null,null,null,null,null,"",null,"",null,null,0,null,null,null,"","",""]
[null,null,null,null,null,null,"",null,"",null,null,0,null,null,null,"","",""]
[null,null,null,null,null,null,"",null,"",null,null,0,null,null,null,"","",""]
[null,null,null,null,null,null,"",null,"",null,null,0,null,null,null,"","",""]
[null,null,null,null,null,null,"",null,"",null,null,0,null,null,null,"","",""]
[null,null,null,null,null,null,"",null,"",null,null,0,null,null,null,"","",""]
[null,null,null,null,null,null,"",null,"",null,null,0,null,null,null,"","",""]
[null,null,null,null,null,null,"",null,"",null,null,0,null,null,null,"","",""]
[null,null,null,null,null,null,"",null,"",null,null,0,null,null,null,"","",""]
[null,null,null,null,null,null,"",null,"",null,null,0,null,null,null,"","",""]
[null,null,null,null,null,null,"",null,"",null,null,0,null,null,null,"","",""]
[null,null,null,null,null,null,"",null,"",null,null,0,null,null,null,"","",""]
[null,null,null,null,null,null,"",null,"",null,null,0,null,null,null,"","",""]
[null,null,null,null,null,null,"",null,"",null,null,0,null,null,null,"","",""]
[null,null,null,null,null,null,"",null,"",null,null,0,null,null,null,"","",""]
[null,null,null,null,null,null,"",null,"",null,null,0,null,null,null,"","",""]
[null,null,null,null,null,null,"",null,"",null,null,0,null,null,null,"","",""]
[null,null,null,null,null,null,"",null,"",null,null,0,null,null,null,"","",""]
[null,null,null,null,null,null,"",null,"",null,null,0,null,null,null,"","",""]
[null,null,null,null,null,null,"",null,"",null,null,0,null,null,null,"","",""]
[null,null,null,null,null,null,"",null,"",null,null,0,null,null,null,"","",""]
[null,null,null,null,null,null,"",null,"",null,null,0,null,null,null,"","",""]
[null,null,null,null,null,null,"",null,"",null,null,0,null,null,null,"","",""]
[null,null,null,null,null,null,"",null,"",null,null,0,null,null,null,"","",""]
[null,null,null,null,null,null,"",null,"",null,null,0,null,null,null,"","",""]
[null,null,null,null,null,null,"",null,"",null,null,0,null,null,null,"","",""]
[null,null,null,null,null,null,"",null,"",null,null,0,null,null,null,"","",""]
[null,null,null,null,null,null,"",null,"",null,null,0,null,null,null,"","",""]
[null,null,null,null,null,null,"",null,"",null,null,0,null,null,null,"","",""]
[null,null,null,null,null,null,"",null,"",null,null,0,null,null,null,"","",""]
[null,null,null,null,null,null,"",null,"",null,null,0,null,null,null,"","",""]
[null,null,null,null,null,null,"",null,"",null,null,0,null,null,null,"","",""]
[null,null,null,null,null,null,"",null,"",null,null,0,null,null,null,"","",""]
[null,null,null,null,null,null,"",null,"",null,null,0,null,null,null,"","",""]
[null,null,null,null,null,null,"",null,"",null,null,0,null,null,null,"","",""]
[null,null,null,null,null,null,"",null,"",null,null,0,null,null,null,"","",""]
[null,null,null,null,null,null,"",null,"",null,null,0,null,null,null,"","",""]
[null,null,null,null,null,null,"",null,"",null,null,0,null,null,null,"","",""]
[null,null,null,null,null,null,"",null,"",null,null,0,null,null,null,"","",""]
[null,null,null,null,null,null,"",null,"",null,null,0,null,null,null,"","",""]
[null,null,null,null,null,null,"",null,"",null,null,0,null,null,null,"","",""]
[null,null,null,null,null,null,"",null,"",null,null,0,null,null,null,"","",""]
[null,null,null,null,null,null,"",null,"",null,null,0,null,null,null,"","",""]
[null,null,null,null,null,null,"",null,"",null,null,0,null,null,null,"","",""]
[null,null,null,null,null,null,"",null,"",null,null,0,null,null,null,"","",""]
[null,null,null,null,null,null,"",null,"",null,null,0,null,null,null,"","",""]
[null,null,null,null,null,null,"",null,"",null,null,0,null,null,null,"","",""]
[null,null,null,null,null,null,"",null,"",null,null,0,null,null,null,"","",""]
[null,null,null,null,null,null,{"$f":"IF(F2178>0,VLOOKUP(F2178,client,2,0),\"\")","v":""},null,{"$f":"IF(H2178>0,VLOOKUP(H2178,product,2,0),\"\")","v":""},null,null,0,null,null,null,{"$f":"IF(L2178=0,\"\",IF(O2178=L2178,\"ok\",\"error\"))","v":""},{"$f":"IF(C2178=\"رصيد\",\"رصيد أول\",IF(C2178>0,C2178,\"\"))","v":""},""]
[null,null,null,null,null,null,"",null,"",null,null,{"$f":"J2179*K2179","v":0},null,null,null,"","",{"$f":"IF(C2179=\"\",\"\",MONTH(C2179))","v":""}]
[null,null,null,null,null,null,"",null,"",null,null,0,null,null,null,"","",""]
[null,null,null,null,null,null,"",null,"",null,null,0,null,null,null,"","",""]
[null,null,null,null,null,null,"",null,"",null,null,0,null,null,null,"","",""]
[null,null,null,null,null,null,"",null,"",null,null,0,null,null,null,"","",""]
[null,null,null,null,null,null,"",null,"",null,null,0,null,null,null,"","",""]
[null,null,null,null,null,null,"",null,"",null,null,0,null,null,null,"","",""]
[null,null,null,null,null,null,"",null,"",null,null,0,null,null,null,"","",""]
[null,null,null,null,null,null,"",null,"",null,null,0,null,null,null,"","",""]
[null,null,null,null,null,null,"",null,"",null,null,0,null,null,null,"","",""]
[null,null,null,null,null,null,"",null,"",null,null,0,null,null,null,"","",""]
[null,null,null,null,null,null,"",null,"",null,null,0,null,null,null,"","",""]
[null,null,null,null,null,null,"",null,"",null,null,0,null,null,null,"","",""]
[null,null,null,null,null,null,"",null,"",null,null,0,null,null,null,"","",""]
[null,null,null,null,null,null,"",null,"",null,null,0,null,null,null,"","",""]
[null,null,null,null,null,null,"",null,"",null,null,0,null,null,null,"","",""]
[null,null,null,null,null,null,"",null,"",null,null,0,null,null,null,"","",""]
[null,null,null,null,null,null,"",null,"",null,null,0,null,null,null,"","",""]
[null,null,null,null,null,null,"",null,"",null,null,0,null,null,null,"","",""]
[null,null,null,null,null,null,"",null,"",null,null,0,null,null,null,"","",""]
[null,null,null,null,null,null,"",null,"",null,null,0,null,null,null,"","",""]
[null,null,null,null,null,null,"",null,"",null,null,0,null,null,null,"","",""]
[null,null,null,null,null,null,"",null,"",null,null,0,null,null,null,"","",""]
[null,null,null,null,null,null,"",null,"",null,null,0,null,null,null,"","",""]
[null,null,null,null,null,null,"",null,"",null,null,0,null,null,null,"","",""]
[null,null,null,null,null,null,"",null,"",null,null,0,null,null,null,"","",""]
[null,null,null,null,null,null,"",null,"",null,null,0,null,null,null,"","",""]
[null,null,null,null,null,null,"",null,"",null,null,0,null,null,null,"","",""]
[null,null,null,null,null,null,"",null,"",null,null,0,null,null,null,"","",""]
[null,null,null,null,null,null,"",null,"",null,null,0,null,null,null,"","",""]
[null,null,null,null,null,null,"",null,"",null,null,0,null,null,null,"","",""]
[null,null,null,null,null,null,"",null,"",null,null,0,null,null,null,"","",""]
[null,null,null,null,null,null,"",null,"",null,null,0,null,null,null,"","",""]
[null,null,null,null,null,null,"",null,"",null,null,0,null,null,null,"","",""]
[null,null,null,null,null,null,"",null,"",null,null,0,null,null,null,"","",""]
[null,null,null,null,null,null,"",null,"",null,null,0,null,null,null,"","",""]
[null,null,null,null,null,null,"",null,"",null,null,0,null,null,null,"","",""]
[null,null,null,null,null,null,"",null,"",null,null,0,null,null,null,"","",""]
[null,null,null,null,null,null,"",null,"",null,null,0,null,null,null,"","",""]
[null,null,null,null,null,null,"",null,"",null,null,0,null,null,null,"","",""]
[null,null,null,null,null,null,"",null,"",null,null,0,null,null,null,"","",""]
[null,null,null,null,null,null,"",null,"",null,null,0,null,null,null,"","",""]
[null,null,null,null,null,null,"",null,"",null,null,0,null,null,null,"","",""]
[null,null,null,null,null,null,"",null,"",null,null,0,null,null,null,"","",""]
[null,null,null,null,null,null,"",null,"",null,null,0,null,null,null,"","",""]
[null,null,null,null,null,null,"",null,"",null,null,0,null,null,null,"","",""]
[null,null,null,null,null,null,"",null,"",null,null,0,null,null,null,"","",""]
[null,null,null,null,null,null,"",null,"",null,null,0,null,null,null,"","",""]
[null,null,null,null,null,null,"",null,"",null,null,0,null,null,null,"","",""]
[null,null,null,null,null,null,"",null,"",null,null,0,null,null,null,"","",""]
[null,null,null,null,null,null,"",null,"",null,null,0,null,null,null,"","",""]
[null,null,null,null,null,null,"",null,"",null,null,0,null,null,null,"","",""]
[null,null,null,null,null,null,"",null,"",null,null,0,null,null,null,"","",""]
[null,null,null,null,null,null,"",null,"",null,null,0,null,null,null,"","",""]
[null,null,null,null,null,null,"",null,"",null,null,0,null,null,null,"","",""]
[null,null,null,null,null,null,"",null,"",null,null,0,null,null,null,"","",""]
[null,null,null,null,null,null,"",null,"",null,null,0,null,null,null,"","",""]
[null,null,null,null,null,null,"",null,"",null,null,0,null,null,null,"","",""]
[null,null,null,null,null,null,"",null,"",null,null,0,null,null,null,"","",""]
[null,null,null,null,null,null,"",null,"",null,null,0,null,null,null,"","",""]
[null,null,null,null,null,null,"",null,"",null,null,0,null,null,null,"","",""]
[null,null,null,null,null,null,"",null,"",null,null,0,null,null,null,"","",""]
[null,null,null,null,null,null,"",null,"",null,null,0,null,null,null,"","",""]
[null,null,null,null,null,null,{"$f":"IF(F2242>0,VLOOKUP(F2242,client,2,0),\"\")","v":""},null,{"$f":"IF(H2242>0,VLOOKUP(H2242,product,2,0),\"\")","v":""},null,null,0,null,null,null,{"$f":"IF(L2242=0,\"\",IF(O2242=L2242,\"ok\",\"error\"))","v":""},{"$f":"IF(C2242=\"رصيد\",\"رصيد أول\",IF(C2242>0,C2242,\"\"))","v":""},""]
[null,null,null,null,null,null,"",null,"",null,null,{"$f":"J2243*K2243","v":0},null,null,null,"","",{"$f":"IF(C2243=\"\",\"\",MONTH(C2243))","v":""}]
[null,null,null,null,null,null,"",null,"",null,null,0,null,null,null,"","",""]
[null,null,null,null,null,null,"",null,"",null,null,0,null,null,null,"","",""]
[null,null,null,null,null,null,"",null,"",null,null,0,null,null,null,"","",""]
[null,null,null,null,null,null,"",null,"",null,null,0,null,null,null,"","",""]
[null,null,null,null,null,null,"",null,"",null,null,0,null,null,null,"","",""]
[null,null,null,null,null,null,"",null,"",null,null,0,null,null,null,"","",""]
[null,null,null,null,null,null,"",null,"",null,null,0,null,null,null,"","",""]
[null,null,null,null,null,null,"",null,"",null,null,0,null,null,null,"","",""]
[null,null,null,null,null,null,"",null,"",null,null,0,null,null,null,"","",""]
[null,null,null,null,null,null,"",null,"",null,null,0,null,null,null,"","",""]
[null,null,null,null,null,null,"",null,"",null,null,0,null,null,null,"","",""]
[null,null,null,null,null,null,"",null,"",null,null,0,null,null,null,"","",""]
[null,null,null,null,null,null,"",null,"",null,null,0,null,null,null,"","",""]
[null,null,null,null,null,null,"",null,"",null,null,0,null,null,null,"","",""]
[null,null,null,null,null,null,"",null,"",null,null,0,null,null,null,"","",""]
[null,null,null,null,null,null,"",null,"",null,null,0,null,null,null,"","",""]
[null,null,null,null,null,null,"",null,"",null,null,0,null,null,null,"","",""]
[null,null,null,null,null,null,"",null,"",null,null,0,null,null,null,"","",""]
[null,null,null,null,null,null,"",null,"",null,null,0,null,null,null,"","",""]
[null,null,null,null,null,null,"",null,"",null,null,0,null,null,null,"","",""]
[null,null,null,null,null,null,"",null,"",null,null,0,null,null,null,"","",""]
[null,null,null,null,null,null,"",null,"",null,null,0,null,null,null,"","",""]
[null,null,null,null,null,null,"",null,"",null,null,0,null,null,null,"","",""]
[null,null,null,null,null,null,"",null,"",null,null,0,null,null,null,"","",""]
[null,null,null,null,null,null,"",null,"",null,null,0,null,null,null,"","",""]
[null,null,null,null,null,null,"",null,"",null,null,0,null,null,null,"","",""]
[null,null,null,null,null,null,"",null,"",null,null,0,null,null,null,"","",""]
[null,null,null,null,null,null,"",null,"",null,null,0,null,null,null,"","",""]
[null,null,null,null,null,null,"",null,"",null,null,0,null,null,null,"","",""]
[null,null,null,null,null,null,"",null,"",null,null,0,null,null,null,"","",""]
[null,null,null,null,null,null,"",null,"",null,null,0,null,null,null,"","",""]
[null,null,null,null,null,null,"",null,"",null,null,0,null,null,null,"","",""]
[null,null,null,null,null,null,"",null,"",null,null,0,null,null,null,"","",""]
[null,null,null,null,null,null,"",null,"",null,null,0,null,null,null,"","",""]
[null,null,null,null,null,null,"",null,"",null,null,0,null,null,null,"","",""]
[null,null,null,null,null,null,"",null,"",null,null,0,null,null,null,"","",""]
[null,null,null,null,null,null,"",null,"",null,null,0,null,null,null,"","",""]
[null,null,null,null,null,null,"",null,"",null,null,0,null,null,null,"","",""]
[null,null,null,null,null,null,"",null,"",null,null,0,null,null,null,"","",""]
[null,null,null,null,null,null,"",null,"",null,null,0,null,null,null,"","",""]
[null,null,null,null,null,null,"",null,"",null,null,0,null,null,null,"","",""]
[null,null,null,null,null,null,"",null,"",null,null,0,null,null,null,"","",""]
[null,null,null,null,null,null,"",null,"",null,null,0,null,null,null,"","",""]
[null,null,null,null,null,null,"",null,"",null,null,0,null,null,null,"","",""]
[null,null,null,null,null,null,"",null,"",null,null,0,null,null,null,"","",""]
[null,null,null,null,null,null,"",null,"",null,null,0,null,null,null,"","",""]
[null,null,null,null,null,null,"",null,"",null,null,0,null,null,null,"","",""]
[null,null,null,null,null,null,"",null,"",null,null,0,null,null,null,"","",""]
[null,null,null,null,null,null,"",null,"",null,null,0,null,null,null,"","",""]
[null,null,null,null,null,null,"",null,"",null,null,0,null,null,null,"","",""]
[null,null,null,null,null,null,"",null,"",null,null,0,null,null,null,"","",""]
[null,null,null,null,null,null,"",null,"",null,null,0,null,null,null,"","",""]
[null,null,null,null,null,null,"",null,"",null,null,0,null,null,null,"","",""]
[null,null,null,null,null,null,"",null,"",null,null,0,null,null,null,"","",""]
[null,null,null,null,null,null,"",null,"",null,null,0,null,null,null,"","",""]
[null,null,null,null,null,null,"",null,"",null,null,0,null,null,null,"","",""]
[null,null,null,null,null,null,"",null,"",null,null,0,null,null,null,"","",""]
[null,null,null,null,null,null,"",null,"",null,null,0,null,null,null,"","",""]
[null,null,null,null,null,null,"",null,"",null,null,0,null,null,null,"","",""]
[null,null,null,null,null,null,"",null,"",null,null,0,null,null,null,"","",""]
[null,null,null,null,null,null,"",null,"",null,null,0,null,null,null,"","",""]
[null,null,null,null,null,null,"",null,"",null,null,0,null,null,null,"","",""]
[null,null,null,null,null,null,{"$f":"IF(F2306>0,VLOOKUP(F2306,client,2,0),\"\")","v":""},null,{"$f":"IF(H2306>0,VLOOKUP(H2306,product,2,0),\"\")","v":""},null,null,0,null,null,null,{"$f":"IF(L2306=0,\"\",IF(O2306=L2306,\"ok\",\"error\"))","v":""},{"$f":"IF(C2306=\"رصيد\",\"رصيد أول\",IF(C2306>0,C2306,\"\"))","v":""},""]
[null,null,null,null,null,null,"",null,"",null,null,{"$f":"J2307*K2307","v":0},null,null,null,"","",{"$f":"IF(C2307=\"\",\"\",MONTH(C2307))","v":""}]
[null,null,null,null,null,null,"",null,"",null,null,0,null,null,null,"","",""]
[null,null,null,null,null,null,"",null,"",null,null,0,null,null,null,"","",""]
[null,null,null,null,null,null,"",null,"",null,null,0,null,null,null,"","",""]
[null,null,null,null,null,null,"",null,"",null,null,0,null,null,null,"","",""]
[null,null,null,null,null,null,"",null,"",null,null,0,null,null,null,"","",""]
[null,null,null,null,null,null,"",null,"",null,null,0,null,null,null,"","",""]
[null,null,null,null,null,null,"",null,"",null,null,0,null,null,null,"","",""]
[null,null,null,null,null,null,"",null,"",null,null,0,null,null,null,"","",""]
[null,null,null,null,null,null,"",null,"",null,null,0,null,null,null,"","",""]
[null,null,null,null,null,null,"",null,"",null,null,0,null,null,null,"","",""]
[null,null,null,null,null,null,"",null,"",null,null,0,null,null,null,"","",""]
[null,null,null,null,null,null,"",null,"",null,null,0,null,null,null,"","",""]
[null,null,null,null,null,null,"",null,"",null,null,0,null,null,null,"","",""]
[null,null,null,null,null,null,"",null,"",null,null,0,null,null,null,"","",""]
[null,null,null,null,null,null,"",null,"",null,null,0,null,null,null,"","",""]
[null,null,null,null,null,null,"",null,"",null,null,0,null,null,null,"","",""]
[null,null,null,null,null,null,"",null,"",null,null,0,null,null,null,"","",""]
[null,null,null,null,null,null,"",null,"",null,null,0,null,null,null,"","",""]
[null,null,null,null,null,null,"",null,"",null,null,0,null,null,null,"","",""]
[null,null,null,null,null,null,"",null,"",null,null,0,null,null,null,"","",""]
[null,null,null,null,null,null,"",null,"",null,null,0,null,null,null,"","",""]
[null,null,null,null,null,null,"",null,"",null,null,0,null,null,null,"","",""]
[null,null,null,null,null,null,"",null,"",null,null,0,null,null,null,"","",""]
[null,null,null,null,null,null,"",null,"",null,null,0,null,null,null,"","",""]
[null,null,null,null,null,null,"",null,"",null,null,0,null,null,null,"","",""]
[null,null,null,null,null,null,"",null,"",null,null,0,null,null,null,"","",""]
[null,null,null,null,null,null,"",null,"",null,null,0,null,null,null,"","",""]
[null,null,null,null,null,null,"",null,"",null,null,0,null,null,null,"","",""]
[null,null,null,null,null,null,"",null,"",null,null,0,null,null,null,"","",""]
[null,null,null,null,null,null,"",null,"",null,null,0,null,null,null,"","",""]
[null,null,null,null,null,null,"",null,"",null,null,0,null,null,null,"","",""]
[null,null,null,null,null,null,"",null,"",null,null,0,null,null,null,"","",""]
[null,null,null,null,null,null,"",null,"",null,null,0,null,null,null,"","",""]
[null,null,null,null,null,null,"",null,"",null,null,0,null,null,null,"","",""]
[null,null,null,null,null,null,"",null,"",null,null,0,null,null,null,"","",""]
[null,null,null,null,null,null,"",null,"",null,null,0,null,null,null,"","",""]
[null,null,null,null,null,null,"",null,"",null,null,0,null,null,null,"","",""]
[null,null,null,null,null,null,"",null,"",null,null,0,null,null,null,"","",""]
[null,null,null,null,null,null,"",null,"",null,null,0,null,null,null,"","",""]
[null,null,null,null,null,null,"",null,"",null,null,0,null,null,null,"","",""]
[null,null,null,null,null,null,"",null,"",null,null,0,null,null,null,"","",""]
[null,null,null,null,null,null,"",null,"",null,null,0,null,null,null,"","",""]
[null,null,null,null,null,null,"",null,"",null,null,0,null,null,null,"","",""]
[null,null,null,null,null,null,"",null,"",null,null,0,null,null,null,"","",""]
[null,null,null,null,null,null,"",null,"",null,null,0,null,null,null,"","",""]
[null,null,null,null,null,null,"",null,"",null,null,0,null,null,null,"","",""]
[null,null,null,null,null,null,"",null,"",null,null,0,null,null,null,"","",""]
[null,null,null,null,null,null,"",null,"",null,null,0,null,null,null,"","",""]
[null,null,null,null,null,null,"",null,"",null,null,0,null,null,null,"","",""]
[null,null,null,null,null,null,"",null,"",null,null,0,null,null,null,"","",""]
[null,null,null,null,null,null,"",null,"",null,null,0,null,null,null,"","",""]
[null,null,null,null,null,null,"",null,"",null,null,0,null,null,null,"","",""]
[null,null,null,null,null,null,"",null,"",null,null,0,null,null,null,"","",""]
[null,null,null,null,null,null,"",null,"",null,null,0,null,null,null,"","",""]
[null,null,null,null,null,null,"",null,"",null,null,0,null,null,null,"","",""]
[null,null,null,null,null,null,"",null,"",null,null,0,null,null,null,"","",""]
[null,null,null,null,null,null,"",null,"",null,null,0,null,null,null,"","",""]
[null,null,null,null,null,null,"",null,"",null,null,0,null,null,null,"","",""]
[null,null,null,null,null,null,"",null,"",null,null,0,null,null,null,"","",""]
[null,null,null,null,null,null,"",null,"",null,null,0,null,null,null,"","",""]
[null,null,null,null,null,null,"",null,"",null,null,0,null,null,null,"","",""]
[null,null,null,null,null,null,"",null,"",null,null,0,null,null,null,"","",""]
[null,null,null,null,null,null,{"$f":"IF(F2370>0,VLOOKUP(F2370,client,2,0),\"\")","v":""},null,{"$f":"IF(H2370>0,VLOOKUP(H2370,product,2,0),\"\")","v":""},null,null,0,null,null,null,{"$f":"IF(L2370=0,\"\",IF(O2370=L2370,\"ok\",\"error\"))","v":""},{"$f":"IF(C2370=\"رصيد\",\"رصيد أول\",IF(C2370>0,C2370,\"\"))","v":""},""]
[null,null,null,null,null,null,"",null,"",null,null,{"$f":"J2371*K2371","v":0},null,null,null,"","",{"$f":"IF(C2371=\"\",\"\",MONTH(C2371))","v":""}]
[null,null,null,null,null,null,"",null,"",null,null,0,null,null,null,"","",""]
[null,null,null,null,null,null,"",null,"",null,null,0,null,null,null,"","",""]
[null,null,null,null,null,null,"",null,"",null,null,0,null,null,null,"","",""]
[null,null,null,null,null,null,"",null,"",null,null,0,null,null,null,"","",""]
[null,null,null,null,null,null,"",null,"",null,null,0,null,null,null,"","",""]
[null,null,null,null,null,null,"",null,"",null,null,0,null,null,null,"","",""]
[null,null,null,null,null,null,"",null,"",null,null,0,null,null,null,"","",""]
[null,null,null,null,null,null,"",null,"",null,null,0,null,null,null,"","",""]
[null,null,null,null,null,null,"",null,"",null,null,0,null,null,null,"","",""]
[null,null,null,null,null,null,"",null,"",null,null,0,null,null,null,"","",""]
[null,null,null,null,null,null,"",null,"",null,null,0,null,null,null,"","",""]
[null,null,null,null,null,null,"",null,"",null,null,0,null,null,null,"","",""]
[null,null,null,null,null,null,"",null,"",null,null,0,null,null,null,"","",""]
[null,null,null,null,null,null,"",null,"",null,null,0,null,null,null,"","",""]
[null,null,null,null,null,null,"",null,"",null,null,0,null,null,null,"","",""]
[null,null,null,null,null,null,"",null,"",null,null,0,null,null,null,"","",""]
[null,null,null,null,null,null,"",null,"",null,null,0,null,null,null,"","",""]
[null,null,null,null,null,null,"",null,"",null,null,0,null,null,null,"","",""]
[null,null,null,null,null,null,"",null,"",null,null,0,null,null,null,"","",""]
[null,null,null,null,null,null,"",null,"",null,null,0,null,null,null,"","",""]
[null,null,null,null,null,null,"",null,"",null,null,0,null,null,null,"","",""]
[null,null,null,null,null,null,"",null,"",null,null,0,null,null,null,"","",""]
[null,null,null,null,null,null,"",null,"",null,null,0,null,null,null,"","",""]
[null,null,null,null,null,null,"",null,"",null,null,0,null,null,null,"","",""]
[null,null,null,null,null,null,"",null,"",null,null,0,null,null,null,"","",""]
[null,null,null,null,null,null,"",null,"",null,null,0,null,null,null,"","",""]
[null,null,null,null,null,null,"",null,"",null,null,0,null,null,null,"","",""]
[null,null,null,null,null,null,"",null,"",null,null,0,null,null,null,"","",""]
[null,null,null,null,null,null,"",null,"",null,null,0,null,null,null,"","",""]
[null,null,null,null,null,null,"",null,"",null,null,0,null,null,null,"","",""]
[null,null,null,null,null,null,"",null,"",null,null,0,null,null,null,"","",""]
[null,null,null,null,null,null,"",null,"",null,null,0,null,null,null,"","",""]
[null,null,null,null,null,null,"",null,"",null,null,0,null,null,null,"","",""]
[null,null,null,null,null,null,"",null,"",null,null,0,null,null,null,"","",""]
[null,null,null,null,null,null,"",null,"",null,null,0,null,null,null,"","",""]
[null,null,null,null,null,null,"",null,"",null,null,0,null,null,null,"","",""]
[null,null,null,null,null,null,"",null,"",null,null,0,null,null,null,"","",""]
[null,null,null,null,null,null,"",null,"",null,null,0,null,null,null,"","",""]
[null,null,null,null,null,null,"",null,"",null,null,0,null,null,null,"","",""]
[null,null,null,null,null,null,"",null,"",null,null,0,null,null,null,"","",""]
[null,null,null,null,null,null,"",null,"",null,null,0,null,null,null,"","",""]
[null,null,null,null,null,null,"",null,"",null,null,0,null,null,null,"","",""]
[null,null,null,null,null,null,"",null,"",null,null,0,null,null,null,"","",""]
[null,null,null,null,null,null,"",null,"",null,null,0,null,null,null,"","",""]
[null,null,null,null,null,null,"",null,"",null,null,0,null,null,null,"","",""]
[null,null,null,null,null,null,"",null,"",null,null,0,null,null,null,"","",""]
[null,null,null,null,null,null,"",null,"",null,null,0,null,null,null,"","",""]
[null,null,null,null,null,null,"",null,"",null,null,0,null,null,null,"","",""]
[null,null,null,null,null,null,"",null,"",null,null,0,null,null,null,"","",""]
[null,null,null,null,null,null,"",null,"",null,null,0,null,null,null,"","",""]
[null,null,null,null,null,null,"",null,"",null,null,0,null,null,null,"","",""]
[null,null,null,null,null,null,"",null,"",null,null,0,null,null,null,"","",""]
[null,null,null,null,null,null,"",null,"",null,null,0,null,null,null,"","",""]
[null,null,null,null,null,null,"",null,"",null,null,0,null,null,null,"","",""]
[null,null,null,null,null,null,"",null,"",null,null,0,null,null,null,"","",""]
[null,null,null,null,null,null,"",null,"",null,null,0,null,null,null,"","",""]
[null,null,null,null,null,null,"",null,"",null,null,0,null,null,null,"","",""]
[null,null,null,null,null,null,"",null,"",null,null,0,null,null,null,"","",""]
[null,null,null,null,null,null,"",null,"",null,null,0,null,null,null,"","",""]
[null,null,null,null,null,null,"",null,"",null,null,0,null,null,null,"","",""]
[null,null,null,null,null,null,"",null,"",null,null,0,null,null,null,"","",""]
[null,null,null,null,null,null,"",null,"",null,null,0,null,null,null,"","",""]
[null,null,null,null,null,null,{"$f":"IF(F2434>0,VLOOKUP(F2434,client,2,0),\"\")","v":""},null,{"$f":"IF(H2434>0,VLOOKUP(H2434,product,2,0),\"\")","v":""},null,null,0,null,null,null,{"$f":"IF(L2434=0,\"\",IF(O2434=L2434,\"ok\",\"error\"))","v":""},{"$f":"IF(C2434=\"رصيد\",\"رصيد أول\",IF(C2434>0,C2434,\"\"))","v":""},""]
[null,null,null,null,null,null,"",null,"",null,null,{"$f":"J2435*K2435","v":0},null,null,null,"","",{"$f":"IF(C2435=\"\",\"\",MONTH(C2435))","v":""}]
[null,null,null,null,null,null,"",null,"",null,null,0,null,null,null,"","",""]
[null,null,null,null,null,null,"",null,"",null,null,0,null,null,null,"","",""]
[null,null,null,null,null,null,"",null,"",null,null,0,null,null,null,"","",""]
[null,null,null,null,null,null,"",null,"",null,null,0,null,null,null,"","",""]
[null,null,null,null,null,null,"",null,"",null,null,0,null,null,null,"","",""]
[null,null,null,null,null,null,"",null,"",null,null,0,null,null,null,"","",""]
[null,null,null,null,null,null,"",null,"",null,null,0,null,null,null,"","",""]
[null,null,null,null,null,null,"",null,"",null,null,0,null,null,null,"","",""]
[null,null,null,null,null,null,"",null,"",null,null,0,null,null,null,"","",""]
[null,null,null,null,null,null,"",null,"",null,null,0,null,null,null,"","",""]
[null,null,null,null,null,null,"",null,"",null,null,0,null,null,null,"","",""]
[null,null,null,null,null,null,"",null,"",null,null,0,null,null,null,"","",""]
[null,null,null,null,null,null,"",null,"",null,null,0,null,null,null,"","",""]
[null,null,null,null,null,null,"",null,"",null,null,0,null,null,null,"","",""]
[null,null,null,null,null,null,"",null,"",null,null,0,null,null,null,"","",""]
[null,null,null,null,null,null,"",null,"",null,null,0,null,null,null,"","",""]
[null,null,null,null,null,null,"",null,"",null,null,0,null,null,null,"","",""]
[null,null,null,null,null,null,"",null,"",null,null,0,null,null,null,"","",""]
[null,null,null,null,null,null,"",null,"",null,null,0,null,null,null,"","",""]
[null,null,null,null,null,null,"",null,"",null,null,0,null,null,null,"","",""]
[null,null,null,null,null,null,"",null,"",null,null,0,null,null,null,"","",""]
[null,null,null,null,null,null,"",null,"",null,null,0,null,null,null,"","",""]
[null,null,null,null,null,null,"",null,"",null,null,0,null,null,null,"","",""]
[null,null,null,null,null,null,"",null,"",null,null,0,null,null,null,"","",""]
[null,null,null,null,null,null,"",null,"",null,null,0,null,null,null,"","",""]
[null,null,null,null,null,null,"",null,"",null,null,0,null,null,null,"","",""]
[null,null,null,null,null,null,"",null,"",null,null,0,null,null,null,"","",""]
[null,null,null,null,null,null,"",null,"",null,null,0,null,null,null,"","",""]
[null,null,null,null,null,null,"",null,"",null,null,0,null,null,null,"","",""]
[null,null,null,null,null,null,"",null,"",null,null,0,null,null,null,"","",""]
[null,null,null,null,null,null,"",null,"",null,null,0,null,null,null,"","",""]
[null,null,null,null,null,null,"",null,"",null,null,0,null,null,null,"","",""]
[null,null,null,null,null,null,"",null,"",null,null,0,null,null,null,"","",""]
[null,null,null,null,null,null,"",null,"",null,null,0,null,null,null,"","",""]
[null,null,null,null,null,null,"",null,"",null,null,0,null,null,null,"","",""]
[null,null,null,null,null,null,"",null,"",null,null,0,null,null,null,"","",""]
[null,null,null,null,null,null,"",null,"",null,null,0,null,null,null,"","",""]
[null,null,null,null,null,null,"",null,"",null,null,0,null,null,null,"","",""]
[null,null,null,null,null,null,"",null,"",null,null,0,null,null,null,"","",""]
[null,null,null,null,null,null,"",null,"",null,null,0,null,null,null,"","",""]
[null,null,null,null,null,null,"",null,"",null,null,0,null,null,null,"","",""]
[null,null,null,null,null,null,"",null,"",null,null,0,null,null,null,"","",""]
[null,null,null,null,null,null,"",null,"",null,null,0,null,null,null,"","",""]
[null,null,null,null,null,null,"",null,"",null,null,0,null,null,null,"","",""]
[null,null,null,null,null,null,"",null,"",null,null,0,null,null,null,"","",""]
[null,null,null,null,null,null,"",null,"",null,null,0,null,null,null,"","",""]
[null,null,null,null,null,null,"",null,"",null,null,0,null,null,null,"","",""]
[null,null,null,null,null,null,"",null,"",null,null,0,null,null,null,"","",""]
[null,null,null,null,null,null,"",null,"",null,null,0,null,null,null,"","",""]
[null,null,null,null,null,null,"",null,"",null,null,0,null,null,null,"","",""]
[null,null,null,null,null,null,"",null,"",null,null,0,null,null,null,"","",""]
[null,null,null,null,null,null,"",null,"",null,null,0,null,null,null,"","",""]
[null,null,null,null,null,null,"",null,"",null,null,0,null,null,null,"","",""]
[null,null,null,null,null,null,"",null,"",null,null,0,null,null,null,"","",""]
[null,null,null,null,null,null,"",null,"",null,null,0,null,null,null,"","",""]
[null,null,null,null,null,null,"",null,"",null,null,0,null,null,null,"","",""]
[null,null,null,null,null,null,"",null,"",null,null,0,null,null,null,"","",""]
[null,null,null,null,null,null,"",null,"",null,null,0,null,null,null,"","",""]
[null,null,null,null,null,null,"",null,"",null,null,0,null,null,null,"","",""]
[null,null,null,null,null,null,"",null,"",null,null,0,null,null,null,"","",""]
[null,null,null,null,null,null,"",null,"",null,null,0,null,null,null,"","",""]
[null,null,null,null,null,null,"",null,"",null,null,0,null,null,null,"","",""]
[null,null,null,null,null,null,{"$f":"IF(F2498>0,VLOOKUP(F2498,client,2,0),\"\")","v":""},null,{"$f":"IF(H2498>0,VLOOKUP(H2498,product,2,0),\"\")","v":""},null,null,0,null,null,null,{"$f":"IF(L2498=0,\"\",IF(O2498=L2498,\"ok\",\"error\"))","v":""},{"$f":"IF(C2498=\"رصيد\",\"رصيد أول\",IF(C2498>0,C2498,\"\"))","v":""},""]
[null,null,null,null,null,null,"",null,"",null,null,{"$f":"J2499*K2499","v":0},null,null,null,"","",{"$f":"IF(C2499=\"\",\"\",MONTH(C2499))","v":""}]
[null,null,null,null,null,null,"",null,"",null,null,0,null,null,null,"","",""]
[null,null,null,null,null,null,"",null,"",null,null,0,null,null,null,"","",""]
[null,null,null,null,null,null,"",null,"",null,null,0,null,null,null,"","",""]
[null,null,null,null,null,null,"",null,"",null,null,0,null,null,null,"","",""]
[null,null,null,null,null,null,"",null,"",null,null,0,null,null,null,"","",""]
[null,null,null,null,null,null,"",null,"",null,null,0,null,null,null,"","",""]
[null,null,null,null,null,null,"",null,"",null,null,0,null,null,null,"","",""]
[null,null,null,null,null,null,"",null,"",null,null,0,null,null,null,"","",""]
[null,null,null,null,null,null,"",null,"",null,null,0,null,null,null,"","",""]
[null,null,null,null,null,null,"",null,"",null,null,0,null,null,null,"","",""]
[null,null,null,null,null,null,"",null,"",null,null,0,null,null,null,"","",""]
[null,null,null,null,null,null,"",null,"",null,null,0,null,null,null,"","",""]
[null,null,null,null,null,null,"",null,"",null,null,0,null,null,null,"","",""]
[null,null,null,null,null,null,"",null,"",null,null,0,null,null,null,"","",""]
[null,null,null,null,null,null,"",null,"",null,null,0,null,null,null,"","",""]
[null,null,null,null,null,null,"",null,"",null,null,0,null,null,null,"","",""]
[null,null,null,null,null,null,"",null,"",null,null,0,null,null,null,"","",""]
[null,null,null,null,null,null,"",null,"",null,null,0,null,null,null,"","",""]
[null,null,null,null,null,null,"",null,"",null,null,0,null,null,null,"","",""]
[null,null,null,null,null,null,"",null,"",null,null,0,null,null,null,"","",""]
[null,null,null,null,null,null,"",null,"",null,null,0,null,null,null,"","",""]
[null,null,null,null,null,null,"",null,"",null,null,0,null,null,null,"","",""]
[null,null,null,null,null,null,"",null,"",null,null,0,null,null,null,"","",""]
[null,null,null,null,null,null,"",null,"",null,null,0,null,null,null,"","",""]
[null,null,null,null,null,null,"",null,"",null,null,0,null,null,null,"","",""]
[null,null,null,null,null,null,"",null,"",null,null,0,null,null,null,"","",""]
[null,null,null,null,null,null,"",null,"",null,null,0,null,null,null,"","",""]
[null,null,null,null,null,null,"",null,"",null,null,0,null,null,null,"","",""]
[null,null,null,null,null,null,"",null,"",null,null,0,null,null,null,"","",""]
[null,null,null,null,null,null,"",null,"",null,null,0,null,null,null,"","",""]
[null,null,null,null,null,null,"",null,"",null,null,0,null,null,null,"","",""]
[null,null,null,null,null,null,"",null,"",null,null,0,null,null,null,"","",""]
[null,null,null,null,null,null,"",null,"",null,null,0,null,null,null,"","",""]
[null,null,null,null,null,null,"",null,"",null,null,0,null,null,null,"","",""]
[null,null,null,null,null,null,"",null,"",null,null,0,null,null,null,"","",""]
[null,null,null,null,null,null,"",null,"",null,null,0,null,null,null,"","",""]
[null,null,null,null,null,null,"",null,"",null,null,0,null,null,null,"","",""]
[null,null,null,null,null,null,"",null,"",null,null,0,null,null,null,"","",""]
[null,null,null,null,null,null,"",null,"",null,null,0,null,null,null,"","",""]
[null,null,null,null,null,null,"",null,"",null,null,0,null,null,null,"","",""]
[null,null,null,null,null,null,"",null,"",null,null,0,null,null,null,"","",""]
[null,null,null,null,null,null,"",null,"",null,null,0,null,null,null,"","",""]
[null,null,null,null,null,null,"",null,"",null,null,0,null,null,null,"","",""]
[null,null,null,null,null,null,"",null,"",null,null,0,null,null,null,"","",""]
[null,null,null,null,null,null,"",null,"",null,null,0,null,null,null,"","",""]
[null,null,null,null,null,null,"",null,"",null,null,0,null,null,null,"","",""]
[null,null,null,null,null,null,"",null,"",null,null,0,null,null,null,"","",""]
[null,null,null,null,null,null,"",null,"",null,null,0,null,null,null,"","",""]
[null,null,null,null,null,null,"",null,"",null,null,0,null,null,null,"","",""]
[null,null,null,null,null,null,"",null,"",null,null,0,null,null,null,"","",""]
[null,null,null,null,null,null,"",null,"",null,null,0,null,null,null,"","",""]
[null,null,null,null,null,null,"",null,"",null,null,0,null,null,null,"","",""]
[null,null,null,null,null,null,"",null,"",null,null,0,null,null,null,"","",""]
[null,null,null,null,null,null,"",null,"",null,null,0,null,null,null,"","",""]
[null,null,null,null,null,null,"",null,"",null,null,0,null,null,null,"","",""]
[null,null,null,null,null,null,"",null,"",null,null,0,null,null,null,"","",""]
[null,null,null,null,null,null,"",null,"",null,null,0,null,null,null,"","",""]
[null,null,null,null,null,null,"",null,"",null,null,0,null,null,null,"","",""]
[null,null,null,null,null,null,"",null,"",null,null,0,null,null,null,"","",""]
[null,null,null,null,null,null,"",null,"",null,null,0,null,null,null,"","",""]
[null,null,null,null,null,null,"",null,"",null,null,0,null,null,null,"","",""]
[null,null,null,null,null,null,"",null,"",null,null,0,null,null,null,"","",""]
[null,null,null,null,null,null,{"$f":"IF(F2562>0,VLOOKUP(F2562,client,2,0),\"\")","v":""},null,{"$f":"IF(H2562>0,VLOOKUP(H2562,product,2,0),\"\")","v":""},null,null,0,null,null,null,{"$f":"IF(L2562=0,\"\",IF(O2562=L2562,\"ok\",\"error\"))","v":""},{"$f":"IF(C2562=\"رصيد\",\"رصيد أول\",IF(C2562>0,C2562,\"\"))","v":""},""]
[null,null,null,null,null,null,"",null,"",null,null,{"$f":"J2563*K2563","v":0},null,null,null,"","",{"$f":"IF(C2563=\"\",\"\",MONTH(C2563))","v":""}]
[null,null,null,null,null,null,"",null,"",null,null,0,null,null,null,"","",""]
[null,null,null,null,null,null,"",null,"",null,null,0,null,null,null,"","",""]
[null,null,null,null,null,null,"",null,"",null,null,0,null,null,null,"","",""]
[null,null,null,null,null,null,"",null,"",null,null,0,null,null,null,"","",""]
[null,null,null,null,null,null,"",null,"",null,null,0,null,null,null,"","",""]
[null,null,null,null,null,null,"",null,"",null,null,0,null,null,null,"","",""]
[null,null,null,null,null,null,"",null,"",null,null,0,null,null,null,"","",""]
[null,null,null,null,null,null,"",null,"",null,null,0,null,null,null,"","",""]
[null,null,null,null,null,null,"",null,"",null,null,0,null,null,null,"","",""]
[null,null,null,null,null,null,"",null,"",null,null,0,null,null,null,"","",""]
[null,null,null,null,null,null,"",null,"",null,null,0,null,null,null,"","",""]
[null,null,null,null,null,null,"",null,"",null,null,0,null,null,null,"","",""]
[null,null,null,null,null,null,"",null,"",null,null,0,null,null,null,"","",""]
[null,null,null,null,null,null,"",null,"",null,null,0,null,null,null,"","",""]
[null,null,null,null,null,null,"",null,"",null,null,0,null,null,null,"","",""]
[null,null,null,null,null,null,"",null,"",null,null,0,null,null,null,"","",""]
[null,null,null,null,null,null,"",null,"",null,null,0,null,null,null,"","",""]
[null,null,null,null,null,null,"",null,"",null,null,0,null,null,null,"","",""]
[null,null,null,null,null,null,"",null,"",null,null,0,null,null,null,"","",""]
[null,null,null,null,null,null,"",null,"",null,null,0,null,null,null,"","",""]
[null,null,null,null,null,null,"",null,"",null,null,0,null,null,null,"","",""]
[null,null,null,null,null,null,"",null,"",null,null,0,null,null,null,"","",""]
[null,null,null,null,null,null,"",null,"",null,null,0,null,null,null,"","",""]
[null,null,null,null,null,null,"",null,"",null,null,0,null,null,null,"","",""]
[null,null,null,null,null,null,"",null,"",null,null,0,null,null,null,"","",""]
[null,null,null,null,null,null,"",null,"",null,null,0,null,null,null,"","",""]
[null,null,null,null,null,null,"",null,"",null,null,0,null,null,null,"","",""]
[null,null,null,null,null,null,"",null,"",null,null,0,null,null,null,"","",""]
[null,null,null,null,null,null,"",null,"",null,null,0,null,null,null,"","",""]
[null,null,null,null,null,null,"",null,"",null,null,0,null,null,null,"","",""]
[null,null,null,null,null,null,"",null,"",null,null,0,null,null,null,"","",""]
[null,null,null,null,null,null,"",null,"",null,null,0,null,null,null,"","",""]
[null,null,null,null,null,null,"",null,"",null,null,0,null,null,null,"","",""]
[null,null,null,null,null,null,"",null,"",null,null,0,null,null,null,"","",""]
[null,null,null,null,null,null,"",null,"",null,null,0,null,null,null,"","",""]
[null,null,null,null,null,null,"",null,"",null,null,0,null,null,null,"","",""]
[null,null,null,null,null,null,"",null,"",null,null,0,null,null,null,"","",""]
[null,null,null,null,null,null,"",null,"",null,null,0,null,null,null,"","",""]
[null,null,null,null,null,null,"",null,"",null,null,0,null,null,null,"","",""]
[null,null,null,null,null,null,"",null,"",null,null,0,null,null,null,"","",""]
[null,null,null,null,null,null,"",null,"",null,null,0,null,null,null,"","",""]
[null,null,null,null,null,null,"",null,"",null,null,0,null,null,null,"","",""]
[null,null,null,null,null,null,"",null,"",null,null,0,null,null,null,"","",""]
[null,null,null,null,null,null,"",null,"",null,null,0,null,null,null,"","",""]
[null,null,null,null,null,null,"",null,"",null,null,0,null,null,null,"","",""]
[null,null,null,null,null,null,"",null,"",null,null,0,null,null,null,"","",""]
[null,null,null,null,null,null,"",null,"",null,null,0,null,null,null,"","",""]
[null,null,null,null,null,null,"",null,"",null,null,0,null,null,null,"","",""]
[null,null,null,null,null,null,"",null,"",null,null,0,null,null,null,"","",""]
[null,null,null,null,null,null,"",null,"",null,null,0,null,null,null,"","",""]
[null,null,null,null,null,null,"",null,"",null,null,0,null,null,null,"","",""]
[null,null,null,null,null,null,"",null,"",null,null,0,null,null,null,"","",""]
[null,null,null,null,null,null,"",null,"",null,null,0,null,null,null,"","",""]
[null,null,null,null,null,null,"",null,"",null,null,0,null,null,null,"","",""]
[null,null,null,null,null,null,"",null,"",null,null,0,null,null,null,"","",""]
[null,null,null,null,null,null,"",null,"",null,null,0,null,null,null,"","",""]
[null,null,null,null,null,null,"",null,"",null,null,0,null,null,null,"","",""]
[null,null,null,null,null,null,"",null,"",null,null,0,null,null,null,"","",""]
[null,null,null,null,null,null,"",null,"",null,null,0,null,null,null,"","",""]
[null,null,null,null,null,null,"",null,"",null,null,0,null,null,null,"","",""]
[null,null,null,null,null,null,"",null,"",null,null,0,null,null,null,"","",""]
[null,null,null,null,null,null,"",null,"",null,null,0,null,null,null,"","",""]
[null,null,null,null,null,null,{"$f":"IF(F2626>0,VLOOKUP(F2626,client,2,0),\"\")","v":""},null,{"$f":"IF(H2626>0,VLOOKUP(H2626,product,2,0),\"\")","v":""},null,null,0,null,null,null,{"$f":"IF(L2626=0,\"\",IF(O2626=L2626,\"ok\",\"error\"))","v":""},{"$f":"IF(C2626=\"رصيد\",\"رصيد أول\",IF(C2626>0,C2626,\"\"))","v":""},""]
[null,null,null,null,null,null,"",null,"",null,null,{"$f":"J2627*K2627","v":0},null,null,null,"","",{"$f":"IF(C2627=\"\",\"\",MONTH(C2627))","v":""}]
[null,null,null,null,null,null,"",null,"",null,null,0,null,null,null,"","",""]
[null,null,null,null,null,null,"",null,"",null,null,0,null,null,null,"","",""]
[null,null,null,null,null,null,"",null,"",null,null,0,null,null,null,"","",""]
[null,null,null,null,null,null,"",null,"",null,null,0,null,null,null,"","",""]
[null,null,null,null,null,null,"",null,"",null,null,0,null,null,null,"","",""]
[null,null,null,null,null,null,"",null,"",null,null,0,null,null,null,"","",""]
[null,null,null,null,null,null,"",null,"",null,null,0,null,null,null,"","",""]
[null,null,null,null,null,null,"",null,"",null,null,0,null,null,null,"","",""]
[null,null,null,null,null,null,"",null,"",null,null,0,null,null,null,"","",""]
[null,null,null,null,null,null,"",null,"",null,null,0,null,null,null,"","",""]
[null,null,null,null,null,null,"",null,"",null,null,0,null,null,null,"","",""]
[null,null,null,null,null,null,"",null,"",null,null,0,null,null,null,"","",""]
[null,null,null,null,null,null,"",null,"",null,null,0,null,null,null,"","",""]
[null,null,null,null,null,null,"",null,"",null,null,0,null,null,null,"","",""]
[null,null,null,null,null,null,"",null,"",null,null,0,null,null,null,"","",""]
[null,null,null,null,null,null,"",null,"",null,null,0,null,null,null,"","",""]
[null,null,null,null,null,null,"",null,"",null,null,0,null,null,null,"","",""]
[null,null,null,null,null,null,"",null,"",null,null,0,null,null,null,"","",""]
[null,null,null,null,null,null,"",null,"",null,null,0,null,null,null,"","",""]
[null,null,null,null,null,null,"",null,"",null,null,0,null,null,null,"","",""]
[null,null,null,null,null,null,"",null,"",null,null,0,null,null,null,"","",""]
[null,null,null,null,null,null,"",null,"",null,null,0,null,null,null,"","",""]
[null,null,null,null,null,null,"",null,"",null,null,0,null,null,null,"","",""]
[null,null,null,null,null,null,"",null,"",null,null,0,null,null,null,"","",""]
[null,null,null,null,null,null,"",null,"",null,null,0,null,null,null,"","",""]
[null,null,null,null,null,null,"",null,"",null,null,0,null,null,null,"","",""]
[null,null,null,null,null,null,"",null,"",null,null,0,null,null,null,"","",""]
[null,null,null,null,null,null,"",null,"",null,null,0,null,null,null,"","",""]
[null,null,null,null,null,null,"",null,"",null,null,0,null,null,null,"","",""]
[null,null,null,null,null,null,"",null,"",null,null,0,null,null,null,"","",""]
[null,null,null,null,null,null,"",null,"",null,null,0,null,null,null,"","",""]
[null,null,null,null,null,null,"",null,"",null,null,0,null,null,null,"","",""]
[null,null,null,null,null,null,"",null,"",null,null,0,null,null,null,"","",""]
[null,null,null,null,null,null,"",null,"",null,null,0,null,null,null,"","",""]
[null,null,null,null,null,null,"",null,"",null,null,0,null,null,null,"","",""]
[null,null,null,null,null,null,"",null,"",null,null,0,null,null,null,"","",""]
[null,null,null,null,null,null,"",null,"",null,null,0,null,null,null,"","",""]
[null,null,null,null,null,null,"",null,"",null,null,0,null,null,null,"","",""]
[null,null,null,null,null,null,"",null,"",null,null,0,null,null,null,"","",""]
[null,null,null,null,null,null,"",null,"",null,null,0,null,null,null,"","",""]
[null,null,null,null,null,null,"",null,"",null,null,0,null,null,null,"","",""]
[null,null,null,null,null,null,"",null,"",null,null,0,null,null,null,"","",""]
[null,null,null,null,null,null,"",null,"",null,null,0,null,null,null,"","",""]
[null,null,null,null,null,null,"",null,"",null,null,0,null,null,null,"","",""]
[null,null,null,null,null,null,"",null,"",null,null,0,null,null,null,"","",""]
[null,null,null,null,null,null,"",null,"",null,null,0,null,null,null,"","",""]
[null,null,null,null,null,null,"",null,"",null,null,0,null,null,null,"","",""]
[null,null,null,null,null,null,"",null,"",null,null,0,null,null,null,"","",""]
[null,null,null,null,null,null,"",null,"",null,null,0,null,null,null,"","",""]
[null,null,null,null,null,null,"",null,"",null,null,0,null,null,null,"","",""]
[null,null,null,null,null,null,"",null,"",null,null,0,null,null,null,"","",""]
[null,null,null,null,null,null,"",null,"",null,null,0,null,null,null,"","",""]
[null,null,null,null,null,null,"",null,"",null,null,0,null,null,null,"","",""]
[null,null,null,null,null,null,"",null,"",null,null,0,null,null,null,"","",""]
[null,null,null,null,null,null,"",null,"",null,null,0,null,null,null,"","",""]
[null,null,null,null,null,null,"",null,"",null,null,0,null,null,null,"","",""]
[null,null,null,null,null,null,"",null,"",null,null,0,null,null,null,"","",""]
[null,null,null,null,null,null,"",null,"",null,null,0,null,null,null,"","",""]
[null,null,null,null,null,null,"",null,"",null,null,0,null,null,null,"","",""]
[null,null,null,null,null,null,"",null,"",null,null,0,null,null,null,"","",""]
[null,null,null,null,null,null,"",null,"",null,null,0,null,null,null,"","",""]
[null,null,null,null,null,null,"",null,"",null,null,0,null,null,null,"","",""]
[null,null,null,null,null,null,{"$f":"IF(F2690>0,VLOOKUP(F2690,client,2,0),\"\")","v":""},null,{"$f":"IF(H2690>0,VLOOKUP(H2690,product,2,0),\"\")","v":""},null,null,0,null,null,null,{"$f":"IF(L2690=0,\"\",IF(O2690=L2690,\"ok\",\"error\"))","v":""},{"$f":"IF(C2690=\"رصيد\",\"رصيد أول\",IF(C2690>0,C2690,\"\"))","v":""},""]
[null,null,null,null,null,null,"",null,"",null,null,{"$f":"J2691*K2691","v":0},null,null,null,"","",{"$f":"IF(C2691=\"\",\"\",MONTH(C2691))","v":""}]
[null,null,null,null,null,null,"",null,"",null,null,0,null,null,null,"","",""]
[null,null,null,null,null,null,"",null,"",null,null,0,null,null,null,"","",""]
[null,null,null,null,null,null,"",null,"",null,null,0,null,null,null,"","",""]
[null,null,null,null,null,null,"",null,"",null,null,0,null,null,null,"","",""]
[null,null,null,null,null,null,"",null,"",null,null,0,null,null,null,"","",""]
[null,null,null,null,null,null,"",null,"",null,null,0,null,null,null,"","",""]
[null,null,null,null,null,null,"",null,"",null,null,0,null,null,null,"","",""]
[null,null,null,null,null,null,"",null,"",null,null,0,null,null,null,"","",""]
[null,null,null,null,null,null,"",null,"",null,null,0,null,null,null,"","",""]
[null,null,null,null,null,null,"",null,"",null,null,0,null,null,null,"","",""]
[null,null,null,null,null,null,"",null,"",null,null,0,null,null,null,"","",""]
[null,null,null,null,null,null,"",null,"",null,null,0,null,null,null,"","",""]
[null,null,null,null,null,null,"",null,"",null,null,0,null,null,null,"","",""]
[null,null,null,null,null,null,"",null,"",null,null,0,null,null,null,"","",""]
[null,null,null,null,null,null,"",null,"",null,null,0,null,null,null,"","",""]
[null,null,null,null,null,null,"",null,"",null,null,0,null,null,null,"","",""]
[null,null,null,null,null,null,"",null,"",null,null,0,null,null,null,"","",""]
[null,null,null,null,null,null,"",null,"",null,null,0,null,null,null,"","",""]
[null,null,null,null,null,null,"",null,"",null,null,0,null,null,null,"","",""]
[null,null,null,null,null,null,"",null,"",null,null,0,null,null,null,"","",""]
[null,null,null,null,null,null,"",null,"",null,null,0,null,null,null,"","",""]
[null,null,null,null,null,null,"",null,"",null,null,0,null,null,null,"","",""]
[null,null,null,null,null,null,"",null,"",null,null,0,null,null,null,"","",""]
[null,null,null,null,null,null,"",null,"",null,null,0,null,null,null,"","",""]
[null,null,null,null,null,null,"",null,"",null,null,0,null,null,null,"","",""]
[null,null,null,null,null,null,"",null,"",null,null,0,null,null,null,"","",""]
[null,null,null,null,null,null,"",null,"",null,null,0,null,null,null,"","",""]
[null,null,null,null,null,null,"",null,"",null,null,0,null,null,null,"","",""]
[null,null,null,null,null,null,"",null,"",null,null,0,null,null,null,"","",""]
[null,null,null,null,null,null,"",null,"",null,null,0,null,null,null,"","",""]
[null,null,null,null,null,null,"",null,"",null,null,0,null,null,null,"","",""]
[null,null,null,null,null,null,"",null,"",null,null,0,null,null,null,"","",""]
[null,null,null,null,null,null,"",null,"",null,null,0,null,null,null,"","",""]
[null,null,null,null,null,null,"",null,"",null,null,0,null,null,null,"","",""]
[null,null,null,null,null,null,"",null,"",null,null,0,null,null,null,"","",""]
[null,null,null,null,null,null,"",null,"",null,null,0,null,null,null,"","",""]
[null,null,null,null,null,null,"",null,"",null,null,0,null,null,null,"","",""]
[null,null,null,null,null,null,"",null,"",null,null,0,null,null,null,"","",""]
[null,null,null,null,null,null,"",null,"",null,null,0,null,null,null,"","",""]
[null,null,null,null,null,null,"",null,"",null,null,0,null,null,null,"","",""]
[null,null,null,null,null,null,"",null,"",null,null,0,null,null,null,"","",""]
[null,null,null,null,null,null,"",null,"",null,null,0,null,null,null,"","",""]
[null,null,null,null,null,null,"",null,"",null,null,0,null,null,null,"","",""]
[null,null,null,null,null,null,"",null,"",null,null,0,null,null,null,"","",""]
[null,null,null,null,null,null,"",null,"",null,null,0,null,null,null,"","",""]
[null,null,null,null,null,null,"",null,"",null,null,0,null,null,null,"","",""]
[null,null,null,null,null,null,"",null,"",null,null,0,null,null,null,"","",""]
[null,null,null,null,null,null,"",null,"",null,null,0,null,null,null,"","",""]
[null,null,null,null,null,null,"",null,"",null,null,0,null,null,null,"","",""]
[null,null,null,null,null,null,"",null,"",null,null,0,null,null,null,"","",""]
[null,null,null,null,null,null,"",null,"",null,null,0,null,null,null,"","",""]
[null,null,null,null,null,null,"",null,"",null,null,0,null,null,null,"","",""]
[null,null,null,null,null,null,"",null,"",null,null,0,null,null,null,"","",""]
[null,null,null,null,null,null,"",null,"",null,null,0,null,null,null,"","",""]
[null,null,null,null,null,null,"",null,"",null,null,0,null,null,null,"","",""]
[null,null,null,null,null,null,"",null,"",null,null,0,null,null,null,"","",""]
[null,null,null,null,null,null,"",null,"",null,null,0,null,null,null,"","",""]
[null,null,null,null,null,null,"",null,"",null,null,0,null,null,null,"","",""]
[null,null,null,null,null,null,"",null,"",null,null,0,null,null,null,"","",""]
[null,null,null,null,null,null,"",null,"",null,null,0,null,null,null,"","",""]
[null,null,null,null,null,null,"",null,"",null,null,0,null,null,null,"","",""]
[null,null,null,null,null,null,"",null,"",null,null,0,null,null,null,"","",""]
[null,null,null,null,null,null,{"$f":"IF(F2754>0,VLOOKUP(F2754,client,2,0),\"\")","v":""},null,{"$f":"IF(H2754>0,VLOOKUP(H2754,product,2,0),\"\")","v":""},null,null,0,null,null,null,{"$f":"IF(L2754=0,\"\",IF(O2754=L2754,\"ok\",\"error\"))","v":""},{"$f":"IF(C2754=\"رصيد\",\"رصيد أول\",IF(C2754>0,C2754,\"\"))","v":""},""]
[null,null,null,null,null,null,"",null,"",null,null,{"$f":"J2755*K2755","v":0},null,null,null,"","",{"$f":"IF(C2755=\"\",\"\",MONTH(C2755))","v":""}]
[null,null,null,null,null,null,"",null,"",null,null,0,null,null,null,"","",""]
[null,null,null,null,null,null,"",null,"",null,null,0,null,null,null,"","",""]
[null,null,null,null,null,null,"",null,"",null,null,0,null,null,null,"","",""]
[null,null,null,null,null,null,"",null,"",null,null,0,null,null,null,"","",""]
[null,null,null,null,null,null,"",null,"",null,null,0,null,null,null,"","",""]
[null,null,null,null,null,null,"",null,"",null,null,0,null,null,null,"","",""]
[null,null,null,null,null,null,"",null,"",null,null,0,null,null,null,"","",""]
[null,null,null,null,null,null,"",null,"",null,null,0,null,null,null,"","",""]
[null,null,null,null,null,null,"",null,"",null,null,0,null,null,null,"","",""]
[null,null,null,null,null,null,"",null,"",null,null,0,null,null,null,"","",""]
[null,null,null,null,null,null,"",null,"",null,null,0,null,null,null,"","",""]
[null,null,null,null,null,null,"",null,"",null,null,0,null,null,null,"","",""]
[null,null,null,null,null,null,"",null,"",null,null,0,null,null,null,"","",""]
[null,null,null,null,null,null,"",null,"",null,null,0,null,null,null,"","",""]
[null,null,null,null,null,null,"",null,"",null,null,0,null,null,null,"","",""]
[null,null,null,null,null,null,"",null,"",null,null,0,null,null,null,"","",""]
[null,null,null,null,null,null,"",null,"",null,null,0,null,null,null,"","",""]
[null,null,null,null,null,null,"",null,"",null,null,0,null,null,null,"","",""]
[null,null,null,null,null,null,"",null,"",null,null,0,null,null,null,"","",""]
[null,null,null,null,null,null,"",null,"",null,null,0,null,null,null,"","",""]
[null,null,null,null,null,null,"",null,"",null,null,0,null,null,null,"","",""]
[null,null,null,null,null,null,"",null,"",null,null,0,null,null,null,"","",""]
[null,null,null,null,null,null,"",null,"",null,null,0,null,null,null,"","",""]
[null,null,null,null,null,null,"",null,"",null,null,0,null,null,null,"","",""]
[null,null,null,null,null,null,"",null,"",null,null,0,null,null,null,"","",""]
[null,null,null,null,null,null,"",null,"",null,null,0,null,null,null,"","",""]
[null,null,null,null,null,null,"",null,"",null,null,0,null,null,null,"","",""]
[null,null,null,null,null,null,"",null,"",null,null,0,null,null,null,"","",""]
[null,null,null,null,null,null,"",null,"",null,null,0,null,null,null,"","",""]
[null,null,null,null,null,null,"",null,"",null,null,0,null,null,null,"","",""]
[null,null,null,null,null,null,"",null,"",null,null,0,null,null,null,"","",""]
[null,null,null,null,null,null,"",null,"",null,null,0,null,null,null,"","",""]
[null,null,null,null,null,null,"",null,"",null,null,0,null,null,null,"","",""]
[null,null,null,null,null,null,"",null,"",null,null,0,null,null,null,"","",""]
[null,null,null,null,null,null,"",null,"",null,null,0,null,null,null,"","",""]
[null,null,null,null,null,null,"",null,"",null,null,0,null,null,null,"","",""]
[null,null,null,null,null,null,"",null,"",null,null,0,null,null,null,"","",""]
[null,null,null,null,null,null,"",null,"",null,null,0,null,null,null,"","",""]
[null,null,null,null,null,null,"",null,"",null,null,0,null,null,null,"","",""]
[null,null,null,null,null,null,"",null,"",null,null,0,null,null,null,"","",""]
[null,null,null,null,null,null,"",null,"",null,null,0,null,null,null,"","",""]
[null,null,null,null,null,null,"",null,"",null,null,0,null,null,null,"","",""]
[null,null,null,null,null,null,"",null,"",null,null,0,null,null,null,"","",""]
[null,null,null,null,null,null,"",null,"",null,null,0,null,null,null,"","",""]
[null,null,null,null,null,null,"",null,"",null,null,0,null,null,null,"","",""]
[null,null,null,null,null,null,"",null,"",null,null,0,null,null,null,"","",""]
[null,null,null,null,null,null,"",null,"",null,null,0,null,null,null,"","",""]
[null,null,null,null,null,null,"",null,"",null,null,0,null,null,null,"","",""]
[null,null,null,null,null,null,"",null,"",null,null,0,null,null,null,"","",""]
[null,null,null,null,null,null,"",null,"",null,null,0,null,null,null,"","",""]
[null,null,null,null,null,null,"",null,"",null,null,0,null,null,null,"","",""]
[null,null,null,null,null,null,"",null,"",null,null,0,null,null,null,"","",""]
[null,null,null,null,null,null,"",null,"",null,null,0,null,null,null,"","",""]
[null,null,null,null,null,null,"",null,"",null,null,0,null,null,null,"","",""]
[null,null,null,null,null,null,"",null,"",null,null,0,null,null,null,"","",""]
[null,null,null,null,null,null,"",null,"",null,null,0,null,null,null,"","",""]
[null,null,null,null,null,null,"",null,"",null,null,0,null,null,null,"","",""]
[null,null,null,null,null,null,"",null,"",null,null,0,null,null,null,"","",""]
[null,null,null,null,null,null,"",null,"",null,null,0,null,null,null,"","",""]
[null,null,null,null,null,null,"",null,"",null,null,0,null,null,null,"","",""]
[null,null,null,null,null,null,"",null,"",null,null,0,null,null,null,"","",""]
[null,null,null,null,null,null,"",null,"",null,null,0,null,null,null,"","",""]
[null,null,null,null,null,null,{"$f":"IF(F2818>0,VLOOKUP(F2818,client,2,0),\"\")","v":""},null,{"$f":"IF(H2818>0,VLOOKUP(H2818,product,2,0),\"\")","v":""},null,null,0,null,null,null,{"$f":"IF(L2818=0,\"\",IF(O2818=L2818,\"ok\",\"error\"))","v":""},{"$f":"IF(C2818=\"رصيد\",\"رصيد أول\",IF(C2818>0,C2818,\"\"))","v":""},""]
[null,null,null,null,null,null,"",null,"",null,null,{"$f":"J2819*K2819","v":0},null,null,null,"","",{"$f":"IF(C2819=\"\",\"\",MONTH(C2819))","v":""}]
[null,null,null,null,null,null,"",null,"",null,null,0,null,null,null,"","",""]
[null,null,null,null,null,null,"",null,"",null,null,0,null,null,null,"","",""]
[null,null,null,null,null,null,"",null,"",null,null,0,null,null,null,"","",""]
[null,null,null,null,null,null,"",null,"",null,null,0,null,null,null,"","",""]
[null,null,null,null,null,null,"",null,"",null,null,0,null,null,null,"","",""]
[null,null,null,null,null,null,"",null,"",null,null,0,null,null,null,"","",""]
[null,null,null,null,null,null,"",null,"",null,null,0,null,null,null,"","",""]
[null,null,null,null,null,null,"",null,"",null,null,0,null,null,null,"","",""]
[null,null,null,null,null,null,"",null,"",null,null,0,null,null,null,"","",""]
[null,null,null,null,null,null,"",null,"",null,null,0,null,null,null,"","",""]
[null,null,null,null,null,null,"",null,"",null,null,0,null,null,null,"","",""]
[null,null,null,null,null,null,"",null,"",null,null,0,null,null,null,"","",""]
[null,null,null,null,null,null,"",null,"",null,null,0,null,null,null,"","",""]
[null,null,null,null,null,null,"",null,"",null,null,0,null,null,null,"","",""]
[null,null,null,null,null,null,"",null,"",null,null,0,null,null,null,"","",""]
[null,null,null,null,null,null,"",null,"",null,null,0,null,null,null,"","",""]
[null,null,null,null,null,null,"",null,"",null,null,0,null,null,null,"","",""]
[null,null,null,null,null,null,"",null,"",null,null,0,null,null,null,"","",""]
[null,null,null,null,null,null,"",null,"",null,null,0,null,null,null,"","",""]
[null,null,null,null,null,null,"",null,"",null,null,0,null,null,null,"","",""]
[null,null,null,null,null,null,"",null,"",null,null,0,null,null,null,"","",""]
[null,null,null,null,null,null,"",null,"",null,null,0,null,null,null,"","",""]
[null,null,null,null,null,null,"",null,"",null,null,0,null,null,null,"","",""]
[null,null,null,null,null,null,"",null,"",null,null,0,null,null,null,"","",""]
[null,null,null,null,null,null,"",null,"",null,null,0,null,null,null,"","",""]
[null,null,null,null,null,null,"",null,"",null,null,0,null,null,null,"","",""]
[null,null,null,null,null,null,"",null,"",null,null,0,null,null,null,"","",""]
[null,null,null,null,null,null,"",null,"",null,null,0,null,null,null,"","",""]
[null,null,null,null,null,null,"",null,"",null,null,0,null,null,null,"","",""]
[null,null,null,null,null,null,"",null,"",null,null,0,null,null,null,"","",""]
[null,null,null,null,null,null,"",null,"",null,null,0,null,null,null,"","",""]
[null,null,null,null,null,null,"",null,"",null,null,0,null,null,null,"","",""]
[null,null,null,null,null,null,"",null,"",null,null,0,null,null,null,"","",""]
[null,null,null,null,null,null,"",null,"",null,null,0,null,null,null,"","",""]
[null,null,null,null,null,null,"",null,"",null,null,0,null,null,null,"","",""]
[null,null,null,null,null,null,"",null,"",null,null,0,null,null,null,"","",""]
[null,null,null,null,null,null,"",null,"",null,null,0,null,null,null,"","",""]
[null,null,null,null,null,null,"",null,"",null,null,0,null,null,null,"","",""]
[null,null,null,null,null,null,"",null,"",null,null,0,null,null,null,"","",""]
[null,null,null,null,null,null,"",null,"",null,null,0,null,null,null,"","",""]
[null,null,null,null,null,null,"",null,"",null,null,0,null,null,null,"","",""]
[null,null,null,null,null,null,"",null,"",null,null,0,null,null,null,"","",""]
[null,null,null,null,null,null,"",null,"",null,null,0,null,null,null,"","",""]
[null,null,null,null,null,null,"",null,"",null,null,0,null,null,null,"","",""]
[null,null,null,null,null,null,"",null,"",null,null,0,null,null,null,"","",""]
[null,null,null,null,null,null,"",null,"",null,null,0,null,null,null,"","",""]
[null,null,null,null,null,null,"",null,"",null,null,0,null,null,null,"","",""]
[null,null,null,null,null,null,"",null,"",null,null,0,null,null,null,"","",""]
[null,null,null,null,null,null,"",null,"",null,null,0,null,null,null,"","",""]
[null,null,null,null,null,null,"",null,"",null,null,0,null,null,null,"","",""]
[null,null,null,null,null,null,"",null,"",null,null,0,null,null,null,"","",""]
[null,null,null,null,null,null,"",null,"",null,null,0,null,null,null,"","",""]
[null,null,null,null,null,null,"",null,"",null,null,0,null,null,null,"","",""]
[null,null,null,null,null,null,"",null,"",null,null,0,null,null,null,"","",""]
[null,null,null,null,null,null,"",null,"",null,null,0,null,null,null,"","",""]
[null,null,null,null,null,null,"",null,"",null,null,0,null,null,null,"","",""]
[null,null,null,null,null,null,"",null,"",null,null,0,null,null,null,"","",""]
[null,null,null,null,null,null,"",null,"",null,null,0,null,null,null,"","",""]
[null,null,null,null,null,null,"",null,"",null,null,0,null,null,null,"","",""]
[null,null,null,null,null,null,"",null,"",null,null,0,null,null,null,"","",""]
[null,null,null,null,null,null,"",null,"",null,null,0,null,null,null,"","",""]
[null,null,null,null,null,null,"",null,"",null,null,0,null,null,null,"","",""]
[null,null,null,null,null,null,{"$f":"IF(F2882>0,VLOOKUP(F2882,client,2,0),\"\")","v":""},null,{"$f":"IF(H2882>0,VLOOKUP(H2882,product,2,0),\"\")","v":""},null,null,0,null,null,null,{"$f":"IF(L2882=0,\"\",IF(O2882=L2882,\"ok\",\"error\"))","v":""},{"$f":"IF(C2882=\"رصيد\",\"رصيد أول\",IF(C2882>0,C2882,\"\"))","v":""},""]
[null,null,null,null,null,null,"",null,"",null,null,{"$f":"J2883*K2883","v":0},null,null,null,"","",{"$f":"IF(C2883=\"\",\"\",MONTH(C2883))","v":""}]
[null,null,null,null,null,null,"",null,"",null,null,0,null,null,null,"","",""]
[null,null,null,null,null,null,"",null,"",null,null,0,null,null,null,"","",""]
[null,null,null,null,null,null,"",null,"",null,null,0,null,null,null,"","",""]
[null,null,null,null,null,null,"",null,"",null,null,0,null,null,null,"","",""]
[null,null,null,null,null,null,"",null,"",null,null,0,null,null,null,"","",""]
[null,null,null,null,null,null,"",null,"",null,null,0,null,null,null,"","",""]
[null,null,null,null,null,null,"",null,"",null,null,0,null,null,null,"","",""]
[null,null,null,null,null,null,"",null,"",null,null,0,null,null,null,"","",""]
[null,null,null,null,null,null,"",null,"",null,null,0,null,null,null,"","",""]
[null,null,null,null,null,null,"",null,"",null,null,0,null,null,null,"","",""]
[null,null,null,null,null,null,"",null,"",null,null,0,null,null,null,"","",""]
[null,null,null,null,null,null,"",null,"",null,null,0,null,null,null,"","",""]
[null,null,null,null,null,null,"",null,"",null,null,0,null,null,null,"","",""]
[null,null,null,null,null,null,"",null,"",null,null,0,null,null,null,"","",""]
[null,null,null,null,null,null,"",null,"",null,null,0,null,null,null,"","",""]
[null,null,null,null,null,null,"",null,"",null,null,0,null,null,null,"","",""]
[null,null,null,null,null,null,"",null,"",null,null,0,null,null,null,"","",""]
[null,null,null,null,null,null,"",null,"",null,null,0,null,null,null,"","",""]
[null,null,null,null,null,null,"",null,"",null,null,0,null,null,null,"","",""]
[null,null,null,null,null,null,"",null,"",null,null,0,null,null,null,"","",""]
[null,null,null,null,null,null,"",null,"",null,null,0,null,null,null,"","",""]
[null,null,null,null,null,null,"",null,"",null,null,0,null,null,null,"","",""]
[null,null,null,null,null,null,"",null,"",null,null,0,null,null,null,"","",""]
[null,null,null,null,null,null,"",null,"",null,null,0,null,null,null,"","",""]
[null,null,null,null,null,null,"",null,"",null,null,0,null,null,null,"","",""]
[null,null,null,null,null,null,"",null,"",null,null,0,null,null,null,"","",""]
[null,null,null,null,null,null,"",null,"",null,null,0,null,null,null,"","",""]
[null,null,null,null,null,null,"",null,"",null,null,0,null,null,null,"","",""]
[null,null,null,null,null,null,"",null,"",null,null,0,null,null,null,"","",""]
[null,null,null,null,null,null,"",null,"",null,null,0,null,null,null,"","",""]
[null,null,null,null,null,null,"",null,"",null,null,0,null,null,null,"","",""]
[null,null,null,null,null,null,"",null,"",null,null,0,null,null,null,"","",""]
[null,null,null,null,null,null,"",null,"",null,null,0,null,null,null,"","",""]
[null,null,null,null,null,null,"",null,"",null,null,0,null,null,null,"","",""]
[null,null,null,null,null,null,"",null,"",null,null,0,null,null,null,"","",""]
[null,null,null,null,null,null,"",null,"",null,null,0,null,null,null,"","",""]
[null,null,null,null,null,null,"",null,"",null,null,0,null,null,null,"","",""]
[null,null,null,null,null,null,"",null,"",null,null,0,null,null,null,"","",""]
[null,null,null,null,null,null,"",null,"",null,null,0,null,null,null,"","",""]
[null,null,null,null,null,null,"",null,"",null,null,0,null,null,null,"","",""]
[null,null,null,null,null,null,"",null,"",null,null,0,null,null,null,"","",""]
[null,null,null,null,null,null,"",null,"",null,null,0,null,null,null,"","",""]
[null,null,null,null,null,null,"",null,"",null,null,0,null,null,null,"","",""]
[null,null,null,null,null,null,"",null,"",null,null,0,null,null,null,"","",""]
[null,null,null,null,null,null,"",null,"",null,null,0,null,null,null,"","",""]
[null,null,null,null,null,null,"",null,"",null,null,0,null,null,null,"","",""]
[null,null,null,null,null,null,"",null,"",null,null,0,null,null,null,"","",""]
[null,null,null,null,null,null,"",null,"",null,null,0,null,null,null,"","",""]
[null,null,null,null,null,null,"",null,"",null,null,0,null,null,null,"","",""]
[null,null,null,null,null,null,"",null,"",null,null,0,null,null,null,"","",""]
[null,null,null,null,null,null,"",null,"",null,null,0,null,null,null,"","",""]
[null,null,null,null,null,null,"",null,"",null,null,0,null,null,null,"","",""]
[null,null,null,null,null,null,"",null,"",null,null,0,null,null,null,"","",""]
[null,null,null,null,null,null,"",null,"",null,null,0,null,null,null,"","",""]
[null,null,null,null,null,null,"",null,"",null,null,0,null,null,null,"","",""]
[null,null,null,null,null,null,"",null,"",null,null,0,null,null,null,"","",""]
[null,null,null,null,null,null,"",null,"",null,null,0,null,null,null,"","",""]
[null,null,null,null,null,null,"",null,"",null,null,0,null,null,null,"","",""]
[null,null,null,null,null,null,"",null,"",null,null,0,null,null,null,"","",""]
[null,null,null,null,null,null,"",null,"",null,null,0,null,null,null,"","",""]
[null,null,null,null,null,null,"",null,"",null,null,0,null,null,null,"","",""]
[null,null,null,null,null,null,"",null,"",null,null,0,null,null,null,"","",""]
[null,null,null,null,null,null,{"$f":"IF(F2946>0,VLOOKUP(F2946,client,2,0),\"\")","v":""},null,{"$f":"IF(H2946>0,VLOOKUP(H2946,product,2,0),\"\")","v":""},null,null,0,null,null,null,{"$f":"IF(L2946=0,\"\",IF(O2946=L2946,\"ok\",\"error\"))","v":""},{"$f":"IF(C2946=\"رصيد\",\"رصيد أول\",IF(C2946>0,C2946,\"\"))","v":""},""]
[null,null,null,null,null,null,"",null,"",null,null,{"$f":"J2947*K2947","v":0},null,null,null,"","",{"$f":"IF(C2947=\"\",\"\",MONTH(C2947))","v":""}]
[null,null,null,null,null,null,"",null,"",null,null,0,null,null,null,"","",""]
[null,null,null,null,null,null,"",null,"",null,null,0,null,null,null,"","",""]
[null,null,null,null,null,null,"",null,"",null,null,0,null,null,null,"","",""]
[null,null,null,null,null,null,"",null,"",null,null,0,null,null,null,"","",""]
[null,null,null,null,null,null,"",null,"",null,null,0,null,null,null,"","",""]
[null,null,null,null,null,null,"",null,"",null,null,0,null,null,null,"","",""]
[null,null,null,null,null,null,"",null,"",null,null,0,null,null,null,"","",""]
[null,null,null,null,null,null,"",null,"",null,null,0,null,null,null,"","",""]
[null,null,null,null,null,null,"",null,"",null,null,0,null,null,null,"","",""]
[null,null,null,null,null,null,"",null,"",null,null,0,null,null,null,"","",""]
[null,null,null,null,null,null,"",null,"",null,null,0,null,null,null,"","",""]
[null,null,null,null,null,null,"",null,"",null,null,0,null,null,null,"","",""]
[null,null,null,null,null,null,"",null,"",null,null,0,null,null,null,"","",""]
[null,null,null,null,null,null,"",null,"",null,null,0,null,null,null,"","",""]
[null,null,null,null,null,null,"",null,"",null,null,0,null,null,null,"","",""]
[null,null,null,null,null,null,"",null,"",null,null,0,null,null,null,"","",""]
[null,null,null,null,null,null,"",null,"",null,null,0,null,null,null,"","",""]
[null,null,null,null,null,null,"",null,"",null,null,0,null,null,null,"","",""]
[null,null,null,null,null,null,"",null,"",null,null,0,null,null,null,"","",""]
[null,null,null,null,null,null,"",null,"",null,null,0,null,null,null,"","",""]
[null,null,null,null,null,null,"",null,"",null,null,0,null,null,null,"","",""]
[null,null,null,null,null,null,"",null,"",null,null,0,null,null,null,"","",""]
[null,null,null,null,null,null,"",null,"",null,null,0,null,null,null,"","",""]
[null,null,null,null,null,null,"",null,"",null,null,0,null,null,null,"","",""]
[null,null,null,null,null,null,"",null,"",null,null,0,null,null,null,"","",""]
[null,null,null,null,null,null,"",null,"",null,null,0,null,null,null,"","",""]
[null,null,null,null,null,null,"",null,"",null,null,0,null,null,null,"","",""]
[null,null,null,null,null,null,"",null,"",null,null,0,null,null,null,"","",""]
[null,null,null,null,null,null,"",null,"",null,null,0,null,null,null,"","",""]
[null,null,null,null,null,null,"",null,"",null,null,0,null,null,null,"","",""]
[null,null,null,null,null,null,"",null,"",null,null,0,null,null,null,"","",""]
[null,null,null,null,null,null,"",null,"",null,null,0,null,null,null,"","",""]
[null,null,null,null,null,null,"",null,"",null,null,0,null,null,null,"","",""]
[null,null,null,null,null,null,"",null,"",null,null,0,null,null,null,"","",""]
[null,null,null,null,null,null,"",null,"",null,null,0,null,null,null,"","",""]
[null,null,null,null,null,null,"",null,"",null,null,0,null,null,null,"","",""]
[null,null,null,null,null,null,"",null,"",null,null,0,null,null,null,"","",""]
[null,null,null,null,null,null,"",null,"",null,null,0,null,null,null,"","",""]
[null,null,null,null,null,null,"",null,"",null,null,0,null,null,null,"","",""]
[null,null,null,null,null,null,"",null,"",null,null,0,null,null,null,"","",""]
[null,null,null,null,null,null,"",null,"",null,null,0,null,null,null,"","",""]
[null,null,null,null,null,null,"",null,"",null,null,0,null,null,null,"","",""]
[null,null,null,null,null,null,"",null,"",null,null,0,null,null,null,"","",""]
[null,null,null,null,null,null,"",null,"",null,null,0,null,null,null,"","",""]
[null,null,null,null,null,null,"",null,"",null,null,0,null,null,null,"","",""]
[null,null,null,null,null,null,"",null,"",null,null,0,null,null,null,"","",""]
[null,null,null,null,null,null,"",null,"",null,null,0,null,null,null,"","",""]
[null,null,null,null,null,null,"",null,"",null,null,0,null,null,null,"","",""]
[null,null,null,null,null,null,"",null,"",null,null,0,null,null,null,"","",""]
[null,null,null,null,null,null,"",null,"",null,null,0,null,null,null,"","",""]
[null,null,null,null,null,null,"",null,"",null,null,0,null,null,null,"","",""]
[null,null,null,null,null,null,"",null,"",null,null,0,null,null,null,"","",""]
[null,null,null,null,null,null,"",null,"",null,null,0,null,null,null,"","",""]
[null,null,null,null,null,null,"",null,"",null,null,0,null,null,null,"","",""]
[null,null,null,null,null,null,"",null,"",null,null,0,null,null,null,"","",""]
[null,null,null,null,null,null,"",null,"",null,null,0,null,null,null,"","",""]
[null,null,null,null,null,null,"",null,"",null,null,0,null,null,null,"","",""]
[null,null,null,null,null,null,"",null,"",null,null,0,null,null,null,"","",""]
[null,null,null,null,null,null,"",null,"",null,null,0,null,null,null,"","",""]
[null,null,null,null,null,null,"",null,"",null,null,0,null,null,null,"","",""]
[null,null,null,null,null,null,"",null,"",null,null,0,null,null,null,"","",""]
[null,null,null,null,null,null,"",null,"",null,null,0,null,null,null,"","",""]
[null,null,null,null,null,null,{"$f":"IF(F3010>0,VLOOKUP(F3010,client,2,0),\"\")","v":""},null,{"$f":"IF(H3010>0,VLOOKUP(H3010,product,2,0),\"\")","v":""},null,null,0,null,null,null,{"$f":"IF(L3010=0,\"\",IF(O3010=L3010,\"ok\",\"error\"))","v":""},{"$f":"IF(C3010=\"رصيد\",\"رصيد أول\",IF(C3010>0,C3010,\"\"))","v":""},""]
[null,null,null,null,null,null,"",null,"",null,null,{"$f":"J3011*K3011","v":0},null,null,null,"","",{"$f":"IF(C3011=\"\",\"\",MONTH(C3011))","v":""}]
[null,null,null,null,null,null,"",null,"",null,null,0,null,null,null,"","",""]
[null,null,null,null,null,null,"",null,"",null,null,0,null,null,null,"","",""]
[null,null,null,null,null,null,"",null,"",null,null,0,null,null,null,"","",""]
[null,null,null,null,null,null,"",null,"",null,null,0,null,null,null,"","",""]
[null,null,null,null,null,null,"",null,"",null,null,0,null,null,null,"","",""]
[null,null,null,null,null,null,"",null,"",null,null,0,null,null,null,"","",""]
[null,null,null,null,null,null,"",null,"",null,null,0,null,null,null,"","",""]
[null,null,null,null,null,null,"",null,"",null,null,0,null,null,null,"","",""]
[null,null,null,null,null,null,"",null,"",null,null,0,null,null,null,"","",""]
[null,null,null,null,null,null,"",null,"",null,null,0,null,null,null,"","",""]
[null,null,null,null,null,null,"",null,"",null,null,0,null,null,null,"","",""]
[null,null,null,null,null,null,"",null,"",null,null,0,null,null,null,"","",""]
[null,null,null,null,null,null,"",null,"",null,null,0,null,null,null,"","",""]
[null,null,null,null,null,null,"",null,"",null,null,0,null,null,null,"","",""]
[null,null,null,null,null,null,"",null,"",null,null,0,null,null,null,"","",""]
[null,null,null,null,null,null,"",null,"",null,null,0,null,null,null,"","",""]
[null,null,null,null,null,null,"",null,"",null,null,0,null,null,null,"","",""]
[null,null,null,null,null,null,"",null,"",null,null,0,null,null,null,"","",""]
[null,null,null,null,null,null,"",null,"",null,null,0,null,null,null,"","",""]
[null,null,null,null,null,null,"",null,"",null,null,0,null,null,null,"","",""]
[null,null,null,null,null,null,"",null,"",null,null,0,null,null,null,"","",""]
[null,null,null,null,null,null,"",null,"",null,null,0,null,null,null,"","",""]
[null,null,null,null,null,null,"",null,"",null,null,0,null,null,null,"","",""]
[null,null,null,null,null,null,"",null,"",null,null,0,null,null,null,"","",""]
[null,null,null,null,null,null,"",null,"",null,null,0,null,null,null,"","",""]
[null,null,null,null,null,null,"",null,"",null,null,0,null,null,null,"","",""]
[null,null,null,null,null,null,"",null,"",null,null,0,null,null,null,"","",""]
[null,null,null,null,null,null,"",null,"",null,null,0,null,null,null,"","",""]
[null,null,null,null,null,null,"",null,"",null,null,0,null,null,null,"","",""]
[null,null,null,null,null,null,"",null,"",null,null,0,null,null,null,"","",""]
[null,null,null,null,null,null,"",null,"",null,null,0,null,null,null,"","",""]
[null,null,null,null,null,null,"",null,"",null,null,0,null,null,null,"","",""]
[null,null,null,null,null,null,"",null,"",null,null,0,null,null,null,"","",""]
[null,null,null,null,null,null,"",null,"",null,null,0,null,null,null,"","",""]
[null,null,null,null,null,null,"",null,"",null,null,0,null,null,null,"","",""]
[null,null,null,null,null,null,"",null,"",null,null,0,null,null,null,"","",""]
[null,null,null,null,null,null,"",null,"",null,null,0,null,null,null,"","",""]
[null,null,null,null,null,null,"",null,"",null,null,0,null,null,null,"","",""]
[null,null,null,null,null,null,"",null,"",null,null,0,null,null,null,"","",""]
[null,null,null,null,null,null,"",null,"",null,null,0,null,null,null,"","",""]
[null,null,null,null,null,null,"",null,"",null,null,0,null,null,null,"","",""]
[null,null,null,null,null,null,"",null,"",null,null,0,null,null,null,"","",""]
[null,null,null,null,null,null,"",null,"",null,null,0,null,null,null,"","",""]
[null,null,null,null,null,null,"",null,"",null,null,0,null,null,null,"","",""]
[null,null,null,null,null,null,"",null,"",null,null,0,null,null,null,"","",""]
[null,null,null,null,null,null,"",null,"",null,null,0,null,null,null,"","",""]
[null,null,null,null,null,null,"",null,"",null,null,0,null,null,null,"","",""]
[null,null,null,null,null,null,"",null,"",null,null,0,null,null,null,"","",""]
[null,null,null,null,null,null,"",null,"",null,null,0,null,null,null,"","",""]
[null,null,null,null,null,null,"",null,"",null,null,0,null,null,null,"","",""]
[null,null,null,null,null,null,"",null,"",null,null,0,null,null,null,"","",""]
[null,null,null,null,null,null,"",null,"",null,null,0,null,null,null,"","",""]
[null,null,null,null,null,null,"",null,"",null,null,0,null,null,null,"","",""]
[null,null,null,null,null,null,"",null,"",null,null,0,null,null,null,"","",""]
[null,null,null,null,null,null,"",null,"",null,null,0,null,null,null,"","",""]
[null,null,null,null,null,null,"",null,"",null,null,0,null,null,null,"","",""]
[null,null,null,null,null,null,"",null,"",null,null,0,null,null,null,"","",""]
[null,null,null,null,null,null,"",null,"",null,null,0,null,null,null,"","",""]
[null,null,null,null,null,null,"",null,"",null,null,0,null,null,null,"","",""]
[null,null,null,null,null,null,"",null,"",null,null,0,null,null,null,"","",""]
[null,null,null,null,null,null,"",null,"",null,null,0,null,null,null,"","",""]
[null,null,null,null,null,null,"",null,"",null,null,0,null,null,null,"","",""]
[null,null,null,null,null,null,{"$f":"IF(F3074>0,VLOOKUP(F3074,client,2,0),\"\")","v":""},null,{"$f":"IF(H3074>0,VLOOKUP(H3074,product,2,0),\"\")","v":""},null,null,0,null,null,null,{"$f":"IF(L3074=0,\"\",IF(O3074=L3074,\"ok\",\"error\"))","v":""},{"$f":"IF(C3074=\"رصيد\",\"رصيد أول\",IF(C3074>0,C3074,\"\"))","v":""},""]
[null,null,null,null,null,null,"",null,"",null,null,{"$f":"J3075*K3075","v":0},null,null,null,"","",{"$f":"IF(C3075=\"\",\"\",MONTH(C3075))","v":""}]
[null,null,null,null,null,null,"",null,"",null,null,0,null,null,null,"","",""]
[null,null,null,null,null,null,"",null,"",null,null,0,null,null,null,"","",""]
[null,null,null,null,null,null,"",null,"",null,null,0,null,null,null,"","",""]
[null,null,null,null,null,null,"",null,"",null,null,0,null,null,null,"","",""]
[null,null,null,null,null,null,"",null,"",null,null,0,null,null,null,"","",""]
[null,null,null,null,null,null,"",null,"",null,null,0,null,null,null,"","",""]
[null,null,null,null,null,null,"",null,"",null,null,0,null,null,null,"","",""]
[null,null,null,null,null,null,"",null,"",null,null,0,null,null,null,"","",""]
[null,null,null,null,null,null,"",null,"",null,null,0,null,null,null,"","",""]
[null,null,null,null,null,null,"",null,"",null,null,0,null,null,null,"","",""]
[null,null,null,null,null,null,"",null,"",null,null,0,null,null,null,"","",""]
[null,null,null,null,null,null,"",null,"",null,null,0,null,null,null,"","",""]
[null,null,null,null,null,null,"",null,"",null,null,0,null,null,null,"","",""]
[null,null,null,null,null,null,"",null,"",null,null,0,null,null,null,"","",""]
[null,null,null,null,null,null,"",null,"",null,null,0,null,null,null,"","",""]
[null,null,null,null,null,null,"",null,"",null,null,0,null,null,null,"","",""]
[null,null,null,null,null,null,"",null,"",null,null,0,null,null,null,"","",""]
[null,null,null,null,null,null,"",null,"",null,null,0,null,null,null,"","",""]
[null,null,null,null,null,null,"",null,"",null,null,0,null,null,null,"","",""]
[null,null,null,null,null,null,"",null,"",null,null,0,null,null,null,"","",""]
[null,null,null,null,null,null,"",null,"",null,null,0,null,null,null,"","",""]
[null,null,null,null,null,null,"",null,"",null,null,0,null,null,null,"","",""]
[null,null,null,null,null,null,"",null,"",null,null,0,null,null,null,"","",""]
[null,null,null,null,null,null,"",null,"",null,null,0,null,null,null,"","",""]
[null,null,null,null,null,null,"",null,"",null,null,0,null,null,null,"","",""]
[null,null,null,null,null,null,"",null,"",null,null,0,null,null,null,"","",""]
[null,null,null,null,null,null,"",null,"",null,null,0,null,null,null,"","",""]
[null,null,null,null,null,null,"",null,"",null,null,0,null,null,null,"","",""]
[null,null,null,null,null,null,"",null,"",null,null,0,null,null,null,"","",""]
[null,null,null,null,null,null,"",null,"",null,null,0,null,null,null,"","",""]
[null,null,null,null,null,null,"",null,"",null,null,0,null,null,null,"","",""]
[null,null,null,null,null,null,"",null,"",null,null,0,null,null,null,"","",""]
[null,null,null,null,null,null,"",null,"",null,null,0,null,null,null,"","",""]
[null,null,null,null,null,null,"",null,"",null,null,0,null,null,null,"","",""]
[null,null,null,null,null,null,"",null,"",null,null,0,null,null,null,"","",""]
[null,null,null,null,null,null,"",null,"",null,null,0,null,null,null,"","",""]
[null,null,null,null,null,null,"",null,"",null,null,0,null,null,null,"","",""]
[null,null,null,null,null,null,"",null,"",null,null,0,null,null,null,"","",""]
[null,null,null,null,null,null,"",null,"",null,null,0,null,null,null,"","",""]
[null,null,null,null,null,null,"",null,"",null,null,0,null,null,null,"","",""]
[null,null,null,null,null,null,"",null,"",null,null,0,null,null,null,"","",""]
[null,null,null,null,null,null,"",null,"",null,null,0,null,null,null,"","",""]
[null,null,null,null,null,null,"",null,"",null,null,0,null,null,null,"","",""]
[null,null,null,null,null,null,"",null,"",null,null,0,null,null,null,"","",""]
[null,null,null,null,null,null,"",null,"",null,null,0,null,null,null,"","",""]
[null,null,null,null,null,null,"",null,"",null,null,0,null,null,null,"","",""]
[null,null,null,null,null,null,"",null,"",null,null,0,null,null,null,"","",""]
[null,null,null,null,null,null,"",null,"",null,null,0,null,null,null,"","",""]
[null,null,null,null,null,null,"",null,"",null,null,0,null,null,null,"","",""]
[null,null,null,null,null,null,"",null,"",null,null,0,null,null,null,"","",""]
[null,null,null,null,null,null,"",null,"",null,null,0,null,null,null,"","",""]
[null,null,null,null,null,null,"",null,"",null,null,0,null,null,null,"","",""]
[null,null,null,null,null,null,"",null,"",null,null,0,null,null,null,"","",""]
[null,null,null,null,null,null,"",null,"",null,null,0,null,null,null,"","",""]
[null,null,null,null,null,null,"",null,"",null,null,0,null,null,null,"","",""]
[null,null,null,null,null,null,"",null,"",null,null,0,null,null,null,"","",""]
[null,null,null,null,null,null,"",null,"",null,null,0,null,null,null,"","",""]
[null,null,null,null,null,null,"",null,"",null,null,0,null,null,null,"","",""]
[null,null,null,null,null,null,"",null,"",null,null,0,null,null,null,"","",""]
[null,null,null,null,null,null,"",null,"",null,null,0,null,null,null,"","",""]
[null,null,null,null,null,null,"",null,"",null,null,0,null,null,null,"","",""]
[null,null,null,null,null,null,"",null,"",null,null,0,null,null,null,"","",""]
[null,null,null,null,null,null,{"$f":"IF(F3138>0,VLOOKUP(F3138,client,2,0),\"\")","v":""},null,{"$f":"IF(H3138>0,VLOOKUP(H3138,product,2,0),\"\")","v":""},null,null,0,null,null,null,{"$f":"IF(L3138=0,\"\",IF(O3138=L3138,\"ok\",\"error\"))","v":""},{"$f":"IF(C3138=\"رصيد\",\"رصيد أول\",IF(C3138>0,C3138,\"\"))","v":""},""]
[null,null,null,null,null,null,"",null,"",null,null,{"$f":"J3139*K3139","v":0},null,null,null,"","",{"$f":"IF(C3139=\"\",\"\",MONTH(C3139))","v":""}]
[null,null,null,null,null,null,"",null,"",null,null,0,null,null,null,"","",""]
[null,null,null,null,null,null,"",null,"",null,null,0,null,null,null,"","",""]
[null,null,null,null,null,null,"",null,"",null,null,0,null,null,null,"","",""]
[null,null,null,null,null,null,"",null,"",null,null,0,null,null,null,"","",""]
[null,null,null,null,null,null,"",null,"",null,null,0,null,null,null,"","",""]
[null,null,null,null,null,null,"",null,"",null,null,0,null,null,null,"","",""]
[null,null,null,null,null,null,"",null,"",null,null,0,null,null,null,"","",""]
[null,null,null,null,null,null,"",null,"",null,null,0,null,null,null,"","",""]
[null,null,null,null,null,null,"",null,"",null,null,0,null,null,null,"","",""]
[null,null,null,null,null,null,"",null,"",null,null,0,null,null,null,"","",""]
[null,null,null,null,null,null,"",null,"",null,null,0,null,null,null,"","",""]
[null,null,null,null,null,null,"",null,"",null,null,0,null,null,null,"","",""]
[null,null,null,null,null,null,"",null,"",null,null,0,null,null,null,"","",""]
[null,null,null,null,null,null,"",null,"",null,null,0,null,null,null,"","",""]
[null,null,null,null,null,null,"",null,"",null,null,0,null,null,null,"","",""]
[null,null,null,null,null,null,"",null,"",null,null,0,null,null,null,"","",""]
[null,null,null,null,null,null,"",null,"",null,null,0,null,null,null,"","",""]
[null,null,null,null,null,null,"",null,"",null,null,0,null,null,null,"","",""]
[null,null,null,null,null,null,"",null,"",null,null,0,null,null,null,"","",""]
[null,null,null,null,null,null,"",null,"",null,null,0,null,null,null,"","",""]
[null,null,null,null,null,null,"",null,"",null,null,0,null,null,null,"","",""]
[null,null,null,null,null,null,"",null,"",null,null,0,null,null,null,"","",""]
[null,null,null,null,null,null,"",null,"",null,null,0,null,null,null,"","",""]
[null,null,null,null,null,null,"",null,"",null,null,0,null,null,null,"","",""]
[null,null,null,null,null,null,"",null,"",null,null,0,null,null,null,"","",""]
[null,null,null,null,null,null,"",null,"",null,null,0,null,null,null,"","",""]
[null,null,null,null,null,null,"",null,"",null,null,0,null,null,null,"",null,""]
[null,null,null,null,null,null,"",null,"",null,null,0,null,null,null,"",null,""]
[null,null,null,null,null,null,"",null,"",null,null,0,null,null,null,"",null,""]
[null,null,null,null,null,null,"",null,"",null,null,0,null,null,null,"",null,""]
[null,null,null,null,null,null,"",null,"",null,null,0,null,null,null,"",null,""]
[null,null,null,null,null,null,"",null,"",null,null,0,null,null,null,"",null,""]
[null,null,null,null,null,null,"",null,"",null,null,0,null,null,null,"",null,""]
[null,null,null,null,null,null,"",null,"",null,null,0,null,null,null,"",null,""]
[null,null,null,null,null,null,"",null,"",null,null,0,null,null,null,"",null,""]
[null,null,null,null,null,null,"",null,"",null,null,0,null,null,null,"",null,""]
[null,null,null,null,null,null,"",null,"",null,null,0,null,null,null,"",null,""]
[null,null,null,null,null,null,"",null,"",null,null,0,null,null,null,"",null,""]
[null,null,null,null,null,null,"",null,"",null,null,0,null,null,null,"",null,""]
[null,null,null,null,null,null,"",null,"",null,null,0,null,null,null,"",null,""]
[null,null,null,null,null,null,"",null,"",null,null,0,null,null,null,"",null,""]
[null,null,null,null,null,null,"",null,"",null,null,0,null,null,null,"",null,""]
[null,null,null,null,null,null,"",null,"",null,null,0,null,null,null,"",null,""]
[null,null,null,null,null,null,"",null,"",null,null,0,null,null,null,"",null,""]
[null,null,null,null,null,null,"",null,"",null,null,0,null,null,null,"",null,""]
[null,null,null,null,null,null,"",null,"",null,null,0,null,null,null,"",null,""]
[null,null,null,null,null,null,"",null,"",null,null,0,null,null,null,"",null,""]
[null,null,null,null,null,null,"",null,"",null,null,0,null,null,null,"",null,""]
[null,null,null,null,null,null,"",null,"",null,null,0,null,null,null,"",null,""]
[null,null,null,null,null,null,"",null,"",null,null,0,null,null,null,"",null,""]
[null,null,null,null,null,null,"",null,"",null,null,0,null,null,null,"",null,""]
[null,null,null,null,null,null,"",null,"",null,null,0,null,null,null,"",null,""]
[null,null,null,null,null,null,"",null,"",null,null,0,null,null,null,"",null,""]
[null,null,null,null,null,null,"",null,"",null,null,0,null,null,null,"",null,""]
[null,null,null,null,null,null,"",null,"",null,null,0,null,null,null,"",null,""]
[null,null,null,null,null,null,"",null,"",null,null,0,null,null,null,"",null,""]
[null,null,null,null,null,null,"",null,"",null,null,0,null,null,null,"",null,""]
[null,null,null,null,null,null,"",null,"",null,null,0,null,null,null,"",null,""]
[null,null,null,null,null,null,"",null,"",null,null,0,null,null,null,"",null,""]
[null,null,null,null,null,null,"",null,"",null,null,0,null,null,null,"",null,""]
[null,null,null,null,null,null,"",null,"",null,null,0,null,null,null,"",null,""]
[null,null,null,null,null,null,"",null,"",null,null,0,null,null,null,"",null,""]
[null,null,null,null,null,null,{"$f":"IF(F3202>0,VLOOKUP(F3202,client,2,0),\"\")","v":""},null,{"$f":"IF(H3202>0,VLOOKUP(H3202,product,2,0),\"\")","v":""},null,null,0,null,null,null,{"$f":"IF(L3202=0,\"\",IF(O3202=L3202,\"ok\",\"error\"))","v":""},null,""]
[null,null,null,null,null,null,"",null,"",null,null,{"$f":"J3203*K3203","v":0},null,null,null,"",null,{"$f":"IF(C3203=\"\",\"\",MONTH(C3203))","v":""}]
[null,null,null,null,null,null,"",null,"",null,null,0,null,null,null,"",null,""]
[null,null,null,null,null,null,"",null,"",null,null,0,null,null,null,"",null,""]
[null,null,null,null,null,null,"",null,"",null,null,0,null,null,null,"",null,""]
[null,null,null,null,null,null,"",null,"",null,null,0,null,null,null,"",null,""]
[null,null,null,null,null,null,"",null,"",null,null,0,null,null,null,"",null,""]
[null,null,null,null,null,null,"",null,"",null,null,0,null,null,null,"",null,""]
[null,null,null,null,null,null,"",null,"",null,null,0,null,null,null,"",null,""]
[null,null,null,null,null,null,"",null,"",null,null,0,null,null,null,"",null,""]
[null,null,null,null,null,null,"",null,"",null,null,0,null,null,null,"",null,""]
[null,null,null,null,null,null,"",null,"",null,null,0,null,null,null,"",null,""]
[null,null,null,null,null,null,"",null,"",null,null,0,null,null,null,"",null,""]
[null,null,null,null,null,null,"",null,"",null,null,0,null,null,null,"",null,""]
[null,null,null,null,null,null,"",null,"",null,null,0,null,null,null,"",null,""]
[null,null,null,null,null,null,"",null,"",null,null,0,null,null,null,"",null,""]
[null,null,null,null,null,null,"",null,"",null,null,0,null,null,null,"",null,""]
[null,null,null,null,null,null,"",null,"",null,null,0,null,null,null,"",null,""]
[null,null,null,null,null,null,"",null,"",null,null,0,null,null,null,"",null,""]
[null,null,null,null,null,null,"",null,"",null,null,0,null,null,null,"",null,""]
[null,null,null,null,null,null,"",null,"",null,null,0,null,null,null,"",null,""]
[null,null,null,null,null,null,"",null,"",null,null,0,null,null,null,"",null,""]
[null,null,null,null,null,null,"",null,"",null,null,0,null,null,null,"",null,""]
[null,null,null,null,null,null,"",null,"",null,null,0,null,null,null,"",null,""]
[null,null,null,null,null,null,"",null,"",null,null,0,null,null,null,"",null,""]
[null,null,null,null,null,null,"",null,"",null,null,0,null,null,null,"",null,""]
[null,null,null,null,null,null,"",null,"",null,null,0,null,null,null,"",null,""]
[null,null,null,null,null,null,"",null,"",null,null,0,null,null,null,"",null,""]
[null,null,null,null,null,null,"",null,"",null,null,0,null,null,null,"",null,""]
[null,null,null,null,null,null,"",null,"",null,null,0,null,null,null,"",null,""]
[null,null,null,null,null,null,"",null,"",null,null,0,null,null,null,"",null,""]
[null,null,null,null,null,null,"",null,"",null,null,0,null,null,null,"",null,""]
[null,null,null,null,null,null,"",null,"",null,null,0,null,null,null,"",null,""]
[null,null,null,null,null,null,"",null,"",null,null,0,null,null,null,"",null,""]
[null,null,null,null,null,null,"",null,"",null,null,0,null,null,null,"",null,""]
[null,null,null,null,null,null,"",null,"",null,null,0,null,null,null,"",null,""]
[null,null,null,null,null,null,"",null,"",null,null,0,null,null,null,"",null,""]
[null,null,null,null,null,null,"",null,"",null,null,0,null,null,null,"",null,""]
[null,null,null,null,null,null,"",null,"",null,null,0,null,null,null,"",null,""]
[null,null,null,null,null,null,"",null,"",null,null,0,null,null,null,"",null,""]
[null,null,null,null,null,null,"",null,"",null,null,0,null,null,null,"",null,""]
[null,null,null,null,null,null,"",null,"",null,null,0,null,null,null,"",null,""]
[null,null,null,null,null,null,"",null,"",null,null,0,null,null,null,"",null,""]
[null,null,null,null,null,null,"",null,"",null,null,0,null,null,null,"",null,""]
[null,null,null,null,null,null,"",null,"",null,null,0,null,null,null,"",null,""]
[null,null,null,null,null,null,"",null,"",null,null,0,null,null,null,"",null,""]
[null,null,null,null,null,null,"",null,"",null,null,0,null,null,null,"",null,""]
[null,null,null,null,null,null,"",null,"",null,null,0,null,null,null,"",null,""]
[null,null,null,null,null,null,"",null,"",null,null,0,null,null,null,"",null,""]
[null,null,null,null,null,null,"",null,"",null,null,0,null,null,null,"",null,""]
[null,null,null,null,null,null,"",null,"",null,null,0,null,null,null,"",null,""]
[null,null,null,null,null,null,"",null,"",null,null,0,null,null,null,"",null,""]
[null,null,null,null,null,null,"",null,"",null,null,0,null,null,null,"",null,""]
[null,null,null,null,null,null,"",null,"",null,null,0,null,null,null,"",null,""]
[null,null,null,null,null,null,"",null,"",null,null,0,null,null,null,"",null,""]
[null,null,null,null,null,null,"",null,"",null,null,0,null,null,null,"",null,""]
[null,null,null,null,null,null,"",null,"",null,null,0,null,null,null,"",null,""]
[null,null,null,null,null,null,"",null,"",null,null,0,null,null,null,"",null,""]
[null,null,null,null,null,null,"",null,"",null,null,0,null,null,null,"",null,""]
[null,null,null,null,null,null,"",null,"",null,null,0,null,null,null,"",null,""]
[null,null,null,null,null,null,"",null,"",null,null,0,null,null,null,"",null,""]
[null,null,null,null,null,null,"",null,"",null,null,0,null,null,null,"",null,""]
[null,null,null,null,null,null,"",null,"",null,null,0,null,null,null,"",null,""]
[null,null,null,null,null,null,"",null,"",null,null,0,null,null,null,"",null,""]
[null,null,null,null,null,null,{"$f":"IF(F3266>0,VLOOKUP(F3266,client,2,0),\"\")","v":""},null,{"$f":"IF(H3266>0,VLOOKUP(H3266,product,2,0),\"\")","v":""},null,null,0,null,null,null,{"$f":"IF(L3266=0,\"\",IF(O3266=L3266,\"ok\",\"error\"))","v":""},null,""]
[null,null,null,null,null,null,"",null,"",null,null,{"$f":"J3267*K3267","v":0},null,null,null,"",null,{"$f":"IF(C3267=\"\",\"\",MONTH(C3267))","v":""}]
[null,null,null,null,null,null,"",null,"",null,null,0,null,null,null,"",null,""]
[null,null,null,null,null,null,"",null,"",null,null,0,null,null,null,"",null,""]
[null,null,null,null,null,null,"",null,"",null,null,0,null,null,null,"",null,""]
[null,null,null,null,null,null,"",null,"",null,null,0,null,null,null,"",null,""]
[null,null,null,null,null,null,"",null,"",null,null,0,null,null,null,"",null,""]
[null,null,null,null,null,null,"",null,"",null,null,0,null,null,null,"",null,""]
[null,null,null,null,null,null,"",null,"",null,null,0,null,null,null,"",null,""]
[null,null,null,null,null,null,"",null,"",null,null,0,null,null,null,"",null,""]
[null,null,null,null,null,null,"",null,"",null,null,0,null,null,null,"",null,""]
[null,null,null,null,null,null,"",null,"",null,null,0,null,null,null,"",null,""]
[null,null,null,null,null,null,"",null,"",null,null,0,null,null,null,"",null,""]
[null,null,null,null,null,null,"",null,"",null,null,0,null,null,null,"",null,""]
[null,null,null,null,null,null,"",null,"",null,null,0,null,null,null,"",null,""]
[null,null,null,null,null,null,"",null,"",null,null,0,null,null,null,"",null,""]
[null,null,null,null,null,null,"",null,"",null,null,0,null,null,null,"",null,""]
[null,null,null,null,null,null,"",null,"",null,null,0,null,null,null,"",null,""]
[null,null,null,null,null,null,"",null,"",null,null,0,null,null,null,"",null,""]
[null,null,null,null,null,null,"",null,"",null,null,0,null,null,null,"",null,""]
[null,null,null,null,null,null,"",null,"",null,null,0,null,null,null,"",null,""]
[null,null,null,null,null,null,"",null,"",null,null,0,null,null,null,"",null,""]
[null,null,null,null,null,null,"",null,"",null,null,0,null,null,null,"",null,""]
[null,null,null,null,null,null,"",null,"",null,null,0,null,null,null,"",null,""]
[null,null,null,null,null,null,"",null,"",null,null,0,null,null,null,"",null,""]
[null,null,null,null,null,null,"",null,"",null,null,0,null,null,null,"",null,""]
[null,null,null,null,null,null,"",null,"",null,null,0,null,null,null,"",null,""]
[null,null,null,null,null,null,"",null,"",null,null,0,null,null,null,"",null,""]
[null,null,null,null,null,null,"",null,"",null,null,0,null,null,null,"",null,""]
[null,null,null,null,null,null,"",null,"",null,null,0,null,null,null,"",null,""]
[null,null,null,null,null,null,"",null,"",null,null,0,null,null,null,"",null,""]
[null,null,null,null,null,null,"",null,"",null,null,0,null,null,null,"",null,""]
[null,null,null,null,null,null,"",null,"",null,null,0,null,null,null,"",null,""]
[null,null,null,null,null,null,"",null,"",null,null,0,null,null,null,"",null,""]
[null,null,null,null,null,null,"",null,"",null,null,0,null,null,null,"",null,""]
[null,null,null,null,null,null,"",null,"",null,null,0,null,null,null,"",null,""]
[null,null,null,null,null,null,"",null,"",null,null,0,null,null,null,"",null,""]
[null,null,null,null,null,null,"",null,"",null,null,0,null,null,null,"",null,""]
[null,null,null,null,null,null,"",null,"",null,null,0,null,null,null,"",null,""]
[null,null,null,null,null,null,"",null,"",null,null,0,null,null,null,"",null,""]
[null,null,null,null,null,null,"",null,"",null,null,0,null,null,null,"",null,""]
[null,null,null,null,null,null,"",null,"",null,null,0,null,null,null,"",null,""]
[null,null,null,null,null,null,"",null,"",null,null,0,null,null,null,"",null,""]
[null,null,null,null,null,null,"",null,"",null,null,0,null,null,null,"",null,""]
[null,null,null,null,null,null,"",null,"",null,null,0,null,null,null,"",null,""]
[null,null,null,null,null,null,"",null,"",null,null,0,null,null,null,"",null,""]
[null,null,null,null,null,null,"",null,"",null,null,0,null,null,null,"",null,""]
[null,null,null,null,null,null,"",null,"",null,null,0,null,null,null,"",null,""]
[null,null,null,null,null,null,"",null,"",null,null,0,null,null,null,"",null,""]
[null,null,null,null,null,null,"",null,"",null,null,0,null,null,null,"",null,""]
[null,null,null,null,null,null,"",null,"",null,null,0,null,null,null,"",null,""]
[null,null,null,null,null,null,"",null,"",null,null,0,null,null,null,"",null,""]
[null,null,null,null,null,null,"",null,"",null,null,0,null,null,null,"",null,""]
[null,null,null,null,null,null,"",null,"",null,null,0,null,null,null,"",null,""]
[null,null,null,null,null,null,"",null,"",null,null,0,null,null,null,"",null,""]
[null,null,null,null,null,null,"",null,"",null,null,0,null,null,null,"",null,""]
[null,null,null,null,null,null,"",null,"",null,null,0,null,null,null,"",null,""]
[null,null,null,null,null,null,"",null,"",null,null,0,null,null,null,"",null,""]
[null,null,null,null,null,null,"",null,"",null,null,0,null,null,null,"",null,""]
[null,null,null,null,null,null,"",null,"",null,null,0,null,null,null,"",null,""]
[null,null,null,null,null,null,"",null,"",null,null,0,null,null,null,"",null,""]
[null,null,null,null,null,null,"",null,"",null,null,0,null,null,null,"",null,""]
[null,null,null,null,null,null,"",null,"",null,null,0,null,null,null,"",null,""]
[null,null,null,null,null,null,"",null,"",null,null,0,null,null,null,"",null,""]
[null,null,null,null,null,null,{"$f":"IF(F3330>0,VLOOKUP(F3330,client,2,0),\"\")","v":""},null,{"$f":"IF(H3330>0,VLOOKUP(H3330,product,2,0),\"\")","v":""},null,null,0,null,null,null,{"$f":"IF(L3330=0,\"\",IF(O3330=L3330,\"ok\",\"error\"))","v":""},null,""]
[null,null,null,null,null,null,"",null,"",null,null,{"$f":"J3331*K3331","v":0},null,null,null,"",null,{"$f":"IF(C3331=\"\",\"\",MONTH(C3331))","v":""}]
[null,null,null,null,null,null,"",null,"",null,null,0,null,null,null,"",null,""]
[null,null,null,null,null,null,"",null,"",null,null,0,null,null,null,"",null,""]
[null,null,null,null,null,null,"",null,"",null,null,0,null,null,null,"",null,""]
[null,null,null,null,null,null,"",null,"",null,null,0,null,null,null,"",null,""]
[null,null,null,null,null,null,"",null,"",null,null,0,null,null,null,"",null,""]
[null,null,null,null,null,null,"",null,"",null,null,0,null,null,null,"",null,""]
[null,null,null,null,null,null,"",null,"",null,null,0,null,null,null,"",null,""]
[null,null,null,null,null,null,"",null,"",null,null,0,null,null,null,"",null,""]
[null,null,null,null,null,null,"",null,"",null,null,0,null,null,null,"",null,""]
[null,null,null,null,null,null,"",null,"",null,null,0,null,null,null,"",null,""]
[null,null,null,null,null,null,"",null,"",null,null,0,null,null,null,"",null,""]
[null,null,null,null,null,null,"",null,"",null,null,0,null,null,null,"",null,""]
[null,null,null,null,null,null,"",null,"",null,null,0,null,null,null,"",null,""]
[null,null,null,null,null,null,"",null,"",null,null,0,null,null,null,"",null,""]
[null,null,null,null,null,null,"",null,"",null,null,0,null,null,null,"",null,""]
[null,null,null,null,null,null,"",null,"",null,null,0,null,null,null,"",null,""]
[null,null,null,null,null,null,"",null,"",null,null,0,null,null,null,"",null,""]
[null,null,null,null,null,null,"",null,"",null,null,0,null,null,null,"",null,""]
[null,null,null,null,null,null,"",null,"",null,null,0,null,null,null,"",null,""]
[null,null,null,null,null,null,"",null,"",null,null,0,null,null,null,"",null,""]
[null,null,null,null,null,null,"",null,"",null,null,0,null,null,null,"",null,""]
[null,null,null,null,null,null,"",null,"",null,null,0,null,null,null,"",null,""]
[null,null,null,null,null,null,"",null,"",null,null,0,null,null,null,"",null,""]
[null,null,null,null,null,null,"",null,"",null,null,0,null,null,null,"",null,""]
[null,null,null,null,null,null,"",null,"",null,null,0,null,null,null,"",null,""]
[null,null,null,null,null,null,"",null,"",null,null,0,null,null,null,"",null,""]
[null,null,null,null,null,null,"",null,"",null,null,0,null,null,null,"",null,""]
[null,null,null,null,null,null,"",null,"",null,null,0,null,null,null,"",null,""]
[null,null,null,null,null,null,"",null,"",null,null,0,null,null,null,"",null,""]
[null,null,null,null,null,null,"",null,"",null,null,0,null,null,null,"",null,""]
[null,null,null,null,null,null,"",null,"",null,null,0,null,null,null,"",null,""]
[null,null,null,null,null,null,"",null,"",null,null,0,null,null,null,"",null,""]
[null,null,null,null,null,null,"",null,"",null,null,0,null,null,null,"",null,""]
[null,null,null,null,null,null,"",null,"",null,null,0,null,null,null,"",null,""]
[null,null,null,null,null,null,"",null,"",null,null,0,null,null,null,"",null,""]
[null,null,null,null,null,null,"",null,"",null,null,0,null,null,null,"",null,""]
[null,null,null,null,null,null,"",null,"",null,null,0,null,null,null,"",null,""]
[null,null,null,null,null,null,"",null,"",null,null,0,null,null,null,"",null,""]
[null,null,null,null,null,null,"",null,"",null,null,0,null,null,null,"",null,""]
[null,null,null,null,null,null,"",null,"",null,null,0,null,null,null,"",null,""]
[null,null,null,null,null,null,"",null,"",null,null,0,null,null,null,"",null,""]
[null,null,null,null,null,null,"",null,"",null,null,0,null,null,null,"",null,""]
[null,null,null,null,null,null,"",null,"",null,null,0,null,null,null,"",null,""]
[null,null,null,null,null,null,"",null,"",null,null,0,null,null,null,"",null,""]
[null,null,null,null,null,null,"",null,"",null,null,0,null,null,null,"",null,""]
[null,null,null,null,null,null,"",null,"",null,null,0,null,null,null,"",null,""]
[null,null,null,null,null,null,"",null,"",null,null,0,null,null,null,"",null,""]
[null,null,null,null,null,null,"",null,"",null,null,0,null,null,null,"",null,""]
[null,null,null,null,null,null,"",null,"",null,null,0,null,null,null,"",null,""]
[null,null,null,null,null,null,"",null,"",null,null,0,null,null,null,"",null,""]
[null,null,null,null,null,null,"",null,"",null,null,0,null,null,null,"",null,""]
[null,null,null,null,null,null,"",null,"",null,null,0,null,null,null,"",null,""]
[null,null,null,null,null,null,"",null,"",null,null,0,null,null,null,"",null,""]
[null,null,null,null,null,null,"",null,"",null,null,0,null,null,null,"",null,""]
[null,null,null,null,null,null,"",null,"",null,null,0,null,null,null,"",null,""]
[null,null,null,null,null,null,"",null,"",null,null,0,null,null,null,"",null,""]
[null,null,null,null,null,null,"",null,"",null,null,0,null,null,null,"",null,""]
[null,null,null,null,null,null,"",null,"",null,null,0,null,null,null,"",null,""]
[null,null,null,null,null,null,"",null,"",null,null,0,null,null,null,"",null,""]
[null,null,null,null,null,null,"",null,"",null,null,0,null,null,null,"",null,""]
[null,null,null,null,null,null,"",null,"",null,null,0,null,null,null,"",null,""]
[null,null,null,null,null,null,"",null,"",null,null,0,null,null,null,"",null,""]
[null,null,null,null,null,null,{"$f":"IF(F3394>0,VLOOKUP(F3394,client,2,0),\"\")","v":""},null,{"$f":"IF(H3394>0,VLOOKUP(H3394,product,2,0),\"\")","v":""},null,null,0,null,null,null,{"$f":"IF(L3394=0,\"\",IF(O3394=L3394,\"ok\",\"error\"))","v":""},null,""]
[null,null,null,null,null,null,"",null,"",null,null,{"$f":"J3395*K3395","v":0},null,null,null,"",null,{"$f":"IF(C3395=\"\",\"\",MONTH(C3395))","v":""}]
[null,null,null,null,null,null,"",null,"",null,null,0,null,null,null,"",null,""]
[null,null,null,null,null,null,"",null,"",null,null,0,null,null,null,"",null,""]
[null,null,null,null,null,null,"",null,"",null,null,0,null,null,null,"",null,""]
[null,null,null,null,null,null,"",null,"",null,null,0,null,null,null,"",null,""]
[null,null,null,null,null,null,"",null,"",null,null,0,null,null,null,"",null,""]
[null,null,null,null,null,null,"",null,"",null,null,0,null,null,null,"",null,""]
[null,null,null,null,null,null,"",null,"",null,null,0,null,null,null,"",null,""]
[null,null,null,null,null,null,"",null,"",null,null,0,null,null,null,"",null,""]
[null,null,null,null,null,null,"",null,"",null,null,0,null,null,null,"",null,""]
[null,null,null,null,null,null,"",null,"",null,null,0,null,null,null,"",null,""]
[null,null,null,null,null,null,"",null,"",null,null,0,null,null,null,"",null,""]
[null,null,null,null,null,null,"",null,"",null,null,0,null,null,null,"",null,""]
[null,null,null,null,null,null,"",null,"",null,null,0,null,null,null,"",null,""]
[null,null,null,null,null,null,"",null,"",null,null,0,null,null,null,"",null,""]
[null,null,null,null,null,null,"",null,"",null,null,0,null,null,null,"",null,""]
[null,null,null,null,null,null,"",null,"",null,null,0,null,null,null,"",null,""]
[null,null,null,null,null,null,"",null,"",null,null,0,null,null,null,"",null,""]
[null,null,null,null,null,null,"",null,"",null,null,0,null,null,null,"",null,""]
[null,null,null,null,null,null,"",null,"",null,null,0,null,null,null,"",null,""]
[null,null,null,null,null,null,"",null,"",null,null,0,null,null,null,"",null,""]
[null,null,null,null,null,null,"",null,"",null,null,0,null,null,null,"",null,""]
[null,null,null,null,null,null,"",null,"",null,null,0,null,null,null,"",null,""]
[null,null,null,null,null,null,"",null,"",null,null,0,null,null,null,"",null,""]
[null,null,null,null,null,null,"",null,"",null,null,0,null,null,null,"",null,""]
[null,null,null,null,null,null,"",null,"",null,null,0,null,null,null,"",null,""]
[null,null,null,null,null,null,"",null,"",null,null,0,null,null,null,"",null,""]
[null,null,null,null,null,null,"",null,"",null,null,0,null,null,null,"",null,""]
[null,null,null,null,null,null,"",null,"",null,null,0,null,null,null,"",null,""]
[null,null,null,null,null,null,"",null,"",null,null,0,null,null,null,"",null,""]
[null,null,null,null,null,null,"",null,"",null,null,0,null,null,null,"",null,""]
[null,null,null,null,null,null,"",null,"",null,null,0,null,null,null,"",null,""]
[null,null,null,null,null,null,"",null,"",null,null,0,null,null,null,"",null,""]
[null,null,null,null,null,null,"",null,"",null,null,0,null,null,null,"",null,""]
[null,null,null,null,null,null,"",null,"",null,null,0,null,null,null,"",null,""]
[null,null,null,null,null,null,"",null,"",null,null,0,null,null,null,"",null,""]
[null,null,null,null,null,null,"",null,"",null,null,0,null,null,null,"",null,""]
[null,null,null,null,null,null,"",null,"",null,null,0,null,null,null,"",null,""]
[null,null,null,null,null,null,"",null,"",null,null,0,null,null,null,"",null,""]
[null,null,null,null,null,null,"",null,"",null,null,0,null,null,null,"",null,""]
[null,null,null,null,null,null,"",null,"",null,null,0,null,null,null,"",null,""]
[null,null,null,null,null,null,"",null,"",null,null,0,null,null,null,"",null,""]
[null,null,null,null,null,null,"",null,"",null,null,0,null,null,null,"",null,""]
[null,null,null,null,null,null,"",null,"",null,null,0,null,null,null,"",null,""]
[null,null,null,null,null,null,"",null,"",null,null,0,null,null,null,"",null,""]
[null,null,null,null,null,null,"",null,"",null,null,0,null,null,null,"",null,""]
[null,null,null,null,null,null,"",null,"",null,null,0,null,null,null,"",null,""]
[null,null,null,null,null,null,"",null,"",null,null,0,null,null,null,"",null,""]
[null,null,null,null,null,null,"",null,"",null,null,0,null,null,null,"",null,""]
[null,null,null,null,null,null,"",null,"",null,null,0,null,null,null,"",null,""]
[null,null,null,null,null,null,"",null,"",null,null,0,null,null,null,"",null,""]
[null,null,null,null,null,null,"",null,"",null,null,0,null,null,null,"",null,""]
[null,null,null,null,null,null,"",null,"",null,null,0,null,null,null,"",null,""]
[null,null,null,null,null,null,"",null,"",null,null,0,null,null,null,"",null,""]
[null,null,null,null,null,null,"",null,"",null,null,0,null,null,null,"",null,""]
[null,null,null,null,null,null,"",null,"",null,null,0,null,null,null,"",null,""]
[null,null,null,null,null,null,"",null,"",null,null,0,null,null,null,"",null,""]
[null,null,null,null,null,null,"",null,"",null,null,0,null,null,null,"",null,""]
[null,null,null,null,null,null,"",null,"",null,null,0,null,null,null,"",null,""]
[null,null,null,null,null,null,"",null,"",null,null,0,null,null,null,"",null,""]
[null,null,null,null,null,null,"",null,"",null,null,0,null,null,null,"",null,""]
[null,null,null,null,null,null,"",null,"",null,null,0,null,null,null,"",null,""]
[null,null,null,null,null,null,"",null,"",null,null,0,null,null,null,"",null,""]
[null,null,null,null,null,null,{"$f":"IF(F3458>0,VLOOKUP(F3458,client,2,0),\"\")","v":""},null,{"$f":"IF(H3458>0,VLOOKUP(H3458,product,2,0),\"\")","v":""},null,null,0,null,null,null,{"$f":"IF(L3458=0,\"\",IF(O3458=L3458,\"ok\",\"error\"))","v":""},null,""]
[null,null,null,null,null,null,"",null,"",null,null,{"$f":"J3459*K3459","v":0},null,null,null,"",null,{"$f":"IF(C3459=\"\",\"\",MONTH(C3459))","v":""}]
[null,null,null,null,null,null,"",null,"",null,null,0,null,null,null,"",null,""]
[null,null,null,null,null,null,"",null,"",null,null,0,null,null,null,"",null,""]
[null,null,null,null,null,null,"",null,"",null,null,0,null,null,null,"",null,""]
[null,null,null,null,null,null,"",null,"",null,null,0,null,null,null,"",null,""]
[null,null,null,null,null,null,"",null,"",null,null,0,null,null,null,"",null,""]
[null,null,null,null,null,null,"",null,"",null,null,0,null,null,null,"",null,""]
[null,null,null,null,null,null,"",null,"",null,null,0,null,null,null,"",null,""]
[null,null,null,null,null,null,"",null,"",null,null,0,null,null,null,"",null,""]
[null,null,null,null,null,null,"",null,"",null,null,0,null,null,null,"",null,""]
[null,null,null,null,null,null,"",null,"",null,null,0,null,null,null,"",null,""]
[null,null,null,null,null,null,"",null,"",null,null,0,null,null,null,"",null,""]
[null,null,null,null,null,null,"",null,"",null,null,0,null,null,null,"",null,""]
[null,null,null,null,null,null,"",null,"",null,null,0,null,null,null,"",null,""]
[null,null,null,null,null,null,"",null,"",null,null,0,null,null,null,"",null,""]
[null,null,null,null,null,null,"",null,"",null,null,0,null,null,null,"",null,""]
[null,null,null,null,null,null,"",null,"",null,null,0,null,null,null,"",null,""]
[null,null,null,null,null,null,"",null,"",null,null,0,null,null,null,"",null,""]
[null,null,null,null,null,null,"",null,"",null,null,0,null,null,null,"",null,""]
[null,null,null,null,null,null,"",null,"",null,null,0,null,null,null,"",null,""]
[null,null,null,null,null,null,"",null,"",null,null,0,null,null,null,"",null,""]
[null,null,null,null,null,null,"",null,"",null,null,0,null,null,null,"",null,""]
[null,null,null,null,null,null,"",null,"",null,null,0,null,null,null,"",null,""]
[null,null,null,null,null,null,"",null,"",null,null,0,null,null,null,"",null,""]
[null,null,null,null,null,null,"",null,"",null,null,0,null,null,null,"",null,""]
[null,null,null,null,null,null,"",null,"",null,null,0,null,null,null,"",null,""]
[null,null,null,null,null,null,"",null,"",null,null,0,null,null,null,"",null,""]
[null,null,null,null,null,null,"",null,"",null,null,0,null,null,null,"",null,""]
[null,null,null,-258,null,null,"",null,"",null,null,0,null,null,null,"",null,""]
[null,null,null,-258,null,null,"",null,"",null,null,0,null,null,null,"",null,""]
[null,null,null,-258,null,null,"",null,"",null,null,0,null,null,null,"",null,""]
[null,null,null,-258,null,null,"",null,"",null,null,0,null,null,null,"",null,""]
[null,null,null,-258,null,null,"",null,"",null,null,0,null,null,null,"",null,""]
[null,null,null,-258,null,null,"",null,"",null,null,0,null,null,null,"",null,""]
[null,null,null,-258,null,null,"",null,"",null,null,0,null,null,null,"",null,""]
[null,null,null,-258,null,null,"",null,"",null,null,0,null,null,null,"",null,""]
[null,null,null,-258,null,null,"",null,"",null,null,0,null,null,null,"",null,""]
[null,null,null,-258,null,null,"",null,"",null,null,0,null,null,null,"",null,""]
[null,null,null,-258,null,null,"",null,"",null,null,0,null,null,null,"",null,""]
[null,null,null,-258,null,null,"",null,"",null,null,0,null,null,null,"",null,""]
[null,null,null,-258,null,null,"",null,"",null,null,0,null,null,null,"",null,""]
[null,null,null,-258,null,null,"",null,"",null,null,0,null,null,null,"",null,""]
[null,null,null,-258,null,null,"",null,"",null,null,0,null,null,null,"",null,""]
[null,null,null,-258,null,null,"",null,"",null,null,0,null,null,null,"",null,""]
[null,null,null,-258,null,null,"",null,"",null,null,0,null,null,null,"",null,""]
[null,null,null,-258,null,null,"",null,"",null,null,0,null,null,null,"",null,""]
[null,null,null,-258,null,null,"",null,"",null,null,0,null,null,null,"",null,""]
[null,null,null,-258,null,null,"",null,"",null,null,0,null,null,null,"",null,""]
[null,null,null,-258,null,null,"",null,"",null,null,0,null,null,null,"",null,""]
[null,null,null,-258,null,null,"",null,"",null,null,0,null,null,null,"",null,""]
[null,null,null,-258,null,null,"",null,"",null,null,0,null,null,null,"",null,""]
[null,null,null,-258,null,null,"",null,"",null,null,0,null,null,null,"",null,""]
[null,null,null,-258,null,null,"",null,"",null,null,0,null,null,null,"",null,""]
[null,null,null,-258,null,null,"",null,"",null,null,0,null,null,null,"",null,""]
[null,null,null,-258,null,null,"",null,"",null,null,0,null,null,null,"",null,""]
[null,null,null,-258,null,null,"",null,"",null,null,0,null,null,null,"",null,""]
[null,null,null,-258,null,null,"",null,"",null,null,0,null,null,null,"",null,""]
[null,null,null,-258,null,null,"",null,"",null,null,0,null,null,null,"",null,""]
[null,null,null,-258,null,null,"",null,"",null,null,0,null,null,null,"",null,""]
[null,null,null,-258,null,null,"",null,"",null,null,0,null,null,null,"",null,""]
[null,null,null,-258,null,null,"",null,"",null,null,0,null,null,null,"",null,""]
[null,null,null,-258,null,null,"",null,"",null,null,0,null,null,null,"",null,""]
[null,null,null,-258,null,null,"",null,"",null,null,0,null,null,null,"",null,""]
[null,null,null,-258,null,null,{"$f":"IF(F3522>0,VLOOKUP(F3522,client,2,0),\"\")","v":""},null,{"$f":"IF(H3522>0,VLOOKUP(H3522,product,2,0),\"\")","v":""},null,null,0,null,null,null,{"$f":"IF(L3522=0,\"\",IF(O3522=L3522,\"ok\",\"error\"))","v":""},null,""]
[null,null,null,-258,null,null,"",null,"",null,null,{"$f":"J3523*K3523","v":0},null,null,null,"",null,{"$f":"IF(C3523=\"\",\"\",MONTH(C3523))","v":""}]
[null,null,null,-258,null,null,"",null,"",null,null,0,null,null,null,"",null,""]
[null,null,null,-258,null,null,"",null,"",null,null,0,null,null,null,"",null,""]
[null,null,null,-258,null,null,"",null,"",null,null,0,null,null,null,"",null,""]
[null,null,null,-258,null,null,"",null,"",null,null,0,null,null,null,"",null,""]
[null,null,null,-258,null,null,"",null,"",null,null,0,null,null,null,"",null,""]
[null,null,null,-258,null,null,"",null,"",null,null,0,null,null,null,"",null,""]
[null,null,null,-258,null,null,"",null,"",null,null,0,null,null,null,"",null,""]
[null,null,null,-258,null,null,"",null,"",null,null,0,null,null,null,"",null,""]
[null,null,null,-258,null,null,"",null,"",null,null,0,null,null,null,"",null,""]
[null,null,null,-258,null,null,"",null,"",null,null,0,null,null,null,"",null,""]
[null,null,null,-258,null,null,"",null,"",null,null,0,null,null,null,"",null,""]
[null,null,null,-258,null,null,"",null,"",null,null,0,null,null,null,"",null,""]
[null,null,null,-258,null,null,"",null,"",null,null,0,null,null,null,"",null,""]
[null,null,null,-258,null,null,"",null,"",null,null,0,null,null,null,"",null,""]
[null,null,null,-258,null,null,"",null,"",null,null,0,null,null,null,"",null,""]
[null,null,null,-258,null,null,"",null,"",null,null,0,null,null,null,"",null,""]
[null,null,null,-258,null,null,"",null,"",null,null,0,null,null,null,"",null,""]
[null,null,null,-258,null,null,"",null,"",null,null,0,null,null,null,"",null,""]
[null,null,null,-258,null,null,"",null,"",null,null,0,null,null,null,"",null,""]
[null,null,null,-258,null,null,"",null,"",null,null,0,null,null,null,"",null,""]
[null,null,null,-258,null,null,"",null,"",null,null,0,null,null,null,"",null,""]
[null,null,null,-258,null,null,"",null,"",null,null,0,null,null,null,"",null,""]
[null,null,null,-258,null,null,"",null,"",null,null,0,null,null,null,"",null,""]
[null,null,null,-258,null,null,"",null,"",null,null,0,null,null,null,"",null,""]
[null,null,null,-258,null,null,"",null,"",null,null,0,null,null,null,"",null,""]
[null,null,null,-258,null,null,"",null,"",null,null,0,null,null,null,"",null,""]
[null,null,null,-258,null,null,"",null,"",null,null,0,null,null,null,"",null,""]
[null,null,null,-258,null,null,"",null,"",null,null,0,null,null,null,"",null,""]
[null,null,null,-258,null,null,"",null,"",null,null,0,null,null,null,"",null,""]
[null,null,null,-258,null,null,"",null,"",null,null,0,null,null,null,"",null,""]
[null,null,null,-258,null,null,"",null,"",null,null,0,null,null,null,"",null,""]
[null,null,null,-258,null,null,"",null,"",null,null,0,null,null,null,"",null,""]
[null,null,null,-258,null,null,"",null,"",null,null,0,null,null,null,"",null,""]
[null,null,null,-258,null,null,"",null,"",null,null,0,null,null,null,"",null,""]
[null,null,null,-258,null,null,"",null,"",null,null,0,null,null,null,"",null,""]
[null,null,null,-258,null,null,"",null,"",null,null,0,null,null,null,"",null,""]
[null,null,null,-258,null,null,"",null,"",null,null,0,null,null,null,"",null,""]
[null,null,null,-258,null,null,"",null,"",null,null,0,null,null,null,"",null,""]
[null,null,null,-258,null,null,"",null,"",null,null,0,null,null,null,"",null,""]
[null,null,null,-258,null,null,"",null,"",null,null,0,null,null,null,"",null,""]
[null,null,null,-258,null,null,"",null,"",null,null,0,null,null,null,"",null,""]
[null,null,null,-258,null,null,"",null,"",null,null,0,null,null,null,"",null,""]
[null,null,null,-258,null,null,"",null,"",null,null,0,null,null,null,"",null,""]
[null,null,null,-258,null,null,"",null,"",null,null,0,null,null,null,"",null,""]
[null,null,null,-258,null,null,"",null,"",null,null,0,null,null,null,"",null,""]
[null,null,null,-258,null,null,"",null,"",null,null,0,null,null,null,"",null,""]
[null,null,null,-258,null,null,"",null,"",null,null,0,null,null,null,"",null,""]
[null,null,null,-258,null,null,"",null,"",null,null,0,null,null,null,"",null,""]
[null,null,null,-258,null,null,"",null,"",null,null,0,null,null,null,"",null,""]
[null,null,null,-258,null,null,"",null,"",null,null,0,null,null,null,"",null,""]
[null,null,null,-258,null,null,"",null,"",null,null,0,null,null,null,"",null,""]
[null,null,null,-258,null,null,"",null,"",null,null,0,null,null,null,"",null,""]
[null,null,null,-258,null,null,"",null,"",null,null,0,null,null,null,"",null,""]
[null,null,null,-258,null,null,"",null,"",null,null,0,null,null,null,"",null,""]
[null,null,null,-258,null,null,"",null,"",null,null,0]
[null,null,null,-258,null,null,"",null,"",null,null,0]
[null,null,null,-258,null,null,"",null,"",null,null,0]
[null,null,null,-258,null,null,"",null,"",null,null,0]
[null,null,null,-258,null,null,"",null,"",null,null,0]
[null,null,null,-258,null,null,"",null,"",null,null,0]
[null,null,null,-258,null,null,"",null,"",null,null,0]
[null,null,null,-258,null,null,"",null,"",null,null,0]
[null,null,null,-258,null,null,{"$f":"IF(F3586>0,VLOOKUP(F3586,client,2,0),\"\")","v":""},null,{"$f":"IF(H3586>0,VLOOKUP(H3586,product,2,0),\"\")","v":""},null,null,0]
[null,null,null,-258,null,null,"",null,"",null,null,{"$f":"J3587*K3587","v":0}]
[null,null,null,-258,null,null,"",null,"",null,null,0]
[null,null,null,-258,null,null,"",null,"",null,null,0]
[null,null,null,-258,null,null,"",null,"",null,null,0]
[null,null,null,-258,null,null,"",null,"",null,null,0]
[null,null,null,-258,null,null,"",null,"",null,null,0]
[null,null,null,-258,null,null,"",null,"",null,null,0]
[null,null,null,-258,null,null,"",null,"",null,null,0]
[null,null,null,-258,null,null,"",null,"",null,null,0]
[null,null,null,-258,null,null,"",null,"",null,null,0]
[null,null,null,-258,null,null,"",null,"",null,null,0]
[null,null,null,-258,null,null,"",null,"",null,null,0]
[null,null,null,-258,null,null,"",null,"",null,null,0]
[null,null,null,-258,null,null,"",null,"",null,null,0]
[null,null,null,-258,null,null,"",null,"",null,null,0]
[null,null,null,-258,null,null,"",null,"",null,null,0]
[null,null,null,-258,null,null,"",null,"",null,null,0]
[null,null,null,-258,null,null,"",null,"",null,null,0]
[null,null,null,-258,null,null,"",null,"",null,null,0]
[null,null,null,-258,null,null,"",null,"",null,null,0]
[null,null,null,-258,null,null,"",null,"",null,null,0]
[null,null,null,-258,null,null,"",null,"",null,null,0]
[null,null,null,-258,null,null,"",null,"",null,null,0]
[null,null,null,-258,null,null,"",null,"",null,null,0]
[null,null,null,-258,null,null,"",null,"",null,null,0]
[null,null,null,-258,null,null,"",null,"",null,null,0]
[null,null,null,-258,null,null,"",null,"",null,null,0]
[null,null,null,-258,null,null,"",null,"",null,null,0]
[null,null,null,-258,null,null,"",null,"",null,null,0]
[null,null,null,-258,null,null,"",null,"",null,null,0]
[null,null,null,-258,null,null,"",null,"",null,null,0]
[null,null,null,-258,null,null,"",null,"",null,null,0]
[null,null,null,-258,null,null,"",null,"",null,null,0]
[null,null,null,-258,null,null,"",null,"",null,null,0]
[null,null,null,-258,null,null,"",null,"",null,null,0]
[null,null,null,-258,null,null,"",null,"",null,null,0]
[null,null,null,-258,null,null,"",null,"",null,null,0]
[null,null,null,-258,null,null,"",null,"",null,null,0]
[null,null,null,-258,null,null,"",null,"",null,null,0]
[null,null,null,-258,null,null,"",null,"",null,null,0]
[null,null,null,-258,null,null,"",null,"",null,null,0]
[null,null,null,-258,null,null,"",null,"",null,null,0]
[null,null,null,-258,null,null,"",null,"",null,null,0]
[null,null,null,-258,null,null,"",null,"",null,null,0]
[null,null,null,-258,null,null,"",null,"",null,null,0]
[null,null,null,-258,null,null,"",null,"",null,null,0]
[null,null,null,-258,null,null,"",null,"",null,null,0]
[null,null,null,-258,null,null,"",null,"",null,null,0]
[null,null,null,-258,null,null,"",null,"",null,null,0]
[null,null,null,-258,null,null,"",null,"",null,null,0]
[null,null,null,-258,null,null,"",null,"",null,null,0]
[null,null,null,-258,null,null,"",null,"",null,null,0]
[null,null,null,-258,null,null,"",null,"",null,null,0]
[null,null,null,-258,null,null,"",null,"",null,null,0]
[null,null,null,-258,null,null,"",null,"",null,null,0]
[null,null,null,-258,null,null,"",null,"",null,null,0]
[null,null,null,-258,null,null,"",null,"",null,null,0]
[null,null,null,-258,null,null,"",null,"",null,null,0]
[null,null,null,-258,null,null,"",null,"",null,null,0]
[null,null,null,-258,null,null,"",null,"",null,null,0]
[null,null,null,-258,null,null,"",null,"",null,null,0]
[null,null,null,-258,null,null,"",null,"",null,null,0]
[null,null,null,-258,null,null,"",null,"",null,null,0]
[null,null,null,-258,null,null,{"$f":"IF(F3650>0,VLOOKUP(F3650,client,2,0),\"\")","v":""},null,{"$f":"IF(H3650>0,VLOOKUP(H3650,product,2,0),\"\")","v":""},null,null,0]
[null,null,null,-258,null,null,"",null,"",null,null,{"$f":"J3651*K3651","v":0}]
[null,null,null,-258,null,null,"",null,"",null,null,0]
[null,null,null,-258,null,null,"",null,"",null,null,0]
[null,null,null,-258,null,null,"",null,"",null,null,0]
[null,null,null,-258,null,null,"",null,"",null,null,0]
[null,null,null,-258,null,null,"",null,"",null,null,0]
[null,null,null,-258,null,null,"",null,"",null,null,0]
[null,null,null,-258,null,null,"",null,"",null,null,0]
[null,null,null,-258,null,null,"",null,"",null,null,0]
[null,null,null,-258,null,null,"",null,"",null,null,0]
[null,null,null,-258,null,null,"",null,"",null,null,0]
[null,null,null,-258,null,null,"",null,"",null,null,0]
[null,null,null,-258,null,null,"",null,"",null,null,0]
[null,null,null,-258,null,null,"",null,"",null,null,0]
[null,null,null,-258,null,null,"",null,"",null,null,0]
[null,null,null,-258,null,null,"",null,"",null,null,0]
[null,null,null,-258,null,null,"",null,"",null,null,0]
[null,null,null,-258,null,null,"",null,"",null,null,0]
[null,null,null,-258,null,null,"",null,"",null,null,0]
[null,null,null,-258,null,null,"",null,"",null,null,0]
[null,null,null,-258,null,null,"",null,"",null,null,0]
[null,null,null,-258,null,null,"",null,"",null,null,0]
[null,null,null,-258,null,null,"",null,"",null,null,0]
[null,null,null,-258,null,null,"",null,"",null,null,0]
[null,null,null,-258,null,null,"",null,"",null,null,0]
[null,null,null,-258,null,null,"",null,"",null,null,0]
[null,null,null,-258,null,null,"",null,"",null,null,0]
[null,null,null,-258,null,null,"",null,"",null,null,0]
[null,null,null,-258,null,null,"",null,"",null,null,0]
[null,null,null,-258,null,null,"",null,"",null,null,0]
[null,null,null,-258,null,null,"",null,"",null,null,0]
[null,null,null,-258,null,null,"",null,"",null,null,0]
[null,null,null,-258,null,null,"",null,"",null,null,0]
[null,null,null,-258,null,null,"",null,"",null,null,0]
[null,null,null,-258,null,null,"",null,"",null,null,0]
[null,null,null,-258,null,null,"",null,"",null,null,0]
[null,null,null,-258,null,null,"",null,"",null,null,0]
[null,null,null,-258,null,null,"",null,"",null,null,0]
[null,null,null,-258,null,null,"",null,"",null,null,0]
[null,null,null,-258,null,null,"",null,"",null,null,0]
[null,null,null,-258,null,null,"",null,"",null,null,0]
[null,null,null,-258,null,null,"",null,"",null,null,0]
[null,null,null,-258,null,null,"",null,"",null,null,0]
[null,null,null,-258,null,null,"",null,"",null,null,0]
[null,null,null,-258,null,null,"",null,"",null,null,0]
[null,null,null,-258,null,null,"",null,"",null,null,0]
[null,null,null,-258,null,null,"",null,"",null,null,0]
[null,null,null,-258,null,null,"",null,"",null,null,0]
[null,null,null,-258,null,null,"",null,"",null,null,0]
[null,null,null,-258,null,null,"",null,"",null,null,0]
[null,null,null,-258,null,null,"",null,"",null,null,0]
[null,null,null,-258,null,null,"",null,"",null,null,0]
[null,null,null,-258,null,null,"",null,"",null,null,0]
[null,null,null,-258,null,null,"",null,"",null,null,0]
[null,null,null,-258,null,null,"",null,"",null,null,0]
[null,null,null,-258,null,null,"",null,"",null,null,0]
[null,null,null,-258,null,null,"",null,"",null,null,0]
[null,null,null,-258,null,null,"",null,"",null,null,0]
[null,null,null,-258,null,null,"",null,"",null,null,0]
[null,null,null,-258,null,null,"",null,"",null,null,0]
[null,null,null,-258,null,null,"",null,"",null,null,0]
[null,null,null,-258,null,null,"",null,"",null,null,0]
[null,null,null,-258,null,null,"",null,"",null,null,0]
[null,null,null,-258,null,null,{"$f":"IF(F3714>0,VLOOKUP(F3714,client,2,0),\"\")","v":""},null,{"$f":"IF(H3714>0,VLOOKUP(H3714,product,2,0),\"\")","v":""},null,null,0]
[null,null,null,-258,null,null,"",null,"",null,null,{"$f":"J3715*K3715","v":0}]
[null,null,null,-258,null,null,"",null,"",null,null,0]
[null,null,null,-258,null,null,"",null,"",null,null,0]
[null,null,null,-258,null,null,"",null,"",null,null,0]
[null,null,null,-258,null,null,"",null,"",null,null,0]
[null,null,null,-258,null,null,"",null,"",null,null,0]
[null,null,null,-258,null,null,"",null,"",null,null,0]
[null,null,null,-258,null,null,"",null,"",null,null,0]
[null,null,null,-258,null,null,"",null,"",null,null,0]
[null,null,null,-258,null,null,"",null,"",null,null,0]
[null,null,null,-258,null,null,"",null,"",null,null,0]
[null,null,null,-258,null,null,"",null,"",null,null,0]
[null,null,null,-258,null,null,"",null,"",null,null,0]
[null,null,null,-258,null,null,"",null,"",null,null,0]
[null,null,null,-258,null,null,"",null,"",null,null,0]
[null,null,null,-258,null,null,"",null,"",null,null,0]
[null,null,null,-258,null,null,"",null,"",null,null,0]
[null,null,null,-258,null,null,"",null,"",null,null,0]
[null,null,null,-258,null,null,"",null,"",null,null,0]
[null,null,null,-258,null,null,"",null,"",null,null,0]
[null,null,null,-258,null,null,"",null,"",null,null,0]
[null,null,null,-258,null,null,"",null,"",null,null,0]
[null,null,null,-258,null,null,"",null,"",null,null,0]
[null,null,null,-258,null,null,"",null,"",null,null,0]
[null,null,null,-258,null,null,"",null,"",null,null,0]
[null,null,null,-258,null,null,"",null,"",null,null,0]
[null,null,null,-258,null,null,"",null,"",null,null,0]
[null,null,null,-258,null,null,"",null,"",null,null,0]
[null,null,null,-258,null,null,"",null,"",null,null,0]
[null,null,null,-258,null,null,"",null,"",null,null,0]
[null,null,null,-258,null,null,"",null,"",null,null,0]
[null,null,null,-258,null,null,"",null,"",null,null,0]
[null,null,null,-258,null,null,"",null,"",null,null,0]
[null,null,null,-258,null,null,"",null,"",null,null,0]
[null,null,null,-258,null,null,"",null,"",null,null,0]
[null,null,null,-258,null,null,"",null,"",null,null,0]
[null,null,null,-258,null,null,"",null,"",null,null,0]
[null,null,null,-258,null,null,"",null,"",null,null,0]
[null,null,null,-258,null,null,"",null,"",null,null,0]
[null,null,null,-258,null,null,"",null,"",null,null,0]
[null,null,null,-258,null,null,"",null,"",null,null,0]
[null,null,null,-258,null,null,"",null,"",null,null,0]
[null,null,null,-258,null,null,"",null,"",null,null,0]
[null,null,null,-258,null,null,"",null,"",null,null,0]
[null,null,null,-258,null,null,"",null,"",null,null,0]
[null,null,null,-258,null,null,"",null,"",null,null,0]
[null,null,null,-258,null,null,"",null,"",null,null,0]
[null,null,null,-258,null,null,"",null,"",null,null,0]
[null,null,null,-258,null,null,"",null,"",null,null,0]
[null,null,null,-258,null,null,"",null,"",null,null,0]
[null,null,null,-258,null,null,"",null,"",null,null,0]
[null,null,null,-258,null,null,"",null,"",null,null,0]
[null,null,null,-258,null,null,"",null,"",null,null,0]
[null,null,null,-258,null,null,"",null,"",null,null,0]
[null,null,null,-258,null,null,"",null,"",null,null,0]
[null,null,null,-258,null,null,"",null,"",null,null,0]
[null,null,null,-258,null,null,"",null,"",null,null,0]
[null,null,null,-258,null,null,"",null,"",null,null,0]
[null,null,null,-258,null,null,"",null,"",null,null,0]
[null,null,null,-258,null,null,"",null,"",null,null,0]
[null,null,null,-258,null,null,"",null,"",null,null,0]
[null,null,null,-258,null,null,"",null,"",null,null,0]
[null,null,null,-258,null,null,"",null,"",null,null,0]
[null,null,null,-258,null,null,{"$f":"IF(F3778>0,VLOOKUP(F3778,client,2,0),\"\")","v":""},null,{"$f":"IF(H3778>0,VLOOKUP(H3778,product,2,0),\"\")","v":""},null,null,0]
[null,null,null,-258,null,null,"",null,"",null,null,{"$f":"J3779*K3779","v":0}]
[null,null,null,-258,null,null,"",null,"",null,null,0]
[null,null,null,-258,null,null,"",null,"",null,null,0]
[null,null,null,-258,null,null,"",null,"",null,null,0]
[null,null,null,-258,null,null,"",null,"",null,null,0]
[null,null,null,-258,null,null,"",null,"",null,null,0]
[null,null,null,-258,null,null,"",null,"",null,null,0]
[null,null,null,-258,null,null,"",null,"",null,null,0]
[null,null,null,-258,null,null,"",null,"",null,null,0]
[null,null,null,-258,null,null,"",null,"",null,null,0]
[null,null,null,-258,null,null,"",null,"",null,null,0]
[null,null,null,-258,null,null,"",null,"",null,null,0]
[null,null,null,-258,null,null,"",null,"",null,null,0]
[null,null,null,-258,null,null,"",null,"",null,null,0]
[null,null,null,-258,null,null,"",null,"",null,null,0]
[null,null,null,-258,null,null,"",null,"",null,null,0]
[null,null,null,-258,null,null,"",null,"",null,null,0]
[null,null,null,-258,null,null,"",null,"",null,null,0]
[null,null,null,-258,null,null,"",null,"",null,null,0]
[null,null,null,-258,null,null,"",null,"",null,null,0]
[null,null,null,-258,null,null,"",null,"",null,null,0]
[null,null,null,-258,null,null,"",null,"",null,null,0]
[null,null,null,-258,null,null,"",null,"",null,null,0]
[null,null,null,-258,null,null,"",null,"",null,null,0]
[null,null,null,-258,null,null,"",null,"",null,null,0]
[null,null,null,-258,null,null,"",null,"",null,null,0]
[null,null,null,-258,null,null,"",null,"",null,null,0]
[null,null,null,-258,null,null,"",null,"",null,null,0]
[null,null,null,-258,null,null,"",null,"",null,null,0]
[null,null,null,-258,null,null,"",null,"",null,null,0]
[null,null,null,-258,null,null,"",null,"",null,null,0]
[null,null,null,-258,null,null,"",null,"",null,null,0]
[null,null,null,-258,null,null,"",null,"",null,null,0]
[null,null,null,-258,null,null,"",null,"",null,null,0]
[null,null,null,-258,null,null,"",null,"",null,null,0]
[null,null,null,-258,null,null,"",null,"",null,null,0]
[null,null,null,-258,null,null,"",null,"",null,null,0]
[null,null,null,-258,null,null,"",null,"",null,null,0]
[null,null,null,-258,null,null,"",null,"",null,null,0]
[null,null,null,-258,null,null,"",null,"",null,null,0]
[null,null,null,-258,null,null,"",null,"",null,null,0]
[null,null,null,-258,null,null,"",null,"",null,null,0]
[null,null,null,-258,null,null,"",null,"",null,null,0]
[null,null,null,-258,null,null,"",null,"",null,null,0]
[null,null,null,-258,null,null,"",null,"",null,null,0]
[null,null,null,-258,null,null,"",null,"",null,null,0]
[null,null,null,-258,null,null,"",null,"",null,null,0]
[null,null,null,-258,null,null,"",null,"",null,null,0]
[null,null,null,-258,null,null,"",null,"",null,null,0]
[null,null,null,-258,null,null,"",null,"",null,null,0]
[null,null,null,-258,null,null,"",null,"",null,null,0]
[null,null,null,-258,null,null,"",null,"",null,null,0]
[null,null,null,-258,null,null,"",null,"",null,null,0]
[null,null,null,-258,null,null,"",null,"",null,null,0]
[null,null,null,-258,null,null,"",null,"",null,null,0]
[null,null,null,-258,null,null,"",null,"",null,null,0]
[null,null,null,-258,null,null,"",null,"",null,null,0]
[null,null,null,-258,null,null,"",null,"",null,null,0]
[null,null,null,-258,null,null,"",null,"",null,null,0]
[null,null,null,-258,null,null,"",null,"",null,null,0]
[null,null,null,-258,null,null,"",null,"",null,null,0]
[null,null,null,-258,null,null,"",null,"",null,null,0]
[null,null,null,-258,null,null,"",null,"",null,null,0]
[null,null,null,-258,null,null,{"$f":"IF(F3842>0,VLOOKUP(F3842,client,2,0),\"\")","v":""},null,{"$f":"IF(H3842>0,VLOOKUP(H3842,product,2,0),\"\")","v":""},null,null,0]
[null,null,null,-258,null,null,"",null,"",null,null,{"$f":"J3843*K3843","v":0}]
[null,null,null,-258,null,null,"",null,"",null,null,0]
[null,null,null,-258,null,null,"",null,"",null,null,0]
[null,null,null,-258,null,null,"",null,"",null,null,0]
[null,null,null,-258,null,null,"",null,"",null,null,0]
[null,null,null,-258,null,null,"",null,"",null,null,0]
[null,null,null,-258,null,null,"",null,"",null,null,0]
[null,null,null,-258,null,null,"",null,"",null,null,0]
[null,null,null,-258,null,null,"",null,"",null,null,0]
[null,null,null,-258,null,null,"",null,"",null,null,0]
[null,null,null,-258,null,null,"",null,"",null,null,0]
[null,null,null,-258,null,null,"",null,"",null,null,0]
[null,null,null,-258,null,null,"",null,"",null,null,0]
[null,null,null,-258,null,null,"",null,"",null,null,0]
[null,null,null,-258,null,null,"",null,"",null,null,0]
[null,null,null,-258,null,null,"",null,"",null,null,0]
[null,null,null,-258,null,null,"",null,"",null,null,0]
[null,null,null,-258,null,null,"",null,"",null,null,0]
[null,null,null,-258,null,null,"",null,"",null,null,0]
[null,null,null,-258,null,null,"",null,"",null,null,0]
[null,null,null,-258,null,null,"",null,"",null,null,0]
[null,null,null,-258,null,null,"",null,"",null,null,0]
[null,null,null,-258,null,null,"",null,"",null,null,0]
[null,null,null,-258,null,null,"",null,"",null,null,0]
[null,null,null,-258,null,null,"",null,"",null,null,0]
[null,null,null,-258,null,null,"",null,"",null,null,0]
[null,null,null,-258,null,null,"",null,"",null,null,0]
[null,null,null,-258,null,null,"",null,"",null,null,0]
[null,null,null,-258,null,null,"",null,"",null,null,0]
[null,null,null,-258,null,null,"",null,"",null,null,0]
[null,null,null,-258,null,null,"",null,"",null,null,0]
[null,null,null,-258,null,null,"",null,"",null,null,0]
[null,null,null,-258,null,null,"",null,"",null,null,0]
[null,null,null,-258,null,null,"",null,"",null,null,0]
[null,null,null,-258,null,null,"",null,"",null,null,0]
[null,null,null,-258,null,null,"",null,"",null,null,0]
[null,null,null,-258,null,null,"",null,"",null,null,0]
[null,null,null,-258,null,null,"",null,"",null,null,0]
[null,null,null,-258,null,null,"",null,"",null,null,0]
[null,null,null,-258,null,null,"",null,"",null,null,0]
[null,null,null,-258,null,null,"",null,"",null,null,0]
[null,null,null,-258,null,null,"",null,"",null,null,0]
[null,null,null,-258,null,null,"",null,"",null,null,0]
[null,null,null,-258,null,null,"",null,"",null,null,0]
[null,null,null,-258,null,null,"",null,"",null,null,0]
[null,null,null,-258,null,null,"",null,"",null,null,0]
[null,null,null,-258,null,null,"",null,"",null,null,0]
[null,null,null,-258,null,null,"",null,"",null,null,0]
[null,null,null,-258,null,null,"",null,"",null,null,0]
[null,null,null,-258,null,null,"",null,"",null,null,0]
[null,null,null,-258,null,null,"",null,"",null,null,0]
[null,null,null,-258,null,null,"",null,"",null,null,0]
[null,null,null,-258,null,null,"",null,"",null,null,0]
[null,null,null,-258,null,null,"",null,"",null,null,0]
[null,null,null,-258,null,null,"",null,"",null,null,0]
[null,null,null,-258,null,null,"",null,"",null,null,0]
[null,null,null,-258,null,null,"",null,"",null,null,0]
[null,null,null,-258,null,null,"",null,"",null,null,0]
[null,null,null,-258,null,null,"",null,"",null,null,0]
[null,null,null,-258,null,null,"",null,"",null,null,0]
[null,null,null,-258,null,null,"",null,"",null,null,0]
[null,null,null,-258,null,null,"",null,"",null,null,0]
[null,null,null,-258,null,null,"",null,"",null,null,0]
[null,null,null,-258,null,null,{"$f":"IF(F3906>0,VLOOKUP(F3906,client,2,0),\"\")","v":""},null,{"$f":"IF(H3906>0,VLOOKUP(H3906,product,2,0),\"\")","v":""},null,null,0]
[null,null,null,-258,null,null,"",null,"",null,null,{"$f":"J3907*K3907","v":0}]
[null,null,null,-258,null,null,"",null,"",null,null,0]
[null,null,null,-258,null,null,"",null,"",null,null,0]
[null,null,null,-258,null,null,"",null,"",null,null,0]
[null,null,null,-258,null,null,"",null,"",null,null,0]
[null,null,null,-258,null,null,"",null,"",null,null,0]
[null,null,null,-258,null,null,"",null,"",null,null,0]
[null,null,null,-258,null,null,"",null,"",null,null,0]
[null,null,null,-258,null,null,"",null,"",null,null,0]
[null,null,null,-258,null,null,"",null,"",null,null,0]
[null,null,null,-258,null,null,"",null,"",null,null,0]
[null,null,null,-258,null,null,"",null,"",null,null,0]
[null,null,null,-258,null,null,"",null,"",null,null,0]
[null,null,null,-258,null,null,"",null,"",null,null,0]
[null,null,null,-258,null,null,"",null,"",null,null,0]
[null,null,null,-258,null,null,"",null,"",null,null,0]
[null,null,null,-258,null,null,"",null,"",null,null,0]
[null,null,null,-258,null,null,"",null,"",null,null,0]
[null,null,null,-258,null,null,"",null,"",null,null,0]
[null,null,null,-258,null,null,"",null,"",null,null,0]
[null,null,null,-258,null,null,"",null,"",null,null,0]
[null,null,null,-258,null,null,"",null,"",null,null,0]
[null,null,null,-258,null,null,"",null,"",null,null,0]
[null,null,null,-258,null,null,"",null,"",null,null,0]
[null,null,null,-258,null,null,"",null,"",null,null,0]
[null,null,null,-258,null,null,"",null,"",null,null,0]
[null,null,null,-258,null,null,"",null,"",null,null,0]
[null,null,null,-258,null,null,"",null,"",null,null,0]
[null,null,null,-258,null,null,"",null,"",null,null,0]
[null,null,null,-258,null,null,"",null,"",null,null,0]
[null,null,null,-258,null,null,"",null,"",null,null,0]
[null,null,null,-258,null,null,"",null,"",null,null,0]
[null,null,null,-258,null,null,"",null,"",null,null,0]
[null,null,null,-258,null,null,"",null,"",null,null,0]
[null,null,null,-258,null,null,"",null,"",null,null,0]
[null,null,null,-258,null,null,"",null,"",null,null,0]
[null,null,null,-258,null,null,"",null,"",null,null,0]
[null,null,null,-258,null,null,"",null,"",null,null,0]
[null,null,null,-258,null,null,"",null,"",null,null,0]
[null,null,null,-258,null,null,"",null,"",null,null,0]
[null,null,null,-258,null,null,"",null,"",null,null,0]
[null,null,null,-258,null,null,"",null,"",null,null,0]
[null,null,null,-258,null,null,"",null,"",null,null,0]
[null,null,null,-258,null,null,"",null,"",null,null,0]
[null,null,null,-258,null,null,"",null,"",null,null,0]
[null,null,null,-258,null,null,"",null,"",null,null,0]
[null,null,null,-258,null,null,"",null,"",null,null,0]
[null,null,null,-258,null,null,"",null,"",null,null,0]
[null,null,null,-258,null,null,"",null,"",null,null,0]
[null,null,null,-258,null,null,"",null,"",null,null,0]
[null,null,null,-258,null,null,"",null,"",null,null,0]
[null,null,null,-258,null,null,"",null,"",null,null,0]
[null,null,null,-258,null,null,"",null,"",null,null,0]
[null,null,null,-258,null,null,"",null,"",null,null,0]
[null,null,null,-258,null,null,"",null,"",null,null,0]
[null,null,null,-258,null,null,"",null,"",null,null,0]
[null,null,null,-258,null,null,"",null,"",null,null,0]
[null,null,null,-258,null,null,"",null,"",null,null,0]
[null,null,null,-258,null,null,"",null,"",null,null,0]
[null,null,null,-258,null,null,"",null,"",null,null,0]
[null,null,null,-258,null,null,"",null,"",null,null,0]
[null,null,null,-258,null,null,"",null,"",null,null,0]
[null,null,null,-258,null,null,"",null,"",null,null,0]
[null,null,null,-258,null,null,{"$f":"IF(F3970>0,VLOOKUP(F3970,client,2,0),\"\")","v":""},null,{"$f":"IF(H3970>0,VLOOKUP(H3970,product,2,0),\"\")","v":""},null,null,0]
[null,null,null,-258,null,null,"",null,"",null,null,{"$f":"J3971*K3971","v":0}]
[null,null,null,-258,null,null,"",null,"",null,null,0]
[null,null,null,-258,null,null,"",null,"",null,null,0]
[null,null,null,-258,null,null,"",null,"",null,null,0]
[null,null,null,-258,null,null,"",null,"",null,null,0]
[null,null,null,-258,null,null,"",null,"",null,null,0]
[null,null,null,-258,null,null,"",null,"",null,null,0]
[null,null,null,-258,null,null,"",null,"",null,null,0]
[null,null,null,-258,null,null,"",null,"",null,null,0]
[null,null,null,-258,null,null,"",null,"",null,null,0]
[null,null,null,-258,null,null,"",null,"",null,null,0]
[null,null,null,-258,null,null,"",null,"",null,null,0]
[null,null,null,-258,null,null,"",null,"",null,null,0]
[null,null,null,-258,null,null,"",null,"",null,null,0]
[null,null,null,-258,null,null,"",null,"",null,null,0]
[null,null,null,-258,null,null,"",null,"",null,null,0]
[null,null,null,-258,null,null,"",null,"",null,null,0]
[null,null,null,-258,null,null,"",null,"",null,null,0]
[null,null,null,-258,null,null,"",null,"",null,null,0]
[null,null,null,-258,null,null,"",null,"",null,null,0]
[null,null,null,-258,null,null,"",null,"",null,null,0]
[null,null,null,-258,null,null,"",null,"",null,null,0]
[null,null,null,-258,null,null,"",null,"",null,null,0]
[null,null,null,-258,null,null,"",null,"",null,null,0]
[null,null,null,-258,null,null,"",null,"",null,null,0]
[null,null,null,-258,null,null,"",null,"",null,null,0]
[null,null,null,-258,null,null,"",null,"",null,null,0]
[null,null,null,-258,null,null,"",null,"",null,null,0]
[null,null,null,-258,null,null,"",null,"",null,null,0]
[null,null,null,-258,null,null,"",null,"",null,null,0]
[null,null,null,-258,null,null,"",null,"",null,null,0]
[null,null,null,-258,null,null,"",null,"",null,null,0]
[null,null,null,-258,null,null,"",null,"",null,null,0]
[null,null,null,-258,null,null,"",null,"",null,null,0]
[null,null,null,-258,null,null,"",null,"",null,null,0]
[null,null,null,-258,null,null,"",null,"",null,null,0]
[null,null,null,-258,null,null,"",null,"",null,null,0]
[null,null,null,-258,null,null,"",null,"",null,null,0]
[null,null,null,-258,null,null,"",null,"",null,null,0]
[null,null,null,-258,null,null,"",null,"",null,null,0]
[null,null,null,-258,null,null,"",null,"",null,null,0]
[null,null,null,-258,null,null,"",null,"",null,null,0]
[null,null,null,-258,null,null,"",null,"",null,null,0]
[null,null,null,-258,null,null,"",null,"",null,null,0]
[null,null,null,-258,null,null,"",null,"",null,null,0]
[null,null,null,-258,null,null,"",null,"",null,null,0]
[null,null,null,-258,null,null,"",null,"",null,null,0]
[null,null,null,-258,null,null,"",null,"",null,null,0]
[null,null,null,-258,null,null,"",null,"",null,null,0]
[null,null,null,-258,null,null,"",null,"",null,null,0]
[null,null,null,-258,null,null,"",null,"",null,null,0]
[null,null,null,-258,null,null,"",null,"",null,null,0]
[null,null,null,-258,null,null,"",null,"",null,null,0]
[null,null,null,-258,null,null,"",null,"",null,null,0]
[null,null,null,-258,null,null,"",null,"",null,null,0]
[null,null,null,-258,null,null,"",null,"",null,null,0]
[null,null,null,-258,null,null,"",null,"",null,null,0]
[null,null,null,-258,null,null,"",null,"",null,null,0]
[null,null,null,-258,null,null,"",null,"",null,null,0]
[null,null,null,-258,null,null,"",null,"",null,null,0]
[null,null,null,-258,null,null,"",null,"",null,null,0]
[null,null,null,-258,null,null,"",null,"",null,null,0]
[null,null,null,-258,null,null,"",null,"",null,null,0]
[null,null,null,-258,null,null,{"$f":"IF(F4034>0,VLOOKUP(F4034,client,2,0),\"\")","v":""},null,{"$f":"IF(H4034>0,VLOOKUP(H4034,product,2,0),\"\")","v":""},null,null,0]
[null,null,null,-258,null,null,"",null,"",null,null,{"$f":"J4035*K4035","v":0}]
[null,null,null,-258,null,null,"",null,"",null,null,0]
[null,null,null,-258,null,null,"",null,"",null,null,0]
[null,null,null,-258,null,null,"",null,"",null,null,0]
[null,null,null,-258,null,null,"",null,"",null,null,0]
[null,null,null,-258,null,null,"",null,"",null,null,0]
[null,null,null,-258,null,null,"",null,"",null,null,0]
[null,null,null,-258,null,null,"",null,"",null,null,0]
[null,null,null,-258,null,null,"",null,"",null,null,0]
[null,null,null,-258,null,null,"",null,"",null,null,0]
[null,null,null,-258,null,null,"",null,"",null,null,0]
[null,null,null,-258,null,null,"",null,"",null,null,0]
[null,null,null,-258,null,null,"",null,"",null,null,0]
[null,null,null,-258,null,null,"",null,"",null,null,0]
[null,null,null,-258,null,null,"",null,"",null,null,0]
[null,null,null,-258,null,null,"",null,"",null,null,0]
[null,null,null,-258,null,null,"",null,"",null,null,0]
[null,null,null,-258,null,null,"",null,"",null,null,0]
[null,null,null,-258,null,null,"",null,"",null,null,0]
[null,null,null,-258,null,null,"",null,"",null,null,0]
[null,null,null,-258,null,null,"",null,"",null,null,0]
[null,null,null,-258,null,null,"",null,"",null,null,0]
[null,null,null,-258,null,null,"",null,"",null,null,0]
[null,null,null,-258,null,null,"",null,"",null,null,0]
[null,null,null,-258,null,null,"",null,"",null,null,0]
[null,null,null,-258,null,null,"",null,"",null,null,0]
[null,null,null,-258,null,null,"",null,"",null,null,0]
[null,null,null,-258,null,null,"",null,"",null,null,0]
[null,null,null,-258,null,null,"",null,"",null,null,0]
[null,null,null,-258,null,null,"",null,"",null,null,0]
[null,null,null,-258,null,null,"",null,"",null,null,0]
[null,null,null,-258,null,null,"",null,"",null,null,0]
[null,null,null,-258,null,null,"",null,"",null,null,0]
[null,null,null,-258,null,null,"",null,"",null,null,0]
[null,null,null,-258,null,null,"",null,"",null,null,0]
[null,null,null,-258,null,null,"",null,"",null,null,0]
[null,null,null,-258,null,null,"",null,"",null,null,0]
[null,null,null,-258,null,null,"",null,"",null,null,0]
[null,null,null,-258,null,null,"",null,"",null,null,0]
[null,null,null,-258,null,null,"",null,"",null,null,0]
[null,null,null,-258,null,null,"",null,"",null,null,0]
[null,null,null,-258,null,null,"",null,"",null,null,0]
[null,null,null,-258,null,null,"",null,"",null,null,0]
[null,null,null,-258,null,null,"",null,"",null,null,0]
[null,null,null,-258,null,null,"",null,"",null,null,0]
[null,null,null,-258,null,null,"",null,"",null,null,0]
[null,null,null,-258,null,null,"",null,"",null,null,0]
[null,null,null,-258,null,null,"",null,"",null,null,0]
[null,null,null,-258,null,null,"",null,"",null,null,0]
[null,null,null,-258,null,null,"",null,"",null,null,0]
[null,null,null,-258,null,null,"",null,"",null,null,0]
[null,null,null,-258,null,null,"",null,"",null,null,0]
[null,null,null,-258,null,null,"",null,"",null,null,0]
[null,null,null,-258,null,null,"",null,"",null,null,0]
[null,null,null,-258,null,null,"",null,"",null,null,0]
[null,null,null,-258,null,null,"",null,"",null,null,0]
[null,null,null,-258,null,null,"",null,"",null,null,0]
[null,null,null,-258,null,null,"",null,"",null,null,0]
[null,null,null,-258,null,null,"",null,"",null,null,0]
[null,null,null,-258,null,null,"",null,"",null,null,0]
[null,null,null,-258,null,null,"",null,"",null,null,0]
[null,null,null,-258,null,null,"",null,"",null,null,0]
[null,null,null,-258,null,null,"",null,"",null,null,0]
[null,null,null,-258,null,null,{"$f":"IF(F4098>0,VLOOKUP(F4098,client,2,0),\"\")","v":""},null,{"$f":"IF(H4098>0,VLOOKUP(H4098,product,2,0),\"\")","v":""},null,null,0]
[null,null,null,-258,null,null,"",null,"",null,null,{"$f":"J4099*K4099","v":0}]
[null,null,null,-258,null,null,"",null,"",null,null,0]
[null,null,null,-258,null,null,"",null,"",null,null,0]
[null,null,null,-258,null,null,"",null,"",null,null,0]
[null,null,null,-258,null,null,"",null,"",null,null,0]
[null,null,null,-258,null,null,"",null,"",null,null,0]
[null,null,null,-258,null,null,"",null,"",null,null,0]
[null,null,null,-258,null,null,"",null,"",null,null,0]
[null,null,null,-258,null,null,"",null,"",null,null,0]
[null,null,null,-258,null,null,"",null,"",null,null,0]
[null,null,null,-258,null,null,"",null,"",null,null,0]
[null,null,null,-258,null,null,"",null,"",null,null,0]
[null,null,null,-258,null,null,"",null,"",null,null,0]
[null,null,null,-258,null,null,"",null,"",null,null,0]
[null,null,null,-258,null,null,"",null,"",null,null,0]
[null,null,null,-258,null,null,"",null,"",null,null,0]
[null,null,null,-258,null,null,"",null,"",null,null,0]
[null,null,null,-258,null,null,"",null,"",null,null,0]
[null,null,null,-258,null,null,"",null,"",null,null,0]
[null,null,null,-258,null,null,"",null,"",null,null,0]
[null,null,null,-258,null,null,"",null,"",null,null,0]
[null,null,null,-258,null,null,"",null,"",null,null,0]
[null,null,null,-258,null,null,"",null,"",null,null,0]
[null,null,null,-258,null,null,"",null,"",null,null,0]
[null,null,null,-258,null,null,"",null,"",null,null,0]
[null,null,null,-258,null,null,"",null,"",null,null,0]
[null,null,null,-258,null,null,"",null,"",null,null,0]
[null,null,null,-258,null,null,"",null,"",null,null,0]
[null,null,null,-258,null,null,"",null,"",null,null,0]
[null,null,null,-258,null,null,"",null,"",null,null,0]
[null,null,null,-258,null,null,"",null,"",null,null,0]
[null,null,null,-258,null,null,"",null,"",null,null,0]
[null,null,null,-258,null,null,"",null,"",null,null,0]
[null,null,null,-258,null,null,"",null,"",null,null,0]
[null,null,null,-258,null,null,"",null,"",null,null,0]
[null,null,null,-258,null,null,"",null,"",null,null,0]
[null,null,null,-258,null,null,"",null,"",null,null,0]
[null,null,null,-258,null,null,"",null,"",null,null,0]
[null,null,null,-258,null,null,"",null,"",null,null,0]
[null,null,null,-258,null,null,"",null,"",null,null,0]
[null,null,null,-258,null,null,"",null,"",null,null,0]
[null,null,null,-258,null,null,"",null,"",null,null,0]
[null,null,null,-258,null,null,"",null,"",null,null,0]
[null,null,null,-258,null,null,"",null,"",null,null,0]
[null,null,null,-258,null,null,"",null,"",null,null,0]
[null,null,null,-258,null,null,"",null,"",null,null,0]
[null,null,null,-258,null,null,"",null,"",null,null,0]
[null,null,null,-258,null,null,"",null,"",null,null,0]
[null,null,null,-258,null,null,"",null,"",null,null,0]
[null,null,null,-258,null,null,"",null,"",null,null,0]
[null,null,null,-258,null,null,"",null,"",null,null,0]
[null,null,null,-258,null,null,"",null,"",null,null,0]
[null,null,null,-258,null,null,"",null,"",null,null,0]
[null,null,null,-258,null,null,"",null,"",null,null,0]
[null,null,null,-258,null,null,"",null,"",null,null,0]
[null,null,null,-258,null,null,"",null,"",null,null,0]
[null,null,null,-258,null,null,"",null,"",null,null,0]
[null,null,null,-258,null,null,"",null,"",null,null,0]
[null,null,null,-258,null,null,"",null,"",null,null,0]
[null,null,null,-258,null,null,"",null,"",null,null,0]
[null,null,null,-258,null,null,"",null,"",null,null,0]
[null,null,null,-258,null,null,"",null,"",null,null,0]
[null,null,null,-258,null,null,"",null,"",null,null,0]
[null,null,null,-258,null,null,{"$f":"IF(F4162>0,VLOOKUP(F4162,client,2,0),\"\")","v":""},null,{"$f":"IF(H4162>0,VLOOKUP(H4162,product,2,0),\"\")","v":""},null,null,0]
[null,null,null,-258,null,null,"",null,"",null,null,{"$f":"J4163*K4163","v":0}]
[null,null,null,-258,null,null,"",null,"",null,null,0]
[null,null,null,-258,null,null,"",null,"",null,null,0]
[null,null,null,-258,null,null,"",null,"",null,null,0]
[null,null,null,-258,null,null,"",null,"",null,null,0]
[null,null,null,-258,null,null,"",null,"",null,null,0]
[null,null,null,-258,null,null,"",null,"",null,null,0]
[null,null,null,-258,null,null,"",null,"",null,null,0]
[null,null,null,-258,null,null,"",null,"",null,null,0]
[null,null,null,-258,null,null,"",null,"",null,null,0]
[null,null,null,-258,null,null,"",null,"",null,null,0]
[null,null,null,-258,null,null,"",null,"",null,null,0]
[null,null,null,-258,null,null,"",null,"",null,null,0]
[null,null,null,-258,null,null,"",null,"",null,null,0]
[null,null,null,-258,null,null,"",null,"",null,null,0]
[null,null,null,-258,null,null,"",null,"",null,null,0]
[null,null,null,-258,null,null,"",null,"",null,null,0]
[null,null,null,-258,null,null,"",null,"",null,null,0]
[null,null,null,-258,null,null,"",null,"",null,null,0]
[null,null,null,-258,null,null,"",null,"",null,null,0]
[null,null,null,-258,null,null,"",null,"",null,null,0]
[null,null,null,-258,null,null,"",null,"",null,null,0]
[null,null,null,-258,null,null,"",null,"",null,null,0]
[null,null,null,-258,null,null,"",null,"",null,null,0]
[null,null,null,-258,null,null,"",null,"",null,null,0]
[null,null,null,-258,null,null,"",null,"",null,null,0]
[null,null,null,-258,null,null,"",null,"",null,null,0]
[null,null,null,-258,null,null,"",null,"",null,null,0]
[null,null,null,-258,null,null,"",null,"",null,null,0]
[null,null,null,-258,null,null,"",null,"",null,null,0]
[null,null,null,-258,null,null,"",null,"",null,null,0]
[null,null,null,-258,null,null,"",null,"",null,null,0]
[null,null,null,-258,null,null,"",null,"",null,null,0]
[null,null,null,-258,null,null,"",null,"",null,null,0]
[null,null,null,-258,null,null,"",null,"",null,null,0]
[null,null,null,-258,null,null,"",null,"",null,null,0]
[null,null,null,-258,null,null,"",null,"",null,null,0]
[null,null,null,-258,null,null,"",null,"",null,null,0]
[null,null,null,-258,null,null,"",null,"",null,null,0]
[null,null,null,-258,null,null,"",null,"",null,null,0]
[null,null,null,-258,null,null,"",null,"",null,null,0]
[null,null,null,-258,null,null,"",null,"",null,null,0]
[null,null,null,-258,null,null,"",null,"",null,null,0]
[null,null,null,-258,null,null,"",null,"",null,null,0]
[null,null,null,-258,null,null,"",null,"",null,null,0]
[null,null,null,-258,null,null,"",null,"",null,null,0]
[null,null,null,-258,null,null,"",null,"",null,null,0]
[null,null,null,-258,null,null,"",null,"",null,null,0]
[null,null,null,-258,null,null,"",null,"",null,null,0]
[null,null,null,-258,null,null,"",null,"",null,null,0]
[null,null,null,-258,null,null,"",null,"",null,null,0]
[null,null,null,-258,null,null,"",null,"",null,null,0]
[null,null,null,-258,null,null,"",null,"",null,null,0]
[null,null,null,-258,null,null,"",null,"",null,null,0]
[null,null,null,-258,null,null,"",null,"",null,null,0]
[null,null,null,-258,null,null,"",null,"",null,null,0]
[null,null,null,-258,null,null,"",null,"",null,null,0]
[null,null,null,-258,null,null,"",null,"",null,null,0]
[null,null,null,-258,null,null,"",null,"",null,null,0]
[null,null,null,-258,null,null,"",null,"",null,null,0]
[null,null,null,-258,null,null,"",null,"",null,null,0]
[null,null,null,-258,null,null,"",null,"",null,null,0]
[null,null,null,-258,null,null,"",null,"",null,null,0]
[null,null,null,-258,null,null,{"$f":"IF(F4226>0,VLOOKUP(F4226,client,2,0),\"\")","v":""},null,{"$f":"IF(H4226>0,VLOOKUP(H4226,product,2,0),\"\")","v":""},null,null,0]
[null,null,null,-258,null,null,"",null,"",null,null,{"$f":"J4227*K4227","v":0}]
[null,null,null,-258,null,null,"",null,"",null,null,0]
[null,null,null,-258,null,null,"",null,"",null,null,0]
[null,null,null,-258,null,null,"",null,"",null,null,0]
[null,null,null,-258,null,null,"",null,"",null,null,0]
[null,null,null,-258,null,null,"",null,"",null,null,0]
[null,null,null,-258,null,null,"",null,"",null,null,0]
[null,null,null,-258,null,null,"",null,"",null,null,0]
[null,null,null,-258,null,null,"",null,"",null,null,0]
[null,null,null,-258,null,null,"",null,"",null,null,0]
[null,null,null,-258,null,null,"",null,"",null,null,0]
[null,null,null,-258,null,null,"",null,"",null,null,0]
[null,null,null,-258,null,null,"",null,"",null,null,0]
[null,null,null,-258,null,null,"",null,"",null,null,0]
[null,null,null,-258,null,null,"",null,"",null,null,0]
[null,null,null,-258,null,null,"",null,"",null,null,0]
[null,null,null,-258,null,null,"",null,"",null,null,0]
[null,null,null,-258,null,null,"",null,"",null,null,0]
[null,null,null,-258,null,null,"",null,"",null,null,0]
[null,null,null,-258,null,null,"",null,"",null,null,0]
[null,null,null,-258,null,null,"",null,"",null,null,0]
[null,null,null,-258,null,null,"",null,"",null,null,0]
[null,null,null,-258,null,null,"",null,"",null,null,0]
[null,null,null,-258,null,null,"",null,"",null,null,0]
[null,null,null,-258,null,null,"",null,"",null,null,0]
[null,null,null,-258,null,null,"",null,"",null,null,0]
[null,null,null,-258,null,null,"",null,"",null,null,0]
[null,null,null,-258,null,null,"",null,"",null,null,0]
[null,null,null,-258,null,null,"",null,"",null,null,0]
[null,null,null,-258,null,null,"",null,"",null,null,0]
[null,null,null,-258,null,null,"",null,"",null,null,0]
[null,null,null,-258,null,null,"",null,"",null,null,0]
[null,null,null,-258,null,null,"",null,"",null,null,0]
[null,null,null,-258,null,null,"",null,"",null,null,0]
[null,null,null,-258,null,null,"",null,"",null,null,0]
[null,null,null,-258,null,null,"",null,"",null,null,0]
[null,null,null,-258,null,null,"",null,"",null,null,0]
[null,null,null,-258,null,null,"",null,"",null,null,0]
[null,null,null,-258,null,null,"",null,"",null,null,0]
[null,null,null,-258,null,null,"",null,"",null,null,0]
[null,null,null,-258,null,null,"",null,"",null,null,0]
[null,null,null,-258,null,null,"",null,"",null,null,0]
[null,null,null,-258,null,null,"",null,"",null,null,0]
[null,null,null,-258,null,null,"",null,"",null,null,0]
[null,null,null,-258,null,null,"",null,"",null,null,0]
[null,null,null,-258,null,null,"",null,"",null,null,0]
[null,null,null,-258,null,null,"",null,"",null,null,0]
[null,null,null,-258,null,null,"",null,"",null,null,0]
[null,null,null,-258,null,null,"",null,"",null,null,0]
[null,null,null,-258,null,null,"",null,"",null,null,0]
[null,null,null,-258,null,null,"",null,"",null,null,0]
[null,null,null,-258,null,null,"",null,"",null,null,0]
[null,null,null,-258,null,null,"",null,"",null,null,0]
[null,null,null,-258,null,null,"",null,"",null,null,0]
[null,null,null,-258,null,null,"",null,"",null,null,0]
[null,null,null,-258,null,null,"",null,"",null,null,0]
[null,null,null,-258,null,null,"",null,"",null,null,0]
[null,null,null,-258,null,null,"",null,"",null,null,0]
[null,null,null,-258,null,null,"",null,"",null,null,0]
[null,null,null,-258,null,null,"",null,"",null,null,0]
[null,null,null,-258,null,null,"",null,"",null,null,0]
[null,null,null,-258,null,null,"",null,"",null,null,0]
[null,null,null,-258,null,null,"",null,"",null,null,0]
[null,null,null,-258,null,null,{"$f":"IF(F4290>0,VLOOKUP(F4290,client,2,0),\"\")","v":""},null,{"$f":"IF(H4290>0,VLOOKUP(H4290,product,2,0),\"\")","v":""},null,null,0]
[null,null,null,-258,null,null,"",null,"",null,null,{"$f":"J4291*K4291","v":0}]
[null,null,null,-258,null,null,"",null,"",null,null,0]
[null,null,null,-258,null,null,"",null,"",null,null,0]
[null,null,null,-258,null,null,"",null,"",null,null,0]
[null,null,null,-258,null,null,"",null,"",null,null,0]
[null,null,null,-258,null,null,"",null,"",null,null,0]
[null,null,null,-258,null,null,"",null,"",null,null,0]
[null,null,null,-258,null,null,"",null,"",null,null,0]
[null,null,null,-258,null,null,"",null,"",null,null,0]
[null,null,null,-258,null,null,"",null,"",null,null,0]
[null,null,null,-258,null,null,"",null,"",null,null,0]
[null,null,null,-258,null,null,"",null,"",null,null,0]
[null,null,null,-258,null,null,"",null,"",null,null,0]
[null,null,null,-258,null,null,"",null,"",null,null,0]
[null,null,null,-258,null,null,"",null,"",null,null,0]
[null,null,null,-258,null,null,"",null,"",null,null,0]
[null,null,null,-258,null,null,"",null,"",null,null,0]
[null,null,null,-258,null,null,"",null,"",null,null,0]
[null,null,null,-258,null,null,"",null,"",null,null,0]
[null,null,null,-258,null,null,"",null,"",null,null,0]
[null,null,null,-258,null,null,"",null,"",null,null,0]
[null,null,null,-258,null,null,"",null,"",null,null,0]
[null,null,null,-258,null,null,"",null,"",null,null,0]
[null,null,null,-258,null,null,"",null,"",null,null,0]
[null,null,null,-258,null,null,"",null,"",null,null,0]
[null,null,null,-258,null,null,"",null,"",null,null,0]
[null,null,null,-258,null,null,"",null,"",null,null,0]
[null,null,null,-258,null,null,"",null,"",null,null,0]
[null,null,null,-258,null,null,"",null,"",null,null,0]
[null,null,null,-258,null,null,"",null,"",null,null,0]
[null,null,null,-258,null,null,"",null,"",null,null,0]
[null,null,null,-258,null,null,"",null,"",null,null,0]
[null,null,null,-258,null,null,"",null,"",null,null,0]
[null,null,null,-258,null,null,"",null,"",null,null,0]
[null,null,null,-258,null,null,"",null,"",null,null,0]
[null,null,null,-258,null,null,"",null,"",null,null,0]
[null,null,null,-258,null,null,"",null,"",null,null,0]
[null,null,null,-258,null,null,"",null,"",null,null,0]
[null,null,null,-258,null,null,"",null,"",null,null,0]
[null,null,null,-258,null,null,"",null,"",null,null,0]
[null,null,null,-258,null,null,"",null,"",null,null,0]
[null,null,null,-258,null,null,"",null,"",null,null,0]
[null,null,null,-258,null,null,"",null,"",null,null,0]
[null,null,null,-258,null,null,"",null,"",null,null,0]
[null,null,null,-258,null,null,"",null,"",null,null,0]
[null,null,null,-258,null,null,"",null,"",null,null,0]
[null,null,null,-258,null,null,"",null,"",null,null,0]
[null,null,null,-258,null,null,"",null,"",null,null,0]
[null,null,null,-258,null,null,"",null,"",null,null,0]
[null,null,null,-258,null,null,"",null,"",null,null,0]
[null,null,null,-258,null,null,"",null,"",null,null,0]
[null,null,null,-258,null,null,"",null,"",null,null,0]
[null,null,null,-258,null,null,"",null,"",null,null,0]
[null,null,null,-258,null,null,"",null,"",null,null,0]
[null,null,null,-258,null,null,"",null,"",null,null,0]
[null,null,null,-258,null,null,"",null,"",null,null,0]
[null,null,null,-258,null,null,"",null,"",null,null,0]
[null,null,null,-258,null,null,"",null,"",null,null,0]
[null,null,null,-258,null,null,"",null,"",null,null,0]
[null,null,null,-258,null,null,"",null,"",null,null,0]
[null,null,null,-258,null,null,"",null,"",null,null,0]
[null,null,null,-258,null,null,"",null,"",null,null,0]
[null,null,null,-258,null,null,"",null,"",null,null,0]
[null,null,null,-258,null,null,{"$f":"IF(F4354>0,VLOOKUP(F4354,client,2,0),\"\")","v":""},null,{"$f":"IF(H4354>0,VLOOKUP(H4354,product,2,0),\"\")","v":""},null,null,0]
[null,null,null,-258,null,null,"",null,"",null,null,{"$f":"J4355*K4355","v":0}]
[null,null,null,-258,null,null,"",null,"",null,null,0]
[null,null,null,-258,null,null,"",null,"",null,null,0]
[null,null,null,-258,null,null,"",null,"",null,null,0]
[null,null,null,-258,null,null,"",null,"",null,null,0]
[null,null,null,-258,null,null,"",null,"",null,null,0]
[null,null,null,-258,null,null,"",null,"",null,null,0]
[null,null,null,-258,null,null,"",null,"",null,null,0]
[null,null,null,-258,null,null,"",null,"",null,null,0]
[null,null,null,-258,null,null,"",null,"",null,null,0]
[null,null,null,-258,null,null,"",null,"",null,null,0]
[null,null,null,-258,null,null,"",null,"",null,null,0]
[null,null,null,-258,null,null,"",null,"",null,null,0]
[null,null,null,-258,null,null,"",null,"",null,null,0]
[null,null,null,-258,null,null,"",null,"",null,null,0]
[null,null,null,-258,null,null,"",null,"",null,null,0]
[null,null,null,-258,null,null,"",null,"",null,null,0]
[null,null,null,-258,null,null,"",null,"",null,null,0]
[null,null,null,-258,null,null,"",null,"",null,null,0]
[null,null,null,-258,null,null,"",null,"",null,null,0]
[null,null,null,-258,null,null,"",null,"",null,null,0]
[null,null,null,-258,null,null,"",null,"",null,null,0]
[null,null,null,-258,null,null,"",null,"",null,null,0]
[null,null,null,-258,null,null,"",null,"",null,null,0]
[null,null,null,-258,null,null,"",null,"",null,null,0]
[null,null,null,-258,null,null,"",null,"",null,null,0]
[null,null,null,-258,null,null,"",null,"",null,null,0]
[null,null,null,-258,null,null,"",null,"",null,null,0]
[null,null,null,-258,null,null,"",null,"",null,null,0]
[null,null,null,-258,null,null,"",null,"",null,null,0]
[null,null,null,-258,null,null,"",null,"",null,null,0]
[null,null,null,-258,null,null,"",null,"",null,null,0]
[null,null,null,-258,null,null,"",null,"",null,null,0]
[null,null,null,-258,null,null,"",null,"",null,null,0]
[null,null,null,-258,null,null,"",null,"",null,null,0]
[null,null,null,-258,null,null,"",null,"",null,null,0]
[null,null,null,-258,null,null,"",null,"",null,null,0]
[null,null,null,-258,null,null,"",null,"",null,null,0]
[null,null,null,-258,null,null,"",null,"",null,null,0]
[null,null,null,-258,null,null,"",null,"",null,null,0]
[null,null,null,-258,null,null,"",null,"",null,null,0]
[null,null,null,-258,null,null,"",null,"",null,null,0]
[null,null,null,-258,null,null,"",null,"",null,null,0]
[null,null,null,-258,null,null,"",null,"",null,null,0]
[null,null,null,-258,null,null,"",null,"",null,null,0]
[null,null,null,-258,null,null,"",null,"",null,null,0]
[null,null,null,-258,null,null,"",null,"",null,null,0]
[null,null,null,-258,null,null,"",null,"",null,null,0]
[null,null,null,-258,null,null,"",null,"",null,null,0]
[null,null,null,-258,null,null,"",null,"",null,null,0]
[null,null,null,-258,null,null,"",null,"",null,null,0]
[null,null,null,-258,null,null,"",null,"",null,null,0]
[null,null,null,-258,null,null,"",null,"",null,null,0]
[null,null,null,-258,null,null,"",null,"",null,null,0]
[null,null,null,-258,null,null,"",null,"",null,null,0]
[null,null,null,-258,null,null,"",null,"",null,null,0]
[null,null,null,-258,null,null,"",null,"",null,null,0]
[null,null,null,-258,null,null,"",null,"",null,null,0]
[null,null,null,-258,null,null,"",null,"",null,null,0]
[null,null,null,-258,null,null,"",null,"",null,null,0]
[null,null,null,-258,null,null,"",null,"",null,null,0]
[null,null,null,-258,null,null,"",null,"",null,null,0]
[null,null,null,-258,null,null,"",null,"",null,null,0]
[null,null,null,-258,null,null,{"$f":"IF(F4418>0,VLOOKUP(F4418,client,2,0),\"\")","v":""},null,{"$f":"IF(H4418>0,VLOOKUP(H4418,product,2,0),\"\")","v":""},null,null,0]
[null,null,null,-258,null,null,"",null,"",null,null,{"$f":"J4419*K4419","v":0}]
[null,null,null,-258,null,null,"",null,"",null,null,0]
[null,null,null,-258,null,null,"",null,"",null,null,0]
[null,null,null,-258,null,null,"",null,"",null,null,0]
[null,null,null,-258,null,null,"",null,"",null,null,0]
[null,null,null,-258,null,null,"",null,"",null,null,0]
[null,null,null,-258,null,null,"",null,"",null,null,0]
[null,null,null,-258,null,null,"",null,"",null,null,0]
[null,null,null,-258,null,null,"",null,"",null,null,0]
[null,null,null,-258,null,null,"",null,"",null,null,0]
[null,null,null,-258,null,null,"",null,"",null,null,0]
[null,null,null,-258,null,null,"",null,"",null,null,0]
[null,null,null,-258,null,null,"",null,"",null,null,0]
[null,null,null,-258,null,null,"",null,"",null,null,0]
[null,null,null,-258,null,null,"",null,"",null,null,0]
[null,null,null,-258,null,null,"",null,"",null,null,0]
[null,null,null,-258,null,null,"",null,"",null,null,0]
[null,null,null,-258,null,null,"",null,"",null,null,0]
[null,null,null,-258,null,null,"",null,"",null,null,0]
[null,null,null,-258,null,null,"",null,"",null,null,0]
[null,null,null,-258,null,null,"",null,"",null,null,0]
[null,null,null,-258,null,null,"",null,"",null,null,0]
[null,null,null,-258,null,null,"",null,"",null,null,0]
[null,null,null,-258,null,null,"",null,"",null,null,0]
[null,null,null,-258,null,null,"",null,"",null,null,0]
[null,null,null,-258,null,null,"",null,"",null,null,0]
[null,null,null,-258,null,null,"",null,"",null,null,0]
[null,null,null,-258,null,null,"",null,"",null,null,0]
[null,null,null,-258,null,null,"",null,"",null,null,0]
[null,null,null,-258,null,null,"",null,"",null,null,0]
[null,null,null,-258,null,null,"",null,"",null,null,0]
[null,null,null,-258,null,null,"",null,"",null,null,0]
[null,null,null,-258,null,null,"",null,"",null,null,0]
[null,null,null,-258,null,null,"",null,"",null,null,0]
[null,null,null,-258,null,null,"",null,"",null,null,0]
[null,null,null,-258,null,null,"",null,"",null,null,0]
[null,null,null,-258,null,null,"",null,"",null,null,0]
[null,null,null,-258,null,null,"",null,"",null,null,0]
[null,null,null,-258,null,null,"",null,"",null,null,0]
[null,null,null,-258,null,null,"",null,"",null,null,0]
[null,null,null,-258,null,null,"",null,"",null,null,0]
[null,null,null,-258,null,null,"",null,"",null,null,0]
[null,null,null,-258,null,null,"",null,"",null,null,0]
[null,null,null,-258,null,null,"",null,"",null,null,0]
[null,null,null,-258,null,null,"",null,"",null,null,0]
[null,null,null,-258,null,null,"",null,"",null,null,0]
[null,null,null,-258,null,null,"",null,"",null,null,0]
[null,null,null,-258,null,null,"",null,"",null,null,0]
[null,null,null,-258,null,null,"",null,"",null,null,0]
[null,null,null,-258,null,null,"",null,"",null,null,0]
[null,null,null,-258,null,null,"",null,"",null,null,0]
[null,null,null,-258,null,null,"",null,"",null,null,0]
[null,null,null,-258,null,null,"",null,"",null,null,0]
[null,null,null,-258,null,null,"",null,"",null,null,0]
[null,null,null,-258,null,null,"",null,"",null,null,0]
[null,null,null,-258,null,null,"",null,"",null,null,0]
[null,null,null,-258,null,null,"",null,"",null,null,0]
[null,null,null,-258,null,null,"",null,"",null,null,0]
[null,null,null,-258,null,null,"",null,"",null,null,0]
[null,null,null,-258,null,null,"",null,"",null,null,0]
[null,null,null,-258,null,null,"",null,"",null,null,0]
[null,null,null,-258,null,null,"",null,"",null,null,0]
[null,null,null,-258,null,null,"",null,"",null,null,0]
[null,null,null,-258,null,null,{"$f":"IF(F4482>0,VLOOKUP(F4482,client,2,0),\"\")","v":""},null,{"$f":"IF(H4482>0,VLOOKUP(H4482,product,2,0),\"\")","v":""},null,null,0]
[null,null,null,-258,null,null,"",null,"",null,null,{"$f":"J4483*K4483","v":0}]
[null,null,null,-258,null,null,"",null,"",null,null,0]
[null,null,null,-258,null,null,"",null,"",null,null,0]
[null,null,null,-258,null,null,"",null,"",null,null,0]
[null,null,null,-258,null,null,"",null,"",null,null,0]
[null,null,null,-258,null,null,"",null,"",null,null,0]
[null,null,null,-258,null,null,"",null,"",null,null,0]
[null,null,null,-258,null,null,"",null,"",null,null,0]
[null,null,null,-258,null,null,"",null,"",null,null,0]
[null,null,null,-258,null,null,"",null,"",null,null,0]
[null,null,null,-258,null,null,"",null,"",null,null,0]
[null,null,null,-258,null,null,"",null,"",null,null,0]
[null,null,null,-258,null,null,"",null,"",null,null,0]
[null,null,null,-258,null,null,"",null,"",null,null,0]
[null,null,null,-258,null,null,"",null,"",null,null,0]
[null,null,null,-258,null,null,"",null,"",null,null,0]
[null,null,null,-258,null,null,"",null,"",null,null,0]
[null,null,null,-258,null,null,"",null,"",null,null,0]
[null,null,null,-258,null,null,"",null,"",null,null,0]
[null,null,null,-258,null,null,"",null,"",null,null,0]
[null,null,null,-258,null,null,"",null,"",null,null,0]
[null,null,null,-258,null,null,"",null,"",null,null,0]
[null,null,null,-258,null,null,"",null,"",null,null,0]
[null,null,null,-258,null,null,"",null,"",null,null,0]
[null,null,null,-258,null,null,"",null,"",null,null,0]
[null,null,null,-258,null,null,"",null,"",null,null,0]
[null,null,null,-258,null,null,"",null,"",null,null,0]
[null,null,null,-258,null,null,"",null,"",null,null,0]
[null,null,null,-258,null,null,"",null,"",null,null,0]
[null,null,null,-258,null,null,"",null,"",null,null,0]
[null,null,null,-258,null,null,"",null,"",null,null,0]
[null,null,null,-258,null,null,"",null,"",null,null,0]
[null,null,null,-258,null,null,"",null,"",null,null,0]
[null,null,null,-258,null,null,"",null,"",null,null,0]
[null,null,null,-258,null,null,"",null,"",null,null,0]
[null,null,null,-258,null,null,"",null,"",null,null,0]
[null,null,null,-258,null,null,"",null,"",null,null,0]
[null,null,null,-258,null,null,"",null,"",null,null,0]
[null,null,null,-258,null,null,"",null,"",null,null,0]
[null,null,null,-258,null,null,"",null,"",null,null,0]
[null,null,null,-258,null,null,"",null,"",null,null,0]
[null,null,null,-258,null,null,"",null,"",null,null,0]
[null,null,null,-258,null,null,"",null,"",null,null,0]
[null,null,null,-258,null,null,"",null,"",null,null,0]
[null,null,null,-258,null,null,"",null,"",null,null,0]
[null,null,null,-258,null,null,"",null,"",null,null,0]
[null,null,null,-258,null,null,"",null,"",null,null,0]
[null,null,null,-258,null,null,"",null,"",null,null,0]
[null,null,null,-258,null,null,"",null,"",null,null,0]
[null,null,null,-258,null,null,"",null,"",null,null,0]
[null,null,null,-258,null,null,"",null,"",null,null,0]
[null,null,null,-258,null,null,"",null,"",null,null,0]
[null,null,null,-258,null,null,"",null,"",null,null,0]
[null,null,null,-258,null,null,"",null,"",null,null,0]
[null,null,null,-258,null,null,"",null,"",null,null,0]
[null,null,null,-258,null,null,"",null,"",null,null,0]
[null,null,null,-258,null,null,"",null,"",null,null,0]
[null,null,null,-258,null,null,"",null,"",null,null,0]
[null,null,null,-258,null,null,"",null,"",null,null,0]
[null,null,null,-258,null,null,"",null,"",null,null,0]
[null,null,null,-258,null,null,"",null,"",null,null,0]
[null,null,null,-258,null,null,"",null,"",null,null,0]
[null,null,null,-258,null,null,"",null,"",null,null,0]
[null,null,null,-258,null,null,{"$f":"IF(F4546>0,VLOOKUP(F4546,client,2,0),\"\")","v":""},null,{"$f":"IF(H4546>0,VLOOKUP(H4546,product,2,0),\"\")","v":""},null,null,0]
[null,null,null,null,null,null,""]